Workbook

Sheet Index
B1: AER ANS Forecast Model
B2: =IFERROR(MID(CELL("filename",A1),FIND("]",CELL("filename",A1))+1,255),"") -> Index | C2: Overall Check: | D2: ='Model Validation'!C4 -> 1
B5: Worksheet summary
B7: Worksheet name | C7: Check: | F7: Input required? | H7: Description
B8: ='Output|Fee Based'!C2 -> Output|Fee Based | C8: ='Model Validation'!C8 -> 0 | F8: N | H8: Contains caclulated price and X factors for fee based services.
B9: ='Output|Quoted'!B2 -> Output|Quoted | C9: ='Model Validation'!C9 -> 0 | F9: N | H9: Contains caclulated labour rates and X factors for quoted services.
B10: ='Input|Setup'!B2 -> Input|Setup | C10: ='Model Validation'!C10 -> 0 | F10: Y | H10: Sets up model with relevant years and output categories.
B11: ='Input|Escalations'!B2 -> Input|Escalations | C11: ='Model Validation'!C11 -> 0 | F11: Y | H11: Sets up the inflation and labour escalations.
B12: ='Input|Indirect Cost Rates'!B2 -> Input|Indirect Cost Rates | C12: ='Model Validation'!C12 -> NA | F12: Y | H12: Input for indirect cost rates.
B13: ='Input|Labour Rates'!B2 -> Input|Labour Rates | C13: ='Model Validation'!C13 -> 1 | F13: Y | H13: Input for labour cost components.
B14: ='Input|Fee Based'!B2 -> Input|Fee Based | C14: ='Model Validation'!C14 -> 0 | F14: Y | H14: Input for fee based costs and service information.
B15: ='Input|Fee Based Mapping'!B2 -> Input|Fee Based Mapping | C15: ='Model Validation'!C15 -> 0 | F15: Y | H15: Aligns historical and proposed fee based services information.
B16: ='Calc|Labour Rates'!B2 -> Calc|Labour Rates | C16: ='Model Validation'!C16 -> NA | F16: N | H16: Calculation tables for labour rates.
B17: ='Calc|Fee Based'!B2 -> Calc|Fee Based | C17: ='Model Validation'!C17 -> 0 | F17: N | H17: Calculation tables for fee based services prices.
B18: ='Model Validation'!B2 -> Model Validation | C18: ='Model Validation'!C18 -> NA | F18: N | H18: Checks and traces possible input errors.
B21: Table summary
B23: Name | C23: Tab | F23: Input required? | H23: Description
B24: ='Output|Fee Based'!B5 -> 1.1 X-factors for each year of 2026-27 to 2030-31 regulatory period, (per cent) | C24: =B8 -> Output|Fee Based | F24: N | H24: Contains X-factors to apply to fee-based services for years 2-5 of the forthcoming regulatory control period.
B25: ='Output|Fee Based'!B10 -> 1.2 Fee based services for 2026-27 | C25: =$C$24 -> Output|Fee Based | F25: N | H25: Contains the calculated price for each fee based servce, in nominal terms, for year 1 of the forthcoming regulatory control period.
B26: ='Output|Quoted'!B5 -> 2.1 X-factors for each year of 2026-27 to 2030-31 regulatory period, (per cent) | C26: =B9 -> Output|Quoted | F26: N | H26: Contains X-factors to apply to the labour rates used to provide quoted services for years 2-5 of the forthcoming regulatory control period.
B27: ='Output|Quoted'!B10 -> 2.2 Labour rates for 2026-27, ($2026-27) | C27: =$C$26 -> Output|Quoted | F27: N | H27: Contains the calculated labour rate for each labour type used to provide quoted servces, in nominal terms, for year 1 of the forthcoming regulatory control period.
B28: ='Output|Quoted'!B44 -> 2.3 List of quoted services for 2026-27 to 2030-31 regulatory period | C28: =$C$26 -> Output|Quoted | F28: N | H28: Lists the quoted services the distributor proposes to provide in the forthcoming regulatory control period.
B29: ='Input|Setup'!A5 & " " & 'Input|Setup'!B5 -> 3.1 Years setup | C29: ='Input|Setup'!B2 -> Input|Setup | F29: Y | H29: Please choose the first year of the forthcoming regulatory period and the base year for inputs.
B30: ='Input|Setup'!A10 & " " & 'Input|Setup'!B10 -> 3.2 Current regulatory period | C30: =$C$29 -> Input|Setup | F30: N | H30: Contains the regulatory years of the current regulatory control period.
B31: ='Input|Setup'!D10 & " " & 'Input|Setup'!E10 -> 3.3 Forecast regulatory period | C31: =$C$29 -> Input|Setup | F31: N | H31: Contains the regulatory years of the forthcoming regulatory control period.
B32: ='Input|Setup'!A18 & " " & 'Input|Setup'!B18 -> 3.4 Used for quoted service? | C32: =$C$29 -> Input|Setup | F32: N | H32: Contains reference to drop down lists for use in 'Input|Labour rates' to denote whether the labour category is to be used in the provision of quoted services.
B33: ='Input|Setup'!D18 & " " & 'Input|Setup'!E18 -> 3.5 Conversions | C33: =$C$29 -> Input|Setup | F33: Optional | H33: Lists figures used for conversions in formulas.
B34: ='Input|Setup'!A24 & " " & 'Input|Setup'!B24 -> 3.6 Hours | C34: Input|Setup | F34: Y | H34: Please enter time periods that would result in different rates applied for the same service or labour type (e.g. business hours, after hours).
B35: ='Input|Setup'!A30 & " " & 'Input|Setup'!B30 -> 3.7 Labour type | C35: Input|Setup | F35: Y | H35: Please enter the specific labour types used to provide fee based and quoted services.
B36: ='Input|Setup'!D30 & " " & 'Input|Setup'!E30 -> 3.8 Service category | C36: Input|Setup | F36: Y | H36: Please enter the major service categories for fee based services (e.g. basic connection services, network safety services, auxiliary metering services).
B37: ='Input|Setup'!G30 & " " & 'Input|Setup'!H30 -> 3.9 [label] | C37: Input|Setup | F37: Optional | H37: Please enter distributor-specific categories for fee-based services, if required.
B38: ='Input|Setup'!G40 & " " & 'Input|Setup'!H40 -> 3.10 [label] | C38: Input|Setup | F38: Optional | H38: Please enter distributor-specific categories for fee-based services, if required.
B39: ='Input|Escalations'!A5 & " " & 'Input|Escalations'!B5 -> 4.1 Escalation setup | C39: ='Input|Escalations'!B2 -> Input|Escalations | F39: N | H39: Contains the first year of the forthcoming regulatory control period and the nominated base year. These are used in calculations in the 'Input|Escalation' sheet.
B40: ='Input|Escalations'!A13 & " " & 'Input|Escalations'!B13 -> 4.2 Inflation | C40: =$C$39 -> Input|Escalations | F40: Y | H40: Please enter ABS index, all groups CPI inflation series A2325846C, up to latest available December. Please enter forecast CPI, including source, for other years.
B41: ='Input|Escalations'!A24 & " " & 'Input|Escalations'!B24 -> 4.3 Real price escalation | C41: =$C$39 -> Input|Escalations | F41: Optional | H41: Calculates X factor (real wage price escalation). Other real escalators are set to equal X factor by default, but can be amended by distributors.
B42: ='Input|Escalations'!A34 & " " & 'Input|Escalations'!B34 -> 4.3.1 Real wage price escalation | C42: =$C$39 -> Input|Escalations | F42: Y | H42: Please enter sources and forecasts for real wage price escalation, including weightings for each source, in the green input cells. Grey cells will calculate the forecast real wage price escalation.
B43: ='Input|Escalations'!A54& " " & 'Input|Escalations'!B54 -> 4.3.2 Real price escalation (non-wage) | C43: =$C$39 -> Input|Escalations | F43: N | H43: Contains the calculated forecast real escalation for non-wage inputs.
B44: ='Input|Indirect Cost Rates'!A5 & " " & 'Input|Indirect Cost Rates'!B5 -> 5.1 On costs | C44: ='Input|Indirect Cost Rates'!B2 -> Input|Indirect Cost Rates | F44: Y | H44: Please enter relevant on-cost rates. Distributors may enter a total on-cost rate only. Alternatively, disaggregated on-cost rates may be provided with the total on-cost rate calculated in row 19, as required.
B45: ='Input|Indirect Cost Rates'!A22 & " " & 'Input|Indirect Cost Rates'!B22 -> 5.2 Overhead | C45: =$C$44 -> Input|Indirect Cost Rates | F45: Y | H45: Please enter rates for network overhead and corporate overhead. Where relevant, distributors may enter other overhead rates (e.g. a total overhead rate).
B46: ='Input|Indirect Cost Rates'!A32 & " " & 'Input|Indirect Cost Rates'!B32 -> 5.3 Margins | C46: =$C$44 -> Input|Indirect Cost Rates | F46: Y | H46: Please enter margin rates as required.
B47: ='Input|Indirect Cost Rates'!A41 & " " & 'Input|Indirect Cost Rates'!B41 -> 5.4 Tax recovery rate | C47: =$C$44 -> Input|Indirect Cost Rates | F47: Y | H47: Please enter tax recovery rates as required.
B48: ='Input|Labour Rates'!B7 -> 6.1 Labour rates | C48: ='Input|Labour Rates'!B2 -> Input|Labour Rates | F48: Y | H48: Please enter required information regarding labour rates (in base year dollar terms) used to provide ANS. For on-cost and overhead rates, please use formulas to reference tables 5.1 and 5.2, respectively.
B49: ='Input|Labour Rates'!K7 -> 6.2 Notes and sources for "Other costs" | C49: =$C$48 -> Input|Labour Rates | F49: Y | H49: Please describe "Other costs" used to derive total labour rates, where appropriate, and provide sources.
B50: ='Input|Labour Rates'!B42 -> 6.3 List of quoted services for 2026-27 to 2030-31 regulatory period | C50: =$C$48 -> Input|Labour Rates | F50: Y | H50: Please list the quoted services the distributor proposes to provide in the forthcoming regulatory control period.
B51: ='Input|Fee Based'!B6 -> 7.1 Fee based services | C51: ='Input|Fee Based'!B2 -> Input|Fee Based | F51: Y | H51: Please list the name and service code of the fee-based services, including hours provided and general service category.
B52: ='Input|Fee Based'!I6 -> 7.2 Service cost build up - DIRECT COSTS, $'s ($2024-25) | C52: =$C$51 -> Input|Fee Based | F52: Y | H52: Please input the direct costs in base year dollar terms incurred for providinng each fee based service, and other requested information such as the total time in minutes each labour type is required to provide the service.
B53: ='Input|Fee Based'!AV6 -> 7.3 Service cost build - INDIRECT COSTS (per cent) | C53: =$C$51 -> Input|Fee Based | F53: Y | H53: Please use formulas to reference in the 'Input|Indirect Cost Rates' sheet as appropriate.
B54: ='Input|Fee Based'!BD6 -> 7.4 Notes and sources for "Other costs" | C54: =$C$51 -> Input|Fee Based | F54: Y | H54: Please describe "Other costs" used to derive the year 1 price for fee based services, where appropriate, and provide sources.
B55: ='Input|Fee Based Mapping'!B9 -> 8.1 Current regulatory period - Fee based services | C55: ='Input|Fee Based Mapping'!B2 -> Input|Fee Based Mapping | F55: Y | H55: Please enter approved fee based services and prices (in nominal dollar terms) for the current regulatory control perod (including the final decision prices in column K). Please align with the fee based services for the forthcoming regulatoru control period in table 8.2.
B56: ='Input|Fee Based Mapping'!S9 -> 8.2 Forecast regulatory period - Fee based services | C56: =$C$55 -> Input|Fee Based Mapping | F56: N | H56: Includes the year 1 price for fee based services (from 'Calc|Fee Based' sheet), then calculates prices for years 2 to 5 of the forthcoming regulatory control period using forecast inflation and X factors.
B57: ='Calc|Labour Rates'!B7 -> 9.1 Year 1 labour rates | C57: ='Calc|Labour Rates'!B2 -> Calc|Labour Rates | F57: N | H57: Calculates labour rate for each labour type used to provide quoted servces, in nominal terms, for year 1 of the forthcoming regulatory control period.
B58: ='Calc|Labour Rates'!G7 -> 9.2 Year 1 labour rates build up, $'s ($2026-27) | C58: =$C$57 -> Calc|Labour Rates | F58: N | H58: Calculates labour rate for each labour type used to provide quoted servces for year 1 of the forthcoming regulatory control period.
B59: ='Calc|Fee Based'!B6 -> 10.1 Fee based services | C59: ='Calc|Fee Based'!$B$2 -> Calc|Fee Based | F59: N | H59: Calculates price for each fee based servce, in nominal terms, for year 1 of the forthcoming regulatory control period.
B60: ='Calc|Fee Based'!J6 -> 10.2 Year 1 service cost build up - DIRECT COSTS, $'s ($2026-27) | C60: =$C$59 -> Calc|Fee Based | F60: N | H60: Calculates the direct costs for each fee based service, in base year dollar terms, for year 1 of the forthcoming regulatory control period.
B61: ='Calc|Fee Based'!AX6 -> 10.3 Year 1 Service cost build up - INDIRECT COSTS, $'s ($2026-27) | C61: =$C$59 -> Calc|Fee Based | F61: N | H61: Calculates the indirect costs for each fee based service, in base year dollar terms, for year 1 of the forthcoming regulatory control period.

Sheet Output|Fee Based
C1: =Index!B1 -> AER ANS Forecast Model | D1: Key: | E1: Input | H1: Sheet Validation | I1: ='Model Validation'!C8 -> 0
C2: =MID(CELL("filename",A1),FIND("]",CELL("filename",A1))+1,255) -> Output|Fee Based | E2: Formula
D4: =IF(D7='Input|Escalations'!J27,0,1) -> 0 | E4: =IF(E7='Input|Escalations'!K27,0,1) -> 0 | F4: =IF(F7='Input|Escalations'!L27,0,1) -> 0 | G4: =IF(G7='Input|Escalations'!M27,0,1) -> 0
B5: =IFERROR("1.1 X-factors for each year of "&'Input|Setup'!$E$11&" to "&'Input|Setup'!$E$15&" regulatory period, (per cent)","") -> 1.1 X-factors for each year of 2026-27 to 2030-31 regulatory period, (per cent)
C6: ='Input|Setup'!$E$11 -> 2026-27 | D6: ='Input|Setup'!$E$12 -> 2027-28 | E6: ='Input|Setup'!$E$13 -> 2028-29 | F6: ='Input|Setup'!$E$14 -> 2029-30 | G6: ='Input|Setup'!$E$15 -> 2030-31
D7: ='Input|Escalations'!J27 -> -0.00930115961 | E7: ='Input|Escalations'!K27 -> -0.01079544555 | F7: ='Input|Escalations'!L27 -> -0.01198734607 | G7: ='Input|Escalations'!M27 -> -0.01289271396
B10: =IFERROR("1.2 Fee based services for "&'Input|Setup'!$E$11,"") -> 1.2 Fee based services for 2026-27
B11: ='Calc|Fee Based'!B9 -> Service code | C11: ='Calc|Fee Based'!C9 -> Service | D11: ='Input|Setup'!B24 -> Hours | E11: ='Input|Setup'!E30 -> Service category | F11: ='Input|Setup'!H30 -> [label] | G11: ='Input|Setup'!H40 -> [label] | H11: ="Price ($" & 'Input|Setup'!$E$8 & ")" -> Price ($2026-27)
A12: 1 | B12: ='Calc|Fee Based'!B10 ->  | C12: ='Calc|Fee Based'!C10 -> Temporary disconnection ≤25m3/hr (per meter) | D12: ='Calc|Fee Based'!D10 -> Business hours | E12: ='Calc|Fee Based'!E10 -> Disconnections and reconnections | F12: ='Calc|Fee Based'!F10 ->  | G12: ='Calc|Fee Based'!G10 ->  | H12: ='Calc|Fee Based'!H10 -> 133.9167763 | I12: =IF(AND(B12='Calc|Fee Based'!B10,C12='Calc|Fee Based'!C10,D12='Calc|Fee Based'!D10,E12='Calc|Fee Based'!E10, F12='Calc|Fee Based'!F10,G12='Calc|Fee Based'!G10, H12='Calc|Fee Based'!H10),0,1) -> 0
A13: 2 | B13: ='Calc|Fee Based'!B11 ->  | C13: ='Calc|Fee Based'!C11 -> Temporary disconnection >25m3/hr (per meter) | D13: ='Calc|Fee Based'!D11 -> Business hours | E13: ='Calc|Fee Based'!E11 -> Disconnections and reconnections | F13: ='Calc|Fee Based'!F11 ->  | G13: ='Calc|Fee Based'!G11 ->  | H13: ='Calc|Fee Based'!H11 -> 221.6602112 | I13: =IF(AND(B13='Calc|Fee Based'!B11,C13='Calc|Fee Based'!C11,D13='Calc|Fee Based'!D11,E13='Calc|Fee Based'!E11, F13='Calc|Fee Based'!F11,G13='Calc|Fee Based'!G11, H13='Calc|Fee Based'!H11),0,1) -> 0
A14: 3 | B14: ='Calc|Fee Based'!B12 ->  | C14: ='Calc|Fee Based'!C12 -> Reconnection ≤25m3/hr (per meter) | D14: ='Calc|Fee Based'!D12 -> Business hours | E14: ='Calc|Fee Based'!E12 -> Disconnections and reconnections | F14: ='Calc|Fee Based'!F12 ->  | G14: ='Calc|Fee Based'!G12 ->  | H14: ='Calc|Fee Based'!H12 -> 127.6177996 | I14: =IF(AND(B14='Calc|Fee Based'!B12,C14='Calc|Fee Based'!C12,D14='Calc|Fee Based'!D12,E14='Calc|Fee Based'!E12, F14='Calc|Fee Based'!F12,G14='Calc|Fee Based'!G12, H14='Calc|Fee Based'!H12),0,1) -> 0
A15: 4 | B15: ='Calc|Fee Based'!B13 ->  | C15: ='Calc|Fee Based'!C13 -> Reconnection >25m3/hr (per meter) | D15: ='Calc|Fee Based'!D13 -> Business hours | E15: ='Calc|Fee Based'!E13 -> Disconnections and reconnections | F15: ='Calc|Fee Based'!F13 ->  | G15: ='Calc|Fee Based'!G13 ->  | H15: ='Calc|Fee Based'!H13 -> 180.9990726 | I15: =IF(AND(B15='Calc|Fee Based'!B13,C15='Calc|Fee Based'!C13,D15='Calc|Fee Based'!D13,E15='Calc|Fee Based'!E13, F15='Calc|Fee Based'!F13,G15='Calc|Fee Based'!G13, H15='Calc|Fee Based'!H13),0,1) -> 0
A16: 5 | B16: ='Calc|Fee Based'!B14 ->  | C16: ='Calc|Fee Based'!C14 -> Special meter read | D16: ='Calc|Fee Based'!D14 -> Business hours | E16: ='Calc|Fee Based'!E14 -> Special meter reads | F16: ='Calc|Fee Based'!F14 ->  | G16: ='Calc|Fee Based'!G14 ->  | H16: ='Calc|Fee Based'!H14 -> 14.03967574 | I16: =IF(AND(B16='Calc|Fee Based'!B14,C16='Calc|Fee Based'!C14,D16='Calc|Fee Based'!D14,E16='Calc|Fee Based'!E14, F16='Calc|Fee Based'!F14,G16='Calc|Fee Based'!G14, H16='Calc|Fee Based'!H14),0,1) -> 0
A17: 6 | B17: ='Calc|Fee Based'!B15 ->  | C17: ='Calc|Fee Based'!C15 -> Basic permanent disconnection | D17: ='Calc|Fee Based'!D15 -> Business hours | E17: ='Calc|Fee Based'!E15 -> Basic permanent disconnection | F17: ='Calc|Fee Based'!F15 ->  | G17: ='Calc|Fee Based'!G15 ->  | H17: ='Calc|Fee Based'!H15 -> 746.8660787 | I17: =IF(AND(B17='Calc|Fee Based'!B15,C17='Calc|Fee Based'!C15,D17='Calc|Fee Based'!D15,E17='Calc|Fee Based'!E15, F17='Calc|Fee Based'!F15,G17='Calc|Fee Based'!G15, H17='Calc|Fee Based'!H15),0,1) -> 0
A18: 7 | B18: ='Calc|Fee Based'!B16 ->  | C18: ='Calc|Fee Based'!C16 -> Basic (urgent) permanent disconnection | D18: ='Calc|Fee Based'!D16 -> Business hours | E18: ='Calc|Fee Based'!E16 -> Basic permanent disconnection | F18: ='Calc|Fee Based'!F16 ->  | G18: ='Calc|Fee Based'!G16 ->  | H18: ='Calc|Fee Based'!H16 -> 981.2235814 | I18: =IF(AND(B18='Calc|Fee Based'!B16,C18='Calc|Fee Based'!C16,D18='Calc|Fee Based'!D16,E18='Calc|Fee Based'!E16, F18='Calc|Fee Based'!F16,G18='Calc|Fee Based'!G16, H18='Calc|Fee Based'!H16),0,1) -> 0
A19: 8 | B19: ='Calc|Fee Based'!B17 ->  | C19: ='Calc|Fee Based'!C17 -> Non-standard retail-initiated requests and queries (per hour) | D19: ='Calc|Fee Based'!D17 -> Business hours | E19: ='Calc|Fee Based'!E17 -> Hourly charge | F19: ='Calc|Fee Based'!F17 ->  | G19: ='Calc|Fee Based'!G17 ->  | H19: ='Calc|Fee Based'!H17 -> 158.2892125 | I19: =IF(AND(B19='Calc|Fee Based'!B17,C19='Calc|Fee Based'!C17,D19='Calc|Fee Based'!D17,E19='Calc|Fee Based'!E17, F19='Calc|Fee Based'!F17,G19='Calc|Fee Based'!G17, H19='Calc|Fee Based'!H17),0,1) -> 0
A20: 9 | B20: ='Calc|Fee Based'!B18 ->  | C20: ='Calc|Fee Based'!C18 -> Wasted visit temporary disconnection | D20: ='Calc|Fee Based'!D18 -> Business hours | E20: ='Calc|Fee Based'!E18 -> Disconnections and reconnections | F20: ='Calc|Fee Based'!F18 ->  | G20: ='Calc|Fee Based'!G18 ->  | H20: ='Calc|Fee Based'!H18 -> 72.68984823 | I20: =IF(AND(B20='Calc|Fee Based'!B18,C20='Calc|Fee Based'!C18,D20='Calc|Fee Based'!D18,E20='Calc|Fee Based'!E18, F20='Calc|Fee Based'!F18,G20='Calc|Fee Based'!G18, H20='Calc|Fee Based'!H18),0,1) -> 0
A21: 10 | B21: ='Calc|Fee Based'!B19 ->  | C21: ='Calc|Fee Based'!C19 -> Wasted visit reconnection | D21: ='Calc|Fee Based'!D19 -> Business hours | E21: ='Calc|Fee Based'!E19 -> Disconnections and reconnections | F21: ='Calc|Fee Based'!F19 ->  | G21: ='Calc|Fee Based'!G19 ->  | H21: ='Calc|Fee Based'!H19 -> 93.24269097 | I21: =IF(AND(B21='Calc|Fee Based'!B19,C21='Calc|Fee Based'!C19,D21='Calc|Fee Based'!D19,E21='Calc|Fee Based'!E19, F21='Calc|Fee Based'!F19,G21='Calc|Fee Based'!G19, H21='Calc|Fee Based'!H19),0,1) -> 0
A22: 11 | B22: ='Calc|Fee Based'!B20 ->  | C22: ='Calc|Fee Based'!C20 -> Wasted visit basic permanent disconnection | D22: ='Calc|Fee Based'!D20 -> Business hours | E22: ='Calc|Fee Based'!E20 -> Basic permanent disconnection | F22: ='Calc|Fee Based'!F20 ->  | G22: ='Calc|Fee Based'!G20 ->  | H22: ='Calc|Fee Based'!H20 -> 210.8811429 | I22: =IF(AND(B22='Calc|Fee Based'!B20,C22='Calc|Fee Based'!C20,D22='Calc|Fee Based'!D20,E22='Calc|Fee Based'!E20, F22='Calc|Fee Based'!F20,G22='Calc|Fee Based'!G20, H22='Calc|Fee Based'!H20),0,1) -> 0
A23: 12 | B23: ='Calc|Fee Based'!B21 ->  | C23: ='Calc|Fee Based'!C21 -> Wasted visit urgent basic permanent disconnection | D23: ='Calc|Fee Based'!D21 -> Business hours | E23: ='Calc|Fee Based'!E21 -> Basic permanent disconnection | F23: ='Calc|Fee Based'!F21 ->  | G23: ='Calc|Fee Based'!G21 ->  | H23: ='Calc|Fee Based'!H21 -> 445.2386456 | I23: =IF(AND(B23='Calc|Fee Based'!B21,C23='Calc|Fee Based'!C21,D23='Calc|Fee Based'!D21,E23='Calc|Fee Based'!E21, F23='Calc|Fee Based'!F21,G23='Calc|Fee Based'!G21, H23='Calc|Fee Based'!H21),0,1) -> 0
A24: 13 | B24: ='Calc|Fee Based'!B22 ->  | C24: ='Calc|Fee Based'!C22 -> Wasted visit special meter read | D24: ='Calc|Fee Based'!D22 -> Business hours | E24: ='Calc|Fee Based'!E22 -> Special meter reads | F24: ='Calc|Fee Based'!F22 ->  | G24: ='Calc|Fee Based'!G22 ->  | H24: ='Calc|Fee Based'!H22 -> 14.03967574 | I24: =IF(AND(B24='Calc|Fee Based'!B22,C24='Calc|Fee Based'!C22,D24='Calc|Fee Based'!D22,E24='Calc|Fee Based'!E22, F24='Calc|Fee Based'!F22,G24='Calc|Fee Based'!G22, H24='Calc|Fee Based'!H22),0,1) -> 0
A25: 14 | B25: ='Calc|Fee Based'!B23 ->  | C25: ='Calc|Fee Based'!C23 ->  | D25: ='Calc|Fee Based'!D23 ->  | E25: ='Calc|Fee Based'!E23 ->  | F25: ='Calc|Fee Based'!F23 ->  | G25: ='Calc|Fee Based'!G23 ->  | H25: ='Calc|Fee Based'!H23 -> 0 | I25: =IF(AND(B25='Calc|Fee Based'!B23,C25='Calc|Fee Based'!C23,D25='Calc|Fee Based'!D23,E25='Calc|Fee Based'!E23, F25='Calc|Fee Based'!F23,G25='Calc|Fee Based'!G23, H25='Calc|Fee Based'!H23),0,1) -> 0
A26: 15 | B26: ='Calc|Fee Based'!B24 ->  | C26: ='Calc|Fee Based'!C24 ->  | D26: ='Calc|Fee Based'!D24 ->  | E26: ='Calc|Fee Based'!E24 ->  | F26: ='Calc|Fee Based'!F24 ->  | G26: ='Calc|Fee Based'!G24 ->  | H26: ='Calc|Fee Based'!H24 -> 0 | I26: =IF(AND(B26='Calc|Fee Based'!B24,C26='Calc|Fee Based'!C24,D26='Calc|Fee Based'!D24,E26='Calc|Fee Based'!E24, F26='Calc|Fee Based'!F24,G26='Calc|Fee Based'!G24, H26='Calc|Fee Based'!H24),0,1) -> 0
A27: 16 | B27: ='Calc|Fee Based'!B25 ->  | C27: ='Calc|Fee Based'!C25 ->  | D27: ='Calc|Fee Based'!D25 ->  | E27: ='Calc|Fee Based'!E25 ->  | F27: ='Calc|Fee Based'!F25 ->  | G27: ='Calc|Fee Based'!G25 ->  | H27: ='Calc|Fee Based'!H25 -> 0 | I27: =IF(AND(B27='Calc|Fee Based'!B25,C27='Calc|Fee Based'!C25,D27='Calc|Fee Based'!D25,E27='Calc|Fee Based'!E25, F27='Calc|Fee Based'!F25,G27='Calc|Fee Based'!G25, H27='Calc|Fee Based'!H25),0,1) -> 0
A28: 17 | B28: ='Calc|Fee Based'!B26 ->  | C28: ='Calc|Fee Based'!C26 ->  | D28: ='Calc|Fee Based'!D26 ->  | E28: ='Calc|Fee Based'!E26 ->  | F28: ='Calc|Fee Based'!F26 ->  | G28: ='Calc|Fee Based'!G26 ->  | H28: ='Calc|Fee Based'!H26 -> 0 | I28: =IF(AND(B28='Calc|Fee Based'!B26,C28='Calc|Fee Based'!C26,D28='Calc|Fee Based'!D26,E28='Calc|Fee Based'!E26, F28='Calc|Fee Based'!F26,G28='Calc|Fee Based'!G26, H28='Calc|Fee Based'!H26),0,1) -> 0
A29: 18 | B29: ='Calc|Fee Based'!B27 ->  | C29: ='Calc|Fee Based'!C27 ->  | D29: ='Calc|Fee Based'!D27 ->  | E29: ='Calc|Fee Based'!E27 ->  | F29: ='Calc|Fee Based'!F27 ->  | G29: ='Calc|Fee Based'!G27 ->  | H29: ='Calc|Fee Based'!H27 -> 0 | I29: =IF(AND(B29='Calc|Fee Based'!B27,C29='Calc|Fee Based'!C27,D29='Calc|Fee Based'!D27,E29='Calc|Fee Based'!E27, F29='Calc|Fee Based'!F27,G29='Calc|Fee Based'!G27, H29='Calc|Fee Based'!H27),0,1) -> 0
A30: 19 | B30: ='Calc|Fee Based'!B28 ->  | C30: ='Calc|Fee Based'!C28 ->  | D30: ='Calc|Fee Based'!D28 ->  | E30: ='Calc|Fee Based'!E28 ->  | F30: ='Calc|Fee Based'!F28 ->  | G30: ='Calc|Fee Based'!G28 ->  | H30: ='Calc|Fee Based'!H28 -> 0 | I30: =IF(AND(B30='Calc|Fee Based'!B28,C30='Calc|Fee Based'!C28,D30='Calc|Fee Based'!D28,E30='Calc|Fee Based'!E28, F30='Calc|Fee Based'!F28,G30='Calc|Fee Based'!G28, H30='Calc|Fee Based'!H28),0,1) -> 0
A31: 20 | B31: ='Calc|Fee Based'!B29 ->  | C31: ='Calc|Fee Based'!C29 ->  | D31: ='Calc|Fee Based'!D29 ->  | E31: ='Calc|Fee Based'!E29 ->  | F31: ='Calc|Fee Based'!F29 ->  | G31: ='Calc|Fee Based'!G29 ->  | H31: ='Calc|Fee Based'!H29 -> 0 | I31: =IF(AND(B31='Calc|Fee Based'!B29,C31='Calc|Fee Based'!C29,D31='Calc|Fee Based'!D29,E31='Calc|Fee Based'!E29, F31='Calc|Fee Based'!F29,G31='Calc|Fee Based'!G29, H31='Calc|Fee Based'!H29),0,1) -> 0
A32: 21 | B32: ='Calc|Fee Based'!B30 ->  | C32: ='Calc|Fee Based'!C30 ->  | D32: ='Calc|Fee Based'!D30 ->  | E32: ='Calc|Fee Based'!E30 ->  | F32: ='Calc|Fee Based'!F30 ->  | G32: ='Calc|Fee Based'!G30 ->  | H32: ='Calc|Fee Based'!H30 -> 0 | I32: =IF(AND(B32='Calc|Fee Based'!B30,C32='Calc|Fee Based'!C30,D32='Calc|Fee Based'!D30,E32='Calc|Fee Based'!E30, F32='Calc|Fee Based'!F30,G32='Calc|Fee Based'!G30, H32='Calc|Fee Based'!H30),0,1) -> 0
A33: 22 | B33: ='Calc|Fee Based'!B31 ->  | C33: ='Calc|Fee Based'!C31 ->  | D33: ='Calc|Fee Based'!D31 ->  | E33: ='Calc|Fee Based'!E31 ->  | F33: ='Calc|Fee Based'!F31 ->  | G33: ='Calc|Fee Based'!G31 ->  | H33: ='Calc|Fee Based'!H31 -> 0 | I33: =IF(AND(B33='Calc|Fee Based'!B31,C33='Calc|Fee Based'!C31,D33='Calc|Fee Based'!D31,E33='Calc|Fee Based'!E31, F33='Calc|Fee Based'!F31,G33='Calc|Fee Based'!G31, H33='Calc|Fee Based'!H31),0,1) -> 0
A34: 23 | B34: ='Calc|Fee Based'!B32 ->  | C34: ='Calc|Fee Based'!C32 ->  | D34: ='Calc|Fee Based'!D32 ->  | E34: ='Calc|Fee Based'!E32 ->  | F34: ='Calc|Fee Based'!F32 ->  | G34: ='Calc|Fee Based'!G32 ->  | H34: ='Calc|Fee Based'!H32 -> 0 | I34: =IF(AND(B34='Calc|Fee Based'!B32,C34='Calc|Fee Based'!C32,D34='Calc|Fee Based'!D32,E34='Calc|Fee Based'!E32, F34='Calc|Fee Based'!F32,G34='Calc|Fee Based'!G32, H34='Calc|Fee Based'!H32),0,1) -> 0
A35: 24 | B35: ='Calc|Fee Based'!B33 ->  | C35: ='Calc|Fee Based'!C33 ->  | D35: ='Calc|Fee Based'!D33 ->  | E35: ='Calc|Fee Based'!E33 ->  | F35: ='Calc|Fee Based'!F33 ->  | G35: ='Calc|Fee Based'!G33 ->  | H35: ='Calc|Fee Based'!H33 -> 0 | I35: =IF(AND(B35='Calc|Fee Based'!B33,C35='Calc|Fee Based'!C33,D35='Calc|Fee Based'!D33,E35='Calc|Fee Based'!E33, F35='Calc|Fee Based'!F33,G35='Calc|Fee Based'!G33, H35='Calc|Fee Based'!H33),0,1) -> 0
A36: 25 | B36: ='Calc|Fee Based'!B34 ->  | C36: ='Calc|Fee Based'!C34 ->  | D36: ='Calc|Fee Based'!D34 ->  | E36: ='Calc|Fee Based'!E34 ->  | F36: ='Calc|Fee Based'!F34 ->  | G36: ='Calc|Fee Based'!G34 ->  | H36: ='Calc|Fee Based'!H34 -> 0 | I36: =IF(AND(B36='Calc|Fee Based'!B34,C36='Calc|Fee Based'!C34,D36='Calc|Fee Based'!D34,E36='Calc|Fee Based'!E34, F36='Calc|Fee Based'!F34,G36='Calc|Fee Based'!G34, H36='Calc|Fee Based'!H34),0,1) -> 0
A37: 26 | B37: ='Calc|Fee Based'!B35 ->  | C37: ='Calc|Fee Based'!C35 ->  | D37: ='Calc|Fee Based'!D35 ->  | E37: ='Calc|Fee Based'!E35 ->  | F37: ='Calc|Fee Based'!F35 ->  | G37: ='Calc|Fee Based'!G35 ->  | H37: ='Calc|Fee Based'!H35 -> 0 | I37: =IF(AND(B37='Calc|Fee Based'!B35,C37='Calc|Fee Based'!C35,D37='Calc|Fee Based'!D35,E37='Calc|Fee Based'!E35, F37='Calc|Fee Based'!F35,G37='Calc|Fee Based'!G35, H37='Calc|Fee Based'!H35),0,1) -> 0
A38: 27 | B38: ='Calc|Fee Based'!B36 ->  | C38: ='Calc|Fee Based'!C36 ->  | D38: ='Calc|Fee Based'!D36 ->  | E38: ='Calc|Fee Based'!E36 ->  | F38: ='Calc|Fee Based'!F36 ->  | G38: ='Calc|Fee Based'!G36 ->  | H38: ='Calc|Fee Based'!H36 -> 0 | I38: =IF(AND(B38='Calc|Fee Based'!B36,C38='Calc|Fee Based'!C36,D38='Calc|Fee Based'!D36,E38='Calc|Fee Based'!E36, F38='Calc|Fee Based'!F36,G38='Calc|Fee Based'!G36, H38='Calc|Fee Based'!H36),0,1) -> 0
A39: 28 | B39: ='Calc|Fee Based'!B37 ->  | C39: ='Calc|Fee Based'!C37 ->  | D39: ='Calc|Fee Based'!D37 ->  | E39: ='Calc|Fee Based'!E37 ->  | F39: ='Calc|Fee Based'!F37 ->  | G39: ='Calc|Fee Based'!G37 ->  | H39: ='Calc|Fee Based'!H37 -> 0 | I39: =IF(AND(B39='Calc|Fee Based'!B37,C39='Calc|Fee Based'!C37,D39='Calc|Fee Based'!D37,E39='Calc|Fee Based'!E37, F39='Calc|Fee Based'!F37,G39='Calc|Fee Based'!G37, H39='Calc|Fee Based'!H37),0,1) -> 0
A40: 29 | B40: ='Calc|Fee Based'!B38 ->  | C40: ='Calc|Fee Based'!C38 ->  | D40: ='Calc|Fee Based'!D38 ->  | E40: ='Calc|Fee Based'!E38 ->  | F40: ='Calc|Fee Based'!F38 ->  | G40: ='Calc|Fee Based'!G38 ->  | H40: ='Calc|Fee Based'!H38 -> 0 | I40: =IF(AND(B40='Calc|Fee Based'!B38,C40='Calc|Fee Based'!C38,D40='Calc|Fee Based'!D38,E40='Calc|Fee Based'!E38, F40='Calc|Fee Based'!F38,G40='Calc|Fee Based'!G38, H40='Calc|Fee Based'!H38),0,1) -> 0
A41: 30 | B41: ='Calc|Fee Based'!B39 ->  | C41: ='Calc|Fee Based'!C39 ->  | D41: ='Calc|Fee Based'!D39 ->  | E41: ='Calc|Fee Based'!E39 ->  | F41: ='Calc|Fee Based'!F39 ->  | G41: ='Calc|Fee Based'!G39 ->  | H41: ='Calc|Fee Based'!H39 -> 0 | I41: =IF(AND(B41='Calc|Fee Based'!B39,C41='Calc|Fee Based'!C39,D41='Calc|Fee Based'!D39,E41='Calc|Fee Based'!E39, F41='Calc|Fee Based'!F39,G41='Calc|Fee Based'!G39, H41='Calc|Fee Based'!H39),0,1) -> 0
A42: 31 | B42: ='Calc|Fee Based'!B40 ->  | C42: ='Calc|Fee Based'!C40 ->  | D42: ='Calc|Fee Based'!D40 ->  | E42: ='Calc|Fee Based'!E40 ->  | F42: ='Calc|Fee Based'!F40 ->  | G42: ='Calc|Fee Based'!G40 ->  | H42: ='Calc|Fee Based'!H40 -> 0 | I42: =IF(AND(B42='Calc|Fee Based'!B40,C42='Calc|Fee Based'!C40,D42='Calc|Fee Based'!D40,E42='Calc|Fee Based'!E40, F42='Calc|Fee Based'!F40,G42='Calc|Fee Based'!G40, H42='Calc|Fee Based'!H40),0,1) -> 0
A43: 32 | B43: ='Calc|Fee Based'!B41 ->  | C43: ='Calc|Fee Based'!C41 ->  | D43: ='Calc|Fee Based'!D41 ->  | E43: ='Calc|Fee Based'!E41 ->  | F43: ='Calc|Fee Based'!F41 ->  | G43: ='Calc|Fee Based'!G41 ->  | H43: ='Calc|Fee Based'!H41 -> 0 | I43: =IF(AND(B43='Calc|Fee Based'!B41,C43='Calc|Fee Based'!C41,D43='Calc|Fee Based'!D41,E43='Calc|Fee Based'!E41, F43='Calc|Fee Based'!F41,G43='Calc|Fee Based'!G41, H43='Calc|Fee Based'!H41),0,1) -> 0
A44: 33 | B44: ='Calc|Fee Based'!B42 ->  | C44: ='Calc|Fee Based'!C42 ->  | D44: ='Calc|Fee Based'!D42 ->  | E44: ='Calc|Fee Based'!E42 ->  | F44: ='Calc|Fee Based'!F42 ->  | G44: ='Calc|Fee Based'!G42 ->  | H44: ='Calc|Fee Based'!H42 -> 0 | I44: =IF(AND(B44='Calc|Fee Based'!B42,C44='Calc|Fee Based'!C42,D44='Calc|Fee Based'!D42,E44='Calc|Fee Based'!E42, F44='Calc|Fee Based'!F42,G44='Calc|Fee Based'!G42, H44='Calc|Fee Based'!H42),0,1) -> 0
A45: 34 | B45: ='Calc|Fee Based'!B43 ->  | C45: ='Calc|Fee Based'!C43 ->  | D45: ='Calc|Fee Based'!D43 ->  | E45: ='Calc|Fee Based'!E43 ->  | F45: ='Calc|Fee Based'!F43 ->  | G45: ='Calc|Fee Based'!G43 ->  | H45: ='Calc|Fee Based'!H43 -> 0 | I45: =IF(AND(B45='Calc|Fee Based'!B43,C45='Calc|Fee Based'!C43,D45='Calc|Fee Based'!D43,E45='Calc|Fee Based'!E43, F45='Calc|Fee Based'!F43,G45='Calc|Fee Based'!G43, H45='Calc|Fee Based'!H43),0,1) -> 0
A46: 35 | B46: ='Calc|Fee Based'!B44 ->  | C46: ='Calc|Fee Based'!C44 ->  | D46: ='Calc|Fee Based'!D44 ->  | E46: ='Calc|Fee Based'!E44 ->  | F46: ='Calc|Fee Based'!F44 ->  | G46: ='Calc|Fee Based'!G44 ->  | H46: ='Calc|Fee Based'!H44 -> 0 | I46: =IF(AND(B46='Calc|Fee Based'!B44,C46='Calc|Fee Based'!C44,D46='Calc|Fee Based'!D44,E46='Calc|Fee Based'!E44, F46='Calc|Fee Based'!F44,G46='Calc|Fee Based'!G44, H46='Calc|Fee Based'!H44),0,1) -> 0
A47: 36 | B47: ='Calc|Fee Based'!B45 ->  | C47: ='Calc|Fee Based'!C45 ->  | D47: ='Calc|Fee Based'!D45 ->  | E47: ='Calc|Fee Based'!E45 ->  | F47: ='Calc|Fee Based'!F45 ->  | G47: ='Calc|Fee Based'!G45 ->  | H47: ='Calc|Fee Based'!H45 -> 0 | I47: =IF(AND(B47='Calc|Fee Based'!B45,C47='Calc|Fee Based'!C45,D47='Calc|Fee Based'!D45,E47='Calc|Fee Based'!E45, F47='Calc|Fee Based'!F45,G47='Calc|Fee Based'!G45, H47='Calc|Fee Based'!H45),0,1) -> 0
A48: 37 | B48: ='Calc|Fee Based'!B46 ->  | C48: ='Calc|Fee Based'!C46 ->  | D48: ='Calc|Fee Based'!D46 ->  | E48: ='Calc|Fee Based'!E46 ->  | F48: ='Calc|Fee Based'!F46 ->  | G48: ='Calc|Fee Based'!G46 ->  | H48: ='Calc|Fee Based'!H46 -> 0 | I48: =IF(AND(B48='Calc|Fee Based'!B46,C48='Calc|Fee Based'!C46,D48='Calc|Fee Based'!D46,E48='Calc|Fee Based'!E46, F48='Calc|Fee Based'!F46,G48='Calc|Fee Based'!G46, H48='Calc|Fee Based'!H46),0,1) -> 0
A49: 38 | B49: ='Calc|Fee Based'!B47 ->  | C49: ='Calc|Fee Based'!C47 ->  | D49: ='Calc|Fee Based'!D47 ->  | E49: ='Calc|Fee Based'!E47 ->  | F49: ='Calc|Fee Based'!F47 ->  | G49: ='Calc|Fee Based'!G47 ->  | H49: ='Calc|Fee Based'!H47 -> 0 | I49: =IF(AND(B49='Calc|Fee Based'!B47,C49='Calc|Fee Based'!C47,D49='Calc|Fee Based'!D47,E49='Calc|Fee Based'!E47, F49='Calc|Fee Based'!F47,G49='Calc|Fee Based'!G47, H49='Calc|Fee Based'!H47),0,1) -> 0
A50: 39 | B50: ='Calc|Fee Based'!B48 ->  | C50: ='Calc|Fee Based'!C48 ->  | D50: ='Calc|Fee Based'!D48 ->  | E50: ='Calc|Fee Based'!E48 ->  | F50: ='Calc|Fee Based'!F48 ->  | G50: ='Calc|Fee Based'!G48 ->  | H50: ='Calc|Fee Based'!H48 -> 0 | I50: =IF(AND(B50='Calc|Fee Based'!B48,C50='Calc|Fee Based'!C48,D50='Calc|Fee Based'!D48,E50='Calc|Fee Based'!E48, F50='Calc|Fee Based'!F48,G50='Calc|Fee Based'!G48, H50='Calc|Fee Based'!H48),0,1) -> 0
A51: 40 | B51: ='Calc|Fee Based'!B49 ->  | C51: ='Calc|Fee Based'!C49 ->  | D51: ='Calc|Fee Based'!D49 ->  | E51: ='Calc|Fee Based'!E49 ->  | F51: ='Calc|Fee Based'!F49 ->  | G51: ='Calc|Fee Based'!G49 ->  | H51: ='Calc|Fee Based'!H49 -> 0 | I51: =IF(AND(B51='Calc|Fee Based'!B49,C51='Calc|Fee Based'!C49,D51='Calc|Fee Based'!D49,E51='Calc|Fee Based'!E49, F51='Calc|Fee Based'!F49,G51='Calc|Fee Based'!G49, H51='Calc|Fee Based'!H49),0,1) -> 0
A52: 41 | B52: ='Calc|Fee Based'!B50 ->  | C52: ='Calc|Fee Based'!C50 ->  | D52: ='Calc|Fee Based'!D50 ->  | E52: ='Calc|Fee Based'!E50 ->  | F52: ='Calc|Fee Based'!F50 ->  | G52: ='Calc|Fee Based'!G50 ->  | H52: ='Calc|Fee Based'!H50 -> 0 | I52: =IF(AND(B52='Calc|Fee Based'!B50,C52='Calc|Fee Based'!C50,D52='Calc|Fee Based'!D50,E52='Calc|Fee Based'!E50, F52='Calc|Fee Based'!F50,G52='Calc|Fee Based'!G50, H52='Calc|Fee Based'!H50),0,1) -> 0
A53: 42 | B53: ='Calc|Fee Based'!B51 ->  | C53: ='Calc|Fee Based'!C51 ->  | D53: ='Calc|Fee Based'!D51 ->  | E53: ='Calc|Fee Based'!E51 ->  | F53: ='Calc|Fee Based'!F51 ->  | G53: ='Calc|Fee Based'!G51 ->  | H53: ='Calc|Fee Based'!H51 -> 0 | I53: =IF(AND(B53='Calc|Fee Based'!B51,C53='Calc|Fee Based'!C51,D53='Calc|Fee Based'!D51,E53='Calc|Fee Based'!E51, F53='Calc|Fee Based'!F51,G53='Calc|Fee Based'!G51, H53='Calc|Fee Based'!H51),0,1) -> 0
A54: 43 | B54: ='Calc|Fee Based'!B52 ->  | C54: ='Calc|Fee Based'!C52 ->  | D54: ='Calc|Fee Based'!D52 ->  | E54: ='Calc|Fee Based'!E52 ->  | F54: ='Calc|Fee Based'!F52 ->  | G54: ='Calc|Fee Based'!G52 ->  | H54: ='Calc|Fee Based'!H52 -> 0 | I54: =IF(AND(B54='Calc|Fee Based'!B52,C54='Calc|Fee Based'!C52,D54='Calc|Fee Based'!D52,E54='Calc|Fee Based'!E52, F54='Calc|Fee Based'!F52,G54='Calc|Fee Based'!G52, H54='Calc|Fee Based'!H52),0,1) -> 0
A55: 44 | B55: ='Calc|Fee Based'!B53 ->  | C55: ='Calc|Fee Based'!C53 ->  | D55: ='Calc|Fee Based'!D53 ->  | E55: ='Calc|Fee Based'!E53 ->  | F55: ='Calc|Fee Based'!F53 ->  | G55: ='Calc|Fee Based'!G53 ->  | H55: ='Calc|Fee Based'!H53 -> 0 | I55: =IF(AND(B55='Calc|Fee Based'!B53,C55='Calc|Fee Based'!C53,D55='Calc|Fee Based'!D53,E55='Calc|Fee Based'!E53, F55='Calc|Fee Based'!F53,G55='Calc|Fee Based'!G53, H55='Calc|Fee Based'!H53),0,1) -> 0
A56: 45 | B56: ='Calc|Fee Based'!B54 ->  | C56: ='Calc|Fee Based'!C54 ->  | D56: ='Calc|Fee Based'!D54 ->  | E56: ='Calc|Fee Based'!E54 ->  | F56: ='Calc|Fee Based'!F54 ->  | G56: ='Calc|Fee Based'!G54 ->  | H56: ='Calc|Fee Based'!H54 -> 0 | I56: =IF(AND(B56='Calc|Fee Based'!B54,C56='Calc|Fee Based'!C54,D56='Calc|Fee Based'!D54,E56='Calc|Fee Based'!E54, F56='Calc|Fee Based'!F54,G56='Calc|Fee Based'!G54, H56='Calc|Fee Based'!H54),0,1) -> 0
A57: 46 | B57: ='Calc|Fee Based'!B55 ->  | C57: ='Calc|Fee Based'!C55 ->  | D57: ='Calc|Fee Based'!D55 ->  | E57: ='Calc|Fee Based'!E55 ->  | F57: ='Calc|Fee Based'!F55 ->  | G57: ='Calc|Fee Based'!G55 ->  | H57: ='Calc|Fee Based'!H55 -> 0 | I57: =IF(AND(B57='Calc|Fee Based'!B55,C57='Calc|Fee Based'!C55,D57='Calc|Fee Based'!D55,E57='Calc|Fee Based'!E55, F57='Calc|Fee Based'!F55,G57='Calc|Fee Based'!G55, H57='Calc|Fee Based'!H55),0,1) -> 0
A58: 47 | B58: ='Calc|Fee Based'!B56 ->  | C58: ='Calc|Fee Based'!C56 ->  | D58: ='Calc|Fee Based'!D56 ->  | E58: ='Calc|Fee Based'!E56 ->  | F58: ='Calc|Fee Based'!F56 ->  | G58: ='Calc|Fee Based'!G56 ->  | H58: ='Calc|Fee Based'!H56 -> 0 | I58: =IF(AND(B58='Calc|Fee Based'!B56,C58='Calc|Fee Based'!C56,D58='Calc|Fee Based'!D56,E58='Calc|Fee Based'!E56, F58='Calc|Fee Based'!F56,G58='Calc|Fee Based'!G56, H58='Calc|Fee Based'!H56),0,1) -> 0
A59: 48 | B59: ='Calc|Fee Based'!B57 ->  | C59: ='Calc|Fee Based'!C57 ->  | D59: ='Calc|Fee Based'!D57 ->  | E59: ='Calc|Fee Based'!E57 ->  | F59: ='Calc|Fee Based'!F57 ->  | G59: ='Calc|Fee Based'!G57 ->  | H59: ='Calc|Fee Based'!H57 -> 0 | I59: =IF(AND(B59='Calc|Fee Based'!B57,C59='Calc|Fee Based'!C57,D59='Calc|Fee Based'!D57,E59='Calc|Fee Based'!E57, F59='Calc|Fee Based'!F57,G59='Calc|Fee Based'!G57, H59='Calc|Fee Based'!H57),0,1) -> 0
A60: 49 | B60: ='Calc|Fee Based'!B58 ->  | C60: ='Calc|Fee Based'!C58 ->  | D60: ='Calc|Fee Based'!D58 ->  | E60: ='Calc|Fee Based'!E58 ->  | F60: ='Calc|Fee Based'!F58 ->  | G60: ='Calc|Fee Based'!G58 ->  | H60: ='Calc|Fee Based'!H58 -> 0 | I60: =IF(AND(B60='Calc|Fee Based'!B58,C60='Calc|Fee Based'!C58,D60='Calc|Fee Based'!D58,E60='Calc|Fee Based'!E58, F60='Calc|Fee Based'!F58,G60='Calc|Fee Based'!G58, H60='Calc|Fee Based'!H58),0,1) -> 0
A61: 50 | B61: ='Calc|Fee Based'!B59 ->  | C61: ='Calc|Fee Based'!C59 ->  | D61: ='Calc|Fee Based'!D59 ->  | E61: ='Calc|Fee Based'!E59 ->  | F61: ='Calc|Fee Based'!F59 ->  | G61: ='Calc|Fee Based'!G59 ->  | H61: ='Calc|Fee Based'!H59 -> 0 | I61: =IF(AND(B61='Calc|Fee Based'!B59,C61='Calc|Fee Based'!C59,D61='Calc|Fee Based'!D59,E61='Calc|Fee Based'!E59, F61='Calc|Fee Based'!F59,G61='Calc|Fee Based'!G59, H61='Calc|Fee Based'!H59),0,1) -> 0
A62: 51 | B62: ='Calc|Fee Based'!B60 ->  | C62: ='Calc|Fee Based'!C60 ->  | D62: ='Calc|Fee Based'!D60 ->  | E62: ='Calc|Fee Based'!E60 ->  | F62: ='Calc|Fee Based'!F60 ->  | G62: ='Calc|Fee Based'!G60 ->  | H62: ='Calc|Fee Based'!H60 -> 0 | I62: =IF(AND(B62='Calc|Fee Based'!B60,C62='Calc|Fee Based'!C60,D62='Calc|Fee Based'!D60,E62='Calc|Fee Based'!E60, F62='Calc|Fee Based'!F60,G62='Calc|Fee Based'!G60, H62='Calc|Fee Based'!H60),0,1) -> 0
A63: 52 | B63: ='Calc|Fee Based'!B61 ->  | C63: ='Calc|Fee Based'!C61 ->  | D63: ='Calc|Fee Based'!D61 ->  | E63: ='Calc|Fee Based'!E61 ->  | F63: ='Calc|Fee Based'!F61 ->  | G63: ='Calc|Fee Based'!G61 ->  | H63: ='Calc|Fee Based'!H61 -> 0 | I63: =IF(AND(B63='Calc|Fee Based'!B61,C63='Calc|Fee Based'!C61,D63='Calc|Fee Based'!D61,E63='Calc|Fee Based'!E61, F63='Calc|Fee Based'!F61,G63='Calc|Fee Based'!G61, H63='Calc|Fee Based'!H61),0,1) -> 0
A64: 53 | B64: ='Calc|Fee Based'!B62 ->  | C64: ='Calc|Fee Based'!C62 ->  | D64: ='Calc|Fee Based'!D62 ->  | E64: ='Calc|Fee Based'!E62 ->  | F64: ='Calc|Fee Based'!F62 ->  | G64: ='Calc|Fee Based'!G62 ->  | H64: ='Calc|Fee Based'!H62 -> 0 | I64: =IF(AND(B64='Calc|Fee Based'!B62,C64='Calc|Fee Based'!C62,D64='Calc|Fee Based'!D62,E64='Calc|Fee Based'!E62, F64='Calc|Fee Based'!F62,G64='Calc|Fee Based'!G62, H64='Calc|Fee Based'!H62),0,1) -> 0
A65: 54 | B65: ='Calc|Fee Based'!B63 ->  | C65: ='Calc|Fee Based'!C63 ->  | D65: ='Calc|Fee Based'!D63 ->  | E65: ='Calc|Fee Based'!E63 ->  | F65: ='Calc|Fee Based'!F63 ->  | G65: ='Calc|Fee Based'!G63 ->  | H65: ='Calc|Fee Based'!H63 -> 0 | I65: =IF(AND(B65='Calc|Fee Based'!B63,C65='Calc|Fee Based'!C63,D65='Calc|Fee Based'!D63,E65='Calc|Fee Based'!E63, F65='Calc|Fee Based'!F63,G65='Calc|Fee Based'!G63, H65='Calc|Fee Based'!H63),0,1) -> 0
A66: 55 | B66: ='Calc|Fee Based'!B64 ->  | C66: ='Calc|Fee Based'!C64 ->  | D66: ='Calc|Fee Based'!D64 ->  | E66: ='Calc|Fee Based'!E64 ->  | F66: ='Calc|Fee Based'!F64 ->  | G66: ='Calc|Fee Based'!G64 ->  | H66: ='Calc|Fee Based'!H64 -> 0 | I66: =IF(AND(B66='Calc|Fee Based'!B64,C66='Calc|Fee Based'!C64,D66='Calc|Fee Based'!D64,E66='Calc|Fee Based'!E64, F66='Calc|Fee Based'!F64,G66='Calc|Fee Based'!G64, H66='Calc|Fee Based'!H64),0,1) -> 0
A67: 56 | B67: ='Calc|Fee Based'!B65 ->  | C67: ='Calc|Fee Based'!C65 ->  | D67: ='Calc|Fee Based'!D65 ->  | E67: ='Calc|Fee Based'!E65 ->  | F67: ='Calc|Fee Based'!F65 ->  | G67: ='Calc|Fee Based'!G65 ->  | H67: ='Calc|Fee Based'!H65 -> 0 | I67: =IF(AND(B67='Calc|Fee Based'!B65,C67='Calc|Fee Based'!C65,D67='Calc|Fee Based'!D65,E67='Calc|Fee Based'!E65, F67='Calc|Fee Based'!F65,G67='Calc|Fee Based'!G65, H67='Calc|Fee Based'!H65),0,1) -> 0
A68: 57 | B68: ='Calc|Fee Based'!B66 ->  | C68: ='Calc|Fee Based'!C66 ->  | D68: ='Calc|Fee Based'!D66 ->  | E68: ='Calc|Fee Based'!E66 ->  | F68: ='Calc|Fee Based'!F66 ->  | G68: ='Calc|Fee Based'!G66 ->  | H68: ='Calc|Fee Based'!H66 -> 0 | I68: =IF(AND(B68='Calc|Fee Based'!B66,C68='Calc|Fee Based'!C66,D68='Calc|Fee Based'!D66,E68='Calc|Fee Based'!E66, F68='Calc|Fee Based'!F66,G68='Calc|Fee Based'!G66, H68='Calc|Fee Based'!H66),0,1) -> 0
A69: 58 | B69: ='Calc|Fee Based'!B67 ->  | C69: ='Calc|Fee Based'!C67 ->  | D69: ='Calc|Fee Based'!D67 ->  | E69: ='Calc|Fee Based'!E67 ->  | F69: ='Calc|Fee Based'!F67 ->  | G69: ='Calc|Fee Based'!G67 ->  | H69: ='Calc|Fee Based'!H67 -> 0 | I69: =IF(AND(B69='Calc|Fee Based'!B67,C69='Calc|Fee Based'!C67,D69='Calc|Fee Based'!D67,E69='Calc|Fee Based'!E67, F69='Calc|Fee Based'!F67,G69='Calc|Fee Based'!G67, H69='Calc|Fee Based'!H67),0,1) -> 0
A70: 59 | B70: ='Calc|Fee Based'!B68 ->  | C70: ='Calc|Fee Based'!C68 ->  | D70: ='Calc|Fee Based'!D68 ->  | E70: ='Calc|Fee Based'!E68 ->  | F70: ='Calc|Fee Based'!F68 ->  | G70: ='Calc|Fee Based'!G68 ->  | H70: ='Calc|Fee Based'!H68 -> 0 | I70: =IF(AND(B70='Calc|Fee Based'!B68,C70='Calc|Fee Based'!C68,D70='Calc|Fee Based'!D68,E70='Calc|Fee Based'!E68, F70='Calc|Fee Based'!F68,G70='Calc|Fee Based'!G68, H70='Calc|Fee Based'!H68),0,1) -> 0
A71: 60 | B71: ='Calc|Fee Based'!B69 ->  | C71: ='Calc|Fee Based'!C69 ->  | D71: ='Calc|Fee Based'!D69 ->  | E71: ='Calc|Fee Based'!E69 ->  | F71: ='Calc|Fee Based'!F69 ->  | G71: ='Calc|Fee Based'!G69 ->  | H71: ='Calc|Fee Based'!H69 -> 0 | I71: =IF(AND(B71='Calc|Fee Based'!B69,C71='Calc|Fee Based'!C69,D71='Calc|Fee Based'!D69,E71='Calc|Fee Based'!E69, F71='Calc|Fee Based'!F69,G71='Calc|Fee Based'!G69, H71='Calc|Fee Based'!H69),0,1) -> 0
A72: 61 | B72: ='Calc|Fee Based'!B70 ->  | C72: ='Calc|Fee Based'!C70 ->  | D72: ='Calc|Fee Based'!D70 ->  | E72: ='Calc|Fee Based'!E70 ->  | F72: ='Calc|Fee Based'!F70 ->  | G72: ='Calc|Fee Based'!G70 ->  | H72: ='Calc|Fee Based'!H70 -> 0 | I72: =IF(AND(B72='Calc|Fee Based'!B70,C72='Calc|Fee Based'!C70,D72='Calc|Fee Based'!D70,E72='Calc|Fee Based'!E70, F72='Calc|Fee Based'!F70,G72='Calc|Fee Based'!G70, H72='Calc|Fee Based'!H70),0,1) -> 0
A73: 62 | B73: ='Calc|Fee Based'!B71 ->  | C73: ='Calc|Fee Based'!C71 ->  | D73: ='Calc|Fee Based'!D71 ->  | E73: ='Calc|Fee Based'!E71 ->  | F73: ='Calc|Fee Based'!F71 ->  | G73: ='Calc|Fee Based'!G71 ->  | H73: ='Calc|Fee Based'!H71 -> 0 | I73: =IF(AND(B73='Calc|Fee Based'!B71,C73='Calc|Fee Based'!C71,D73='Calc|Fee Based'!D71,E73='Calc|Fee Based'!E71, F73='Calc|Fee Based'!F71,G73='Calc|Fee Based'!G71, H73='Calc|Fee Based'!H71),0,1) -> 0
A74: 63 | B74: ='Calc|Fee Based'!B72 ->  | C74: ='Calc|Fee Based'!C72 ->  | D74: ='Calc|Fee Based'!D72 ->  | E74: ='Calc|Fee Based'!E72 ->  | F74: ='Calc|Fee Based'!F72 ->  | G74: ='Calc|Fee Based'!G72 ->  | H74: ='Calc|Fee Based'!H72 -> 0 | I74: =IF(AND(B74='Calc|Fee Based'!B72,C74='Calc|Fee Based'!C72,D74='Calc|Fee Based'!D72,E74='Calc|Fee Based'!E72, F74='Calc|Fee Based'!F72,G74='Calc|Fee Based'!G72, H74='Calc|Fee Based'!H72),0,1) -> 0
A75: 64 | B75: ='Calc|Fee Based'!B73 ->  | C75: ='Calc|Fee Based'!C73 ->  | D75: ='Calc|Fee Based'!D73 ->  | E75: ='Calc|Fee Based'!E73 ->  | F75: ='Calc|Fee Based'!F73 ->  | G75: ='Calc|Fee Based'!G73 ->  | H75: ='Calc|Fee Based'!H73 -> 0 | I75: =IF(AND(B75='Calc|Fee Based'!B73,C75='Calc|Fee Based'!C73,D75='Calc|Fee Based'!D73,E75='Calc|Fee Based'!E73, F75='Calc|Fee Based'!F73,G75='Calc|Fee Based'!G73, H75='Calc|Fee Based'!H73),0,1) -> 0
A76: 65 | B76: ='Calc|Fee Based'!B74 ->  | C76: ='Calc|Fee Based'!C74 ->  | D76: ='Calc|Fee Based'!D74 ->  | E76: ='Calc|Fee Based'!E74 ->  | F76: ='Calc|Fee Based'!F74 ->  | G76: ='Calc|Fee Based'!G74 ->  | H76: ='Calc|Fee Based'!H74 -> 0 | I76: =IF(AND(B76='Calc|Fee Based'!B74,C76='Calc|Fee Based'!C74,D76='Calc|Fee Based'!D74,E76='Calc|Fee Based'!E74, F76='Calc|Fee Based'!F74,G76='Calc|Fee Based'!G74, H76='Calc|Fee Based'!H74),0,1) -> 0
A77: 66 | B77: ='Calc|Fee Based'!B75 ->  | C77: ='Calc|Fee Based'!C75 ->  | D77: ='Calc|Fee Based'!D75 ->  | E77: ='Calc|Fee Based'!E75 ->  | F77: ='Calc|Fee Based'!F75 ->  | G77: ='Calc|Fee Based'!G75 ->  | H77: ='Calc|Fee Based'!H75 -> 0 | I77: =IF(AND(B77='Calc|Fee Based'!B75,C77='Calc|Fee Based'!C75,D77='Calc|Fee Based'!D75,E77='Calc|Fee Based'!E75, F77='Calc|Fee Based'!F75,G77='Calc|Fee Based'!G75, H77='Calc|Fee Based'!H75),0,1) -> 0
A78: 67 | B78: ='Calc|Fee Based'!B76 ->  | C78: ='Calc|Fee Based'!C76 ->  | D78: ='Calc|Fee Based'!D76 ->  | E78: ='Calc|Fee Based'!E76 ->  | F78: ='Calc|Fee Based'!F76 ->  | G78: ='Calc|Fee Based'!G76 ->  | H78: ='Calc|Fee Based'!H76 -> 0 | I78: =IF(AND(B78='Calc|Fee Based'!B76,C78='Calc|Fee Based'!C76,D78='Calc|Fee Based'!D76,E78='Calc|Fee Based'!E76, F78='Calc|Fee Based'!F76,G78='Calc|Fee Based'!G76, H78='Calc|Fee Based'!H76),0,1) -> 0
A79: 68 | B79: ='Calc|Fee Based'!B77 ->  | C79: ='Calc|Fee Based'!C77 ->  | D79: ='Calc|Fee Based'!D77 ->  | E79: ='Calc|Fee Based'!E77 ->  | F79: ='Calc|Fee Based'!F77 ->  | G79: ='Calc|Fee Based'!G77 ->  | H79: ='Calc|Fee Based'!H77 -> 0 | I79: =IF(AND(B79='Calc|Fee Based'!B77,C79='Calc|Fee Based'!C77,D79='Calc|Fee Based'!D77,E79='Calc|Fee Based'!E77, F79='Calc|Fee Based'!F77,G79='Calc|Fee Based'!G77, H79='Calc|Fee Based'!H77),0,1) -> 0
A80: 69 | B80: ='Calc|Fee Based'!B78 ->  | C80: ='Calc|Fee Based'!C78 ->  | D80: ='Calc|Fee Based'!D78 ->  | E80: ='Calc|Fee Based'!E78 ->  | F80: ='Calc|Fee Based'!F78 ->  | G80: ='Calc|Fee Based'!G78 ->  | H80: ='Calc|Fee Based'!H78 -> 0 | I80: =IF(AND(B80='Calc|Fee Based'!B78,C80='Calc|Fee Based'!C78,D80='Calc|Fee Based'!D78,E80='Calc|Fee Based'!E78, F80='Calc|Fee Based'!F78,G80='Calc|Fee Based'!G78, H80='Calc|Fee Based'!H78),0,1) -> 0
A81: 70 | B81: ='Calc|Fee Based'!B79 ->  | C81: ='Calc|Fee Based'!C79 ->  | D81: ='Calc|Fee Based'!D79 ->  | E81: ='Calc|Fee Based'!E79 ->  | F81: ='Calc|Fee Based'!F79 ->  | G81: ='Calc|Fee Based'!G79 ->  | H81: ='Calc|Fee Based'!H79 -> 0 | I81: =IF(AND(B81='Calc|Fee Based'!B79,C81='Calc|Fee Based'!C79,D81='Calc|Fee Based'!D79,E81='Calc|Fee Based'!E79, F81='Calc|Fee Based'!F79,G81='Calc|Fee Based'!G79, H81='Calc|Fee Based'!H79),0,1) -> 0
A82: 71 | B82: ='Calc|Fee Based'!B80 ->  | C82: ='Calc|Fee Based'!C80 ->  | D82: ='Calc|Fee Based'!D80 ->  | E82: ='Calc|Fee Based'!E80 ->  | F82: ='Calc|Fee Based'!F80 ->  | G82: ='Calc|Fee Based'!G80 ->  | H82: ='Calc|Fee Based'!H80 -> 0 | I82: =IF(AND(B82='Calc|Fee Based'!B80,C82='Calc|Fee Based'!C80,D82='Calc|Fee Based'!D80,E82='Calc|Fee Based'!E80, F82='Calc|Fee Based'!F80,G82='Calc|Fee Based'!G80, H82='Calc|Fee Based'!H80),0,1) -> 0
A83: 72 | B83: ='Calc|Fee Based'!B81 ->  | C83: ='Calc|Fee Based'!C81 ->  | D83: ='Calc|Fee Based'!D81 ->  | E83: ='Calc|Fee Based'!E81 ->  | F83: ='Calc|Fee Based'!F81 ->  | G83: ='Calc|Fee Based'!G81 ->  | H83: ='Calc|Fee Based'!H81 -> 0 | I83: =IF(AND(B83='Calc|Fee Based'!B81,C83='Calc|Fee Based'!C81,D83='Calc|Fee Based'!D81,E83='Calc|Fee Based'!E81, F83='Calc|Fee Based'!F81,G83='Calc|Fee Based'!G81, H83='Calc|Fee Based'!H81),0,1) -> 0
A84: 73 | B84: ='Calc|Fee Based'!B82 ->  | C84: ='Calc|Fee Based'!C82 ->  | D84: ='Calc|Fee Based'!D82 ->  | E84: ='Calc|Fee Based'!E82 ->  | F84: ='Calc|Fee Based'!F82 ->  | G84: ='Calc|Fee Based'!G82 ->  | H84: ='Calc|Fee Based'!H82 -> 0 | I84: =IF(AND(B84='Calc|Fee Based'!B82,C84='Calc|Fee Based'!C82,D84='Calc|Fee Based'!D82,E84='Calc|Fee Based'!E82, F84='Calc|Fee Based'!F82,G84='Calc|Fee Based'!G82, H84='Calc|Fee Based'!H82),0,1) -> 0
A85: 74 | B85: ='Calc|Fee Based'!B83 ->  | C85: ='Calc|Fee Based'!C83 ->  | D85: ='Calc|Fee Based'!D83 ->  | E85: ='Calc|Fee Based'!E83 ->  | F85: ='Calc|Fee Based'!F83 ->  | G85: ='Calc|Fee Based'!G83 ->  | H85: ='Calc|Fee Based'!H83 -> 0 | I85: =IF(AND(B85='Calc|Fee Based'!B83,C85='Calc|Fee Based'!C83,D85='Calc|Fee Based'!D83,E85='Calc|Fee Based'!E83, F85='Calc|Fee Based'!F83,G85='Calc|Fee Based'!G83, H85='Calc|Fee Based'!H83),0,1) -> 0
A86: 75 | B86: ='Calc|Fee Based'!B84 ->  | C86: ='Calc|Fee Based'!C84 ->  | D86: ='Calc|Fee Based'!D84 ->  | E86: ='Calc|Fee Based'!E84 ->  | F86: ='Calc|Fee Based'!F84 ->  | G86: ='Calc|Fee Based'!G84 ->  | H86: ='Calc|Fee Based'!H84 -> 0 | I86: =IF(AND(B86='Calc|Fee Based'!B84,C86='Calc|Fee Based'!C84,D86='Calc|Fee Based'!D84,E86='Calc|Fee Based'!E84, F86='Calc|Fee Based'!F84,G86='Calc|Fee Based'!G84, H86='Calc|Fee Based'!H84),0,1) -> 0
A87: 76 | B87: ='Calc|Fee Based'!B85 ->  | C87: ='Calc|Fee Based'!C85 ->  | D87: ='Calc|Fee Based'!D85 ->  | E87: ='Calc|Fee Based'!E85 ->  | F87: ='Calc|Fee Based'!F85 ->  | G87: ='Calc|Fee Based'!G85 ->  | H87: ='Calc|Fee Based'!H85 -> 0 | I87: =IF(AND(B87='Calc|Fee Based'!B85,C87='Calc|Fee Based'!C85,D87='Calc|Fee Based'!D85,E87='Calc|Fee Based'!E85, F87='Calc|Fee Based'!F85,G87='Calc|Fee Based'!G85, H87='Calc|Fee Based'!H85),0,1) -> 0
A88: 77 | B88: ='Calc|Fee Based'!B86 ->  | C88: ='Calc|Fee Based'!C86 ->  | D88: ='Calc|Fee Based'!D86 ->  | E88: ='Calc|Fee Based'!E86 ->  | F88: ='Calc|Fee Based'!F86 ->  | G88: ='Calc|Fee Based'!G86 ->  | H88: ='Calc|Fee Based'!H86 -> 0 | I88: =IF(AND(B88='Calc|Fee Based'!B86,C88='Calc|Fee Based'!C86,D88='Calc|Fee Based'!D86,E88='Calc|Fee Based'!E86, F88='Calc|Fee Based'!F86,G88='Calc|Fee Based'!G86, H88='Calc|Fee Based'!H86),0,1) -> 0
A89: 78 | B89: ='Calc|Fee Based'!B87 ->  | C89: ='Calc|Fee Based'!C87 ->  | D89: ='Calc|Fee Based'!D87 ->  | E89: ='Calc|Fee Based'!E87 ->  | F89: ='Calc|Fee Based'!F87 ->  | G89: ='Calc|Fee Based'!G87 ->  | H89: ='Calc|Fee Based'!H87 -> 0 | I89: =IF(AND(B89='Calc|Fee Based'!B87,C89='Calc|Fee Based'!C87,D89='Calc|Fee Based'!D87,E89='Calc|Fee Based'!E87, F89='Calc|Fee Based'!F87,G89='Calc|Fee Based'!G87, H89='Calc|Fee Based'!H87),0,1) -> 0
A90: 79 | B90: ='Calc|Fee Based'!B88 ->  | C90: ='Calc|Fee Based'!C88 ->  | D90: ='Calc|Fee Based'!D88 ->  | E90: ='Calc|Fee Based'!E88 ->  | F90: ='Calc|Fee Based'!F88 ->  | G90: ='Calc|Fee Based'!G88 ->  | H90: ='Calc|Fee Based'!H88 -> 0 | I90: =IF(AND(B90='Calc|Fee Based'!B88,C90='Calc|Fee Based'!C88,D90='Calc|Fee Based'!D88,E90='Calc|Fee Based'!E88, F90='Calc|Fee Based'!F88,G90='Calc|Fee Based'!G88, H90='Calc|Fee Based'!H88),0,1) -> 0
A91: 80 | B91: ='Calc|Fee Based'!B89 ->  | C91: ='Calc|Fee Based'!C89 ->  | D91: ='Calc|Fee Based'!D89 ->  | E91: ='Calc|Fee Based'!E89 ->  | F91: ='Calc|Fee Based'!F89 ->  | G91: ='Calc|Fee Based'!G89 ->  | H91: ='Calc|Fee Based'!H89 -> 0 | I91: =IF(AND(B91='Calc|Fee Based'!B89,C91='Calc|Fee Based'!C89,D91='Calc|Fee Based'!D89,E91='Calc|Fee Based'!E89, F91='Calc|Fee Based'!F89,G91='Calc|Fee Based'!G89, H91='Calc|Fee Based'!H89),0,1) -> 0
A92: 81 | B92: ='Calc|Fee Based'!B90 ->  | C92: ='Calc|Fee Based'!C90 ->  | D92: ='Calc|Fee Based'!D90 ->  | E92: ='Calc|Fee Based'!E90 ->  | F92: ='Calc|Fee Based'!F90 ->  | G92: ='Calc|Fee Based'!G90 ->  | H92: ='Calc|Fee Based'!H90 -> 0 | I92: =IF(AND(B92='Calc|Fee Based'!B90,C92='Calc|Fee Based'!C90,D92='Calc|Fee Based'!D90,E92='Calc|Fee Based'!E90, F92='Calc|Fee Based'!F90,G92='Calc|Fee Based'!G90, H92='Calc|Fee Based'!H90),0,1) -> 0
A93: 82 | B93: ='Calc|Fee Based'!B91 ->  | C93: ='Calc|Fee Based'!C91 ->  | D93: ='Calc|Fee Based'!D91 ->  | E93: ='Calc|Fee Based'!E91 ->  | F93: ='Calc|Fee Based'!F91 ->  | G93: ='Calc|Fee Based'!G91 ->  | H93: ='Calc|Fee Based'!H91 -> 0 | I93: =IF(AND(B93='Calc|Fee Based'!B91,C93='Calc|Fee Based'!C91,D93='Calc|Fee Based'!D91,E93='Calc|Fee Based'!E91, F93='Calc|Fee Based'!F91,G93='Calc|Fee Based'!G91, H93='Calc|Fee Based'!H91),0,1) -> 0
A94: 83 | B94: ='Calc|Fee Based'!B92 ->  | C94: ='Calc|Fee Based'!C92 ->  | D94: ='Calc|Fee Based'!D92 ->  | E94: ='Calc|Fee Based'!E92 ->  | F94: ='Calc|Fee Based'!F92 ->  | G94: ='Calc|Fee Based'!G92 ->  | H94: ='Calc|Fee Based'!H92 -> 0 | I94: =IF(AND(B94='Calc|Fee Based'!B92,C94='Calc|Fee Based'!C92,D94='Calc|Fee Based'!D92,E94='Calc|Fee Based'!E92, F94='Calc|Fee Based'!F92,G94='Calc|Fee Based'!G92, H94='Calc|Fee Based'!H92),0,1) -> 0
A95: 84 | B95: ='Calc|Fee Based'!B93 ->  | C95: ='Calc|Fee Based'!C93 ->  | D95: ='Calc|Fee Based'!D93 ->  | E95: ='Calc|Fee Based'!E93 ->  | F95: ='Calc|Fee Based'!F93 ->  | G95: ='Calc|Fee Based'!G93 ->  | H95: ='Calc|Fee Based'!H93 -> 0 | I95: =IF(AND(B95='Calc|Fee Based'!B93,C95='Calc|Fee Based'!C93,D95='Calc|Fee Based'!D93,E95='Calc|Fee Based'!E93, F95='Calc|Fee Based'!F93,G95='Calc|Fee Based'!G93, H95='Calc|Fee Based'!H93),0,1) -> 0
A96: 85 | B96: ='Calc|Fee Based'!B94 ->  | C96: ='Calc|Fee Based'!C94 ->  | D96: ='Calc|Fee Based'!D94 ->  | E96: ='Calc|Fee Based'!E94 ->  | F96: ='Calc|Fee Based'!F94 ->  | G96: ='Calc|Fee Based'!G94 ->  | H96: ='Calc|Fee Based'!H94 -> 0 | I96: =IF(AND(B96='Calc|Fee Based'!B94,C96='Calc|Fee Based'!C94,D96='Calc|Fee Based'!D94,E96='Calc|Fee Based'!E94, F96='Calc|Fee Based'!F94,G96='Calc|Fee Based'!G94, H96='Calc|Fee Based'!H94),0,1) -> 0
A97: 86 | B97: ='Calc|Fee Based'!B95 ->  | C97: ='Calc|Fee Based'!C95 ->  | D97: ='Calc|Fee Based'!D95 ->  | E97: ='Calc|Fee Based'!E95 ->  | F97: ='Calc|Fee Based'!F95 ->  | G97: ='Calc|Fee Based'!G95 ->  | H97: ='Calc|Fee Based'!H95 -> 0 | I97: =IF(AND(B97='Calc|Fee Based'!B95,C97='Calc|Fee Based'!C95,D97='Calc|Fee Based'!D95,E97='Calc|Fee Based'!E95, F97='Calc|Fee Based'!F95,G97='Calc|Fee Based'!G95, H97='Calc|Fee Based'!H95),0,1) -> 0
A98: 87 | B98: ='Calc|Fee Based'!B96 ->  | C98: ='Calc|Fee Based'!C96 ->  | D98: ='Calc|Fee Based'!D96 ->  | E98: ='Calc|Fee Based'!E96 ->  | F98: ='Calc|Fee Based'!F96 ->  | G98: ='Calc|Fee Based'!G96 ->  | H98: ='Calc|Fee Based'!H96 -> 0 | I98: =IF(AND(B98='Calc|Fee Based'!B96,C98='Calc|Fee Based'!C96,D98='Calc|Fee Based'!D96,E98='Calc|Fee Based'!E96, F98='Calc|Fee Based'!F96,G98='Calc|Fee Based'!G96, H98='Calc|Fee Based'!H96),0,1) -> 0
A99: 88 | B99: ='Calc|Fee Based'!B97 ->  | C99: ='Calc|Fee Based'!C97 ->  | D99: ='Calc|Fee Based'!D97 ->  | E99: ='Calc|Fee Based'!E97 ->  | F99: ='Calc|Fee Based'!F97 ->  | G99: ='Calc|Fee Based'!G97 ->  | H99: ='Calc|Fee Based'!H97 -> 0 | I99: =IF(AND(B99='Calc|Fee Based'!B97,C99='Calc|Fee Based'!C97,D99='Calc|Fee Based'!D97,E99='Calc|Fee Based'!E97, F99='Calc|Fee Based'!F97,G99='Calc|Fee Based'!G97, H99='Calc|Fee Based'!H97),0,1) -> 0
A100: 89 | B100: ='Calc|Fee Based'!B98 ->  | C100: ='Calc|Fee Based'!C98 ->  | D100: ='Calc|Fee Based'!D98 ->  | E100: ='Calc|Fee Based'!E98 ->  | F100: ='Calc|Fee Based'!F98 ->  | G100: ='Calc|Fee Based'!G98 ->  | H100: ='Calc|Fee Based'!H98 -> 0 | I100: =IF(AND(B100='Calc|Fee Based'!B98,C100='Calc|Fee Based'!C98,D100='Calc|Fee Based'!D98,E100='Calc|Fee Based'!E98, F100='Calc|Fee Based'!F98,G100='Calc|Fee Based'!G98, H100='Calc|Fee Based'!H98),0,1) -> 0
A101: 90 | B101: ='Calc|Fee Based'!B99 ->  | C101: ='Calc|Fee Based'!C99 ->  | D101: ='Calc|Fee Based'!D99 ->  | E101: ='Calc|Fee Based'!E99 ->  | F101: ='Calc|Fee Based'!F99 ->  | G101: ='Calc|Fee Based'!G99 ->  | H101: ='Calc|Fee Based'!H99 -> 0 | I101: =IF(AND(B101='Calc|Fee Based'!B99,C101='Calc|Fee Based'!C99,D101='Calc|Fee Based'!D99,E101='Calc|Fee Based'!E99, F101='Calc|Fee Based'!F99,G101='Calc|Fee Based'!G99, H101='Calc|Fee Based'!H99),0,1) -> 0
A102: 91 | B102: ='Calc|Fee Based'!B100 ->  | C102: ='Calc|Fee Based'!C100 ->  | D102: ='Calc|Fee Based'!D100 ->  | E102: ='Calc|Fee Based'!E100 ->  | F102: ='Calc|Fee Based'!F100 ->  | G102: ='Calc|Fee Based'!G100 ->  | H102: ='Calc|Fee Based'!H100 -> 0 | I102: =IF(AND(B102='Calc|Fee Based'!B100,C102='Calc|Fee Based'!C100,D102='Calc|Fee Based'!D100,E102='Calc|Fee Based'!E100, F102='Calc|Fee Based'!F100,G102='Calc|Fee Based'!G100, H102='Calc|Fee Based'!H100),0,1) -> 0
A103: 92 | B103: ='Calc|Fee Based'!B101 ->  | C103: ='Calc|Fee Based'!C101 ->  | D103: ='Calc|Fee Based'!D101 ->  | E103: ='Calc|Fee Based'!E101 ->  | F103: ='Calc|Fee Based'!F101 ->  | G103: ='Calc|Fee Based'!G101 ->  | H103: ='Calc|Fee Based'!H101 -> 0 | I103: =IF(AND(B103='Calc|Fee Based'!B101,C103='Calc|Fee Based'!C101,D103='Calc|Fee Based'!D101,E103='Calc|Fee Based'!E101, F103='Calc|Fee Based'!F101,G103='Calc|Fee Based'!G101, H103='Calc|Fee Based'!H101),0,1) -> 0
A104: 93 | B104: ='Calc|Fee Based'!B102 ->  | C104: ='Calc|Fee Based'!C102 ->  | D104: ='Calc|Fee Based'!D102 ->  | E104: ='Calc|Fee Based'!E102 ->  | F104: ='Calc|Fee Based'!F102 ->  | G104: ='Calc|Fee Based'!G102 ->  | H104: ='Calc|Fee Based'!H102 -> 0 | I104: =IF(AND(B104='Calc|Fee Based'!B102,C104='Calc|Fee Based'!C102,D104='Calc|Fee Based'!D102,E104='Calc|Fee Based'!E102, F104='Calc|Fee Based'!F102,G104='Calc|Fee Based'!G102, H104='Calc|Fee Based'!H102),0,1) -> 0
A105: 94 | B105: ='Calc|Fee Based'!B103 ->  | C105: ='Calc|Fee Based'!C103 ->  | D105: ='Calc|Fee Based'!D103 ->  | E105: ='Calc|Fee Based'!E103 ->  | F105: ='Calc|Fee Based'!F103 ->  | G105: ='Calc|Fee Based'!G103 ->  | H105: ='Calc|Fee Based'!H103 -> 0 | I105: =IF(AND(B105='Calc|Fee Based'!B103,C105='Calc|Fee Based'!C103,D105='Calc|Fee Based'!D103,E105='Calc|Fee Based'!E103, F105='Calc|Fee Based'!F103,G105='Calc|Fee Based'!G103, H105='Calc|Fee Based'!H103),0,1) -> 0
A106: 95 | B106: ='Calc|Fee Based'!B104 ->  | C106: ='Calc|Fee Based'!C104 ->  | D106: ='Calc|Fee Based'!D104 ->  | E106: ='Calc|Fee Based'!E104 ->  | F106: ='Calc|Fee Based'!F104 ->  | G106: ='Calc|Fee Based'!G104 ->  | H106: ='Calc|Fee Based'!H104 -> 0 | I106: =IF(AND(B106='Calc|Fee Based'!B104,C106='Calc|Fee Based'!C104,D106='Calc|Fee Based'!D104,E106='Calc|Fee Based'!E104, F106='Calc|Fee Based'!F104,G106='Calc|Fee Based'!G104, H106='Calc|Fee Based'!H104),0,1) -> 0
A107: 96 | B107: ='Calc|Fee Based'!B105 ->  | C107: ='Calc|Fee Based'!C105 ->  | D107: ='Calc|Fee Based'!D105 ->  | E107: ='Calc|Fee Based'!E105 ->  | F107: ='Calc|Fee Based'!F105 ->  | G107: ='Calc|Fee Based'!G105 ->  | H107: ='Calc|Fee Based'!H105 -> 0 | I107: =IF(AND(B107='Calc|Fee Based'!B105,C107='Calc|Fee Based'!C105,D107='Calc|Fee Based'!D105,E107='Calc|Fee Based'!E105, F107='Calc|Fee Based'!F105,G107='Calc|Fee Based'!G105, H107='Calc|Fee Based'!H105),0,1) -> 0
A108: 97 | B108: ='Calc|Fee Based'!B106 ->  | C108: ='Calc|Fee Based'!C106 ->  | D108: ='Calc|Fee Based'!D106 ->  | E108: ='Calc|Fee Based'!E106 ->  | F108: ='Calc|Fee Based'!F106 ->  | G108: ='Calc|Fee Based'!G106 ->  | H108: ='Calc|Fee Based'!H106 -> 0 | I108: =IF(AND(B108='Calc|Fee Based'!B106,C108='Calc|Fee Based'!C106,D108='Calc|Fee Based'!D106,E108='Calc|Fee Based'!E106, F108='Calc|Fee Based'!F106,G108='Calc|Fee Based'!G106, H108='Calc|Fee Based'!H106),0,1) -> 0
A109: 98 | B109: ='Calc|Fee Based'!B107 ->  | C109: ='Calc|Fee Based'!C107 ->  | D109: ='Calc|Fee Based'!D107 ->  | E109: ='Calc|Fee Based'!E107 ->  | F109: ='Calc|Fee Based'!F107 ->  | G109: ='Calc|Fee Based'!G107 ->  | H109: ='Calc|Fee Based'!H107 -> 0 | I109: =IF(AND(B109='Calc|Fee Based'!B107,C109='Calc|Fee Based'!C107,D109='Calc|Fee Based'!D107,E109='Calc|Fee Based'!E107, F109='Calc|Fee Based'!F107,G109='Calc|Fee Based'!G107, H109='Calc|Fee Based'!H107),0,1) -> 0
A110: 99 | B110: ='Calc|Fee Based'!B108 ->  | C110: ='Calc|Fee Based'!C108 ->  | D110: ='Calc|Fee Based'!D108 ->  | E110: ='Calc|Fee Based'!E108 ->  | F110: ='Calc|Fee Based'!F108 ->  | G110: ='Calc|Fee Based'!G108 ->  | H110: ='Calc|Fee Based'!H108 -> 0 | I110: =IF(AND(B110='Calc|Fee Based'!B108,C110='Calc|Fee Based'!C108,D110='Calc|Fee Based'!D108,E110='Calc|Fee Based'!E108, F110='Calc|Fee Based'!F108,G110='Calc|Fee Based'!G108, H110='Calc|Fee Based'!H108),0,1) -> 0
A111: 100 | B111: ='Calc|Fee Based'!B109 ->  | C111: ='Calc|Fee Based'!C109 ->  | D111: ='Calc|Fee Based'!D109 ->  | E111: ='Calc|Fee Based'!E109 ->  | F111: ='Calc|Fee Based'!F109 ->  | G111: ='Calc|Fee Based'!G109 ->  | H111: ='Calc|Fee Based'!H109 -> 0 | I111: =IF(AND(B111='Calc|Fee Based'!B109,C111='Calc|Fee Based'!C109,D111='Calc|Fee Based'!D109,E111='Calc|Fee Based'!E109, F111='Calc|Fee Based'!F109,G111='Calc|Fee Based'!G109, H111='Calc|Fee Based'!H109),0,1) -> 0
A112: 101 | B112: ='Calc|Fee Based'!B110 ->  | C112: ='Calc|Fee Based'!C110 ->  | D112: ='Calc|Fee Based'!D110 ->  | E112: ='Calc|Fee Based'!E110 ->  | F112: ='Calc|Fee Based'!F110 ->  | G112: ='Calc|Fee Based'!G110 ->  | H112: ='Calc|Fee Based'!H110 -> 0 | I112: =IF(AND(B112='Calc|Fee Based'!B110,C112='Calc|Fee Based'!C110,D112='Calc|Fee Based'!D110,E112='Calc|Fee Based'!E110, F112='Calc|Fee Based'!F110,G112='Calc|Fee Based'!G110, H112='Calc|Fee Based'!H110),0,1) -> 0
A113: 102 | B113: ='Calc|Fee Based'!B111 ->  | C113: ='Calc|Fee Based'!C111 ->  | D113: ='Calc|Fee Based'!D111 ->  | E113: ='Calc|Fee Based'!E111 ->  | F113: ='Calc|Fee Based'!F111 ->  | G113: ='Calc|Fee Based'!G111 ->  | H113: ='Calc|Fee Based'!H111 -> 0 | I113: =IF(AND(B113='Calc|Fee Based'!B111,C113='Calc|Fee Based'!C111,D113='Calc|Fee Based'!D111,E113='Calc|Fee Based'!E111, F113='Calc|Fee Based'!F111,G113='Calc|Fee Based'!G111, H113='Calc|Fee Based'!H111),0,1) -> 0
A114: 103 | B114: ='Calc|Fee Based'!B112 ->  | C114: ='Calc|Fee Based'!C112 ->  | D114: ='Calc|Fee Based'!D112 ->  | E114: ='Calc|Fee Based'!E112 ->  | F114: ='Calc|Fee Based'!F112 ->  | G114: ='Calc|Fee Based'!G112 ->  | H114: ='Calc|Fee Based'!H112 -> 0 | I114: =IF(AND(B114='Calc|Fee Based'!B112,C114='Calc|Fee Based'!C112,D114='Calc|Fee Based'!D112,E114='Calc|Fee Based'!E112, F114='Calc|Fee Based'!F112,G114='Calc|Fee Based'!G112, H114='Calc|Fee Based'!H112),0,1) -> 0
A115: 104 | B115: ='Calc|Fee Based'!B113 ->  | C115: ='Calc|Fee Based'!C113 ->  | D115: ='Calc|Fee Based'!D113 ->  | E115: ='Calc|Fee Based'!E113 ->  | F115: ='Calc|Fee Based'!F113 ->  | G115: ='Calc|Fee Based'!G113 ->  | H115: ='Calc|Fee Based'!H113 -> 0 | I115: =IF(AND(B115='Calc|Fee Based'!B113,C115='Calc|Fee Based'!C113,D115='Calc|Fee Based'!D113,E115='Calc|Fee Based'!E113, F115='Calc|Fee Based'!F113,G115='Calc|Fee Based'!G113, H115='Calc|Fee Based'!H113),0,1) -> 0
A116: 105 | B116: ='Calc|Fee Based'!B114 ->  | C116: ='Calc|Fee Based'!C114 ->  | D116: ='Calc|Fee Based'!D114 ->  | E116: ='Calc|Fee Based'!E114 ->  | F116: ='Calc|Fee Based'!F114 ->  | G116: ='Calc|Fee Based'!G114 ->  | H116: ='Calc|Fee Based'!H114 -> 0 | I116: =IF(AND(B116='Calc|Fee Based'!B114,C116='Calc|Fee Based'!C114,D116='Calc|Fee Based'!D114,E116='Calc|Fee Based'!E114, F116='Calc|Fee Based'!F114,G116='Calc|Fee Based'!G114, H116='Calc|Fee Based'!H114),0,1) -> 0
A117: 106 | B117: ='Calc|Fee Based'!B115 ->  | C117: ='Calc|Fee Based'!C115 ->  | D117: ='Calc|Fee Based'!D115 ->  | E117: ='Calc|Fee Based'!E115 ->  | F117: ='Calc|Fee Based'!F115 ->  | G117: ='Calc|Fee Based'!G115 ->  | H117: ='Calc|Fee Based'!H115 -> 0 | I117: =IF(AND(B117='Calc|Fee Based'!B115,C117='Calc|Fee Based'!C115,D117='Calc|Fee Based'!D115,E117='Calc|Fee Based'!E115, F117='Calc|Fee Based'!F115,G117='Calc|Fee Based'!G115, H117='Calc|Fee Based'!H115),0,1) -> 0
A118: 107 | B118: ='Calc|Fee Based'!B116 ->  | C118: ='Calc|Fee Based'!C116 ->  | D118: ='Calc|Fee Based'!D116 ->  | E118: ='Calc|Fee Based'!E116 ->  | F118: ='Calc|Fee Based'!F116 ->  | G118: ='Calc|Fee Based'!G116 ->  | H118: ='Calc|Fee Based'!H116 -> 0 | I118: =IF(AND(B118='Calc|Fee Based'!B116,C118='Calc|Fee Based'!C116,D118='Calc|Fee Based'!D116,E118='Calc|Fee Based'!E116, F118='Calc|Fee Based'!F116,G118='Calc|Fee Based'!G116, H118='Calc|Fee Based'!H116),0,1) -> 0
A119: 108 | B119: ='Calc|Fee Based'!B117 ->  | C119: ='Calc|Fee Based'!C117 ->  | D119: ='Calc|Fee Based'!D117 ->  | E119: ='Calc|Fee Based'!E117 ->  | F119: ='Calc|Fee Based'!F117 ->  | G119: ='Calc|Fee Based'!G117 ->  | H119: ='Calc|Fee Based'!H117 -> 0 | I119: =IF(AND(B119='Calc|Fee Based'!B117,C119='Calc|Fee Based'!C117,D119='Calc|Fee Based'!D117,E119='Calc|Fee Based'!E117, F119='Calc|Fee Based'!F117,G119='Calc|Fee Based'!G117, H119='Calc|Fee Based'!H117),0,1) -> 0
A120: 109 | B120: ='Calc|Fee Based'!B118 ->  | C120: ='Calc|Fee Based'!C118 ->  | D120: ='Calc|Fee Based'!D118 ->  | E120: ='Calc|Fee Based'!E118 ->  | F120: ='Calc|Fee Based'!F118 ->  | G120: ='Calc|Fee Based'!G118 ->  | H120: ='Calc|Fee Based'!H118 -> 0 | I120: =IF(AND(B120='Calc|Fee Based'!B118,C120='Calc|Fee Based'!C118,D120='Calc|Fee Based'!D118,E120='Calc|Fee Based'!E118, F120='Calc|Fee Based'!F118,G120='Calc|Fee Based'!G118, H120='Calc|Fee Based'!H118),0,1) -> 0
A121: 110 | B121: ='Calc|Fee Based'!B119 ->  | C121: ='Calc|Fee Based'!C119 ->  | D121: ='Calc|Fee Based'!D119 ->  | E121: ='Calc|Fee Based'!E119 ->  | F121: ='Calc|Fee Based'!F119 ->  | G121: ='Calc|Fee Based'!G119 ->  | H121: ='Calc|Fee Based'!H119 -> 0 | I121: =IF(AND(B121='Calc|Fee Based'!B119,C121='Calc|Fee Based'!C119,D121='Calc|Fee Based'!D119,E121='Calc|Fee Based'!E119, F121='Calc|Fee Based'!F119,G121='Calc|Fee Based'!G119, H121='Calc|Fee Based'!H119),0,1) -> 0
A122: 111 | B122: ='Calc|Fee Based'!B120 ->  | C122: ='Calc|Fee Based'!C120 ->  | D122: ='Calc|Fee Based'!D120 ->  | E122: ='Calc|Fee Based'!E120 ->  | F122: ='Calc|Fee Based'!F120 ->  | G122: ='Calc|Fee Based'!G120 ->  | H122: ='Calc|Fee Based'!H120 -> 0 | I122: =IF(AND(B122='Calc|Fee Based'!B120,C122='Calc|Fee Based'!C120,D122='Calc|Fee Based'!D120,E122='Calc|Fee Based'!E120, F122='Calc|Fee Based'!F120,G122='Calc|Fee Based'!G120, H122='Calc|Fee Based'!H120),0,1) -> 0
A123: 112 | B123: ='Calc|Fee Based'!B121 ->  | C123: ='Calc|Fee Based'!C121 ->  | D123: ='Calc|Fee Based'!D121 ->  | E123: ='Calc|Fee Based'!E121 ->  | F123: ='Calc|Fee Based'!F121 ->  | G123: ='Calc|Fee Based'!G121 ->  | H123: ='Calc|Fee Based'!H121 -> 0 | I123: =IF(AND(B123='Calc|Fee Based'!B121,C123='Calc|Fee Based'!C121,D123='Calc|Fee Based'!D121,E123='Calc|Fee Based'!E121, F123='Calc|Fee Based'!F121,G123='Calc|Fee Based'!G121, H123='Calc|Fee Based'!H121),0,1) -> 0
A124: 113 | B124: ='Calc|Fee Based'!B122 ->  | C124: ='Calc|Fee Based'!C122 ->  | D124: ='Calc|Fee Based'!D122 ->  | E124: ='Calc|Fee Based'!E122 ->  | F124: ='Calc|Fee Based'!F122 ->  | G124: ='Calc|Fee Based'!G122 ->  | H124: ='Calc|Fee Based'!H122 -> 0 | I124: =IF(AND(B124='Calc|Fee Based'!B122,C124='Calc|Fee Based'!C122,D124='Calc|Fee Based'!D122,E124='Calc|Fee Based'!E122, F124='Calc|Fee Based'!F122,G124='Calc|Fee Based'!G122, H124='Calc|Fee Based'!H122),0,1) -> 0
A125: 114 | B125: ='Calc|Fee Based'!B123 ->  | C125: ='Calc|Fee Based'!C123 ->  | D125: ='Calc|Fee Based'!D123 ->  | E125: ='Calc|Fee Based'!E123 ->  | F125: ='Calc|Fee Based'!F123 ->  | G125: ='Calc|Fee Based'!G123 ->  | H125: ='Calc|Fee Based'!H123 -> 0 | I125: =IF(AND(B125='Calc|Fee Based'!B123,C125='Calc|Fee Based'!C123,D125='Calc|Fee Based'!D123,E125='Calc|Fee Based'!E123, F125='Calc|Fee Based'!F123,G125='Calc|Fee Based'!G123, H125='Calc|Fee Based'!H123),0,1) -> 0
A126: 115 | B126: ='Calc|Fee Based'!B124 ->  | C126: ='Calc|Fee Based'!C124 ->  | D126: ='Calc|Fee Based'!D124 ->  | E126: ='Calc|Fee Based'!E124 ->  | F126: ='Calc|Fee Based'!F124 ->  | G126: ='Calc|Fee Based'!G124 ->  | H126: ='Calc|Fee Based'!H124 -> 0 | I126: =IF(AND(B126='Calc|Fee Based'!B124,C126='Calc|Fee Based'!C124,D126='Calc|Fee Based'!D124,E126='Calc|Fee Based'!E124, F126='Calc|Fee Based'!F124,G126='Calc|Fee Based'!G124, H126='Calc|Fee Based'!H124),0,1) -> 0
A127: 116 | B127: ='Calc|Fee Based'!B125 ->  | C127: ='Calc|Fee Based'!C125 ->  | D127: ='Calc|Fee Based'!D125 ->  | E127: ='Calc|Fee Based'!E125 ->  | F127: ='Calc|Fee Based'!F125 ->  | G127: ='Calc|Fee Based'!G125 ->  | H127: ='Calc|Fee Based'!H125 -> 0 | I127: =IF(AND(B127='Calc|Fee Based'!B125,C127='Calc|Fee Based'!C125,D127='Calc|Fee Based'!D125,E127='Calc|Fee Based'!E125, F127='Calc|Fee Based'!F125,G127='Calc|Fee Based'!G125, H127='Calc|Fee Based'!H125),0,1) -> 0
A128: 117 | B128: ='Calc|Fee Based'!B126 ->  | C128: ='Calc|Fee Based'!C126 ->  | D128: ='Calc|Fee Based'!D126 ->  | E128: ='Calc|Fee Based'!E126 ->  | F128: ='Calc|Fee Based'!F126 ->  | G128: ='Calc|Fee Based'!G126 ->  | H128: ='Calc|Fee Based'!H126 -> 0 | I128: =IF(AND(B128='Calc|Fee Based'!B126,C128='Calc|Fee Based'!C126,D128='Calc|Fee Based'!D126,E128='Calc|Fee Based'!E126, F128='Calc|Fee Based'!F126,G128='Calc|Fee Based'!G126, H128='Calc|Fee Based'!H126),0,1) -> 0
A129: 118 | B129: ='Calc|Fee Based'!B127 ->  | C129: ='Calc|Fee Based'!C127 ->  | D129: ='Calc|Fee Based'!D127 ->  | E129: ='Calc|Fee Based'!E127 ->  | F129: ='Calc|Fee Based'!F127 ->  | G129: ='Calc|Fee Based'!G127 ->  | H129: ='Calc|Fee Based'!H127 -> 0 | I129: =IF(AND(B129='Calc|Fee Based'!B127,C129='Calc|Fee Based'!C127,D129='Calc|Fee Based'!D127,E129='Calc|Fee Based'!E127, F129='Calc|Fee Based'!F127,G129='Calc|Fee Based'!G127, H129='Calc|Fee Based'!H127),0,1) -> 0
A130: 119 | B130: ='Calc|Fee Based'!B128 ->  | C130: ='Calc|Fee Based'!C128 ->  | D130: ='Calc|Fee Based'!D128 ->  | E130: ='Calc|Fee Based'!E128 ->  | F130: ='Calc|Fee Based'!F128 ->  | G130: ='Calc|Fee Based'!G128 ->  | H130: ='Calc|Fee Based'!H128 -> 0 | I130: =IF(AND(B130='Calc|Fee Based'!B128,C130='Calc|Fee Based'!C128,D130='Calc|Fee Based'!D128,E130='Calc|Fee Based'!E128, F130='Calc|Fee Based'!F128,G130='Calc|Fee Based'!G128, H130='Calc|Fee Based'!H128),0,1) -> 0
A131: 120 | B131: ='Calc|Fee Based'!B129 ->  | C131: ='Calc|Fee Based'!C129 ->  | D131: ='Calc|Fee Based'!D129 ->  | E131: ='Calc|Fee Based'!E129 ->  | F131: ='Calc|Fee Based'!F129 ->  | G131: ='Calc|Fee Based'!G129 ->  | H131: ='Calc|Fee Based'!H129 -> 0 | I131: =IF(AND(B131='Calc|Fee Based'!B129,C131='Calc|Fee Based'!C129,D131='Calc|Fee Based'!D129,E131='Calc|Fee Based'!E129, F131='Calc|Fee Based'!F129,G131='Calc|Fee Based'!G129, H131='Calc|Fee Based'!H129),0,1) -> 0
A132: 121 | B132: ='Calc|Fee Based'!B130 ->  | C132: ='Calc|Fee Based'!C130 ->  | D132: ='Calc|Fee Based'!D130 ->  | E132: ='Calc|Fee Based'!E130 ->  | F132: ='Calc|Fee Based'!F130 ->  | G132: ='Calc|Fee Based'!G130 ->  | H132: ='Calc|Fee Based'!H130 -> 0 | I132: =IF(AND(B132='Calc|Fee Based'!B130,C132='Calc|Fee Based'!C130,D132='Calc|Fee Based'!D130,E132='Calc|Fee Based'!E130, F132='Calc|Fee Based'!F130,G132='Calc|Fee Based'!G130, H132='Calc|Fee Based'!H130),0,1) -> 0
A133: 122 | B133: ='Calc|Fee Based'!B131 ->  | C133: ='Calc|Fee Based'!C131 ->  | D133: ='Calc|Fee Based'!D131 ->  | E133: ='Calc|Fee Based'!E131 ->  | F133: ='Calc|Fee Based'!F131 ->  | G133: ='Calc|Fee Based'!G131 ->  | H133: ='Calc|Fee Based'!H131 -> 0 | I133: =IF(AND(B133='Calc|Fee Based'!B131,C133='Calc|Fee Based'!C131,D133='Calc|Fee Based'!D131,E133='Calc|Fee Based'!E131, F133='Calc|Fee Based'!F131,G133='Calc|Fee Based'!G131, H133='Calc|Fee Based'!H131),0,1) -> 0
A134: 123 | B134: ='Calc|Fee Based'!B132 ->  | C134: ='Calc|Fee Based'!C132 ->  | D134: ='Calc|Fee Based'!D132 ->  | E134: ='Calc|Fee Based'!E132 ->  | F134: ='Calc|Fee Based'!F132 ->  | G134: ='Calc|Fee Based'!G132 ->  | H134: ='Calc|Fee Based'!H132 -> 0 | I134: =IF(AND(B134='Calc|Fee Based'!B132,C134='Calc|Fee Based'!C132,D134='Calc|Fee Based'!D132,E134='Calc|Fee Based'!E132, F134='Calc|Fee Based'!F132,G134='Calc|Fee Based'!G132, H134='Calc|Fee Based'!H132),0,1) -> 0
A135: 124 | B135: ='Calc|Fee Based'!B133 ->  | C135: ='Calc|Fee Based'!C133 ->  | D135: ='Calc|Fee Based'!D133 ->  | E135: ='Calc|Fee Based'!E133 ->  | F135: ='Calc|Fee Based'!F133 ->  | G135: ='Calc|Fee Based'!G133 ->  | H135: ='Calc|Fee Based'!H133 -> 0 | I135: =IF(AND(B135='Calc|Fee Based'!B133,C135='Calc|Fee Based'!C133,D135='Calc|Fee Based'!D133,E135='Calc|Fee Based'!E133, F135='Calc|Fee Based'!F133,G135='Calc|Fee Based'!G133, H135='Calc|Fee Based'!H133),0,1) -> 0
A136: 125 | B136: ='Calc|Fee Based'!B134 ->  | C136: ='Calc|Fee Based'!C134 ->  | D136: ='Calc|Fee Based'!D134 ->  | E136: ='Calc|Fee Based'!E134 ->  | F136: ='Calc|Fee Based'!F134 ->  | G136: ='Calc|Fee Based'!G134 ->  | H136: ='Calc|Fee Based'!H134 -> 0 | I136: =IF(AND(B136='Calc|Fee Based'!B134,C136='Calc|Fee Based'!C134,D136='Calc|Fee Based'!D134,E136='Calc|Fee Based'!E134, F136='Calc|Fee Based'!F134,G136='Calc|Fee Based'!G134, H136='Calc|Fee Based'!H134),0,1) -> 0
A137: 126 | B137: ='Calc|Fee Based'!B135 ->  | C137: ='Calc|Fee Based'!C135 ->  | D137: ='Calc|Fee Based'!D135 ->  | E137: ='Calc|Fee Based'!E135 ->  | F137: ='Calc|Fee Based'!F135 ->  | G137: ='Calc|Fee Based'!G135 ->  | H137: ='Calc|Fee Based'!H135 -> 0 | I137: =IF(AND(B137='Calc|Fee Based'!B135,C137='Calc|Fee Based'!C135,D137='Calc|Fee Based'!D135,E137='Calc|Fee Based'!E135, F137='Calc|Fee Based'!F135,G137='Calc|Fee Based'!G135, H137='Calc|Fee Based'!H135),0,1) -> 0
A138: 127 | B138: ='Calc|Fee Based'!B136 ->  | C138: ='Calc|Fee Based'!C136 ->  | D138: ='Calc|Fee Based'!D136 ->  | E138: ='Calc|Fee Based'!E136 ->  | F138: ='Calc|Fee Based'!F136 ->  | G138: ='Calc|Fee Based'!G136 ->  | H138: ='Calc|Fee Based'!H136 -> 0 | I138: =IF(AND(B138='Calc|Fee Based'!B136,C138='Calc|Fee Based'!C136,D138='Calc|Fee Based'!D136,E138='Calc|Fee Based'!E136, F138='Calc|Fee Based'!F136,G138='Calc|Fee Based'!G136, H138='Calc|Fee Based'!H136),0,1) -> 0
A139: 128 | B139: ='Calc|Fee Based'!B137 ->  | C139: ='Calc|Fee Based'!C137 ->  | D139: ='Calc|Fee Based'!D137 ->  | E139: ='Calc|Fee Based'!E137 ->  | F139: ='Calc|Fee Based'!F137 ->  | G139: ='Calc|Fee Based'!G137 ->  | H139: ='Calc|Fee Based'!H137 -> 0 | I139: =IF(AND(B139='Calc|Fee Based'!B137,C139='Calc|Fee Based'!C137,D139='Calc|Fee Based'!D137,E139='Calc|Fee Based'!E137, F139='Calc|Fee Based'!F137,G139='Calc|Fee Based'!G137, H139='Calc|Fee Based'!H137),0,1) -> 0
A140: 129 | B140: ='Calc|Fee Based'!B138 ->  | C140: ='Calc|Fee Based'!C138 ->  | D140: ='Calc|Fee Based'!D138 ->  | E140: ='Calc|Fee Based'!E138 ->  | F140: ='Calc|Fee Based'!F138 ->  | G140: ='Calc|Fee Based'!G138 ->  | H140: ='Calc|Fee Based'!H138 -> 0 | I140: =IF(AND(B140='Calc|Fee Based'!B138,C140='Calc|Fee Based'!C138,D140='Calc|Fee Based'!D138,E140='Calc|Fee Based'!E138, F140='Calc|Fee Based'!F138,G140='Calc|Fee Based'!G138, H140='Calc|Fee Based'!H138),0,1) -> 0
A141: 130 | B141: ='Calc|Fee Based'!B139 ->  | C141: ='Calc|Fee Based'!C139 ->  | D141: ='Calc|Fee Based'!D139 ->  | E141: ='Calc|Fee Based'!E139 ->  | F141: ='Calc|Fee Based'!F139 ->  | G141: ='Calc|Fee Based'!G139 ->  | H141: ='Calc|Fee Based'!H139 -> 0 | I141: =IF(AND(B141='Calc|Fee Based'!B139,C141='Calc|Fee Based'!C139,D141='Calc|Fee Based'!D139,E141='Calc|Fee Based'!E139, F141='Calc|Fee Based'!F139,G141='Calc|Fee Based'!G139, H141='Calc|Fee Based'!H139),0,1) -> 0
A142: 131 | B142: ='Calc|Fee Based'!B140 ->  | C142: ='Calc|Fee Based'!C140 ->  | D142: ='Calc|Fee Based'!D140 ->  | E142: ='Calc|Fee Based'!E140 ->  | F142: ='Calc|Fee Based'!F140 ->  | G142: ='Calc|Fee Based'!G140 ->  | H142: ='Calc|Fee Based'!H140 -> 0 | I142: =IF(AND(B142='Calc|Fee Based'!B140,C142='Calc|Fee Based'!C140,D142='Calc|Fee Based'!D140,E142='Calc|Fee Based'!E140, F142='Calc|Fee Based'!F140,G142='Calc|Fee Based'!G140, H142='Calc|Fee Based'!H140),0,1) -> 0
A143: 132 | B143: ='Calc|Fee Based'!B141 ->  | C143: ='Calc|Fee Based'!C141 ->  | D143: ='Calc|Fee Based'!D141 ->  | E143: ='Calc|Fee Based'!E141 ->  | F143: ='Calc|Fee Based'!F141 ->  | G143: ='Calc|Fee Based'!G141 ->  | H143: ='Calc|Fee Based'!H141 -> 0 | I143: =IF(AND(B143='Calc|Fee Based'!B141,C143='Calc|Fee Based'!C141,D143='Calc|Fee Based'!D141,E143='Calc|Fee Based'!E141, F143='Calc|Fee Based'!F141,G143='Calc|Fee Based'!G141, H143='Calc|Fee Based'!H141),0,1) -> 0
A144: 133 | B144: ='Calc|Fee Based'!B142 ->  | C144: ='Calc|Fee Based'!C142 ->  | D144: ='Calc|Fee Based'!D142 ->  | E144: ='Calc|Fee Based'!E142 ->  | F144: ='Calc|Fee Based'!F142 ->  | G144: ='Calc|Fee Based'!G142 ->  | H144: ='Calc|Fee Based'!H142 -> 0 | I144: =IF(AND(B144='Calc|Fee Based'!B142,C144='Calc|Fee Based'!C142,D144='Calc|Fee Based'!D142,E144='Calc|Fee Based'!E142, F144='Calc|Fee Based'!F142,G144='Calc|Fee Based'!G142, H144='Calc|Fee Based'!H142),0,1) -> 0
A145: 134 | B145: ='Calc|Fee Based'!B143 ->  | C145: ='Calc|Fee Based'!C143 ->  | D145: ='Calc|Fee Based'!D143 ->  | E145: ='Calc|Fee Based'!E143 ->  | F145: ='Calc|Fee Based'!F143 ->  | G145: ='Calc|Fee Based'!G143 ->  | H145: ='Calc|Fee Based'!H143 -> 0 | I145: =IF(AND(B145='Calc|Fee Based'!B143,C145='Calc|Fee Based'!C143,D145='Calc|Fee Based'!D143,E145='Calc|Fee Based'!E143, F145='Calc|Fee Based'!F143,G145='Calc|Fee Based'!G143, H145='Calc|Fee Based'!H143),0,1) -> 0
A146: 135 | B146: ='Calc|Fee Based'!B144 ->  | C146: ='Calc|Fee Based'!C144 ->  | D146: ='Calc|Fee Based'!D144 ->  | E146: ='Calc|Fee Based'!E144 ->  | F146: ='Calc|Fee Based'!F144 ->  | G146: ='Calc|Fee Based'!G144 ->  | H146: ='Calc|Fee Based'!H144 -> 0 | I146: =IF(AND(B146='Calc|Fee Based'!B144,C146='Calc|Fee Based'!C144,D146='Calc|Fee Based'!D144,E146='Calc|Fee Based'!E144, F146='Calc|Fee Based'!F144,G146='Calc|Fee Based'!G144, H146='Calc|Fee Based'!H144),0,1) -> 0
A147: 136 | B147: ='Calc|Fee Based'!B145 ->  | C147: ='Calc|Fee Based'!C145 ->  | D147: ='Calc|Fee Based'!D145 ->  | E147: ='Calc|Fee Based'!E145 ->  | F147: ='Calc|Fee Based'!F145 ->  | G147: ='Calc|Fee Based'!G145 ->  | H147: ='Calc|Fee Based'!H145 -> 0 | I147: =IF(AND(B147='Calc|Fee Based'!B145,C147='Calc|Fee Based'!C145,D147='Calc|Fee Based'!D145,E147='Calc|Fee Based'!E145, F147='Calc|Fee Based'!F145,G147='Calc|Fee Based'!G145, H147='Calc|Fee Based'!H145),0,1) -> 0
A148: 137 | B148: ='Calc|Fee Based'!B146 ->  | C148: ='Calc|Fee Based'!C146 ->  | D148: ='Calc|Fee Based'!D146 ->  | E148: ='Calc|Fee Based'!E146 ->  | F148: ='Calc|Fee Based'!F146 ->  | G148: ='Calc|Fee Based'!G146 ->  | H148: ='Calc|Fee Based'!H146 -> 0 | I148: =IF(AND(B148='Calc|Fee Based'!B146,C148='Calc|Fee Based'!C146,D148='Calc|Fee Based'!D146,E148='Calc|Fee Based'!E146, F148='Calc|Fee Based'!F146,G148='Calc|Fee Based'!G146, H148='Calc|Fee Based'!H146),0,1) -> 0
A149: 138 | B149: ='Calc|Fee Based'!B147 ->  | C149: ='Calc|Fee Based'!C147 ->  | D149: ='Calc|Fee Based'!D147 ->  | E149: ='Calc|Fee Based'!E147 ->  | F149: ='Calc|Fee Based'!F147 ->  | G149: ='Calc|Fee Based'!G147 ->  | H149: ='Calc|Fee Based'!H147 -> 0 | I149: =IF(AND(B149='Calc|Fee Based'!B147,C149='Calc|Fee Based'!C147,D149='Calc|Fee Based'!D147,E149='Calc|Fee Based'!E147, F149='Calc|Fee Based'!F147,G149='Calc|Fee Based'!G147, H149='Calc|Fee Based'!H147),0,1) -> 0
A150: 139 | B150: ='Calc|Fee Based'!B148 ->  | C150: ='Calc|Fee Based'!C148 ->  | D150: ='Calc|Fee Based'!D148 ->  | E150: ='Calc|Fee Based'!E148 ->  | F150: ='Calc|Fee Based'!F148 ->  | G150: ='Calc|Fee Based'!G148 ->  | H150: ='Calc|Fee Based'!H148 -> 0 | I150: =IF(AND(B150='Calc|Fee Based'!B148,C150='Calc|Fee Based'!C148,D150='Calc|Fee Based'!D148,E150='Calc|Fee Based'!E148, F150='Calc|Fee Based'!F148,G150='Calc|Fee Based'!G148, H150='Calc|Fee Based'!H148),0,1) -> 0
A151: 140 | B151: ='Calc|Fee Based'!B149 ->  | C151: ='Calc|Fee Based'!C149 ->  | D151: ='Calc|Fee Based'!D149 ->  | E151: ='Calc|Fee Based'!E149 ->  | F151: ='Calc|Fee Based'!F149 ->  | G151: ='Calc|Fee Based'!G149 ->  | H151: ='Calc|Fee Based'!H149 -> 0 | I151: =IF(AND(B151='Calc|Fee Based'!B149,C151='Calc|Fee Based'!C149,D151='Calc|Fee Based'!D149,E151='Calc|Fee Based'!E149, F151='Calc|Fee Based'!F149,G151='Calc|Fee Based'!G149, H151='Calc|Fee Based'!H149),0,1) -> 0
A152: 141 | B152: ='Calc|Fee Based'!B150 ->  | C152: ='Calc|Fee Based'!C150 ->  | D152: ='Calc|Fee Based'!D150 ->  | E152: ='Calc|Fee Based'!E150 ->  | F152: ='Calc|Fee Based'!F150 ->  | G152: ='Calc|Fee Based'!G150 ->  | H152: ='Calc|Fee Based'!H150 -> 0 | I152: =IF(AND(B152='Calc|Fee Based'!B150,C152='Calc|Fee Based'!C150,D152='Calc|Fee Based'!D150,E152='Calc|Fee Based'!E150, F152='Calc|Fee Based'!F150,G152='Calc|Fee Based'!G150, H152='Calc|Fee Based'!H150),0,1) -> 0
A153: 142 | B153: ='Calc|Fee Based'!B151 ->  | C153: ='Calc|Fee Based'!C151 ->  | D153: ='Calc|Fee Based'!D151 ->  | E153: ='Calc|Fee Based'!E151 ->  | F153: ='Calc|Fee Based'!F151 ->  | G153: ='Calc|Fee Based'!G151 ->  | H153: ='Calc|Fee Based'!H151 -> 0 | I153: =IF(AND(B153='Calc|Fee Based'!B151,C153='Calc|Fee Based'!C151,D153='Calc|Fee Based'!D151,E153='Calc|Fee Based'!E151, F153='Calc|Fee Based'!F151,G153='Calc|Fee Based'!G151, H153='Calc|Fee Based'!H151),0,1) -> 0
A154: 143 | B154: ='Calc|Fee Based'!B152 ->  | C154: ='Calc|Fee Based'!C152 ->  | D154: ='Calc|Fee Based'!D152 ->  | E154: ='Calc|Fee Based'!E152 ->  | F154: ='Calc|Fee Based'!F152 ->  | G154: ='Calc|Fee Based'!G152 ->  | H154: ='Calc|Fee Based'!H152 -> 0 | I154: =IF(AND(B154='Calc|Fee Based'!B152,C154='Calc|Fee Based'!C152,D154='Calc|Fee Based'!D152,E154='Calc|Fee Based'!E152, F154='Calc|Fee Based'!F152,G154='Calc|Fee Based'!G152, H154='Calc|Fee Based'!H152),0,1) -> 0
A155: 144 | B155: ='Calc|Fee Based'!B153 ->  | C155: ='Calc|Fee Based'!C153 ->  | D155: ='Calc|Fee Based'!D153 ->  | E155: ='Calc|Fee Based'!E153 ->  | F155: ='Calc|Fee Based'!F153 ->  | G155: ='Calc|Fee Based'!G153 ->  | H155: ='Calc|Fee Based'!H153 -> 0 | I155: =IF(AND(B155='Calc|Fee Based'!B153,C155='Calc|Fee Based'!C153,D155='Calc|Fee Based'!D153,E155='Calc|Fee Based'!E153, F155='Calc|Fee Based'!F153,G155='Calc|Fee Based'!G153, H155='Calc|Fee Based'!H153),0,1) -> 0
A156: 145 | B156: ='Calc|Fee Based'!B154 ->  | C156: ='Calc|Fee Based'!C154 ->  | D156: ='Calc|Fee Based'!D154 ->  | E156: ='Calc|Fee Based'!E154 ->  | F156: ='Calc|Fee Based'!F154 ->  | G156: ='Calc|Fee Based'!G154 ->  | H156: ='Calc|Fee Based'!H154 -> 0 | I156: =IF(AND(B156='Calc|Fee Based'!B154,C156='Calc|Fee Based'!C154,D156='Calc|Fee Based'!D154,E156='Calc|Fee Based'!E154, F156='Calc|Fee Based'!F154,G156='Calc|Fee Based'!G154, H156='Calc|Fee Based'!H154),0,1) -> 0
A157: 146 | B157: ='Calc|Fee Based'!B155 ->  | C157: ='Calc|Fee Based'!C155 ->  | D157: ='Calc|Fee Based'!D155 ->  | E157: ='Calc|Fee Based'!E155 ->  | F157: ='Calc|Fee Based'!F155 ->  | G157: ='Calc|Fee Based'!G155 ->  | H157: ='Calc|Fee Based'!H155 -> 0 | I157: =IF(AND(B157='Calc|Fee Based'!B155,C157='Calc|Fee Based'!C155,D157='Calc|Fee Based'!D155,E157='Calc|Fee Based'!E155, F157='Calc|Fee Based'!F155,G157='Calc|Fee Based'!G155, H157='Calc|Fee Based'!H155),0,1) -> 0
A158: 147 | B158: ='Calc|Fee Based'!B156 ->  | C158: ='Calc|Fee Based'!C156 ->  | D158: ='Calc|Fee Based'!D156 ->  | E158: ='Calc|Fee Based'!E156 ->  | F158: ='Calc|Fee Based'!F156 ->  | G158: ='Calc|Fee Based'!G156 ->  | H158: ='Calc|Fee Based'!H156 -> 0 | I158: =IF(AND(B158='Calc|Fee Based'!B156,C158='Calc|Fee Based'!C156,D158='Calc|Fee Based'!D156,E158='Calc|Fee Based'!E156, F158='Calc|Fee Based'!F156,G158='Calc|Fee Based'!G156, H158='Calc|Fee Based'!H156),0,1) -> 0
A159: 148 | B159: ='Calc|Fee Based'!B157 ->  | C159: ='Calc|Fee Based'!C157 ->  | D159: ='Calc|Fee Based'!D157 ->  | E159: ='Calc|Fee Based'!E157 ->  | F159: ='Calc|Fee Based'!F157 ->  | G159: ='Calc|Fee Based'!G157 ->  | H159: ='Calc|Fee Based'!H157 -> 0 | I159: =IF(AND(B159='Calc|Fee Based'!B157,C159='Calc|Fee Based'!C157,D159='Calc|Fee Based'!D157,E159='Calc|Fee Based'!E157, F159='Calc|Fee Based'!F157,G159='Calc|Fee Based'!G157, H159='Calc|Fee Based'!H157),0,1) -> 0
A160: 149 | B160: ='Calc|Fee Based'!B158 ->  | C160: ='Calc|Fee Based'!C158 ->  | D160: ='Calc|Fee Based'!D158 ->  | E160: ='Calc|Fee Based'!E158 ->  | F160: ='Calc|Fee Based'!F158 ->  | G160: ='Calc|Fee Based'!G158 ->  | H160: ='Calc|Fee Based'!H158 -> 0 | I160: =IF(AND(B160='Calc|Fee Based'!B158,C160='Calc|Fee Based'!C158,D160='Calc|Fee Based'!D158,E160='Calc|Fee Based'!E158, F160='Calc|Fee Based'!F158,G160='Calc|Fee Based'!G158, H160='Calc|Fee Based'!H158),0,1) -> 0
A161: 150 | B161: ='Calc|Fee Based'!B159 ->  | C161: ='Calc|Fee Based'!C159 ->  | D161: ='Calc|Fee Based'!D159 ->  | E161: ='Calc|Fee Based'!E159 ->  | F161: ='Calc|Fee Based'!F159 ->  | G161: ='Calc|Fee Based'!G159 ->  | H161: ='Calc|Fee Based'!H159 -> 0 | I161: =IF(AND(B161='Calc|Fee Based'!B159,C161='Calc|Fee Based'!C159,D161='Calc|Fee Based'!D159,E161='Calc|Fee Based'!E159, F161='Calc|Fee Based'!F159,G161='Calc|Fee Based'!G159, H161='Calc|Fee Based'!H159),0,1) -> 0
A162: 151 | B162: ='Calc|Fee Based'!B160 ->  | C162: ='Calc|Fee Based'!C160 ->  | D162: ='Calc|Fee Based'!D160 ->  | E162: ='Calc|Fee Based'!E160 ->  | F162: ='Calc|Fee Based'!F160 ->  | G162: ='Calc|Fee Based'!G160 ->  | H162: ='Calc|Fee Based'!H160 -> 0 | I162: =IF(AND(B162='Calc|Fee Based'!B160,C162='Calc|Fee Based'!C160,D162='Calc|Fee Based'!D160,E162='Calc|Fee Based'!E160, F162='Calc|Fee Based'!F160,G162='Calc|Fee Based'!G160, H162='Calc|Fee Based'!H160),0,1) -> 0
A163: 152 | B163: ='Calc|Fee Based'!B161 ->  | C163: ='Calc|Fee Based'!C161 ->  | D163: ='Calc|Fee Based'!D161 ->  | E163: ='Calc|Fee Based'!E161 ->  | F163: ='Calc|Fee Based'!F161 ->  | G163: ='Calc|Fee Based'!G161 ->  | H163: ='Calc|Fee Based'!H161 -> 0 | I163: =IF(AND(B163='Calc|Fee Based'!B161,C163='Calc|Fee Based'!C161,D163='Calc|Fee Based'!D161,E163='Calc|Fee Based'!E161, F163='Calc|Fee Based'!F161,G163='Calc|Fee Based'!G161, H163='Calc|Fee Based'!H161),0,1) -> 0
A164: 153 | B164: ='Calc|Fee Based'!B162 ->  | C164: ='Calc|Fee Based'!C162 ->  | D164: ='Calc|Fee Based'!D162 ->  | E164: ='Calc|Fee Based'!E162 ->  | F164: ='Calc|Fee Based'!F162 ->  | G164: ='Calc|Fee Based'!G162 ->  | H164: ='Calc|Fee Based'!H162 -> 0 | I164: =IF(AND(B164='Calc|Fee Based'!B162,C164='Calc|Fee Based'!C162,D164='Calc|Fee Based'!D162,E164='Calc|Fee Based'!E162, F164='Calc|Fee Based'!F162,G164='Calc|Fee Based'!G162, H164='Calc|Fee Based'!H162),0,1) -> 0
A165: 154 | B165: ='Calc|Fee Based'!B163 ->  | C165: ='Calc|Fee Based'!C163 ->  | D165: ='Calc|Fee Based'!D163 ->  | E165: ='Calc|Fee Based'!E163 ->  | F165: ='Calc|Fee Based'!F163 ->  | G165: ='Calc|Fee Based'!G163 ->  | H165: ='Calc|Fee Based'!H163 -> 0 | I165: =IF(AND(B165='Calc|Fee Based'!B163,C165='Calc|Fee Based'!C163,D165='Calc|Fee Based'!D163,E165='Calc|Fee Based'!E163, F165='Calc|Fee Based'!F163,G165='Calc|Fee Based'!G163, H165='Calc|Fee Based'!H163),0,1) -> 0
A166: 155 | B166: ='Calc|Fee Based'!B164 ->  | C166: ='Calc|Fee Based'!C164 ->  | D166: ='Calc|Fee Based'!D164 ->  | E166: ='Calc|Fee Based'!E164 ->  | F166: ='Calc|Fee Based'!F164 ->  | G166: ='Calc|Fee Based'!G164 ->  | H166: ='Calc|Fee Based'!H164 -> 0 | I166: =IF(AND(B166='Calc|Fee Based'!B164,C166='Calc|Fee Based'!C164,D166='Calc|Fee Based'!D164,E166='Calc|Fee Based'!E164, F166='Calc|Fee Based'!F164,G166='Calc|Fee Based'!G164, H166='Calc|Fee Based'!H164),0,1) -> 0
A167: 156 | B167: ='Calc|Fee Based'!B165 ->  | C167: ='Calc|Fee Based'!C165 ->  | D167: ='Calc|Fee Based'!D165 ->  | E167: ='Calc|Fee Based'!E165 ->  | F167: ='Calc|Fee Based'!F165 ->  | G167: ='Calc|Fee Based'!G165 ->  | H167: ='Calc|Fee Based'!H165 -> 0 | I167: =IF(AND(B167='Calc|Fee Based'!B165,C167='Calc|Fee Based'!C165,D167='Calc|Fee Based'!D165,E167='Calc|Fee Based'!E165, F167='Calc|Fee Based'!F165,G167='Calc|Fee Based'!G165, H167='Calc|Fee Based'!H165),0,1) -> 0
A168: 157 | B168: ='Calc|Fee Based'!B166 ->  | C168: ='Calc|Fee Based'!C166 ->  | D168: ='Calc|Fee Based'!D166 ->  | E168: ='Calc|Fee Based'!E166 ->  | F168: ='Calc|Fee Based'!F166 ->  | G168: ='Calc|Fee Based'!G166 ->  | H168: ='Calc|Fee Based'!H166 -> 0 | I168: =IF(AND(B168='Calc|Fee Based'!B166,C168='Calc|Fee Based'!C166,D168='Calc|Fee Based'!D166,E168='Calc|Fee Based'!E166, F168='Calc|Fee Based'!F166,G168='Calc|Fee Based'!G166, H168='Calc|Fee Based'!H166),0,1) -> 0
A169: 158 | B169: ='Calc|Fee Based'!B167 ->  | C169: ='Calc|Fee Based'!C167 ->  | D169: ='Calc|Fee Based'!D167 ->  | E169: ='Calc|Fee Based'!E167 ->  | F169: ='Calc|Fee Based'!F167 ->  | G169: ='Calc|Fee Based'!G167 ->  | H169: ='Calc|Fee Based'!H167 -> 0 | I169: =IF(AND(B169='Calc|Fee Based'!B167,C169='Calc|Fee Based'!C167,D169='Calc|Fee Based'!D167,E169='Calc|Fee Based'!E167, F169='Calc|Fee Based'!F167,G169='Calc|Fee Based'!G167, H169='Calc|Fee Based'!H167),0,1) -> 0
A170: 159 | B170: ='Calc|Fee Based'!B168 ->  | C170: ='Calc|Fee Based'!C168 ->  | D170: ='Calc|Fee Based'!D168 ->  | E170: ='Calc|Fee Based'!E168 ->  | F170: ='Calc|Fee Based'!F168 ->  | G170: ='Calc|Fee Based'!G168 ->  | H170: ='Calc|Fee Based'!H168 -> 0 | I170: =IF(AND(B170='Calc|Fee Based'!B168,C170='Calc|Fee Based'!C168,D170='Calc|Fee Based'!D168,E170='Calc|Fee Based'!E168, F170='Calc|Fee Based'!F168,G170='Calc|Fee Based'!G168, H170='Calc|Fee Based'!H168),0,1) -> 0
A171: 160 | B171: ='Calc|Fee Based'!B169 ->  | C171: ='Calc|Fee Based'!C169 ->  | D171: ='Calc|Fee Based'!D169 ->  | E171: ='Calc|Fee Based'!E169 ->  | F171: ='Calc|Fee Based'!F169 ->  | G171: ='Calc|Fee Based'!G169 ->  | H171: ='Calc|Fee Based'!H169 -> 0 | I171: =IF(AND(B171='Calc|Fee Based'!B169,C171='Calc|Fee Based'!C169,D171='Calc|Fee Based'!D169,E171='Calc|Fee Based'!E169, F171='Calc|Fee Based'!F169,G171='Calc|Fee Based'!G169, H171='Calc|Fee Based'!H169),0,1) -> 0
A172: 161 | B172: ='Calc|Fee Based'!B170 ->  | C172: ='Calc|Fee Based'!C170 ->  | D172: ='Calc|Fee Based'!D170 ->  | E172: ='Calc|Fee Based'!E170 ->  | F172: ='Calc|Fee Based'!F170 ->  | G172: ='Calc|Fee Based'!G170 ->  | H172: ='Calc|Fee Based'!H170 -> 0 | I172: =IF(AND(B172='Calc|Fee Based'!B170,C172='Calc|Fee Based'!C170,D172='Calc|Fee Based'!D170,E172='Calc|Fee Based'!E170, F172='Calc|Fee Based'!F170,G172='Calc|Fee Based'!G170, H172='Calc|Fee Based'!H170),0,1) -> 0
A173: 162 | B173: ='Calc|Fee Based'!B171 ->  | C173: ='Calc|Fee Based'!C171 ->  | D173: ='Calc|Fee Based'!D171 ->  | E173: ='Calc|Fee Based'!E171 ->  | F173: ='Calc|Fee Based'!F171 ->  | G173: ='Calc|Fee Based'!G171 ->  | H173: ='Calc|Fee Based'!H171 -> 0 | I173: =IF(AND(B173='Calc|Fee Based'!B171,C173='Calc|Fee Based'!C171,D173='Calc|Fee Based'!D171,E173='Calc|Fee Based'!E171, F173='Calc|Fee Based'!F171,G173='Calc|Fee Based'!G171, H173='Calc|Fee Based'!H171),0,1) -> 0
A174: 163 | B174: ='Calc|Fee Based'!B172 ->  | C174: ='Calc|Fee Based'!C172 ->  | D174: ='Calc|Fee Based'!D172 ->  | E174: ='Calc|Fee Based'!E172 ->  | F174: ='Calc|Fee Based'!F172 ->  | G174: ='Calc|Fee Based'!G172 ->  | H174: ='Calc|Fee Based'!H172 -> 0 | I174: =IF(AND(B174='Calc|Fee Based'!B172,C174='Calc|Fee Based'!C172,D174='Calc|Fee Based'!D172,E174='Calc|Fee Based'!E172, F174='Calc|Fee Based'!F172,G174='Calc|Fee Based'!G172, H174='Calc|Fee Based'!H172),0,1) -> 0
A175: 164 | B175: ='Calc|Fee Based'!B173 ->  | C175: ='Calc|Fee Based'!C173 ->  | D175: ='Calc|Fee Based'!D173 ->  | E175: ='Calc|Fee Based'!E173 ->  | F175: ='Calc|Fee Based'!F173 ->  | G175: ='Calc|Fee Based'!G173 ->  | H175: ='Calc|Fee Based'!H173 -> 0 | I175: =IF(AND(B175='Calc|Fee Based'!B173,C175='Calc|Fee Based'!C173,D175='Calc|Fee Based'!D173,E175='Calc|Fee Based'!E173, F175='Calc|Fee Based'!F173,G175='Calc|Fee Based'!G173, H175='Calc|Fee Based'!H173),0,1) -> 0
A176: 165 | B176: ='Calc|Fee Based'!B174 ->  | C176: ='Calc|Fee Based'!C174 ->  | D176: ='Calc|Fee Based'!D174 ->  | E176: ='Calc|Fee Based'!E174 ->  | F176: ='Calc|Fee Based'!F174 ->  | G176: ='Calc|Fee Based'!G174 ->  | H176: ='Calc|Fee Based'!H174 -> 0 | I176: =IF(AND(B176='Calc|Fee Based'!B174,C176='Calc|Fee Based'!C174,D176='Calc|Fee Based'!D174,E176='Calc|Fee Based'!E174, F176='Calc|Fee Based'!F174,G176='Calc|Fee Based'!G174, H176='Calc|Fee Based'!H174),0,1) -> 0
A177: 166 | B177: ='Calc|Fee Based'!B175 ->  | C177: ='Calc|Fee Based'!C175 ->  | D177: ='Calc|Fee Based'!D175 ->  | E177: ='Calc|Fee Based'!E175 ->  | F177: ='Calc|Fee Based'!F175 ->  | G177: ='Calc|Fee Based'!G175 ->  | H177: ='Calc|Fee Based'!H175 -> 0 | I177: =IF(AND(B177='Calc|Fee Based'!B175,C177='Calc|Fee Based'!C175,D177='Calc|Fee Based'!D175,E177='Calc|Fee Based'!E175, F177='Calc|Fee Based'!F175,G177='Calc|Fee Based'!G175, H177='Calc|Fee Based'!H175),0,1) -> 0
A178: 167 | B178: ='Calc|Fee Based'!B176 ->  | C178: ='Calc|Fee Based'!C176 ->  | D178: ='Calc|Fee Based'!D176 ->  | E178: ='Calc|Fee Based'!E176 ->  | F178: ='Calc|Fee Based'!F176 ->  | G178: ='Calc|Fee Based'!G176 ->  | H178: ='Calc|Fee Based'!H176 -> 0 | I178: =IF(AND(B178='Calc|Fee Based'!B176,C178='Calc|Fee Based'!C176,D178='Calc|Fee Based'!D176,E178='Calc|Fee Based'!E176, F178='Calc|Fee Based'!F176,G178='Calc|Fee Based'!G176, H178='Calc|Fee Based'!H176),0,1) -> 0
A179: 168 | B179: ='Calc|Fee Based'!B177 ->  | C179: ='Calc|Fee Based'!C177 ->  | D179: ='Calc|Fee Based'!D177 ->  | E179: ='Calc|Fee Based'!E177 ->  | F179: ='Calc|Fee Based'!F177 ->  | G179: ='Calc|Fee Based'!G177 ->  | H179: ='Calc|Fee Based'!H177 -> 0 | I179: =IF(AND(B179='Calc|Fee Based'!B177,C179='Calc|Fee Based'!C177,D179='Calc|Fee Based'!D177,E179='Calc|Fee Based'!E177, F179='Calc|Fee Based'!F177,G179='Calc|Fee Based'!G177, H179='Calc|Fee Based'!H177),0,1) -> 0
A180: 169 | B180: ='Calc|Fee Based'!B178 ->  | C180: ='Calc|Fee Based'!C178 ->  | D180: ='Calc|Fee Based'!D178 ->  | E180: ='Calc|Fee Based'!E178 ->  | F180: ='Calc|Fee Based'!F178 ->  | G180: ='Calc|Fee Based'!G178 ->  | H180: ='Calc|Fee Based'!H178 -> 0 | I180: =IF(AND(B180='Calc|Fee Based'!B178,C180='Calc|Fee Based'!C178,D180='Calc|Fee Based'!D178,E180='Calc|Fee Based'!E178, F180='Calc|Fee Based'!F178,G180='Calc|Fee Based'!G178, H180='Calc|Fee Based'!H178),0,1) -> 0
A181: 170 | B181: ='Calc|Fee Based'!B179 ->  | C181: ='Calc|Fee Based'!C179 ->  | D181: ='Calc|Fee Based'!D179 ->  | E181: ='Calc|Fee Based'!E179 ->  | F181: ='Calc|Fee Based'!F179 ->  | G181: ='Calc|Fee Based'!G179 ->  | H181: ='Calc|Fee Based'!H179 -> 0 | I181: =IF(AND(B181='Calc|Fee Based'!B179,C181='Calc|Fee Based'!C179,D181='Calc|Fee Based'!D179,E181='Calc|Fee Based'!E179, F181='Calc|Fee Based'!F179,G181='Calc|Fee Based'!G179, H181='Calc|Fee Based'!H179),0,1) -> 0
A182: 171 | B182: ='Calc|Fee Based'!B180 ->  | C182: ='Calc|Fee Based'!C180 ->  | D182: ='Calc|Fee Based'!D180 ->  | E182: ='Calc|Fee Based'!E180 ->  | F182: ='Calc|Fee Based'!F180 ->  | G182: ='Calc|Fee Based'!G180 ->  | H182: ='Calc|Fee Based'!H180 -> 0 | I182: =IF(AND(B182='Calc|Fee Based'!B180,C182='Calc|Fee Based'!C180,D182='Calc|Fee Based'!D180,E182='Calc|Fee Based'!E180, F182='Calc|Fee Based'!F180,G182='Calc|Fee Based'!G180, H182='Calc|Fee Based'!H180),0,1) -> 0
A183: 172 | B183: ='Calc|Fee Based'!B181 ->  | C183: ='Calc|Fee Based'!C181 ->  | D183: ='Calc|Fee Based'!D181 ->  | E183: ='Calc|Fee Based'!E181 ->  | F183: ='Calc|Fee Based'!F181 ->  | G183: ='Calc|Fee Based'!G181 ->  | H183: ='Calc|Fee Based'!H181 -> 0 | I183: =IF(AND(B183='Calc|Fee Based'!B181,C183='Calc|Fee Based'!C181,D183='Calc|Fee Based'!D181,E183='Calc|Fee Based'!E181, F183='Calc|Fee Based'!F181,G183='Calc|Fee Based'!G181, H183='Calc|Fee Based'!H181),0,1) -> 0
A184: 173 | B184: ='Calc|Fee Based'!B182 ->  | C184: ='Calc|Fee Based'!C182 ->  | D184: ='Calc|Fee Based'!D182 ->  | E184: ='Calc|Fee Based'!E182 ->  | F184: ='Calc|Fee Based'!F182 ->  | G184: ='Calc|Fee Based'!G182 ->  | H184: ='Calc|Fee Based'!H182 -> 0 | I184: =IF(AND(B184='Calc|Fee Based'!B182,C184='Calc|Fee Based'!C182,D184='Calc|Fee Based'!D182,E184='Calc|Fee Based'!E182, F184='Calc|Fee Based'!F182,G184='Calc|Fee Based'!G182, H184='Calc|Fee Based'!H182),0,1) -> 0
A185: 174 | B185: ='Calc|Fee Based'!B183 ->  | C185: ='Calc|Fee Based'!C183 ->  | D185: ='Calc|Fee Based'!D183 ->  | E185: ='Calc|Fee Based'!E183 ->  | F185: ='Calc|Fee Based'!F183 ->  | G185: ='Calc|Fee Based'!G183 ->  | H185: ='Calc|Fee Based'!H183 -> 0 | I185: =IF(AND(B185='Calc|Fee Based'!B183,C185='Calc|Fee Based'!C183,D185='Calc|Fee Based'!D183,E185='Calc|Fee Based'!E183, F185='Calc|Fee Based'!F183,G185='Calc|Fee Based'!G183, H185='Calc|Fee Based'!H183),0,1) -> 0
A186: 175 | B186: ='Calc|Fee Based'!B184 ->  | C186: ='Calc|Fee Based'!C184 ->  | D186: ='Calc|Fee Based'!D184 ->  | E186: ='Calc|Fee Based'!E184 ->  | F186: ='Calc|Fee Based'!F184 ->  | G186: ='Calc|Fee Based'!G184 ->  | H186: ='Calc|Fee Based'!H184 -> 0 | I186: =IF(AND(B186='Calc|Fee Based'!B184,C186='Calc|Fee Based'!C184,D186='Calc|Fee Based'!D184,E186='Calc|Fee Based'!E184, F186='Calc|Fee Based'!F184,G186='Calc|Fee Based'!G184, H186='Calc|Fee Based'!H184),0,1) -> 0
A187: 176 | B187: ='Calc|Fee Based'!B185 ->  | C187: ='Calc|Fee Based'!C185 ->  | D187: ='Calc|Fee Based'!D185 ->  | E187: ='Calc|Fee Based'!E185 ->  | F187: ='Calc|Fee Based'!F185 ->  | G187: ='Calc|Fee Based'!G185 ->  | H187: ='Calc|Fee Based'!H185 -> 0 | I187: =IF(AND(B187='Calc|Fee Based'!B185,C187='Calc|Fee Based'!C185,D187='Calc|Fee Based'!D185,E187='Calc|Fee Based'!E185, F187='Calc|Fee Based'!F185,G187='Calc|Fee Based'!G185, H187='Calc|Fee Based'!H185),0,1) -> 0
A188: 177 | B188: ='Calc|Fee Based'!B186 ->  | C188: ='Calc|Fee Based'!C186 ->  | D188: ='Calc|Fee Based'!D186 ->  | E188: ='Calc|Fee Based'!E186 ->  | F188: ='Calc|Fee Based'!F186 ->  | G188: ='Calc|Fee Based'!G186 ->  | H188: ='Calc|Fee Based'!H186 -> 0 | I188: =IF(AND(B188='Calc|Fee Based'!B186,C188='Calc|Fee Based'!C186,D188='Calc|Fee Based'!D186,E188='Calc|Fee Based'!E186, F188='Calc|Fee Based'!F186,G188='Calc|Fee Based'!G186, H188='Calc|Fee Based'!H186),0,1) -> 0
A189: 178 | B189: ='Calc|Fee Based'!B187 ->  | C189: ='Calc|Fee Based'!C187 ->  | D189: ='Calc|Fee Based'!D187 ->  | E189: ='Calc|Fee Based'!E187 ->  | F189: ='Calc|Fee Based'!F187 ->  | G189: ='Calc|Fee Based'!G187 ->  | H189: ='Calc|Fee Based'!H187 -> 0 | I189: =IF(AND(B189='Calc|Fee Based'!B187,C189='Calc|Fee Based'!C187,D189='Calc|Fee Based'!D187,E189='Calc|Fee Based'!E187, F189='Calc|Fee Based'!F187,G189='Calc|Fee Based'!G187, H189='Calc|Fee Based'!H187),0,1) -> 0
A190: 179 | B190: ='Calc|Fee Based'!B188 ->  | C190: ='Calc|Fee Based'!C188 ->  | D190: ='Calc|Fee Based'!D188 ->  | E190: ='Calc|Fee Based'!E188 ->  | F190: ='Calc|Fee Based'!F188 ->  | G190: ='Calc|Fee Based'!G188 ->  | H190: ='Calc|Fee Based'!H188 -> 0 | I190: =IF(AND(B190='Calc|Fee Based'!B188,C190='Calc|Fee Based'!C188,D190='Calc|Fee Based'!D188,E190='Calc|Fee Based'!E188, F190='Calc|Fee Based'!F188,G190='Calc|Fee Based'!G188, H190='Calc|Fee Based'!H188),0,1) -> 0
A191: 180 | B191: ='Calc|Fee Based'!B189 ->  | C191: ='Calc|Fee Based'!C189 ->  | D191: ='Calc|Fee Based'!D189 ->  | E191: ='Calc|Fee Based'!E189 ->  | F191: ='Calc|Fee Based'!F189 ->  | G191: ='Calc|Fee Based'!G189 ->  | H191: ='Calc|Fee Based'!H189 -> 0 | I191: =IF(AND(B191='Calc|Fee Based'!B189,C191='Calc|Fee Based'!C189,D191='Calc|Fee Based'!D189,E191='Calc|Fee Based'!E189, F191='Calc|Fee Based'!F189,G191='Calc|Fee Based'!G189, H191='Calc|Fee Based'!H189),0,1) -> 0
A192: 181 | B192: ='Calc|Fee Based'!B190 ->  | C192: ='Calc|Fee Based'!C190 ->  | D192: ='Calc|Fee Based'!D190 ->  | E192: ='Calc|Fee Based'!E190 ->  | F192: ='Calc|Fee Based'!F190 ->  | G192: ='Calc|Fee Based'!G190 ->  | H192: ='Calc|Fee Based'!H190 -> 0 | I192: =IF(AND(B192='Calc|Fee Based'!B190,C192='Calc|Fee Based'!C190,D192='Calc|Fee Based'!D190,E192='Calc|Fee Based'!E190, F192='Calc|Fee Based'!F190,G192='Calc|Fee Based'!G190, H192='Calc|Fee Based'!H190),0,1) -> 0
A193: 182 | B193: ='Calc|Fee Based'!B191 ->  | C193: ='Calc|Fee Based'!C191 ->  | D193: ='Calc|Fee Based'!D191 ->  | E193: ='Calc|Fee Based'!E191 ->  | F193: ='Calc|Fee Based'!F191 ->  | G193: ='Calc|Fee Based'!G191 ->  | H193: ='Calc|Fee Based'!H191 -> 0 | I193: =IF(AND(B193='Calc|Fee Based'!B191,C193='Calc|Fee Based'!C191,D193='Calc|Fee Based'!D191,E193='Calc|Fee Based'!E191, F193='Calc|Fee Based'!F191,G193='Calc|Fee Based'!G191, H193='Calc|Fee Based'!H191),0,1) -> 0
A194: 183 | B194: ='Calc|Fee Based'!B192 ->  | C194: ='Calc|Fee Based'!C192 ->  | D194: ='Calc|Fee Based'!D192 ->  | E194: ='Calc|Fee Based'!E192 ->  | F194: ='Calc|Fee Based'!F192 ->  | G194: ='Calc|Fee Based'!G192 ->  | H194: ='Calc|Fee Based'!H192 -> 0 | I194: =IF(AND(B194='Calc|Fee Based'!B192,C194='Calc|Fee Based'!C192,D194='Calc|Fee Based'!D192,E194='Calc|Fee Based'!E192, F194='Calc|Fee Based'!F192,G194='Calc|Fee Based'!G192, H194='Calc|Fee Based'!H192),0,1) -> 0
A195: 184 | B195: ='Calc|Fee Based'!B193 ->  | C195: ='Calc|Fee Based'!C193 ->  | D195: ='Calc|Fee Based'!D193 ->  | E195: ='Calc|Fee Based'!E193 ->  | F195: ='Calc|Fee Based'!F193 ->  | G195: ='Calc|Fee Based'!G193 ->  | H195: ='Calc|Fee Based'!H193 -> 0 | I195: =IF(AND(B195='Calc|Fee Based'!B193,C195='Calc|Fee Based'!C193,D195='Calc|Fee Based'!D193,E195='Calc|Fee Based'!E193, F195='Calc|Fee Based'!F193,G195='Calc|Fee Based'!G193, H195='Calc|Fee Based'!H193),0,1) -> 0
A196: 185 | B196: ='Calc|Fee Based'!B194 ->  | C196: ='Calc|Fee Based'!C194 ->  | D196: ='Calc|Fee Based'!D194 ->  | E196: ='Calc|Fee Based'!E194 ->  | F196: ='Calc|Fee Based'!F194 ->  | G196: ='Calc|Fee Based'!G194 ->  | H196: ='Calc|Fee Based'!H194 -> 0 | I196: =IF(AND(B196='Calc|Fee Based'!B194,C196='Calc|Fee Based'!C194,D196='Calc|Fee Based'!D194,E196='Calc|Fee Based'!E194, F196='Calc|Fee Based'!F194,G196='Calc|Fee Based'!G194, H196='Calc|Fee Based'!H194),0,1) -> 0
A197: 186 | B197: ='Calc|Fee Based'!B195 ->  | C197: ='Calc|Fee Based'!C195 ->  | D197: ='Calc|Fee Based'!D195 ->  | E197: ='Calc|Fee Based'!E195 ->  | F197: ='Calc|Fee Based'!F195 ->  | G197: ='Calc|Fee Based'!G195 ->  | H197: ='Calc|Fee Based'!H195 -> 0 | I197: =IF(AND(B197='Calc|Fee Based'!B195,C197='Calc|Fee Based'!C195,D197='Calc|Fee Based'!D195,E197='Calc|Fee Based'!E195, F197='Calc|Fee Based'!F195,G197='Calc|Fee Based'!G195, H197='Calc|Fee Based'!H195),0,1) -> 0
A198: 187 | B198: ='Calc|Fee Based'!B196 ->  | C198: ='Calc|Fee Based'!C196 ->  | D198: ='Calc|Fee Based'!D196 ->  | E198: ='Calc|Fee Based'!E196 ->  | F198: ='Calc|Fee Based'!F196 ->  | G198: ='Calc|Fee Based'!G196 ->  | H198: ='Calc|Fee Based'!H196 -> 0 | I198: =IF(AND(B198='Calc|Fee Based'!B196,C198='Calc|Fee Based'!C196,D198='Calc|Fee Based'!D196,E198='Calc|Fee Based'!E196, F198='Calc|Fee Based'!F196,G198='Calc|Fee Based'!G196, H198='Calc|Fee Based'!H196),0,1) -> 0
A199: 188 | B199: ='Calc|Fee Based'!B197 ->  | C199: ='Calc|Fee Based'!C197 ->  | D199: ='Calc|Fee Based'!D197 ->  | E199: ='Calc|Fee Based'!E197 ->  | F199: ='Calc|Fee Based'!F197 ->  | G199: ='Calc|Fee Based'!G197 ->  | H199: ='Calc|Fee Based'!H197 -> 0 | I199: =IF(AND(B199='Calc|Fee Based'!B197,C199='Calc|Fee Based'!C197,D199='Calc|Fee Based'!D197,E199='Calc|Fee Based'!E197, F199='Calc|Fee Based'!F197,G199='Calc|Fee Based'!G197, H199='Calc|Fee Based'!H197),0,1) -> 0
A200: 189 | B200: ='Calc|Fee Based'!B198 ->  | C200: ='Calc|Fee Based'!C198 ->  | D200: ='Calc|Fee Based'!D198 ->  | E200: ='Calc|Fee Based'!E198 ->  | F200: ='Calc|Fee Based'!F198 ->  | G200: ='Calc|Fee Based'!G198 ->  | H200: ='Calc|Fee Based'!H198 -> 0 | I200: =IF(AND(B200='Calc|Fee Based'!B198,C200='Calc|Fee Based'!C198,D200='Calc|Fee Based'!D198,E200='Calc|Fee Based'!E198, F200='Calc|Fee Based'!F198,G200='Calc|Fee Based'!G198, H200='Calc|Fee Based'!H198),0,1) -> 0
A201: 190 | B201: ='Calc|Fee Based'!B199 ->  | C201: ='Calc|Fee Based'!C199 ->  | D201: ='Calc|Fee Based'!D199 ->  | E201: ='Calc|Fee Based'!E199 ->  | F201: ='Calc|Fee Based'!F199 ->  | G201: ='Calc|Fee Based'!G199 ->  | H201: ='Calc|Fee Based'!H199 -> 0 | I201: =IF(AND(B201='Calc|Fee Based'!B199,C201='Calc|Fee Based'!C199,D201='Calc|Fee Based'!D199,E201='Calc|Fee Based'!E199, F201='Calc|Fee Based'!F199,G201='Calc|Fee Based'!G199, H201='Calc|Fee Based'!H199),0,1) -> 0
A202: 191 | B202: ='Calc|Fee Based'!B200 ->  | C202: ='Calc|Fee Based'!C200 ->  | D202: ='Calc|Fee Based'!D200 ->  | E202: ='Calc|Fee Based'!E200 ->  | F202: ='Calc|Fee Based'!F200 ->  | G202: ='Calc|Fee Based'!G200 ->  | H202: ='Calc|Fee Based'!H200 -> 0 | I202: =IF(AND(B202='Calc|Fee Based'!B200,C202='Calc|Fee Based'!C200,D202='Calc|Fee Based'!D200,E202='Calc|Fee Based'!E200, F202='Calc|Fee Based'!F200,G202='Calc|Fee Based'!G200, H202='Calc|Fee Based'!H200),0,1) -> 0
A203: 192 | B203: ='Calc|Fee Based'!B201 ->  | C203: ='Calc|Fee Based'!C201 ->  | D203: ='Calc|Fee Based'!D201 ->  | E203: ='Calc|Fee Based'!E201 ->  | F203: ='Calc|Fee Based'!F201 ->  | G203: ='Calc|Fee Based'!G201 ->  | H203: ='Calc|Fee Based'!H201 -> 0 | I203: =IF(AND(B203='Calc|Fee Based'!B201,C203='Calc|Fee Based'!C201,D203='Calc|Fee Based'!D201,E203='Calc|Fee Based'!E201, F203='Calc|Fee Based'!F201,G203='Calc|Fee Based'!G201, H203='Calc|Fee Based'!H201),0,1) -> 0
... 308 more rows

Sheet Output|Quoted
B1: =Index!B1 -> AER ANS Forecast Model | C1: Key: | D1: Input | F1: Sheet Validation | G1: ='Model Validation'!C9 -> 0
B2: =MID(CELL("filename",A1),FIND("]",CELL("filename",A1))+1,255) -> Output|Quoted | D2: Formula
D4: =IF(D7='Input|Escalations'!J27,0,1) -> 0 | E4: =IF(E7='Input|Escalations'!K27,0,1) -> 0 | F4: =IF(F7='Input|Escalations'!L27,0,1) -> 0 | G4: =IF(G7='Input|Escalations'!M27,0,1) -> 0
B5: =IFERROR("2.1 X-factors for each year of "&'Input|Setup'!$E$11&" to "&'Input|Setup'!$E$15&" regulatory period, (per cent)","") -> 2.1 X-factors for each year of 2026-27 to 2030-31 regulatory period, (per cent)
C6: ='Output|Fee Based'!C6 -> 2026-27 | D6: ='Output|Fee Based'!D6 -> 2027-28 | E6: ='Output|Fee Based'!E6 -> 2028-29 | F6: ='Output|Fee Based'!F6 -> 2029-30 | G6: ='Output|Fee Based'!G6 -> 2030-31
D7: ='Output|Fee Based'!D7 -> -0.00930115961 | E7: ='Output|Fee Based'!E7 -> -0.01079544555 | F7: ='Output|Fee Based'!F7 -> -0.01198734607 | G7: ='Output|Fee Based'!G7 -> -0.01289271396
I9: For AER only
B10: =IFERROR("2.2 Labour rates for "&'Input|Setup'!$E$11&", ($"&'Input|Setup'!$E$8&")","") -> 2.2 Labour rates for 2026-27, ($2026-27) | I10: AER maximum rates | J10: AER decision
B11: Quoted service - Labour rates | C11: Hours | D11: Hourly rate ($) | I11: Hourly rate ($) | J11: Hourly rate ($)
A12: 1 | B12: ='Calc|Labour Rates'!B10 -> Standard field labour | C12: ='Calc|Labour Rates'!C10 -> Business hours | D12: =IF('Calc|Labour Rates'!$D10="No","NA",IFERROR(LOOKUP(2, 1/('Calc|Labour Rates'!$B$10:$B$39='Output|Quoted'!$B12)/('Calc|Labour Rates'!$C$10:$C$39='Output|Quoted'!$C12),'Calc|Labour Rates'!$E$10:$E$39),0)) -> NA | G12: =IF(OR($D12="NA",AND(B12='Calc|Labour Rates'!B10,'Output|Quoted'!C12='Calc|Labour Rates'!C10,'Output|Quoted'!D12='Calc|Labour Rates'!E10)),0,1) -> 0 | I12: 72 | J12: =MIN($I12,$D12) -> 72
A13: =IFERROR(A12+1,"") -> 2 | B13: ='Calc|Labour Rates'!B11 -> Non-field 1 | C13: ='Calc|Labour Rates'!C11 -> Business hours | D13: =IF('Calc|Labour Rates'!$D11="No","NA",IFERROR(LOOKUP(2, 1/('Calc|Labour Rates'!$B$10:$B$39='Output|Quoted'!$B13)/('Calc|Labour Rates'!$C$10:$C$39='Output|Quoted'!$C13),'Calc|Labour Rates'!$E$10:$E$39),0)) -> NA | G13: =IF(OR($D13="NA",AND(B13='Calc|Labour Rates'!B11,'Output|Quoted'!C13='Calc|Labour Rates'!C11,'Output|Quoted'!D13='Calc|Labour Rates'!E11)),0,1) -> 0 | I13: 150 | J13: 150
A14: =IFERROR(A13+1,"") -> 3 | B14: ='Calc|Labour Rates'!B12 -> Non-field 2 | C14: ='Calc|Labour Rates'!C12 -> Business hours | D14: =IF('Calc|Labour Rates'!$D12="No","NA",IFERROR(LOOKUP(2, 1/('Calc|Labour Rates'!$B$10:$B$39='Output|Quoted'!$B14)/('Calc|Labour Rates'!$C$10:$C$39='Output|Quoted'!$C14),'Calc|Labour Rates'!$E$10:$E$39),0)) -> NA | G14: =IF(OR($D14="NA",AND(B14='Calc|Labour Rates'!B12,'Output|Quoted'!C14='Calc|Labour Rates'!C12,'Output|Quoted'!D14='Calc|Labour Rates'!E12)),0,1) -> 0 | I14: 150 | J14: 150
A15: 4 | B15: ='Calc|Labour Rates'!B13 -> Non-field 3 | C15: ='Calc|Labour Rates'!C13 -> Business hours | D15: =IF('Calc|Labour Rates'!$D13="No","NA",IFERROR(LOOKUP(2, 1/('Calc|Labour Rates'!$B$10:$B$39='Output|Quoted'!$B15)/('Calc|Labour Rates'!$C$10:$C$39='Output|Quoted'!$C15),'Calc|Labour Rates'!$E$10:$E$39),0)) -> NA | G15: =IF(OR($D15="NA",AND(B15='Calc|Labour Rates'!B13,'Output|Quoted'!C15='Calc|Labour Rates'!C13,'Output|Quoted'!D15='Calc|Labour Rates'!E13)),0,1) -> 0 | I15: 205 | J15: 205
A16: 5 | B16: ='Calc|Labour Rates'!B14 -> Hydrovac | C16: ='Calc|Labour Rates'!C14 -> Business hours | D16: =IF('Calc|Labour Rates'!$D14="No","NA",IFERROR(LOOKUP(2, 1/('Calc|Labour Rates'!$B$10:$B$39='Output|Quoted'!$B16)/('Calc|Labour Rates'!$C$10:$C$39='Output|Quoted'!$C16),'Calc|Labour Rates'!$E$10:$E$39),0)) -> NA | G16: =IF(OR($D16="NA",AND(B16='Calc|Labour Rates'!B14,'Output|Quoted'!C16='Calc|Labour Rates'!C14,'Output|Quoted'!D16='Calc|Labour Rates'!E14)),0,1) -> 0 | I16: 300 | J16: 300
A17: 6 | B17: ='Calc|Labour Rates'!B15 -> Non-field 4 | C17: ='Calc|Labour Rates'!C15 -> Business hours | D17: =IF('Calc|Labour Rates'!$D15="No","NA",IFERROR(LOOKUP(2, 1/('Calc|Labour Rates'!$B$10:$B$39='Output|Quoted'!$B17)/('Calc|Labour Rates'!$C$10:$C$39='Output|Quoted'!$C17),'Calc|Labour Rates'!$E$10:$E$39),0)) -> NA | G17: =IF(OR($D17="NA",AND(B17='Calc|Labour Rates'!B15,'Output|Quoted'!C17='Calc|Labour Rates'!C15,'Output|Quoted'!D17='Calc|Labour Rates'!E15)),0,1) -> 0 | I17: =I12*1.69 -> 121.68 | J17: 121.68
A18: 7 | B18: ='Calc|Labour Rates'!B16 ->  | C18: ='Calc|Labour Rates'!C16 ->  | D18: =IF('Calc|Labour Rates'!$D16="No","NA",IFERROR(LOOKUP(2, 1/('Calc|Labour Rates'!$B$10:$B$39='Output|Quoted'!$B18)/('Calc|Labour Rates'!$C$10:$C$39='Output|Quoted'!$C18),'Calc|Labour Rates'!$E$10:$E$39),0)) -> 0 | G18: =IF(OR($D18="NA",AND(B18='Calc|Labour Rates'!B16,'Output|Quoted'!C18='Calc|Labour Rates'!C16,'Output|Quoted'!D18='Calc|Labour Rates'!E16)),0,1) -> 0 | I18: =I13*1.69 -> 253.5 | J18: 0
A19: 8 | B19: ='Calc|Labour Rates'!B17 ->  | C19: ='Calc|Labour Rates'!C17 ->  | D19: =IF('Calc|Labour Rates'!$D17="No","NA",IFERROR(LOOKUP(2, 1/('Calc|Labour Rates'!$B$10:$B$39='Output|Quoted'!$B19)/('Calc|Labour Rates'!$C$10:$C$39='Output|Quoted'!$C19),'Calc|Labour Rates'!$E$10:$E$39),0)) -> 0 | G19: =IF(OR($D19="NA",AND(B19='Calc|Labour Rates'!B17,'Output|Quoted'!C19='Calc|Labour Rates'!C17,'Output|Quoted'!D19='Calc|Labour Rates'!E17)),0,1) -> 0 | I19: =I14*1.69 -> 253.5 | J19: 0
A20: 9 | B20: ='Calc|Labour Rates'!B18 ->  | C20: ='Calc|Labour Rates'!C18 ->  | D20: =IF('Calc|Labour Rates'!$D18="No","NA",IFERROR(LOOKUP(2, 1/('Calc|Labour Rates'!$B$10:$B$39='Output|Quoted'!$B20)/('Calc|Labour Rates'!$C$10:$C$39='Output|Quoted'!$C20),'Calc|Labour Rates'!$E$10:$E$39),0)) -> 0 | G20: =IF(OR($D20="NA",AND(B20='Calc|Labour Rates'!B18,'Output|Quoted'!C20='Calc|Labour Rates'!C18,'Output|Quoted'!D20='Calc|Labour Rates'!E18)),0,1) -> 0 | I20: =I15*1.69 -> 346.45 | J20: 0
A21: 10 | B21: ='Calc|Labour Rates'!B19 ->  | C21: ='Calc|Labour Rates'!C19 ->  | D21: =IF('Calc|Labour Rates'!$D19="No","NA",IFERROR(LOOKUP(2, 1/('Calc|Labour Rates'!$B$10:$B$39='Output|Quoted'!$B21)/('Calc|Labour Rates'!$C$10:$C$39='Output|Quoted'!$C21),'Calc|Labour Rates'!$E$10:$E$39),0)) -> 0 | G21: =IF(OR($D21="NA",AND(B21='Calc|Labour Rates'!B19,'Output|Quoted'!C21='Calc|Labour Rates'!C19,'Output|Quoted'!D21='Calc|Labour Rates'!E19)),0,1) -> 0 | I21: =I16*1.69 -> 507 | J21: 0
A22: 11 | B22: ='Calc|Labour Rates'!B20 ->  | C22: ='Calc|Labour Rates'!C20 ->  | D22: =IF('Calc|Labour Rates'!$D20="No","NA",IFERROR(LOOKUP(2, 1/('Calc|Labour Rates'!$B$10:$B$39='Output|Quoted'!$B22)/('Calc|Labour Rates'!$C$10:$C$39='Output|Quoted'!$C22),'Calc|Labour Rates'!$E$10:$E$39),0)) -> 0 | G22: =IF(OR($D22="NA",AND(B22='Calc|Labour Rates'!B20,'Output|Quoted'!C22='Calc|Labour Rates'!C20,'Output|Quoted'!D22='Calc|Labour Rates'!E20)),0,1) -> 0 | J22: 0
A23: 12 | B23: ='Calc|Labour Rates'!B21 ->  | C23: ='Calc|Labour Rates'!C21 ->  | D23: =IF('Calc|Labour Rates'!$D21="No","NA",IFERROR(LOOKUP(2, 1/('Calc|Labour Rates'!$B$10:$B$39='Output|Quoted'!$B23)/('Calc|Labour Rates'!$C$10:$C$39='Output|Quoted'!$C23),'Calc|Labour Rates'!$E$10:$E$39),0)) -> 0 | G23: =IF(OR($D23="NA",AND(B23='Calc|Labour Rates'!B21,'Output|Quoted'!C23='Calc|Labour Rates'!C21,'Output|Quoted'!D23='Calc|Labour Rates'!E21)),0,1) -> 0 | J23: 0
A24: 13 | B24: ='Calc|Labour Rates'!B22 ->  | C24: ='Calc|Labour Rates'!C22 ->  | D24: =IF('Calc|Labour Rates'!$D22="No","NA",IFERROR(LOOKUP(2, 1/('Calc|Labour Rates'!$B$10:$B$39='Output|Quoted'!$B24)/('Calc|Labour Rates'!$C$10:$C$39='Output|Quoted'!$C24),'Calc|Labour Rates'!$E$10:$E$39),0)) -> 0 | G24: =IF(OR($D24="NA",AND(B24='Calc|Labour Rates'!B22,'Output|Quoted'!C24='Calc|Labour Rates'!C22,'Output|Quoted'!D24='Calc|Labour Rates'!E22)),0,1) -> 0 | J24: 0
A25: 14 | B25: ='Calc|Labour Rates'!B23 ->  | C25: ='Calc|Labour Rates'!C23 ->  | D25: =IF('Calc|Labour Rates'!$D23="No","NA",IFERROR(LOOKUP(2, 1/('Calc|Labour Rates'!$B$10:$B$39='Output|Quoted'!$B25)/('Calc|Labour Rates'!$C$10:$C$39='Output|Quoted'!$C25),'Calc|Labour Rates'!$E$10:$E$39),0)) -> 0 | G25: =IF(OR($D25="NA",AND(B25='Calc|Labour Rates'!B23,'Output|Quoted'!C25='Calc|Labour Rates'!C23,'Output|Quoted'!D25='Calc|Labour Rates'!E23)),0,1) -> 0 | J25: 0
A26: 15 | B26: ='Calc|Labour Rates'!B24 ->  | C26: ='Calc|Labour Rates'!C24 ->  | D26: =IF('Calc|Labour Rates'!$D24="No","NA",IFERROR(LOOKUP(2, 1/('Calc|Labour Rates'!$B$10:$B$39='Output|Quoted'!$B26)/('Calc|Labour Rates'!$C$10:$C$39='Output|Quoted'!$C26),'Calc|Labour Rates'!$E$10:$E$39),0)) -> 0 | G26: =IF(OR($D26="NA",AND(B26='Calc|Labour Rates'!B24,'Output|Quoted'!C26='Calc|Labour Rates'!C24,'Output|Quoted'!D26='Calc|Labour Rates'!E24)),0,1) -> 0 | J26: 0
A27: 16 | B27: ='Calc|Labour Rates'!B25 ->  | C27: ='Calc|Labour Rates'!C25 ->  | D27: =IF('Calc|Labour Rates'!$D25="No","NA",IFERROR(LOOKUP(2, 1/('Calc|Labour Rates'!$B$10:$B$39='Output|Quoted'!$B27)/('Calc|Labour Rates'!$C$10:$C$39='Output|Quoted'!$C27),'Calc|Labour Rates'!$E$10:$E$39),0)) -> 0 | G27: =IF(OR($D27="NA",AND(B27='Calc|Labour Rates'!B25,'Output|Quoted'!C27='Calc|Labour Rates'!C25,'Output|Quoted'!D27='Calc|Labour Rates'!E25)),0,1) -> 0 | J27: 0
A28: 17 | B28: ='Calc|Labour Rates'!B26 ->  | C28: ='Calc|Labour Rates'!C26 ->  | D28: =IF('Calc|Labour Rates'!$D26="No","NA",IFERROR(LOOKUP(2, 1/('Calc|Labour Rates'!$B$10:$B$39='Output|Quoted'!$B28)/('Calc|Labour Rates'!$C$10:$C$39='Output|Quoted'!$C28),'Calc|Labour Rates'!$E$10:$E$39),0)) -> 0 | G28: =IF(OR($D28="NA",AND(B28='Calc|Labour Rates'!B26,'Output|Quoted'!C28='Calc|Labour Rates'!C26,'Output|Quoted'!D28='Calc|Labour Rates'!E26)),0,1) -> 0 | J28: 0
A29: 18 | B29: ='Calc|Labour Rates'!B27 ->  | C29: ='Calc|Labour Rates'!C27 ->  | D29: =IF('Calc|Labour Rates'!$D27="No","NA",IFERROR(LOOKUP(2, 1/('Calc|Labour Rates'!$B$10:$B$39='Output|Quoted'!$B29)/('Calc|Labour Rates'!$C$10:$C$39='Output|Quoted'!$C29),'Calc|Labour Rates'!$E$10:$E$39),0)) -> 0 | G29: =IF(OR($D29="NA",AND(B29='Calc|Labour Rates'!B27,'Output|Quoted'!C29='Calc|Labour Rates'!C27,'Output|Quoted'!D29='Calc|Labour Rates'!E27)),0,1) -> 0 | J29: 0
A30: 19 | B30: ='Calc|Labour Rates'!B28 ->  | C30: ='Calc|Labour Rates'!C28 ->  | D30: =IF('Calc|Labour Rates'!$D28="No","NA",IFERROR(LOOKUP(2, 1/('Calc|Labour Rates'!$B$10:$B$39='Output|Quoted'!$B30)/('Calc|Labour Rates'!$C$10:$C$39='Output|Quoted'!$C30),'Calc|Labour Rates'!$E$10:$E$39),0)) -> 0 | G30: =IF(OR($D30="NA",AND(B30='Calc|Labour Rates'!B28,'Output|Quoted'!C30='Calc|Labour Rates'!C28,'Output|Quoted'!D30='Calc|Labour Rates'!E28)),0,1) -> 0 | J30: 0
A31: 20 | B31: ='Calc|Labour Rates'!B29 ->  | C31: ='Calc|Labour Rates'!C29 ->  | D31: =IF('Calc|Labour Rates'!$D29="No","NA",IFERROR(LOOKUP(2, 1/('Calc|Labour Rates'!$B$10:$B$39='Output|Quoted'!$B31)/('Calc|Labour Rates'!$C$10:$C$39='Output|Quoted'!$C31),'Calc|Labour Rates'!$E$10:$E$39),0)) -> 0 | G31: =IF(OR($D31="NA",AND(B31='Calc|Labour Rates'!B29,'Output|Quoted'!C31='Calc|Labour Rates'!C29,'Output|Quoted'!D31='Calc|Labour Rates'!E29)),0,1) -> 0 | J31: 0
A32: 21 | B32: ='Calc|Labour Rates'!B30 ->  | C32: ='Calc|Labour Rates'!C30 ->  | D32: =IF('Calc|Labour Rates'!$D30="No","NA",IFERROR(LOOKUP(2, 1/('Calc|Labour Rates'!$B$10:$B$39='Output|Quoted'!$B32)/('Calc|Labour Rates'!$C$10:$C$39='Output|Quoted'!$C32),'Calc|Labour Rates'!$E$10:$E$39),0)) -> 0 | G32: =IF(OR($D32="NA",AND(B32='Calc|Labour Rates'!B30,'Output|Quoted'!C32='Calc|Labour Rates'!C30,'Output|Quoted'!D32='Calc|Labour Rates'!E30)),0,1) -> 0 | J32: 0
A33: 22 | B33: ='Calc|Labour Rates'!B31 ->  | C33: ='Calc|Labour Rates'!C31 ->  | D33: =IF('Calc|Labour Rates'!$D31="No","NA",IFERROR(LOOKUP(2, 1/('Calc|Labour Rates'!$B$10:$B$39='Output|Quoted'!$B33)/('Calc|Labour Rates'!$C$10:$C$39='Output|Quoted'!$C33),'Calc|Labour Rates'!$E$10:$E$39),0)) -> 0 | G33: =IF(OR($D33="NA",AND(B33='Calc|Labour Rates'!B31,'Output|Quoted'!C33='Calc|Labour Rates'!C31,'Output|Quoted'!D33='Calc|Labour Rates'!E31)),0,1) -> 0 | J33: 0
A34: 23 | B34: ='Calc|Labour Rates'!B32 ->  | C34: ='Calc|Labour Rates'!C32 ->  | D34: =IF('Calc|Labour Rates'!$D32="No","NA",IFERROR(LOOKUP(2, 1/('Calc|Labour Rates'!$B$10:$B$39='Output|Quoted'!$B34)/('Calc|Labour Rates'!$C$10:$C$39='Output|Quoted'!$C34),'Calc|Labour Rates'!$E$10:$E$39),0)) -> 0 | G34: =IF(OR($D34="NA",AND(B34='Calc|Labour Rates'!B32,'Output|Quoted'!C34='Calc|Labour Rates'!C32,'Output|Quoted'!D34='Calc|Labour Rates'!E32)),0,1) -> 0 | J34: 0
A35: 24 | B35: ='Calc|Labour Rates'!B33 ->  | C35: ='Calc|Labour Rates'!C33 ->  | D35: =IF('Calc|Labour Rates'!$D33="No","NA",IFERROR(LOOKUP(2, 1/('Calc|Labour Rates'!$B$10:$B$39='Output|Quoted'!$B35)/('Calc|Labour Rates'!$C$10:$C$39='Output|Quoted'!$C35),'Calc|Labour Rates'!$E$10:$E$39),0)) -> 0 | G35: =IF(OR($D35="NA",AND(B35='Calc|Labour Rates'!B33,'Output|Quoted'!C35='Calc|Labour Rates'!C33,'Output|Quoted'!D35='Calc|Labour Rates'!E33)),0,1) -> 0 | J35: 0
A36: 25 | B36: ='Calc|Labour Rates'!B34 ->  | C36: ='Calc|Labour Rates'!C34 ->  | D36: =IF('Calc|Labour Rates'!$D34="No","NA",IFERROR(LOOKUP(2, 1/('Calc|Labour Rates'!$B$10:$B$39='Output|Quoted'!$B36)/('Calc|Labour Rates'!$C$10:$C$39='Output|Quoted'!$C36),'Calc|Labour Rates'!$E$10:$E$39),0)) -> 0 | G36: =IF(OR($D36="NA",AND(B36='Calc|Labour Rates'!B34,'Output|Quoted'!C36='Calc|Labour Rates'!C34,'Output|Quoted'!D36='Calc|Labour Rates'!E34)),0,1) -> 0 | J36: 0
A37: 26 | B37: ='Calc|Labour Rates'!B35 ->  | C37: ='Calc|Labour Rates'!C35 ->  | D37: =IF('Calc|Labour Rates'!$D35="No","NA",IFERROR(LOOKUP(2, 1/('Calc|Labour Rates'!$B$10:$B$39='Output|Quoted'!$B37)/('Calc|Labour Rates'!$C$10:$C$39='Output|Quoted'!$C37),'Calc|Labour Rates'!$E$10:$E$39),0)) -> 0 | G37: =IF(OR($D37="NA",AND(B37='Calc|Labour Rates'!B35,'Output|Quoted'!C37='Calc|Labour Rates'!C35,'Output|Quoted'!D37='Calc|Labour Rates'!E35)),0,1) -> 0 | J37: 0
A38: 27 | B38: ='Calc|Labour Rates'!B36 ->  | C38: ='Calc|Labour Rates'!C36 ->  | D38: =IF('Calc|Labour Rates'!$D36="No","NA",IFERROR(LOOKUP(2, 1/('Calc|Labour Rates'!$B$10:$B$39='Output|Quoted'!$B38)/('Calc|Labour Rates'!$C$10:$C$39='Output|Quoted'!$C38),'Calc|Labour Rates'!$E$10:$E$39),0)) -> 0 | G38: =IF(OR($D38="NA",AND(B38='Calc|Labour Rates'!B36,'Output|Quoted'!C38='Calc|Labour Rates'!C36,'Output|Quoted'!D38='Calc|Labour Rates'!E36)),0,1) -> 0 | J38: 0
A39: 28 | B39: ='Calc|Labour Rates'!B37 ->  | C39: ='Calc|Labour Rates'!C37 ->  | D39: =IF('Calc|Labour Rates'!$D37="No","NA",IFERROR(LOOKUP(2, 1/('Calc|Labour Rates'!$B$10:$B$39='Output|Quoted'!$B39)/('Calc|Labour Rates'!$C$10:$C$39='Output|Quoted'!$C39),'Calc|Labour Rates'!$E$10:$E$39),0)) -> 0 | G39: =IF(OR($D39="NA",AND(B39='Calc|Labour Rates'!B37,'Output|Quoted'!C39='Calc|Labour Rates'!C37,'Output|Quoted'!D39='Calc|Labour Rates'!E37)),0,1) -> 0 | J39: 0
A40: 29 | B40: ='Calc|Labour Rates'!B38 ->  | C40: ='Calc|Labour Rates'!C38 ->  | D40: =IF('Calc|Labour Rates'!$D38="No","NA",IFERROR(LOOKUP(2, 1/('Calc|Labour Rates'!$B$10:$B$39='Output|Quoted'!$B40)/('Calc|Labour Rates'!$C$10:$C$39='Output|Quoted'!$C40),'Calc|Labour Rates'!$E$10:$E$39),0)) -> 0 | G40: =IF(OR($D40="NA",AND(B40='Calc|Labour Rates'!B38,'Output|Quoted'!C40='Calc|Labour Rates'!C38,'Output|Quoted'!D40='Calc|Labour Rates'!E38)),0,1) -> 0 | J40: 0
A41: 30 | B41: ='Calc|Labour Rates'!B39 ->  | C41: ='Calc|Labour Rates'!C39 ->  | D41: =IF('Calc|Labour Rates'!$D39="No","NA",IFERROR(LOOKUP(2, 1/('Calc|Labour Rates'!$B$10:$B$39='Output|Quoted'!$B41)/('Calc|Labour Rates'!$C$10:$C$39='Output|Quoted'!$C41),'Calc|Labour Rates'!$E$10:$E$39),0)) -> 0 | G41: =IF(OR($D41="NA",AND(B41='Calc|Labour Rates'!B39,'Output|Quoted'!C41='Calc|Labour Rates'!C39,'Output|Quoted'!D41='Calc|Labour Rates'!E39)),0,1) -> 0 | J41: 0
B44: =IFERROR("2.3 List of quoted services for "&'Input|Setup'!$E$11&" to "&'Input|Setup'!$E$15&" regulatory period","") -> 2.3 List of quoted services for 2026-27 to 2030-31 regulatory period
A46: 1 | B46: ='Input|Labour Rates'!B44 -> 0 | G46: =IF(B46='Input|Labour Rates'!B44,0,1) -> 0
A47: =IFERROR(A46+1,"") -> 2 | B47: ='Input|Labour Rates'!B45 -> 0 | G47: =IF(B47='Input|Labour Rates'!B45,0,1) -> 0
A48: =IFERROR(A47+1,"") -> 3 | B48: ='Input|Labour Rates'!B46 -> 0 | G48: =IF(B48='Input|Labour Rates'!B46,0,1) -> 0
A49: 4 | B49: ='Input|Labour Rates'!B47 -> 0 | G49: =IF(B49='Input|Labour Rates'!B47,0,1) -> 0
A50: 5 | B50: ='Input|Labour Rates'!B48 -> 0 | G50: =IF(B50='Input|Labour Rates'!B48,0,1) -> 0
A51: 6 | B51: ='Input|Labour Rates'!B49 -> 0 | G51: =IF(B51='Input|Labour Rates'!B49,0,1) -> 0
A52: 7 | B52: ='Input|Labour Rates'!B50 -> 0 | G52: =IF(B52='Input|Labour Rates'!B50,0,1) -> 0
A53: 8 | B53: ='Input|Labour Rates'!B51 -> 0 | G53: =IF(B53='Input|Labour Rates'!B51,0,1) -> 0
A54: 9 | B54: ='Input|Labour Rates'!B52 -> 0 | G54: =IF(B54='Input|Labour Rates'!B52,0,1) -> 0
A55: 10 | B55: ='Input|Labour Rates'!B53 -> 0 | G55: =IF(B55='Input|Labour Rates'!B53,0,1) -> 0
A56: 11 | B56: ='Input|Labour Rates'!B54 -> 0 | G56: =IF(B56='Input|Labour Rates'!B54,0,1) -> 0
A57: 12 | B57: ='Input|Labour Rates'!B55 -> 0 | G57: =IF(B57='Input|Labour Rates'!B55,0,1) -> 0
A58: 13 | B58: ='Input|Labour Rates'!B56 -> 0 | G58: =IF(B58='Input|Labour Rates'!B56,0,1) -> 0
A59: 14 | B59: ='Input|Labour Rates'!B57 -> 0 | G59: =IF(B59='Input|Labour Rates'!B57,0,1) -> 0
A60: 15 | B60: ='Input|Labour Rates'!B58 -> 0 | G60: =IF(B60='Input|Labour Rates'!B58,0,1) -> 0
A61: 16 | B61: ='Input|Labour Rates'!B59 -> 0 | G61: =IF(B61='Input|Labour Rates'!B59,0,1) -> 0
A62: 17 | B62: ='Input|Labour Rates'!B60 -> 0 | G62: =IF(B62='Input|Labour Rates'!B60,0,1) -> 0
A63: 18 | B63: ='Input|Labour Rates'!B61 -> 0 | G63: =IF(B63='Input|Labour Rates'!B61,0,1) -> 0
A64: 19 | B64: ='Input|Labour Rates'!B62 -> 0 | G64: =IF(B64='Input|Labour Rates'!B62,0,1) -> 0
A65: 20 | B65: ='Input|Labour Rates'!B63 -> 0 | G65: =IF(B65='Input|Labour Rates'!B63,0,1) -> 0
A66: 21 | B66: ='Input|Labour Rates'!B64 -> 0 | G66: =IF(B66='Input|Labour Rates'!B64,0,1) -> 0
A67: 22 | B67: ='Input|Labour Rates'!B65 -> 0 | G67: =IF(B67='Input|Labour Rates'!B65,0,1) -> 0
A68: 23 | B68: ='Input|Labour Rates'!B66 -> 0 | G68: =IF(B68='Input|Labour Rates'!B66,0,1) -> 0
A69: 24 | B69: ='Input|Labour Rates'!B67 -> 0 | G69: =IF(B69='Input|Labour Rates'!B67,0,1) -> 0
A70: 25 | B70: ='Input|Labour Rates'!B68 -> 0 | G70: =IF(B70='Input|Labour Rates'!B68,0,1) -> 0
A71: 26 | B71: ='Input|Labour Rates'!B69 -> 0 | G71: =IF(B71='Input|Labour Rates'!B69,0,1) -> 0
A72: 27 | B72: ='Input|Labour Rates'!B70 -> 0 | G72: =IF(B72='Input|Labour Rates'!B70,0,1) -> 0
A73: 28 | B73: ='Input|Labour Rates'!B71 -> 0 | G73: =IF(B73='Input|Labour Rates'!B71,0,1) -> 0
A74: 29 | B74: ='Input|Labour Rates'!B72 -> 0 | G74: =IF(B74='Input|Labour Rates'!B72,0,1) -> 0
A75: 30 | B75: ='Input|Labour Rates'!B73 -> 0 | G75: =IF(B75='Input|Labour Rates'!B73,0,1) -> 0
A76: 31 | B76: ='Input|Labour Rates'!B74 -> 0 | G76: =IF(B76='Input|Labour Rates'!B74,0,1) -> 0 | H76: `
A77: 32 | B77: ='Input|Labour Rates'!B75 -> 0 | G77: =IF(B77='Input|Labour Rates'!B75,0,1) -> 0
A78: 33 | B78: ='Input|Labour Rates'!B76 -> 0 | G78: =IF(B78='Input|Labour Rates'!B76,0,1) -> 0
A79: 34 | B79: ='Input|Labour Rates'!B77 -> 0 | G79: =IF(B79='Input|Labour Rates'!B77,0,1) -> 0
A80: 35 | B80: ='Input|Labour Rates'!B78 -> 0 | G80: =IF(B80='Input|Labour Rates'!B78,0,1) -> 0
A81: 36 | B81: ='Input|Labour Rates'!B79 -> 0 | G81: =IF(B81='Input|Labour Rates'!B79,0,1) -> 0
A82: 37 | B82: ='Input|Labour Rates'!B80 -> 0 | G82: =IF(B82='Input|Labour Rates'!B80,0,1) -> 0
A83: 38 | B83: ='Input|Labour Rates'!B81 -> 0 | G83: =IF(B83='Input|Labour Rates'!B81,0,1) -> 0
A84: 39 | B84: ='Input|Labour Rates'!B82 -> 0 | G84: =IF(B84='Input|Labour Rates'!B82,0,1) -> 0
A85: 40 | B85: ='Input|Labour Rates'!B83 -> 0 | G85: =IF(B85='Input|Labour Rates'!B83,0,1) -> 0
A86: 41 | B86: ='Input|Labour Rates'!B84 -> 0 | G86: =IF(B86='Input|Labour Rates'!B84,0,1) -> 0
A87: 42 | B87: ='Input|Labour Rates'!B85 -> 0 | G87: =IF(B87='Input|Labour Rates'!B85,0,1) -> 0
A88: 43 | B88: ='Input|Labour Rates'!B86 -> 0 | G88: =IF(B88='Input|Labour Rates'!B86,0,1) -> 0
A89: 44 | B89: ='Input|Labour Rates'!B87 -> 0 | G89: =IF(B89='Input|Labour Rates'!B87,0,1) -> 0
A90: 45 | B90: ='Input|Labour Rates'!B88 -> 0 | G90: =IF(B90='Input|Labour Rates'!B88,0,1) -> 0
A91: 46 | B91: ='Input|Labour Rates'!B89 -> 0 | G91: =IF(B91='Input|Labour Rates'!B89,0,1) -> 0
A92: 47 | B92: ='Input|Labour Rates'!B90 -> 0 | G92: =IF(B92='Input|Labour Rates'!B90,0,1) -> 0
A93: 48 | B93: ='Input|Labour Rates'!B91 -> 0 | G93: =IF(B93='Input|Labour Rates'!B91,0,1) -> 0
A94: 49 | B94: ='Input|Labour Rates'!B92 -> 0 | G94: =IF(B94='Input|Labour Rates'!B92,0,1) -> 0
A95: 50 | B95: ='Input|Labour Rates'!B93 -> 0 | G95: =IF(B95='Input|Labour Rates'!B93,0,1) -> 0
A96: 51 | B96: ='Input|Labour Rates'!B94 -> 0 | G96: =IF(B96='Input|Labour Rates'!B94,0,1) -> 0
A97: 52 | B97: ='Input|Labour Rates'!B95 -> 0 | G97: =IF(B97='Input|Labour Rates'!B95,0,1) -> 0
A98: 53 | B98: ='Input|Labour Rates'!B96 -> 0 | G98: =IF(B98='Input|Labour Rates'!B96,0,1) -> 0
A99: 54 | B99: ='Input|Labour Rates'!B97 -> 0 | G99: =IF(B99='Input|Labour Rates'!B97,0,1) -> 0
A100: 55 | B100: ='Input|Labour Rates'!B98 -> 0 | G100: =IF(B100='Input|Labour Rates'!B98,0,1) -> 0
A101: 56 | B101: ='Input|Labour Rates'!B99 -> 0 | G101: =IF(B101='Input|Labour Rates'!B99,0,1) -> 0
A102: 57 | B102: ='Input|Labour Rates'!B100 -> 0 | G102: =IF(B102='Input|Labour Rates'!B100,0,1) -> 0
A103: 58 | B103: ='Input|Labour Rates'!B101 -> 0 | G103: =IF(B103='Input|Labour Rates'!B101,0,1) -> 0
A104: 59 | B104: ='Input|Labour Rates'!B102 -> 0 | G104: =IF(B104='Input|Labour Rates'!B102,0,1) -> 0
A105: 60 | B105: ='Input|Labour Rates'!B103 -> 0 | G105: =IF(B105='Input|Labour Rates'!B103,0,1) -> 0
A106: 61 | B106: ='Input|Labour Rates'!B104 -> 0 | G106: =IF(B106='Input|Labour Rates'!B104,0,1) -> 0
A107: 62 | B107: ='Input|Labour Rates'!B105 -> 0 | G107: =IF(B107='Input|Labour Rates'!B105,0,1) -> 0
A108: 63 | B108: ='Input|Labour Rates'!B106 -> 0 | G108: =IF(B108='Input|Labour Rates'!B106,0,1) -> 0
A109: 64 | B109: ='Input|Labour Rates'!B107 -> 0 | G109: =IF(B109='Input|Labour Rates'!B107,0,1) -> 0
A110: 65 | B110: ='Input|Labour Rates'!B108 -> 0 | G110: =IF(B110='Input|Labour Rates'!B108,0,1) -> 0
A111: 66 | B111: ='Input|Labour Rates'!B109 -> 0 | G111: =IF(B111='Input|Labour Rates'!B109,0,1) -> 0
A112: 67 | B112: ='Input|Labour Rates'!B110 -> 0 | G112: =IF(B112='Input|Labour Rates'!B110,0,1) -> 0
A113: 68 | B113: ='Input|Labour Rates'!B111 -> 0 | G113: =IF(B113='Input|Labour Rates'!B111,0,1) -> 0
A114: 69 | B114: ='Input|Labour Rates'!B112 -> 0 | G114: =IF(B114='Input|Labour Rates'!B112,0,1) -> 0
A115: 70 | B115: ='Input|Labour Rates'!B113 -> 0 | G115: =IF(B115='Input|Labour Rates'!B113,0,1) -> 0
A116: 71 | B116: ='Input|Labour Rates'!B114 -> 0 | G116: =IF(B116='Input|Labour Rates'!B114,0,1) -> 0
A117: 72 | B117: ='Input|Labour Rates'!B115 -> 0 | G117: =IF(B117='Input|Labour Rates'!B115,0,1) -> 0
A118: 73 | B118: ='Input|Labour Rates'!B116 -> 0 | G118: =IF(B118='Input|Labour Rates'!B116,0,1) -> 0
A119: 74 | B119: ='Input|Labour Rates'!B117 -> 0 | G119: =IF(B119='Input|Labour Rates'!B117,0,1) -> 0
A120: 75 | B120: ='Input|Labour Rates'!B118 -> 0 | G120: =IF(B120='Input|Labour Rates'!B118,0,1) -> 0
A121: 76 | B121: ='Input|Labour Rates'!B119 -> 0 | G121: =IF(B121='Input|Labour Rates'!B119,0,1) -> 0
A122: 77 | B122: ='Input|Labour Rates'!B120 -> 0 | G122: =IF(B122='Input|Labour Rates'!B120,0,1) -> 0
A123: 78 | B123: ='Input|Labour Rates'!B121 -> 0 | G123: =IF(B123='Input|Labour Rates'!B121,0,1) -> 0
A124: 79 | B124: ='Input|Labour Rates'!B122 -> 0 | G124: =IF(B124='Input|Labour Rates'!B122,0,1) -> 0
A125: 80 | B125: ='Input|Labour Rates'!B123 -> 0 | G125: =IF(B125='Input|Labour Rates'!B123,0,1) -> 0
A126: 81 | B126: ='Input|Labour Rates'!B124 -> 0 | G126: =IF(B126='Input|Labour Rates'!B124,0,1) -> 0
A127: 82 | B127: ='Input|Labour Rates'!B125 -> 0 | G127: =IF(B127='Input|Labour Rates'!B125,0,1) -> 0
A128: 83 | B128: ='Input|Labour Rates'!B126 -> 0 | G128: =IF(B128='Input|Labour Rates'!B126,0,1) -> 0
A129: 84 | B129: ='Input|Labour Rates'!B127 -> 0 | G129: =IF(B129='Input|Labour Rates'!B127,0,1) -> 0
A130: 85 | B130: ='Input|Labour Rates'!B128 -> 0 | G130: =IF(B130='Input|Labour Rates'!B128,0,1) -> 0
A131: 86 | B131: ='Input|Labour Rates'!B129 -> 0 | G131: =IF(B131='Input|Labour Rates'!B129,0,1) -> 0
A132: 87 | B132: ='Input|Labour Rates'!B130 -> 0 | G132: =IF(B132='Input|Labour Rates'!B130,0,1) -> 0
A133: 88 | B133: ='Input|Labour Rates'!B131 -> 0 | G133: =IF(B133='Input|Labour Rates'!B131,0,1) -> 0
A134: 89 | B134: ='Input|Labour Rates'!B132 -> 0 | G134: =IF(B134='Input|Labour Rates'!B132,0,1) -> 0
A135: 90 | B135: ='Input|Labour Rates'!B133 -> 0 | G135: =IF(B135='Input|Labour Rates'!B133,0,1) -> 0
A136: 91 | B136: ='Input|Labour Rates'!B134 -> 0 | G136: =IF(B136='Input|Labour Rates'!B134,0,1) -> 0
A137: 92 | B137: ='Input|Labour Rates'!B135 -> 0 | G137: =IF(B137='Input|Labour Rates'!B135,0,1) -> 0
A138: 93 | B138: ='Input|Labour Rates'!B136 -> 0 | G138: =IF(B138='Input|Labour Rates'!B136,0,1) -> 0
A139: 94 | B139: ='Input|Labour Rates'!B137 -> 0 | G139: =IF(B139='Input|Labour Rates'!B137,0,1) -> 0
A140: 95 | B140: ='Input|Labour Rates'!B138 -> 0 | G140: =IF(B140='Input|Labour Rates'!B138,0,1) -> 0
A141: 96 | B141: ='Input|Labour Rates'!B139 -> 0 | G141: =IF(B141='Input|Labour Rates'!B139,0,1) -> 0
A142: 97 | B142: ='Input|Labour Rates'!B140 -> 0 | G142: =IF(B142='Input|Labour Rates'!B140,0,1) -> 0
A143: 98 | B143: ='Input|Labour Rates'!B141 -> 0 | G143: =IF(B143='Input|Labour Rates'!B141,0,1) -> 0
A144: 99 | B144: ='Input|Labour Rates'!B142 -> 0 | G144: =IF(B144='Input|Labour Rates'!B142,0,1) -> 0
A145: 100 | B145: ='Input|Labour Rates'!B143 -> 0 | G145: =IF(B145='Input|Labour Rates'!B143,0,1) -> 0
A146: 101 | B146: ='Input|Labour Rates'!B144 -> 0 | G146: =IF(B146='Input|Labour Rates'!B144,0,1) -> 0
A147: 102 | B147: ='Input|Labour Rates'!B145 -> 0 | G147: =IF(B147='Input|Labour Rates'!B145,0,1) -> 0
A148: 103 | B148: ='Input|Labour Rates'!B146 -> 0 | G148: =IF(B148='Input|Labour Rates'!B146,0,1) -> 0
A149: 104 | B149: ='Input|Labour Rates'!B147 -> 0 | G149: =IF(B149='Input|Labour Rates'!B147,0,1) -> 0
A150: 105 | B150: ='Input|Labour Rates'!B148 -> 0 | G150: =IF(B150='Input|Labour Rates'!B148,0,1) -> 0
A151: 106 | B151: ='Input|Labour Rates'!B149 -> 0 | G151: =IF(B151='Input|Labour Rates'!B149,0,1) -> 0
A152: 107 | B152: ='Input|Labour Rates'!B150 -> 0 | G152: =IF(B152='Input|Labour Rates'!B150,0,1) -> 0
A153: 108 | B153: ='Input|Labour Rates'!B151 -> 0 | G153: =IF(B153='Input|Labour Rates'!B151,0,1) -> 0
A154: 109 | B154: ='Input|Labour Rates'!B152 -> 0 | G154: =IF(B154='Input|Labour Rates'!B152,0,1) -> 0
A155: 110 | B155: ='Input|Labour Rates'!B153 -> 0 | G155: =IF(B155='Input|Labour Rates'!B153,0,1) -> 0
A156: 111 | B156: ='Input|Labour Rates'!B154 -> 0 | G156: =IF(B156='Input|Labour Rates'!B154,0,1) -> 0
A157: 112 | B157: ='Input|Labour Rates'!B155 -> 0 | G157: =IF(B157='Input|Labour Rates'!B155,0,1) -> 0
A158: 113 | B158: ='Input|Labour Rates'!B156 -> 0 | G158: =IF(B158='Input|Labour Rates'!B156,0,1) -> 0
A159: 114 | B159: ='Input|Labour Rates'!B157 -> 0 | G159: =IF(B159='Input|Labour Rates'!B157,0,1) -> 0
A160: 115 | B160: ='Input|Labour Rates'!B158 -> 0 | G160: =IF(B160='Input|Labour Rates'!B158,0,1) -> 0
A161: 116 | B161: ='Input|Labour Rates'!B159 -> 0 | G161: =IF(B161='Input|Labour Rates'!B159,0,1) -> 0
A162: 117 | B162: ='Input|Labour Rates'!B160 -> 0 | G162: =IF(B162='Input|Labour Rates'!B160,0,1) -> 0
A163: 118 | B163: ='Input|Labour Rates'!B161 -> 0 | G163: =IF(B163='Input|Labour Rates'!B161,0,1) -> 0
A164: 119 | B164: ='Input|Labour Rates'!B162 -> 0 | G164: =IF(B164='Input|Labour Rates'!B162,0,1) -> 0
A165: 120 | B165: ='Input|Labour Rates'!B163 -> 0 | G165: =IF(B165='Input|Labour Rates'!B163,0,1) -> 0
A166: 121 | B166: ='Input|Labour Rates'!B164 -> 0 | G166: =IF(B166='Input|Labour Rates'!B164,0,1) -> 0
A167: 122 | B167: ='Input|Labour Rates'!B165 -> 0 | G167: =IF(B167='Input|Labour Rates'!B165,0,1) -> 0
A168: 123 | B168: ='Input|Labour Rates'!B166 -> 0 | G168: =IF(B168='Input|Labour Rates'!B166,0,1) -> 0
A169: 124 | B169: ='Input|Labour Rates'!B167 -> 0 | G169: =IF(B169='Input|Labour Rates'!B167,0,1) -> 0
A170: 125 | B170: ='Input|Labour Rates'!B168 -> 0 | G170: =IF(B170='Input|Labour Rates'!B168,0,1) -> 0
A171: 126 | B171: ='Input|Labour Rates'!B169 -> 0 | G171: =IF(B171='Input|Labour Rates'!B169,0,1) -> 0
A172: 127 | B172: ='Input|Labour Rates'!B170 -> 0 | G172: =IF(B172='Input|Labour Rates'!B170,0,1) -> 0
A173: 128 | B173: ='Input|Labour Rates'!B171 -> 0 | G173: =IF(B173='Input|Labour Rates'!B171,0,1) -> 0
A174: 129 | B174: ='Input|Labour Rates'!B172 -> 0 | G174: =IF(B174='Input|Labour Rates'!B172,0,1) -> 0
A175: 130 | B175: ='Input|Labour Rates'!B173 -> 0 | G175: =IF(B175='Input|Labour Rates'!B173,0,1) -> 0
A176: 131 | B176: ='Input|Labour Rates'!B174 -> 0 | G176: =IF(B176='Input|Labour Rates'!B174,0,1) -> 0
A177: 132 | B177: ='Input|Labour Rates'!B175 -> 0 | G177: =IF(B177='Input|Labour Rates'!B175,0,1) -> 0
A178: 133 | B178: ='Input|Labour Rates'!B176 -> 0 | G178: =IF(B178='Input|Labour Rates'!B176,0,1) -> 0
A179: 134 | B179: ='Input|Labour Rates'!B177 -> 0 | G179: =IF(B179='Input|Labour Rates'!B177,0,1) -> 0
A180: 135 | B180: ='Input|Labour Rates'!B178 -> 0 | G180: =IF(B180='Input|Labour Rates'!B178,0,1) -> 0
A181: 136 | B181: ='Input|Labour Rates'!B179 -> 0 | G181: =IF(B181='Input|Labour Rates'!B179,0,1) -> 0
A182: 137 | B182: ='Input|Labour Rates'!B180 -> 0 | G182: =IF(B182='Input|Labour Rates'!B180,0,1) -> 0
A183: 138 | B183: ='Input|Labour Rates'!B181 -> 0 | G183: =IF(B183='Input|Labour Rates'!B181,0,1) -> 0
A184: 139 | B184: ='Input|Labour Rates'!B182 -> 0 | G184: =IF(B184='Input|Labour Rates'!B182,0,1) -> 0
A185: 140 | B185: ='Input|Labour Rates'!B183 -> 0 | G185: =IF(B185='Input|Labour Rates'!B183,0,1) -> 0
A186: 141 | B186: ='Input|Labour Rates'!B184 -> 0 | G186: =IF(B186='Input|Labour Rates'!B184,0,1) -> 0
A187: 142 | B187: ='Input|Labour Rates'!B185 -> 0 | G187: =IF(B187='Input|Labour Rates'!B185,0,1) -> 0
A188: 143 | B188: ='Input|Labour Rates'!B186 -> 0 | G188: =IF(B188='Input|Labour Rates'!B186,0,1) -> 0
A189: 144 | B189: ='Input|Labour Rates'!B187 -> 0 | G189: =IF(B189='Input|Labour Rates'!B187,0,1) -> 0
A190: 145 | B190: ='Input|Labour Rates'!B188 -> 0 | G190: =IF(B190='Input|Labour Rates'!B188,0,1) -> 0
A191: 146 | B191: ='Input|Labour Rates'!B189 -> 0 | G191: =IF(B191='Input|Labour Rates'!B189,0,1) -> 0
A192: 147 | B192: ='Input|Labour Rates'!B190 -> 0 | G192: =IF(B192='Input|Labour Rates'!B190,0,1) -> 0
A193: 148 | B193: ='Input|Labour Rates'!B191 -> 0 | G193: =IF(B193='Input|Labour Rates'!B191,0,1) -> 0
A194: 149 | B194: ='Input|Labour Rates'!B192 -> 0 | G194: =IF(B194='Input|Labour Rates'!B192,0,1) -> 0
A195: 150 | B195: ='Input|Labour Rates'!B193 -> 0 | G195: =IF(B195='Input|Labour Rates'!B193,0,1) -> 0
A196: 151 | B196: ='Input|Labour Rates'!B194 -> 0 | G196: =IF(B196='Input|Labour Rates'!B194,0,1) -> 0
A197: 152 | B197: ='Input|Labour Rates'!B195 -> 0 | G197: =IF(B197='Input|Labour Rates'!B195,0,1) -> 0
A198: 153 | B198: ='Input|Labour Rates'!B196 -> 0 | G198: =IF(B198='Input|Labour Rates'!B196,0,1) -> 0
A199: 154 | B199: ='Input|Labour Rates'!B197 -> 0 | G199: =IF(B199='Input|Labour Rates'!B197,0,1) -> 0
A200: 155 | B200: ='Input|Labour Rates'!B198 -> 0 | G200: =IF(B200='Input|Labour Rates'!B198,0,1) -> 0
A201: 156 | B201: ='Input|Labour Rates'!B199 -> 0 | G201: =IF(B201='Input|Labour Rates'!B199,0,1) -> 0
A202: 157 | B202: ='Input|Labour Rates'!B200 -> 0 | G202: =IF(B202='Input|Labour Rates'!B200,0,1) -> 0
A203: 158 | B203: ='Input|Labour Rates'!B201 -> 0 | G203: =IF(B203='Input|Labour Rates'!B201,0,1) -> 0
A204: 159 | B204: ='Input|Labour Rates'!B202 -> 0 | G204: =IF(B204='Input|Labour Rates'!B202,0,1) -> 0
A205: 160 | B205: ='Input|Labour Rates'!B203 -> 0 | G205: =IF(B205='Input|Labour Rates'!B203,0,1) -> 0
... 90 more rows

Sheet Input|Setup
B1: =IFERROR(Index!B1,"") -> AER ANS Forecast Model | D1: Key: | E1: Input | H1: Sheet Validation | I1: ='Model Validation'!C10 -> 0
B2: =IFERROR(MID(CELL("filename",A1),FIND("]",CELL("filename",A1))+1,255),"") -> Input|Setup | E2: Formula
Q4: For AER only
A5: 3.1 | B5: Years setup | E5: Year? | F5: =IF(COUNTA(E6:E7)=0,1,0) -> 0 | Q5: Years
B6: First year of forecast regulatory control period | E6: 2026-27 | Q6: 2016-17
B7: Base year for inputs | E7: 2024-25 | Q7: =LEFT(Q6,4)+1&"-"&RIGHT(Q6,2)+1 -> 2017-18
B8: Base year for outputs | E8: =E6 -> 2026-27 | Q8: 2018-19
Q9: 2019-20
A10: 3.2 | B10: Current regulatory period | D10: 3.3 | E10: Forecast regulatory period | Q10: 2020-21
A11: 1 | B11: =LEFT(B12,4)-1&"-"&RIGHT(B12,2)-1 -> 2021-22 | D11: 1 | E11: =E6 -> 2026-27 | Q11: 2021-22
A12: =A11+1 -> 2 | B12: =LEFT(B13,4)-1&"-"&RIGHT(B13,2)-1 -> 2022-23 | D12: =D11+1 -> 2 | E12: =LEFT(E11,4)+1&"-"&RIGHT(E11,2)+1 -> 2027-28 | Q12: 2022-23
A13: =A12+1 -> 3 | B13: =LEFT(B14,4)-1&"-"&RIGHT(B14,2)-1 -> 2023-24 | D13: =D12+1 -> 3 | E13: =LEFT(E12,4)+1&"-"&RIGHT(E12,2)+1 -> 2028-29 | Q13: 2023-24
A14: =A13+1 -> 4 | B14: =LEFT(B15,4)-1&"-"&RIGHT(B15,2)-1 -> 2024-25 | D14: =D13+1 -> 4 | E14: =LEFT(E13,4)+1&"-"&RIGHT(E13,2)+1 -> 2029-30 | Q14: 2024-25
A15: =A14+1 -> 5 | B15: =LEFT(E11,4)-1&"-"&RIGHT(E11,2)-1 -> 2025-26 | D15: =D14+1 -> 5 | E15: =LEFT(E14,4)+1&"-"&RIGHT(E14,2)+1 -> 2030-31 | Q15: 2025-26
Q16: 2026-27
Q17: 2027-28
A18: 3.4 | B18: Used for quoted service? | D18: 3.5 | E18: Conversions | Q18: 2028-29
A19: 1 | B19: Yes | E19: 60 | F19: mins | Q19: 2029-30
A20: =A19+1 -> 2 | B20: No | Q20: 2030-31
Q21: 2031-32
Q22: 2032-33
Q23: 2033-34
A24: 3.6 | B24: Hours | C24: =IF(COUNTA(B25:B27)=0,1,0) -> 0 | Q24: 2034-35
B25: Business hours
B26: After hours
A30: 3.7 | B30: Labour type | C30: =IF(COUNTA(B31:B49)=0,1,0) -> 0 | D30: 3.8 | E30: Service category | F30: =IF(COUNTA(E31:E49)=0,1,0) -> 0 | G30: ="3.9" -> 3.9 | H30: [label]
A31: 1 | B31: Standard field labour | E31: Disconnections and reconnections
A32: =A31+1 -> 2 | B32: Non-field 1 | E32: Basic permanent disconnection
A33: =A32+1 -> 3 | B33: Non-field 2 | E33: Special meter reads
A34: =A33+1 -> 4 | B34: Non-field 3 | E34: Hourly charge
A35: 5 | B35: Hydrovac | E35: Complex permanent disconnection
A36: 6 | B36: Non-field 4
A37: 7
A38: 8
A39: 9
A40: 10 | G40: ="3.10" -> 3.10 | H40: [label]
A41: 11
A42: 12
A43: 13
A44: 14
A45: 15
A46: 16
A47: 17
A48: 18
A49: 19

Sheet Input|Escalations
B1: =IFERROR(Index!B1,"") -> AER ANS Forecast Model | C1: Key: | D1: Input | F1: Sheet Validation | G1: ='Model Validation'!C11 -> 0
B2: =IFERROR(MID(CELL("filename",A1),FIND("]",CELL("filename",A1))+1,255),"") -> Input|Escalations | D2: Formula
A5: 4.1 | B5: Escalation setup
C7: Year
B8: First year of forecast regulatory control period | C8: ='Input|Setup'!E6 -> 2026-27
B9: Base year for inputs | C9: ='Input|Setup'!E7 -> 2024-25
B10: Base year for outputs | C10: ='Input|Setup'!E8 -> 2026-27
A13: 4.2 | B13: Inflation | D13: Current regulatory period | I13: Forecast regulatory period
D15: =IFERROR((LEFT(E15,4)-1&IF(MID(E15,5,1)="","","-"&TEXT(MOD(MID(E15,6,2)-1,100),"00"))),"") -> 2021-22 | E15: =IFERROR((LEFT(F15,4)-1&IF(MID(F15,5,1)="","","-"&TEXT(MOD(MID(F15,6,2)-1,100),"00"))),"") -> 2022-23 | F15: =IFERROR((LEFT(G15,4)-1&IF(MID(G15,5,1)="","","-"&TEXT(MOD(MID(G15,6,2)-1,100),"00"))),"") -> 2023-24 | G15: =IFERROR((LEFT(H15,4)-1&IF(MID(H15,5,1)="","","-"&TEXT(MOD(MID(H15,6,2)-1,100),"00"))),"") -> 2024-25 | H15: =IFERROR((LEFT(I15,4)-1&IF(MID(I15,5,1)="","","-"&TEXT(MOD(MID(I15,6,2)-1,100),"00"))),"") -> 2025-26 | I15: =$C$8 -> 2026-27 | J15: =IFERROR((LEFT(I15,4)+1&IF(MID(I15,5,1)="","","-"&TEXT(MOD(MID(I15,6,2)+1,100),"00"))),"") -> 2027-28 | K15: =IFERROR((LEFT(J15,4)+1&IF(MID(J15,5,1)="","","-"&TEXT(MOD(MID(J15,6,2)+1,100),"00"))),"") -> 2028-29 | L15: =IFERROR((LEFT(K15,4)+1&IF(MID(K15,5,1)="","","-"&TEXT(MOD(MID(K15,6,2)+1,100),"00"))),"") -> 2029-30 | M15: =IFERROR((LEFT(L15,4)+1&IF(MID(L15,5,1)="","","-"&TEXT(MOD(MID(L15,6,2)+1,100),"00"))),"") -> 2030-31
B16: CPI year on year change (%) - lagged one year (actual/estimate) | E16: =IFERROR(E20/D20-1,0) -> 0.03498293515 | F16: 0.07831821929 | G16: 0.04051987768 | H16: 0.0242468773 | I16: 0.037 | J16: 0.028 | K16: 0.025 | L16: 0.025 | M16: 0.025
B17: Cumulative Inflation Index | D17: 1 | E17: =IFERROR(D17*(1+E16),"") -> 1.034982935 | F17: =E17*(1+F16) -> 1.116040956 | G17: 1.161262799 | H17: 1.189419795 | I17: 1.233428328 | J17: 1.267964321 | K17: 1.299663429 | L17: 1.332155015 | M17: 1.36545889
B18: =IFERROR("Real "&C9 &" "&LEFT(D9,9)&" to "& "Real "&C10 &" "&LEFT(D10,9),"") -> Real 2024-25 to Real 2026-27 | I18: =I$17/INDEX($D$15:$M$17,3, MATCH($C$9,$D$15:$M$15,0)) -> 1.062144012
B19: ABS index, all groups CPI inflation series A2325846C, weighted average for the eight capital cities | D19: ="Dec-" & RIGHT(D15,2)-2 -> Dec-20 | E19: Dec-21 | F19: Dec-22 | G19: Dec-23 | H19: Dec-24 | I19: Dec-25 | J19: Dec-26 | K19: Dec-27 | L19: Dec-28 | M19: Dec-29
D20: 117.2 | E20: 121.3 | F20: 130.8 | G20: 136.1 | H20: 139.4 | I20: =H20*(1+I21) -> 144.5578 | J20: =I20*(1+J21) -> 148.6054184 | K20: =J20*(1+K21) -> 152.3205539 | L20: =K20*(1+L21) -> 156.1285677 | M20: =L20*(1+M21) -> 160.0317819 | N20: =IF(COUNTA(D20:M20)=0,1,0) -> 0
B21: Source (where ABS index is not available. E.g. forecast CPI) | I21: 0.037 | J21: 0.028 | K21: 0.025 | L21: 0.025 | M21: 0.025 | N21: =IF(COUNTA(G21:M21)=0,1,0) -> 0
A24: 4.3 | B24: Real price escalation | D24: Current regulatory period | I24: Forecast regulatory period
D26: =IFERROR((LEFT(E26,4)-1&IF(MID(E26,5,1)="","","-"&TEXT(MOD(MID(E26,6,2)-1,100),"00"))),"") -> 2021-22 | E26: =IFERROR((LEFT(F26,4)-1&IF(MID(F26,5,1)="","","-"&TEXT(MOD(MID(F26,6,2)-1,100),"00"))),"") -> 2022-23 | F26: =IFERROR((LEFT(G26,4)-1&IF(MID(G26,5,1)="","","-"&TEXT(MOD(MID(G26,6,2)-1,100),"00"))),"") -> 2023-24 | G26: =IFERROR((LEFT(H26,4)-1&IF(MID(H26,5,1)="","","-"&TEXT(MOD(MID(H26,6,2)-1,100),"00"))),"") -> 2024-25 | H26: =IFERROR((LEFT(I26,4)-1&IF(MID(I26,5,1)="","","-"&TEXT(MOD(MID(I26,6,2)-1,100),"00"))),"") -> 2025-26 | I26: =$C$8 -> 2026-27 | J26: =IFERROR((LEFT(I26,4)+1&IF(MID(I26,5,1)="","","-"&TEXT(MOD(MID(I26,6,2)+1,100),"00"))),"") -> 2027-28 | K26: =IFERROR((LEFT(J26,4)+1&IF(MID(J26,5,1)="","","-"&TEXT(MOD(MID(J26,6,2)+1,100),"00"))),"") -> 2028-29 | L26: =IFERROR((LEFT(K26,4)+1&IF(MID(K26,5,1)="","","-"&TEXT(MOD(MID(K26,6,2)+1,100),"00"))),"") -> 2029-30 | M26: =IFERROR((LEFT(L26,4)+1&IF(MID(L26,5,1)="","","-"&TEXT(MOD(MID(L26,6,2)+1,100),"00"))),"") -> 2030-31
B27: X-factor (real wage price escalation) | D27: =-D37 -> 0.03014436764 | E27: =-E37 -> 0.03968413787 | F27: 0.006355851649 | G27: -0.01309841094 | H27: -0.003483390497 | I27: =-I37 -> -0.009517689491 | J27: -0.00930115961 | K27: -0.01079544555 | L27: -0.01198734607 | M27: =-M37 -> -0.01289271396
B28: Materials
B29: Contracts | D29: =D$27 -> 0.03014436764 | E29: 0.03968413787 | F29: 0.006355851649 | G29: -0.01309841094 | H29: -0.003483390497 | I29: -0.009517689491 | J29: -0.00930115961 | K29: -0.01079544555 | L29: -0.01198734607 | M29: -0.01289271396
B30: Vehicles
B31: Other
A34: 4.3.1 | B34: Real wage price escalation | D34: Current regulatory period | I34: Forecast regulatory period
D36: =IFERROR((LEFT(E36,4)-1&IF(MID(E36,5,1)="","","-"&TEXT(MOD(MID(E36,6,2)-1,100),"00"))),"") -> 2021-22 | E36: =IFERROR((LEFT(F36,4)-1&IF(MID(F36,5,1)="","","-"&TEXT(MOD(MID(F36,6,2)-1,100),"00"))),"") -> 2022-23 | F36: =IFERROR((LEFT(G36,4)-1&IF(MID(G36,5,1)="","","-"&TEXT(MOD(MID(G36,6,2)-1,100),"00"))),"") -> 2023-24 | G36: =IFERROR((LEFT(H36,4)-1&IF(MID(H36,5,1)="","","-"&TEXT(MOD(MID(H36,6,2)-1,100),"00"))),"") -> 2024-25 | H36: =IFERROR((LEFT(I36,4)-1&IF(MID(I36,5,1)="","","-"&TEXT(MOD(MID(I36,6,2)-1,100),"00"))),"") -> 2025-26 | I36: =$C$8 -> 2026-27 | J36: =IFERROR((LEFT(I36,4)+1&IF(MID(I36,5,1)="","","-"&TEXT(MOD(MID(I36,6,2)+1,100),"00"))),"") -> 2027-28 | K36: =IFERROR((LEFT(J36,4)+1&IF(MID(J36,5,1)="","","-"&TEXT(MOD(MID(J36,6,2)+1,100),"00"))),"") -> 2028-29 | L36: =IFERROR((LEFT(K36,4)+1&IF(MID(K36,5,1)="","","-"&TEXT(MOD(MID(K36,6,2)+1,100),"00"))),"") -> 2029-30 | M36: =IFERROR((LEFT(L36,4)+1&IF(MID(L36,5,1)="","","-"&TEXT(MOD(MID(L36,6,2)+1,100),"00"))),"") -> 2030-31
B37: Labour - Real wage price growth | D37: =SUM((D42*D48),(D43*D49),(D44*D50),(D45*D51)) -> -0.03014436764 | E37: =SUM((E42*E48),(E43*E49),(E44*E50),(E45*E51)) -> -0.03968413787 | F37: =SUM((F42*F48),(F43*F49),(F44*F50),(F45*F51)) -> -0.006355851649 | G37: 0.01309841094 | H37: 0.003483390497 | I37: 0.009517689491 | J37: 0.00930115961 | K37: 0.01079544555 | L37: 0.01198734607 | M37: 0.01289271396
B38: Cumulative Labour - Wage price growth index | D38: =1+D37 -> 0.9698556324 | E38: =IFERROR(D38*(1+E37),"") -> 0.9313677477 | F38: 0.9254481125 | G38: 0.9375700122 | H38: 0.9408359346 | I38: =IFERROR(H38*(1+I37),"") -> 0.9497905189 | J38: 0.9586246721 | K38: 0.9689734526 | L38: 0.9805888727 | M38: 0.9932313246
B39: ="Escalate from base year to " & C8 -> Escalate from base year to 2026-27 | I39: =I38/INDEX($D$36:$M$38,3,MATCH($C$9,$D$36:$M$36,0)) -> 1.013034234
B41: Forecast/Source | D41: =IFERROR((LEFT(E41,4)-1&IF(MID(E41,5,1)="","","-"&TEXT(MOD(MID(E41,6,2)-1,100),"00"))),"") -> 2021-22 | E41: =IFERROR((LEFT(F41,4)-1&IF(MID(F41,5,1)="","","-"&TEXT(MOD(MID(F41,6,2)-1,100),"00"))),"") -> 2022-23 | F41: =IFERROR((LEFT(G41,4)-1&IF(MID(G41,5,1)="","","-"&TEXT(MOD(MID(G41,6,2)-1,100),"00"))),"") -> 2023-24 | G41: =IFERROR((LEFT(H41,4)-1&IF(MID(H41,5,1)="","","-"&TEXT(MOD(MID(H41,6,2)-1,100),"00"))),"") -> 2024-25 | H41: =IFERROR((LEFT(I41,4)-1&IF(MID(I41,5,1)="","","-"&TEXT(MOD(MID(I41,6,2)-1,100),"00"))),"") -> 2025-26 | I41: =$C$8 -> 2026-27 | J41: =IFERROR((LEFT(I41,4)+1&IF(MID(I41,5,1)="","","-"&TEXT(MOD(MID(I41,6,2)+1,100),"00"))),"") -> 2027-28 | K41: =IFERROR((LEFT(J41,4)+1&IF(MID(J41,5,1)="","","-"&TEXT(MOD(MID(J41,6,2)+1,100),"00"))),"") -> 2028-29 | L41: =IFERROR((LEFT(K41,4)+1&IF(MID(K41,5,1)="","","-"&TEXT(MOD(MID(K41,6,2)+1,100),"00"))),"") -> 2029-30 | M41: =IFERROR((LEFT(L41,4)+1&IF(MID(L41,5,1)="","","-"&TEXT(MOD(MID(L41,6,2)+1,100),"00"))),"") -> 2030-31 | N41: =IF(COUNTA(B42:M45)=0,1,0) -> 0
B42: Oxford Economics (EGWWS WPI) | D42: -0.03014436764 | E42: -0.03968413787 | F42: -0.006355851649 | G42: 0.01309841094 | H42: 0.003483390497 | I42: 0.009517689491 | J42: 0.00930115961 | K42: 0.01079544555 | L42: 0.01198734607 | M42: 0.01289271396 | O42: Oxford Economics
B47: Weights (per cent) | D47: =IFERROR((LEFT(E47,4)-1&IF(MID(E47,5,1)="","","-"&TEXT(MOD(MID(E47,6,2)-1,100),"00"))),"") -> 2021-22 | E47: =IFERROR((LEFT(F47,4)-1&IF(MID(F47,5,1)="","","-"&TEXT(MOD(MID(F47,6,2)-1,100),"00"))),"") -> 2022-23 | F47: =IFERROR((LEFT(G47,4)-1&IF(MID(G47,5,1)="","","-"&TEXT(MOD(MID(G47,6,2)-1,100),"00"))),"") -> 2023-24 | G47: =IFERROR((LEFT(H47,4)-1&IF(MID(H47,5,1)="","","-"&TEXT(MOD(MID(H47,6,2)-1,100),"00"))),"") -> 2024-25 | H47: =IFERROR((LEFT(I47,4)-1&IF(MID(I47,5,1)="","","-"&TEXT(MOD(MID(I47,6,2)-1,100),"00"))),"") -> 2025-26 | I47: =$C$8 -> 2026-27 | J47: =IFERROR((LEFT(I47,4)+1&IF(MID(I47,5,1)="","","-"&TEXT(MOD(MID(I47,6,2)+1,100),"00"))),"") -> 2027-28 | K47: =IFERROR((LEFT(J47,4)+1&IF(MID(J47,5,1)="","","-"&TEXT(MOD(MID(J47,6,2)+1,100),"00"))),"") -> 2028-29 | L47: =IFERROR((LEFT(K47,4)+1&IF(MID(K47,5,1)="","","-"&TEXT(MOD(MID(K47,6,2)+1,100),"00"))),"") -> 2029-30 | M47: =IFERROR((LEFT(L47,4)+1&IF(MID(L47,5,1)="","","-"&TEXT(MOD(MID(L47,6,2)+1,100),"00"))),"") -> 2030-31 | N47: =IF(COUNTA(D48:M51)=0,1,0) -> 0
B48: =B42 -> Oxford Economics (EGWWS WPI) | D48: 1 | E48: 1 | F48: 1 | G48: 1 | H48: 1 | I48: 1 | J48: 1 | K48: 1 | L48: 1 | M48: 1
B49: =B43 -> 0
B50: =B44 -> 0
B51: =B45 -> 0
D52: =IF(OR(SUM(D48:D51)=0,SUM(D48:D51)=1),0,1) -> 0 | E52: 0 | F52: 0 | G52: 0 | H52: 0 | I52: 0 | J52: 0 | K52: 0 | L52: 0 | M52: 0 | N52: =IF(SUM(D52:M52)=0,0,1) -> 0
A54: 4.3.2 | B54: Real price escalation (non-wage) | D54: Current regulatory period | I54: Forecast regulatory period
D56: =IFERROR((LEFT(E56,4)-1&IF(MID(E56,5,1)="","","-"&TEXT(MOD(MID(E56,6,2)-1,100),"00"))),"") -> 2021-22 | E56: =IFERROR((LEFT(F56,4)-1&IF(MID(F56,5,1)="","","-"&TEXT(MOD(MID(F56,6,2)-1,100),"00"))),"") -> 2022-23 | F56: =IFERROR((LEFT(G56,4)-1&IF(MID(G56,5,1)="","","-"&TEXT(MOD(MID(G56,6,2)-1,100),"00"))),"") -> 2023-24 | G56: =IFERROR((LEFT(H56,4)-1&IF(MID(H56,5,1)="","","-"&TEXT(MOD(MID(H56,6,2)-1,100),"00"))),"") -> 2024-25 | H56: =IFERROR((LEFT(I56,4)-1&IF(MID(I56,5,1)="","","-"&TEXT(MOD(MID(I56,6,2)-1,100),"00"))),"") -> 2025-26 | I56: =$C$8 -> 2026-27 | J56: =IFERROR((LEFT(I56,4)+1&IF(MID(I56,5,1)="","","-"&TEXT(MOD(MID(I56,6,2)+1,100),"00"))),"") -> 2027-28 | K56: =IFERROR((LEFT(J56,4)+1&IF(MID(J56,5,1)="","","-"&TEXT(MOD(MID(J56,6,2)+1,100),"00"))),"") -> 2028-29 | L56: =IFERROR((LEFT(K56,4)+1&IF(MID(K56,5,1)="","","-"&TEXT(MOD(MID(K56,6,2)+1,100),"00"))),"") -> 2029-30 | M56: =IFERROR((LEFT(L56,4)+1&IF(MID(L56,5,1)="","","-"&TEXT(MOD(MID(L56,6,2)+1,100),"00"))),"") -> 2030-31
B57: Materials - Real price growth | D57: =-D$28 -> 0 | E57: 0 | F57: 0 | G57: 0 | H57: 0 | I57: 0 | J57: 0 | K57: 0 | L57: 0 | M57: 0
B58: Cumulative Labour - Wage price growth index | D58: =1+D57 -> 1 | E58: =IFERROR(D58*(1+E57),"") -> 1 | F58: 1 | G58: 1 | H58: 1 | I58: =IFERROR(H58*(1+I57),"") -> 1 | J58: 1 | K58: 1 | L58: 1 | M58: 1
B59: ="Escalate from base year to " & C28 -> Escalate from base year to | I59: =I58/INDEX($D$56:$M$58,3,MATCH($C$9,$D$56:$M$56,0)) -> 1
D61: =IFERROR((LEFT(E61,4)-1&IF(MID(E61,5,1)="","","-"&TEXT(MOD(MID(E61,6,2)-1,100),"00"))),"") -> 2021-22 | E61: =IFERROR((LEFT(F61,4)-1&IF(MID(F61,5,1)="","","-"&TEXT(MOD(MID(F61,6,2)-1,100),"00"))),"") -> 2022-23 | F61: =IFERROR((LEFT(G61,4)-1&IF(MID(G61,5,1)="","","-"&TEXT(MOD(MID(G61,6,2)-1,100),"00"))),"") -> 2023-24 | G61: =IFERROR((LEFT(H61,4)-1&IF(MID(H61,5,1)="","","-"&TEXT(MOD(MID(H61,6,2)-1,100),"00"))),"") -> 2024-25 | H61: =IFERROR((LEFT(I61,4)-1&IF(MID(I61,5,1)="","","-"&TEXT(MOD(MID(I61,6,2)-1,100),"00"))),"") -> 2025-26 | I61: =$C$8 -> 2026-27 | J61: =IFERROR((LEFT(I61,4)+1&IF(MID(I61,5,1)="","","-"&TEXT(MOD(MID(I61,6,2)+1,100),"00"))),"") -> 2027-28 | K61: =IFERROR((LEFT(J61,4)+1&IF(MID(J61,5,1)="","","-"&TEXT(MOD(MID(J61,6,2)+1,100),"00"))),"") -> 2028-29 | L61: =IFERROR((LEFT(K61,4)+1&IF(MID(K61,5,1)="","","-"&TEXT(MOD(MID(K61,6,2)+1,100),"00"))),"") -> 2029-30 | M61: =IFERROR((LEFT(L61,4)+1&IF(MID(L61,5,1)="","","-"&TEXT(MOD(MID(L61,6,2)+1,100),"00"))),"") -> 2030-31
B62: Contracts - Real price growth | D62: =-D$29 -> -0.03014436764 | E62: -0.03968413787 | F62: -0.006355851649 | G62: 0.01309841094 | H62: 0.003483390497 | I62: 0.009517689491 | J62: 0.00930115961 | K62: 0.01079544555 | L62: 0.01198734607 | M62: 0.01289271396
B63: Cumulative Labour - Wage price growth index | D63: =1+D62 -> 0.9698556324 | E63: =IFERROR(D63*(1+E62),"") -> 0.9313677477 | F63: 0.9254481125 | G63: 0.9375700122 | H63: 0.9408359346 | I63: 0.9497905189 | J63: 0.9586246721 | K63: 0.9689734526 | L63: 0.9805888727 | M63: 0.9932313246
B64: ="Escalate from base year to " & C33 -> Escalate from base year to | I64: =I63/INDEX($D$61:$M$63,3,MATCH($C$9,$D$61:$M$61,0)) -> 1.013034234
D66: =IFERROR((LEFT(E66,4)-1&IF(MID(E66,5,1)="","","-"&TEXT(MOD(MID(E66,6,2)-1,100),"00"))),"") -> 2021-22 | E66: =IFERROR((LEFT(F66,4)-1&IF(MID(F66,5,1)="","","-"&TEXT(MOD(MID(F66,6,2)-1,100),"00"))),"") -> 2022-23 | F66: =IFERROR((LEFT(G66,4)-1&IF(MID(G66,5,1)="","","-"&TEXT(MOD(MID(G66,6,2)-1,100),"00"))),"") -> 2023-24 | G66: =IFERROR((LEFT(H66,4)-1&IF(MID(H66,5,1)="","","-"&TEXT(MOD(MID(H66,6,2)-1,100),"00"))),"") -> 2024-25 | H66: =IFERROR((LEFT(I66,4)-1&IF(MID(I66,5,1)="","","-"&TEXT(MOD(MID(I66,6,2)-1,100),"00"))),"") -> 2025-26 | I66: =$C$8 -> 2026-27 | J66: =IFERROR((LEFT(I66,4)+1&IF(MID(I66,5,1)="","","-"&TEXT(MOD(MID(I66,6,2)+1,100),"00"))),"") -> 2027-28 | K66: =IFERROR((LEFT(J66,4)+1&IF(MID(J66,5,1)="","","-"&TEXT(MOD(MID(J66,6,2)+1,100),"00"))),"") -> 2028-29 | L66: =IFERROR((LEFT(K66,4)+1&IF(MID(K66,5,1)="","","-"&TEXT(MOD(MID(K66,6,2)+1,100),"00"))),"") -> 2029-30 | M66: =IFERROR((LEFT(L66,4)+1&IF(MID(L66,5,1)="","","-"&TEXT(MOD(MID(L66,6,2)+1,100),"00"))),"") -> 2030-31
B67: Vehicles - Real price growth | D67: =-D$30 -> 0 | E67: 0 | F67: 0 | G67: 0 | H67: 0 | I67: 0 | J67: 0 | K67: 0 | L67: 0 | M67: 0
B68: Cumulative Labour - Wage price growth index | D68: =1+D67 -> 1 | E68: =IFERROR(D68*(1+E67),"") -> 1 | F68: 1 | G68: 1 | H68: 1 | I68: 1 | J68: 1 | K68: 1 | L68: 1 | M68: 1
B69: ="Escalate from base year to " & C38 -> Escalate from base year to | I69: =I68/INDEX($D$66:$M$68,3,MATCH($C$9,$D$66:$M$66,0)) -> 1
D71: =IFERROR((LEFT(E71,4)-1&IF(MID(E71,5,1)="","","-"&TEXT(MOD(MID(E71,6,2)-1,100),"00"))),"") -> 2021-22 | E71: =IFERROR((LEFT(F71,4)-1&IF(MID(F71,5,1)="","","-"&TEXT(MOD(MID(F71,6,2)-1,100),"00"))),"") -> 2022-23 | F71: =IFERROR((LEFT(G71,4)-1&IF(MID(G71,5,1)="","","-"&TEXT(MOD(MID(G71,6,2)-1,100),"00"))),"") -> 2023-24 | G71: =IFERROR((LEFT(H71,4)-1&IF(MID(H71,5,1)="","","-"&TEXT(MOD(MID(H71,6,2)-1,100),"00"))),"") -> 2024-25 | H71: =IFERROR((LEFT(I71,4)-1&IF(MID(I71,5,1)="","","-"&TEXT(MOD(MID(I71,6,2)-1,100),"00"))),"") -> 2025-26 | I71: =$C$8 -> 2026-27 | J71: =IFERROR((LEFT(I71,4)+1&IF(MID(I71,5,1)="","","-"&TEXT(MOD(MID(I71,6,2)+1,100),"00"))),"") -> 2027-28 | K71: =IFERROR((LEFT(J71,4)+1&IF(MID(J71,5,1)="","","-"&TEXT(MOD(MID(J71,6,2)+1,100),"00"))),"") -> 2028-29 | L71: =IFERROR((LEFT(K71,4)+1&IF(MID(K71,5,1)="","","-"&TEXT(MOD(MID(K71,6,2)+1,100),"00"))),"") -> 2029-30 | M71: =IFERROR((LEFT(L71,4)+1&IF(MID(L71,5,1)="","","-"&TEXT(MOD(MID(L71,6,2)+1,100),"00"))),"") -> 2030-31
B72: Other - Real price growth | D72: =-D$31 -> 0 | E72: 0 | F72: 0 | G72: 0 | H72: 0 | I72: 0 | J72: 0 | K72: 0 | L72: 0 | M72: 0
B73: Cumulative Labour - Wage price growth index | D73: =1+D72 -> 1 | E73: =IFERROR(D73*(1+E72),"") -> 1 | F73: 1 | G73: 1 | H73: 1 | I73: 1 | J73: 1 | K73: 1 | L73: 1 | M73: 1
B74: ="Escalate from base year to " & C43 -> Escalate from base year to | I74: =I73/INDEX($D$71:$M$73,3,MATCH($C$9,$D$71:$M$71,0)) -> 1

Sheet Input|Labour Rates
B1: =IFERROR(Index!B1,"") -> AER ANS Forecast Model | D1: Key: | E1: Input | G1: Sheet Validation | H1: ='Model Validation'!C13 -> 1
B2: =IFERROR(MID(CELL("filename",A1),FIND("]",CELL("filename",A1))+1,255),"") -> Input|Labour Rates | E2: Formula
B7: 6.1 Labour rates | E7: =IFERROR("Inputs, $'s ($"&Input_base_year&")","") ->  | K7: 6.2 Notes and sources for "Other costs"
B9: ='Input|Setup'!$B$30 & " (List)" -> Labour type (List) | C9: ='Input|Setup'!$B$24& " (List)" -> Hours (List) | D9: ='Input|Setup'!$B$18 & " (List)" -> Used for quoted service? (List) | E9: ="Base labour rate ($" & 'Input|Setup'!$E$7 & ")" -> Base labour rate ($2024-25) | F9: ='Input|Indirect Cost Rates'!B5 & " (%)" -> On costs (%) | G9: ='Input|Indirect Cost Rates'!B22 & " (%)" -> Overhead (%) | H9: ="Vehicle ($" & 'Input|Setup'!$E$7 & ")" -> Vehicle ($2024-25) | I9: ="Other costs ($" & 'Input|Setup'!$E$7 & ")" -> Other costs ($2024-25)
A10: 1 | B10: Standard field labour | C10: Business hours | D10: No | J10: =IF(AND(ISTEXT(B10),OR(ISBLANK(C10),ISBLANK(D10),COUNTA(E10:I10)=0)),1,0) -> 1 | L10: =IF(AND(ISNUMBER(I10),ISBLANK(K10)),1,0) -> 0
A11: =A10+1 -> 2 | B11: Non-field 1 | C11: Business hours | D11: No | J11: 1 | L11: 0
A12: 3 | B12: Non-field 2 | C12: Business hours | D12: No | J12: 1 | L12: 0
A13: 4 | B13: Non-field 3 | C13: Business hours | D13: No | J13: 1 | L13: 0
A14: 5 | B14: Hydrovac | C14: Business hours | D14: No | J14: 1 | L14: 0
A15: 6 | B15: Non-field 4 | C15: Business hours | D15: No | J15: =IF(AND(ISTEXT(B15),OR(ISBLANK(C15),ISBLANK(D15),COUNTA(E15:I15)=0)),1,0) -> 1 | L15: 0
A16: 7 | J16: 0 | L16: 0
A17: 8 | J17: 0 | L17: 0
A18: 9 | J18: 0 | L18: 0
A19: 10 | J19: 0 | L19: 0
A20: 11 | J20: =IF(AND(ISTEXT(B20),OR(ISBLANK(C20),ISBLANK(D20),COUNTA(E20:I20)=0)),1,0) -> 0 | L20: 0
A21: 12 | J21: 0 | L21: 0
A22: 13 | J22: 0 | L22: 0
A23: 14 | J23: 0 | L23: 0
A24: 15 | J24: 0 | L24: 0
A25: 16 | J25: 0 | L25: 0
A26: 17 | J26: 0 | L26: 0
A27: 18 | J27: 0 | L27: 0
A28: 19 | J28: 0 | L28: 0
A29: 20 | J29: 0 | L29: 0
A30: 21 | J30: 0 | L30: 0
A31: 22 | J31: 0 | L31: 0
A32: 23 | J32: 0 | L32: 0
A33: 24 | J33: 0 | L33: 0
A34: 25 | J34: 0 | L34: 0
A35: 26 | J35: 0 | L35: 0
A36: 27 | J36: 0 | L36: 0
A37: 28 | J37: 0 | L37: 0
A38: 29 | J38: 0 | L38: 0
A39: 30 | J39: 0 | L39: 0
B42: =IFERROR("6.3 List of quoted services for "&'Input|Setup'!$E$11&" to "&'Input|Setup'!$E$15&" regulatory period","") -> 6.3 List of quoted services for 2026-27 to 2030-31 regulatory period
A44: 1
A45: =IFERROR(A44+1,"") -> 2
A46: =IFERROR(A45+1,"") -> 3
A47: 4
A48: 5
A49: 6
A50: 7
A51: 8
A52: 9
A53: 10
A54: 11
A55: 12
A56: 13
A57: 14
A58: 15
A59: 16
A60: 17
A61: 18
A62: 19
A63: 20
A64: 21
A65: 22
A66: 23
A67: 24
A68: 25
A69: 26
A70: 27
A71: 28
A72: 29
A73: 30
A74: 31
A75: 32
A76: 33
A77: 34
A78: 35
A79: 36
A80: 37
A81: 38
A82: 39
A83: 40
A84: 41
A85: 42
A86: 43
A87: 44
A88: 45
A89: 46
A90: 47
A91: 48
A92: 49
A93: 50
A94: 51
A95: 52
A96: 53
A97: 54
A98: 55
A99: 56
A100: 57
A101: 58
A102: 59
A103: 60
A104: 61
A105: 62
A106: 63
A107: 64
A108: 65
A109: 66
A110: 67
A111: 68
A112: 69
A113: 70
A114: 71
A115: 72
A116: 73
A117: 74
A118: 75
A119: 76
A120: 77
A121: 78
A122: 79
A123: 80
A124: 81
A125: 82
A126: 83
A127: 84
A128: 85
A129: 86
A130: 87
A131: 88
A132: 89
A133: 90
A134: 91
A135: 92
A136: 93
A137: 94
A138: 95
A139: 96
A140: 97
A141: 98
A142: 99
A143: 100
A144: 101
A145: 102
A146: 103
A147: 104
A148: 105
A149: 106
A150: 107
A151: 108
A152: 109
A153: 110
A154: 111
A155: 112
A156: 113
A157: 114
A158: 115
A159: 116
A160: 117
A161: 118
A162: 119
A163: 120
A164: 121
A165: 122
A166: 123
A167: 124
A168: 125
A169: 126
A170: 127
A171: 128
A172: 129
A173: 130
A174: 131
A175: 132
A176: 133
A177: 134
A178: 135
A179: 136
A180: 137
A181: 138
A182: 139
A183: 140
A184: 141
A185: 142
A186: 143
A187: 144
A188: 145
A189: 146
A190: 147
A191: 148
A192: 149
A193: 150
A194: 151
A195: 152
A196: 153
A197: 154
A198: 155
A199: 156
A200: 157
A201: 158
A202: 159
A203: 160
A204: 161
A205: 162
A206: 163
A207: 164
A208: 165
... 85 more rows

Sheet Input|Indirect Cost Rates
B1: =IFERROR(Index!B1,"") -> AER ANS Forecast Model | C1: Key: | D1: Input | F1: Sheet Validation | G1: NA
B2: =IFERROR(MID(CELL("filename",A1),FIND("]",CELL("filename",A1))+1,255),"") -> Input|Indirect Cost Rates | D2: Formula
A5: 5.1 | B5: On costs
B7: On cost drivers | C7: Unit | D7: [label] | E7: [label] | F7: [label] | G7: [label] | H7: [label] | I7: [label] | J7: [label]
B8: Standard leave (annual leave, sick leave, public holidays) | C8: Per cent
B9: Superannuation | C9: Per cent
B10: Workers Compensation | C10: Per cent
B11: Payroll tax | C11: Per cent
B12: Annual leave loading | C12: Per cent
B13: Long Service leave allowance | C13: Per cent
B14: Non-chargeable time | C14: Per cent
B15: Other | C15: Per cent
B16: Allowances | C16: Per cent
C17: Per cent
C18: Per cent
B19: Compounded on cost factor | C19: Per cent
A22: 5.2 | B22: Overhead
B24: Type of Overhead | C24: Unit | D24: Input
B25: Corporate Overhead | C25: Per cent | D25: 0.1648936861
C26: Per cent
C27: Per cent
C28: Per cent
C29: Per cent
A32: 5.3 | B32: Margins
C34: Unit | D34: Input
C35: Per cent
C36: Per cent
C37: Per cent
C38: Per cent
A41: 5.4 | B41: Tax recovery rate
C43: Unit | D43: Input
C44: Per cent
C45: Per cent
C46: Per cent
C47: Per cent

Sheet Input|Fee Based Mapping
B1: =IFERROR(Index!B1,"") -> AER ANS Forecast Model | D1: Key: | E1: Input | G1: Sheet Validation | H1: ='Model Validation'!C15 -> 0
B2: =IFERROR(MID(CELL("filename",A1),FIND("]",CELL("filename",A1))+1,255),"") -> Input|Fee Based Mapping | E2: Formula
M3: For AER input
L4: =E11 -> 2021-22 | M4: =F11 -> 2022-23 | N4: =G11 -> 2023-24 | O4: =H11 -> 2024-25 | P4: =I11 -> 2025-26 | W4: =IFERROR('Input|Setup'!$E$6,"") -> 2026-27 | X4: =IFERROR((LEFT(W4,4)+1&IF(MID(W4,5,1)="","","-"&TEXT(MOD(MID(W4,6,2)+1,100),"00"))),"") -> 2027-28 | Y4: =IFERROR((LEFT(X4,4)+1&IF(MID(X4,5,1)="","","-"&TEXT(MOD(MID(X4,6,2)+1,100),"00"))),"") -> 2028-29 | Z4: =IFERROR((LEFT(Y4,4)+1&IF(MID(Y4,5,1)="","","-"&TEXT(MOD(MID(Y4,6,2)+1,100),"00"))),"") -> 2029-30 | AA4: =IFERROR((LEFT(Z4,4)+1&IF(MID(Z4,5,1)="","","-"&TEXT(MOD(MID(Z4,6,2)+1,100),"00"))),"") -> 2030-31
L5: CPI | M5: 0.02 | N5: 0.02 | O5: 0.02 | P5: 0.02 | W5: CPI | X5: ='Input|Escalations'!J16 -> 0.028 | Y5: ='Input|Escalations'!K16 -> 0.025 | Z5: ='Input|Escalations'!L16 -> 0.025 | AA5: ='Input|Escalations'!M16 -> 0.025
L6: X factors | M6: -0.02 | N6: -0.02 | O6: -0.02 | P6: -0.02 | W6: X factors | X6: ='Input|Escalations'!J27 -> -0.00930115961 | Y6: ='Input|Escalations'!K27 -> -0.01079544555 | Z6: ='Input|Escalations'!L27 -> -0.01198734607 | AA6: ='Input|Escalations'!M27 -> -0.01289271396
B9: 8.1 Current regulatory period - Fee based services | D9: Mapping categories | E9: =IFERROR("Approved price, $ ($nominal)","") -> Approved price, $ ($nominal) | K9: AER final decision ($ nominal) | S9: 8.2 Forecast regulatory period - Fee based services | W9: =IFERROR("Price of service, $ ($,nominal)","") -> Price of service, $ ($,nominal)
L10: =IF(SUM(L12:L511)=0,0,1) -> 0 | M10: =IF(SUM(M12:M511)=0,0,1) -> 0 | N10: =IF(SUM(N12:N511)=0,0,1) -> 0 | O10: =IF(SUM(O12:O511)=0,0,1) -> 0 | P10: =IF(SUM(P12:P511)=0,0,1) -> 0
B11: Service code | C11: Fee based service | D11: Hours (List) | E11: ='Input|Setup'!B11 -> 2021-22 | F11: ='Input|Setup'!B12 -> 2022-23 | G11: ='Input|Setup'!B13 -> 2023-24 | H11: ='Input|Setup'!B14 -> 2024-25 | I11: ='Input|Setup'!B15 -> 2025-26 | K11: =E11 -> 2021-22 | L11: =E11 -> 2021-22 | M11: =F11 -> 2022-23 | N11: =G11 -> 2023-24 | O11: =H11 -> 2024-25 | P11: =I11 -> 2025-26 | T11: Fee based service | U11: ='Input|Setup'!$B$24 -> Hours | V11: ='Input|Setup'!E30 -> Service category | W11: ='Input|Setup'!E11 -> 2026-27 | X11: =LEFT(W11,4)+1&"-"&RIGHT(W11,2)+1 -> 2027-28 | Y11: =LEFT(X11,4)+1&"-"&RIGHT(X11,2)+1 -> 2028-29 | Z11: =LEFT(Y11,4)+1&"-"&RIGHT(Y11,2)+1 -> 2029-30 | AA11: =LEFT(Z11,4)+1&"-"&RIGHT(Z11,2)+1 -> 2030-31
A12: 1 | L12: =IF(E12<=K12,0,1) -> 0 | M12: =IF(F12<=$K12*(1+M$5)*(1-M$6),0,1) -> 0 | N12: =IF(G12<=$K12*(1+M$5)*(1-M$6)*(1+N$5)*(1-N$6),0,1) -> 0 | O12: =IF(H12<=$K12*(1+M$5)*(1-M$6)*(1+N$5)*(1-N$6)*(1+O$5)*(1-O$6),0,1) -> 0 | P12: =IF(I12<=$K12*(1+M$5)*(1-M$6)*(1+N$5)*(1-N$6)*(1+O$5)*(1-O$6)*(1+P$5)*(1-P$6),0,1) -> 0 | R12: 1 | S12: ='Calc|Fee Based'!B10 ->  | T12: ='Calc|Fee Based'!C10 -> Temporary disconnection ≤25m3/hr (per meter) | U12: ='Calc|Fee Based'!D10 -> Business hours | V12: ='Calc|Fee Based'!F10 ->  | W12: ='Calc|Fee Based'!H10 -> 133.9167763 | X12: =W12*(1+X$5)*(1-X$6) -> 138.9469037 | Y12: 143.9580698 | Z12: 149.3258387 | AA12: 155.0323303
A13: =IFERROR(A12+1,"") -> 2 | L13: 0 | M13: 0 | N13: 0 | O13: 0 | P13: 0 | R13: =IFERROR(R12+1,"") -> 2 | S13: ='Calc|Fee Based'!B11 ->  | T13: ='Calc|Fee Based'!C11 -> Temporary disconnection >25m3/hr (per meter) | U13: ='Calc|Fee Based'!D11 -> Business hours | V13: ='Calc|Fee Based'!F11 ->  | W13: ='Calc|Fee Based'!H11 -> 221.6602112 | X13: 229.9861216 | Y13: 238.2806474 | Z13: 247.1654249 | AA13: 256.6108595
A14: =IFERROR(A13+1,"") -> 3 | L14: 0 | M14: 0 | N14: 0 | O14: 0 | P14: 0 | R14: =IFERROR(R13+1,"") -> 3 | S14: ='Calc|Fee Based'!B12 ->  | T14: ='Calc|Fee Based'!C12 -> Reconnection ≤25m3/hr (per meter) | U14: ='Calc|Fee Based'!D12 -> Business hours | V14: ='Calc|Fee Based'!F12 ->  | W14: ='Calc|Fee Based'!H12 -> 127.6177996 | X14: 132.4113273 | Y14: 137.1867857 | Z14: 142.3020735 | AA14: 147.7401518
A15: 4 | L15: 0 | M15: 0 | N15: 0 | O15: 0 | P15: 0 | R15: =IFERROR(R14+1,"") -> 4 | S15: ='Calc|Fee Based'!B13 ->  | T15: ='Calc|Fee Based'!C13 -> Reconnection >25m3/hr (per meter) | U15: ='Calc|Fee Based'!D13 -> Business hours | V15: ='Calc|Fee Based'!F13 ->  | W15: ='Calc|Fee Based'!H13 -> 180.9990726 | X15: 187.797686 | Y15: 194.5706718 | Z15: 201.8256342 | AA15: 209.5384073
A16: 5 | L16: 0 | M16: 0 | N16: 0 | O16: 0 | P16: 0 | R16: 5 | S16: ='Calc|Fee Based'!B14 ->  | T16: ='Calc|Fee Based'!C14 -> Special meter read | U16: ='Calc|Fee Based'!D14 -> Business hours | V16: ='Calc|Fee Based'!F14 ->  | W16: ='Calc|Fee Based'!H14 -> 14.03967574 | X16: 14.56702831 | Y16: 15.09239302 | Z16: 15.65514353 | AA16: 16.25340534
A17: 6 | L17: 0 | M17: 0 | N17: 0 | O17: 0 | P17: 0 | R17: 6 | S17: ='Calc|Fee Based'!B15 ->  | T17: ='Calc|Fee Based'!C15 -> Basic permanent disconnection | U17: ='Calc|Fee Based'!D15 -> Business hours | V17: ='Calc|Fee Based'!F15 ->  | W17: ='Calc|Fee Based'!H15 -> 746.8660787 | X17: 774.9195576 | Y17: 802.8672885 | Z17: 832.803825 | AA17: 864.6294496
A18: 7 | L18: 0 | M18: 0 | N18: 0 | O18: 0 | P18: 0 | R18: 7 | S18: ='Calc|Fee Based'!B16 ->  | T18: ='Calc|Fee Based'!C16 -> Basic (urgent) permanent disconnection | U18: ='Calc|Fee Based'!D16 -> Business hours | V18: ='Calc|Fee Based'!F16 ->  | W18: ='Calc|Fee Based'!H16 -> 981.2235814 | X18: 1018.079901 | Y18: 1054.797291 | Z18: 1094.127549 | AA18: 1135.939668
A19: 8 | L19: 0 | M19: 0 | N19: 0 | O19: 0 | P19: 0 | R19: 8 | S19: ='Calc|Fee Based'!B17 ->  | T19: ='Calc|Fee Based'!C17 -> Non-standard retail-initiated requests and queries (per hour) | U19: ='Calc|Fee Based'!D17 -> Business hours | V19: ='Calc|Fee Based'!F17 ->  | W19: ='Calc|Fee Based'!H17 -> 158.2892125 | X19: 164.2348073 | Y19: 170.1579901 | Z19: 176.5026761 | AA19: 183.2477315
A20: 9 | L20: 0 | M20: 0 | N20: 0 | O20: 0 | P20: 0 | R20: 9 | S20: ='Calc|Fee Based'!B18 ->  | T20: ='Calc|Fee Based'!C18 -> Wasted visit temporary disconnection | U20: ='Calc|Fee Based'!D18 -> Business hours | V20: ='Calc|Fee Based'!F18 ->  | W20: ='Calc|Fee Based'!H18 -> 72.68984823 | X20: 75.42019466 | Y20: 78.140249 | Z20: 81.05386678 | AA20: 84.15134288
A21: 10 | L21: 0 | M21: 0 | N21: 0 | O21: 0 | P21: 0 | R21: 10 | S21: ='Calc|Fee Based'!B19 ->  | T21: ='Calc|Fee Based'!C19 -> Wasted visit reconnection | U21: ='Calc|Fee Based'!D19 -> Business hours | V21: ='Calc|Fee Based'!F19 ->  | W21: ='Calc|Fee Based'!H19 -> 93.24269097 | X21: 96.74503489 | Y21: 100.2341767 | Z21: 103.9716114 | AA21: 107.9448898
A22: 11 | L22: 0 | M22: 0 | N22: 0 | O22: 0 | P22: 0 | R22: 11 | S22: ='Calc|Fee Based'!B20 ->  | T22: ='Calc|Fee Based'!C20 -> Wasted visit basic permanent disconnection | U22: ='Calc|Fee Based'!D20 -> Business hours | V22: ='Calc|Fee Based'!F20 ->  | W22: ='Calc|Fee Based'!H20 -> 210.8811429 | X22: 218.8021743 | Y22: 226.6933473 | Z22: 235.1460689 | AA22: 244.1321834
A23: 12 | L23: 0 | M23: 0 | N23: 0 | O23: 0 | P23: 0 | R23: 12 | S23: ='Calc|Fee Based'!B21 ->  | T23: ='Calc|Fee Based'!C21 -> Wasted visit urgent basic permanent disconnection | U23: ='Calc|Fee Based'!D21 -> Business hours | V23: ='Calc|Fee Based'!F21 ->  | W23: ='Calc|Fee Based'!H21 -> 445.2386456 | X23: 461.962518 | Y23: 478.6233494 | Z23: 496.4697924 | AA23: 515.4424014
A24: 13 | L24: 0 | M24: 0 | N24: 0 | O24: 0 | P24: 0 | R24: 13 | S24: ='Calc|Fee Based'!B22 ->  | T24: ='Calc|Fee Based'!C22 -> Wasted visit special meter read | U24: ='Calc|Fee Based'!D22 -> Business hours | V24: ='Calc|Fee Based'!F22 ->  | W24: ='Calc|Fee Based'!H22 -> 14.03967574 | X24: 14.56702831 | Y24: 15.09239302 | Z24: 15.65514353 | AA24: 16.25340534
A25: 14 | L25: 0 | M25: 0 | N25: 0 | O25: 0 | P25: 0 | R25: 14 | S25: ='Calc|Fee Based'!B23 ->  | T25: ='Calc|Fee Based'!C23 ->  | U25: ='Calc|Fee Based'!D23 ->  | V25: ='Calc|Fee Based'!F23 ->  | W25: ='Calc|Fee Based'!H23 -> 0 | X25: 0 | Y25: 0 | Z25: 0 | AA25: 0
A26: 15 | L26: 0 | M26: 0 | N26: 0 | O26: 0 | P26: 0 | R26: 15 | S26: ='Calc|Fee Based'!B24 ->  | T26: ='Calc|Fee Based'!C24 ->  | U26: ='Calc|Fee Based'!D24 ->  | V26: ='Calc|Fee Based'!F24 ->  | W26: ='Calc|Fee Based'!H24 -> 0 | X26: 0 | Y26: 0 | Z26: 0 | AA26: 0
A27: 16 | L27: 0 | M27: 0 | N27: 0 | O27: 0 | P27: 0 | R27: 16 | S27: ='Calc|Fee Based'!B25 ->  | T27: ='Calc|Fee Based'!C25 ->  | U27: ='Calc|Fee Based'!D25 ->  | V27: ='Calc|Fee Based'!F25 ->  | W27: ='Calc|Fee Based'!H25 -> 0 | X27: 0 | Y27: 0 | Z27: 0 | AA27: 0
A28: 17 | L28: 0 | M28: 0 | N28: 0 | O28: 0 | P28: 0 | R28: 17 | S28: ='Calc|Fee Based'!B26 ->  | T28: ='Calc|Fee Based'!C26 ->  | U28: ='Calc|Fee Based'!D26 ->  | V28: ='Calc|Fee Based'!F26 ->  | W28: ='Calc|Fee Based'!H26 -> 0 | X28: 0 | Y28: 0 | Z28: 0 | AA28: 0
A29: 18 | L29: 0 | M29: 0 | N29: 0 | O29: 0 | P29: 0 | R29: 18 | S29: ='Calc|Fee Based'!B27 ->  | T29: ='Calc|Fee Based'!C27 ->  | U29: ='Calc|Fee Based'!D27 ->  | V29: ='Calc|Fee Based'!F27 ->  | W29: ='Calc|Fee Based'!H27 -> 0 | X29: 0 | Y29: 0 | Z29: 0 | AA29: 0
A30: 19 | L30: 0 | M30: 0 | N30: 0 | O30: 0 | P30: 0 | R30: 19 | S30: ='Calc|Fee Based'!B28 ->  | T30: ='Calc|Fee Based'!C28 ->  | U30: ='Calc|Fee Based'!D28 ->  | V30: ='Calc|Fee Based'!F28 ->  | W30: ='Calc|Fee Based'!H28 -> 0 | X30: 0 | Y30: 0 | Z30: 0 | AA30: 0
A31: 20 | L31: 0 | M31: 0 | N31: 0 | O31: 0 | P31: 0 | R31: 20 | S31: ='Calc|Fee Based'!B29 ->  | T31: ='Calc|Fee Based'!C29 ->  | U31: ='Calc|Fee Based'!D29 ->  | V31: ='Calc|Fee Based'!F29 ->  | W31: ='Calc|Fee Based'!H29 -> 0 | X31: 0 | Y31: 0 | Z31: 0 | AA31: 0
A32: 21 | L32: 0 | M32: 0 | N32: 0 | O32: 0 | P32: 0 | R32: 21 | S32: ='Calc|Fee Based'!B30 ->  | T32: ='Calc|Fee Based'!C30 ->  | U32: ='Calc|Fee Based'!D30 ->  | V32: ='Calc|Fee Based'!F30 ->  | W32: ='Calc|Fee Based'!H30 -> 0 | X32: =W32*(1+X$5)*(1-X$6) -> 0 | Y32: 0 | Z32: 0 | AA32: 0
A33: 22 | L33: 0 | M33: 0 | N33: 0 | O33: 0 | P33: 0 | R33: 22 | S33: ='Calc|Fee Based'!B31 ->  | T33: ='Calc|Fee Based'!C31 ->  | U33: ='Calc|Fee Based'!D31 ->  | V33: ='Calc|Fee Based'!F31 ->  | W33: ='Calc|Fee Based'!H31 -> 0 | X33: 0 | Y33: 0 | Z33: 0 | AA33: 0
A34: 23 | L34: 0 | M34: 0 | N34: 0 | O34: 0 | P34: 0 | R34: 23 | S34: ='Calc|Fee Based'!B32 ->  | T34: ='Calc|Fee Based'!C32 ->  | U34: ='Calc|Fee Based'!D32 ->  | V34: ='Calc|Fee Based'!F32 ->  | W34: ='Calc|Fee Based'!H32 -> 0 | X34: 0 | Y34: 0 | Z34: 0 | AA34: 0
A35: 24 | L35: 0 | M35: 0 | N35: 0 | O35: 0 | P35: 0 | R35: 24 | S35: ='Calc|Fee Based'!B33 ->  | T35: ='Calc|Fee Based'!C33 ->  | U35: ='Calc|Fee Based'!D33 ->  | V35: ='Calc|Fee Based'!F33 ->  | W35: ='Calc|Fee Based'!H33 -> 0 | X35: 0 | Y35: 0 | Z35: 0 | AA35: 0
A36: 25 | L36: 0 | M36: 0 | N36: 0 | O36: 0 | P36: 0 | R36: 25 | S36: ='Calc|Fee Based'!B34 ->  | T36: ='Calc|Fee Based'!C34 ->  | U36: ='Calc|Fee Based'!D34 ->  | V36: ='Calc|Fee Based'!F34 ->  | W36: ='Calc|Fee Based'!H34 -> 0 | X36: 0 | Y36: 0 | Z36: 0 | AA36: 0
A37: 26 | L37: 0 | M37: 0 | N37: 0 | O37: 0 | P37: 0 | R37: 26 | S37: ='Calc|Fee Based'!B35 ->  | T37: ='Calc|Fee Based'!C35 ->  | U37: ='Calc|Fee Based'!D35 ->  | V37: ='Calc|Fee Based'!F35 ->  | W37: ='Calc|Fee Based'!H35 -> 0 | X37: 0 | Y37: 0 | Z37: 0 | AA37: 0
A38: 27 | L38: 0 | M38: 0 | N38: 0 | O38: 0 | P38: 0 | R38: 27 | S38: ='Calc|Fee Based'!B36 ->  | T38: ='Calc|Fee Based'!C36 ->  | U38: ='Calc|Fee Based'!D36 ->  | V38: ='Calc|Fee Based'!F36 ->  | W38: ='Calc|Fee Based'!H36 -> 0 | X38: 0 | Y38: 0 | Z38: 0 | AA38: 0
A39: 28 | L39: 0 | M39: 0 | N39: 0 | O39: 0 | P39: 0 | R39: 28 | S39: ='Calc|Fee Based'!B37 ->  | T39: ='Calc|Fee Based'!C37 ->  | U39: ='Calc|Fee Based'!D37 ->  | V39: ='Calc|Fee Based'!F37 ->  | W39: ='Calc|Fee Based'!H37 -> 0 | X39: 0 | Y39: 0 | Z39: 0 | AA39: 0
A40: 29 | L40: 0 | M40: 0 | N40: 0 | O40: 0 | P40: 0 | R40: 29 | S40: ='Calc|Fee Based'!B38 ->  | T40: ='Calc|Fee Based'!C38 ->  | U40: ='Calc|Fee Based'!D38 ->  | V40: ='Calc|Fee Based'!F38 ->  | W40: ='Calc|Fee Based'!H38 -> 0 | X40: 0 | Y40: 0 | Z40: 0 | AA40: 0
A41: 30 | L41: 0 | M41: 0 | N41: 0 | O41: 0 | P41: 0 | R41: 30 | S41: ='Calc|Fee Based'!B39 ->  | T41: ='Calc|Fee Based'!C39 ->  | U41: ='Calc|Fee Based'!D39 ->  | V41: ='Calc|Fee Based'!F39 ->  | W41: ='Calc|Fee Based'!H39 -> 0 | X41: 0 | Y41: 0 | Z41: 0 | AA41: 0
A42: 31 | L42: 0 | M42: 0 | N42: 0 | O42: 0 | P42: 0 | R42: 31 | S42: ='Calc|Fee Based'!B40 ->  | T42: ='Calc|Fee Based'!C40 ->  | U42: ='Calc|Fee Based'!D40 ->  | V42: ='Calc|Fee Based'!F40 ->  | W42: ='Calc|Fee Based'!H40 -> 0 | X42: 0 | Y42: 0 | Z42: 0 | AA42: 0
A43: 32 | L43: 0 | M43: 0 | N43: 0 | O43: 0 | P43: 0 | R43: 32 | S43: ='Calc|Fee Based'!B41 ->  | T43: ='Calc|Fee Based'!C41 ->  | U43: ='Calc|Fee Based'!D41 ->  | V43: ='Calc|Fee Based'!F41 ->  | W43: ='Calc|Fee Based'!H41 -> 0 | X43: 0 | Y43: 0 | Z43: 0 | AA43: 0
A44: 33 | L44: 0 | M44: 0 | N44: 0 | O44: 0 | P44: 0 | R44: 33 | S44: ='Calc|Fee Based'!B42 ->  | T44: ='Calc|Fee Based'!C42 ->  | U44: ='Calc|Fee Based'!D42 ->  | V44: ='Calc|Fee Based'!F42 ->  | W44: ='Calc|Fee Based'!H42 -> 0 | X44: 0 | Y44: 0 | Z44: 0 | AA44: 0
A45: 34 | L45: 0 | M45: 0 | N45: 0 | O45: 0 | P45: 0 | R45: 34 | S45: ='Calc|Fee Based'!B43 ->  | T45: ='Calc|Fee Based'!C43 ->  | U45: ='Calc|Fee Based'!D43 ->  | V45: ='Calc|Fee Based'!F43 ->  | W45: ='Calc|Fee Based'!H43 -> 0 | X45: 0 | Y45: 0 | Z45: 0 | AA45: 0
A46: 35 | L46: 0 | M46: 0 | N46: 0 | O46: 0 | P46: 0 | R46: 35 | S46: ='Calc|Fee Based'!B44 ->  | T46: ='Calc|Fee Based'!C44 ->  | U46: ='Calc|Fee Based'!D44 ->  | V46: ='Calc|Fee Based'!F44 ->  | W46: ='Calc|Fee Based'!H44 -> 0 | X46: 0 | Y46: 0 | Z46: 0 | AA46: 0
A47: 36 | L47: 0 | M47: 0 | N47: 0 | O47: 0 | P47: 0 | R47: 36 | S47: ='Calc|Fee Based'!B45 ->  | T47: ='Calc|Fee Based'!C45 ->  | U47: ='Calc|Fee Based'!D45 ->  | V47: ='Calc|Fee Based'!F45 ->  | W47: ='Calc|Fee Based'!H45 -> 0 | X47: 0 | Y47: 0 | Z47: 0 | AA47: 0
A48: 37 | L48: 0 | M48: 0 | N48: 0 | O48: 0 | P48: 0 | R48: 37 | S48: ='Calc|Fee Based'!B46 ->  | T48: ='Calc|Fee Based'!C46 ->  | U48: ='Calc|Fee Based'!D46 ->  | V48: ='Calc|Fee Based'!F46 ->  | W48: ='Calc|Fee Based'!H46 -> 0 | X48: 0 | Y48: 0 | Z48: 0 | AA48: 0
A49: 38 | L49: 0 | M49: 0 | N49: 0 | O49: 0 | P49: 0 | R49: 38 | S49: ='Calc|Fee Based'!B47 ->  | T49: ='Calc|Fee Based'!C47 ->  | U49: ='Calc|Fee Based'!D47 ->  | V49: ='Calc|Fee Based'!F47 ->  | W49: ='Calc|Fee Based'!H47 -> 0 | X49: 0 | Y49: 0 | Z49: 0 | AA49: 0
A50: 39 | L50: 0 | M50: 0 | N50: 0 | O50: 0 | P50: 0 | R50: 39 | S50: ='Calc|Fee Based'!B48 ->  | T50: ='Calc|Fee Based'!C48 ->  | U50: ='Calc|Fee Based'!D48 ->  | V50: ='Calc|Fee Based'!F48 ->  | W50: ='Calc|Fee Based'!H48 -> 0 | X50: 0 | Y50: 0 | Z50: 0 | AA50: 0
A51: 40 | L51: 0 | M51: 0 | N51: 0 | O51: 0 | P51: 0 | R51: 40 | S51: ='Calc|Fee Based'!B49 ->  | T51: ='Calc|Fee Based'!C49 ->  | U51: ='Calc|Fee Based'!D49 ->  | V51: ='Calc|Fee Based'!F49 ->  | W51: ='Calc|Fee Based'!H49 -> 0 | X51: 0 | Y51: 0 | Z51: 0 | AA51: 0
A52: 41 | L52: 0 | M52: 0 | N52: 0 | O52: 0 | P52: 0 | R52: 41 | S52: ='Calc|Fee Based'!B50 ->  | T52: ='Calc|Fee Based'!C50 ->  | U52: ='Calc|Fee Based'!D50 ->  | V52: ='Calc|Fee Based'!F50 ->  | W52: ='Calc|Fee Based'!H50 -> 0 | X52: =W52*(1+X$5)*(1-X$6) -> 0 | Y52: 0 | Z52: 0 | AA52: 0
A53: 42 | L53: 0 | M53: 0 | N53: 0 | O53: 0 | P53: 0 | R53: 42 | S53: ='Calc|Fee Based'!B51 ->  | T53: ='Calc|Fee Based'!C51 ->  | U53: ='Calc|Fee Based'!D51 ->  | V53: ='Calc|Fee Based'!F51 ->  | W53: ='Calc|Fee Based'!H51 -> 0 | X53: 0 | Y53: 0 | Z53: 0 | AA53: 0
A54: 43 | L54: 0 | M54: 0 | N54: 0 | O54: 0 | P54: 0 | R54: 43 | S54: ='Calc|Fee Based'!B52 ->  | T54: ='Calc|Fee Based'!C52 ->  | U54: ='Calc|Fee Based'!D52 ->  | V54: ='Calc|Fee Based'!F52 ->  | W54: ='Calc|Fee Based'!H52 -> 0 | X54: 0 | Y54: 0 | Z54: 0 | AA54: 0
A55: 44 | L55: 0 | M55: 0 | N55: 0 | O55: 0 | P55: 0 | R55: 44 | S55: ='Calc|Fee Based'!B53 ->  | T55: ='Calc|Fee Based'!C53 ->  | U55: ='Calc|Fee Based'!D53 ->  | V55: ='Calc|Fee Based'!F53 ->  | W55: ='Calc|Fee Based'!H53 -> 0 | X55: 0 | Y55: 0 | Z55: 0 | AA55: 0
A56: 45 | L56: 0 | M56: 0 | N56: 0 | O56: 0 | P56: 0 | R56: 45 | S56: ='Calc|Fee Based'!B54 ->  | T56: ='Calc|Fee Based'!C54 ->  | U56: ='Calc|Fee Based'!D54 ->  | V56: ='Calc|Fee Based'!F54 ->  | W56: ='Calc|Fee Based'!H54 -> 0 | X56: 0 | Y56: 0 | Z56: 0 | AA56: 0
A57: 46 | L57: 0 | M57: 0 | N57: 0 | O57: 0 | P57: 0 | R57: 46 | S57: ='Calc|Fee Based'!B55 ->  | T57: ='Calc|Fee Based'!C55 ->  | U57: ='Calc|Fee Based'!D55 ->  | V57: ='Calc|Fee Based'!F55 ->  | W57: ='Calc|Fee Based'!H55 -> 0 | X57: 0 | Y57: 0 | Z57: 0 | AA57: 0
A58: 47 | L58: 0 | M58: 0 | N58: 0 | O58: 0 | P58: 0 | R58: 47 | S58: ='Calc|Fee Based'!B56 ->  | T58: ='Calc|Fee Based'!C56 ->  | U58: ='Calc|Fee Based'!D56 ->  | V58: ='Calc|Fee Based'!F56 ->  | W58: ='Calc|Fee Based'!H56 -> 0 | X58: 0 | Y58: 0 | Z58: 0 | AA58: 0
A59: 48 | L59: 0 | M59: 0 | N59: 0 | O59: 0 | P59: 0 | R59: 48 | S59: ='Calc|Fee Based'!B57 ->  | T59: ='Calc|Fee Based'!C57 ->  | U59: ='Calc|Fee Based'!D57 ->  | V59: ='Calc|Fee Based'!F57 ->  | W59: ='Calc|Fee Based'!H57 -> 0 | X59: 0 | Y59: 0 | Z59: 0 | AA59: 0
A60: 49 | L60: 0 | M60: 0 | N60: 0 | O60: 0 | P60: 0 | R60: 49 | S60: ='Calc|Fee Based'!B58 ->  | T60: ='Calc|Fee Based'!C58 ->  | U60: ='Calc|Fee Based'!D58 ->  | V60: ='Calc|Fee Based'!F58 ->  | W60: ='Calc|Fee Based'!H58 -> 0 | X60: 0 | Y60: 0 | Z60: 0 | AA60: 0
A61: 50 | L61: 0 | M61: 0 | N61: 0 | O61: 0 | P61: 0 | R61: 50 | S61: ='Calc|Fee Based'!B59 ->  | T61: ='Calc|Fee Based'!C59 ->  | U61: ='Calc|Fee Based'!D59 ->  | V61: ='Calc|Fee Based'!F59 ->  | W61: ='Calc|Fee Based'!H59 -> 0 | X61: 0 | Y61: 0 | Z61: 0 | AA61: 0
A62: 51 | L62: 0 | M62: 0 | N62: 0 | O62: 0 | P62: 0 | R62: 51 | S62: ='Calc|Fee Based'!B60 ->  | T62: ='Calc|Fee Based'!C60 ->  | U62: ='Calc|Fee Based'!D60 ->  | V62: ='Calc|Fee Based'!F60 ->  | W62: ='Calc|Fee Based'!H60 -> 0 | X62: 0 | Y62: 0 | Z62: 0 | AA62: 0
A63: 52 | L63: 0 | M63: 0 | N63: 0 | O63: 0 | P63: 0 | R63: 52 | S63: ='Calc|Fee Based'!B61 ->  | T63: ='Calc|Fee Based'!C61 ->  | U63: ='Calc|Fee Based'!D61 ->  | V63: ='Calc|Fee Based'!F61 ->  | W63: ='Calc|Fee Based'!H61 -> 0 | X63: 0 | Y63: 0 | Z63: 0 | AA63: 0
A64: 53 | L64: 0 | M64: 0 | N64: 0 | O64: 0 | P64: 0 | R64: 53 | S64: ='Calc|Fee Based'!B62 ->  | T64: ='Calc|Fee Based'!C62 ->  | U64: ='Calc|Fee Based'!D62 ->  | V64: ='Calc|Fee Based'!F62 ->  | W64: ='Calc|Fee Based'!H62 -> 0 | X64: 0 | Y64: 0 | Z64: 0 | AA64: 0
A65: 54 | L65: 0 | M65: 0 | N65: 0 | O65: 0 | P65: 0 | R65: 54 | S65: ='Calc|Fee Based'!B63 ->  | T65: ='Calc|Fee Based'!C63 ->  | U65: ='Calc|Fee Based'!D63 ->  | V65: ='Calc|Fee Based'!F63 ->  | W65: ='Calc|Fee Based'!H63 -> 0 | X65: 0 | Y65: 0 | Z65: 0 | AA65: 0
A66: 55 | L66: 0 | M66: 0 | N66: 0 | O66: 0 | P66: 0 | R66: 55 | S66: ='Calc|Fee Based'!B64 ->  | T66: ='Calc|Fee Based'!C64 ->  | U66: ='Calc|Fee Based'!D64 ->  | V66: ='Calc|Fee Based'!F64 ->  | W66: ='Calc|Fee Based'!H64 -> 0 | X66: 0 | Y66: 0 | Z66: 0 | AA66: 0
A67: 56 | L67: 0 | M67: 0 | N67: 0 | O67: 0 | P67: 0 | R67: 56 | S67: ='Calc|Fee Based'!B65 ->  | T67: ='Calc|Fee Based'!C65 ->  | U67: ='Calc|Fee Based'!D65 ->  | V67: ='Calc|Fee Based'!F65 ->  | W67: ='Calc|Fee Based'!H65 -> 0 | X67: 0 | Y67: 0 | Z67: 0 | AA67: 0
A68: 57 | L68: 0 | M68: 0 | N68: 0 | O68: 0 | P68: 0 | R68: 57 | S68: ='Calc|Fee Based'!B66 ->  | T68: ='Calc|Fee Based'!C66 ->  | U68: ='Calc|Fee Based'!D66 ->  | V68: ='Calc|Fee Based'!F66 ->  | W68: ='Calc|Fee Based'!H66 -> 0 | X68: 0 | Y68: 0 | Z68: 0 | AA68: 0
A69: 58 | L69: 0 | M69: 0 | N69: 0 | O69: 0 | P69: 0 | R69: 58 | S69: ='Calc|Fee Based'!B67 ->  | T69: ='Calc|Fee Based'!C67 ->  | U69: ='Calc|Fee Based'!D67 ->  | V69: ='Calc|Fee Based'!F67 ->  | W69: ='Calc|Fee Based'!H67 -> 0 | X69: 0 | Y69: 0 | Z69: 0 | AA69: 0
A70: 59 | L70: 0 | M70: 0 | N70: 0 | O70: 0 | P70: 0 | R70: 59 | S70: ='Calc|Fee Based'!B68 ->  | T70: ='Calc|Fee Based'!C68 ->  | U70: ='Calc|Fee Based'!D68 ->  | V70: ='Calc|Fee Based'!F68 ->  | W70: ='Calc|Fee Based'!H68 -> 0 | X70: 0 | Y70: 0 | Z70: 0 | AA70: 0
A71: 60 | L71: 0 | M71: 0 | N71: 0 | O71: 0 | P71: 0 | R71: 60 | S71: ='Calc|Fee Based'!B69 ->  | T71: ='Calc|Fee Based'!C69 ->  | U71: ='Calc|Fee Based'!D69 ->  | V71: ='Calc|Fee Based'!F69 ->  | W71: ='Calc|Fee Based'!H69 -> 0 | X71: 0 | Y71: 0 | Z71: 0 | AA71: 0
A72: 61 | L72: 0 | M72: 0 | N72: 0 | O72: 0 | P72: 0 | R72: 61 | S72: ='Calc|Fee Based'!B70 ->  | T72: ='Calc|Fee Based'!C70 ->  | U72: ='Calc|Fee Based'!D70 ->  | V72: ='Calc|Fee Based'!F70 ->  | W72: ='Calc|Fee Based'!H70 -> 0 | X72: =W72*(1+X$5)*(1-X$6) -> 0 | Y72: 0 | Z72: 0 | AA72: 0
A73: 62 | L73: 0 | M73: 0 | N73: 0 | O73: 0 | P73: 0 | R73: 62 | S73: ='Calc|Fee Based'!B71 ->  | T73: ='Calc|Fee Based'!C71 ->  | U73: ='Calc|Fee Based'!D71 ->  | V73: ='Calc|Fee Based'!F71 ->  | W73: ='Calc|Fee Based'!H71 -> 0 | X73: 0 | Y73: 0 | Z73: 0 | AA73: 0
A74: 63 | L74: 0 | M74: 0 | N74: 0 | O74: 0 | P74: 0 | R74: 63 | S74: ='Calc|Fee Based'!B72 ->  | T74: ='Calc|Fee Based'!C72 ->  | U74: ='Calc|Fee Based'!D72 ->  | V74: ='Calc|Fee Based'!F72 ->  | W74: ='Calc|Fee Based'!H72 -> 0 | X74: 0 | Y74: 0 | Z74: 0 | AA74: 0
A75: 64 | L75: 0 | M75: 0 | N75: 0 | O75: 0 | P75: 0 | R75: 64 | S75: ='Calc|Fee Based'!B73 ->  | T75: ='Calc|Fee Based'!C73 ->  | U75: ='Calc|Fee Based'!D73 ->  | V75: ='Calc|Fee Based'!F73 ->  | W75: ='Calc|Fee Based'!H73 -> 0 | X75: 0 | Y75: 0 | Z75: 0 | AA75: 0
A76: 65 | L76: =IF(E76<=K76,0,1) -> 0 | M76: =IF(F76<=$K76*(1+M$5)*(1-M$6),0,1) -> 0 | N76: =IF(G76<=$K76*(1+M$5)*(1-M$6)*(1+N$5)*(1-N$6),0,1) -> 0 | O76: =IF(H76<=$K76*(1+M$5)*(1-M$6)*(1+N$5)*(1-N$6)*(1+O$5)*(1-O$6),0,1) -> 0 | P76: =IF(I76<=$K76*(1+M$5)*(1-M$6)*(1+N$5)*(1-N$6)*(1+O$5)*(1-O$6)*(1+P$5)*(1-P$6),0,1) -> 0 | R76: 65 | S76: ='Calc|Fee Based'!B74 ->  | T76: ='Calc|Fee Based'!C74 ->  | U76: ='Calc|Fee Based'!D74 ->  | V76: ='Calc|Fee Based'!F74 ->  | W76: ='Calc|Fee Based'!H74 -> 0 | X76: 0 | Y76: 0 | Z76: 0 | AA76: 0
A77: 66 | L77: 0 | M77: 0 | N77: 0 | O77: 0 | P77: 0 | R77: 66 | S77: ='Calc|Fee Based'!B75 ->  | T77: ='Calc|Fee Based'!C75 ->  | U77: ='Calc|Fee Based'!D75 ->  | V77: ='Calc|Fee Based'!F75 ->  | W77: ='Calc|Fee Based'!H75 -> 0 | X77: 0 | Y77: 0 | Z77: 0 | AA77: 0
A78: =IFERROR(A77+1,"") -> 67 | L78: 0 | M78: 0 | N78: 0 | O78: 0 | P78: 0 | R78: 67 | S78: ='Calc|Fee Based'!B76 ->  | T78: ='Calc|Fee Based'!C76 ->  | U78: ='Calc|Fee Based'!D76 ->  | V78: ='Calc|Fee Based'!F76 ->  | W78: ='Calc|Fee Based'!H76 -> 0 | X78: 0 | Y78: 0 | Z78: 0 | AA78: 0
A79: 68 | L79: 0 | M79: 0 | N79: 0 | O79: 0 | P79: 0 | R79: =IFERROR(R78+1,"") -> 68 | S79: ='Calc|Fee Based'!B77 ->  | T79: ='Calc|Fee Based'!C77 ->  | U79: ='Calc|Fee Based'!D77 ->  | V79: ='Calc|Fee Based'!F77 ->  | W79: ='Calc|Fee Based'!H77 -> 0 | X79: 0 | Y79: 0 | Z79: 0 | AA79: 0
A80: 69 | L80: 0 | M80: 0 | N80: 0 | O80: 0 | P80: 0 | R80: 69 | S80: ='Calc|Fee Based'!B78 ->  | T80: ='Calc|Fee Based'!C78 ->  | U80: ='Calc|Fee Based'!D78 ->  | V80: ='Calc|Fee Based'!F78 ->  | W80: ='Calc|Fee Based'!H78 -> 0 | X80: 0 | Y80: 0 | Z80: 0 | AA80: 0
A81: 70 | L81: 0 | M81: 0 | N81: 0 | O81: 0 | P81: 0 | R81: 70 | S81: ='Calc|Fee Based'!B79 ->  | T81: ='Calc|Fee Based'!C79 ->  | U81: ='Calc|Fee Based'!D79 ->  | V81: ='Calc|Fee Based'!F79 ->  | W81: ='Calc|Fee Based'!H79 -> 0 | X81: 0 | Y81: 0 | Z81: 0 | AA81: 0
A82: 71 | L82: 0 | M82: 0 | N82: 0 | O82: 0 | P82: 0 | R82: 71 | S82: ='Calc|Fee Based'!B80 ->  | T82: ='Calc|Fee Based'!C80 ->  | U82: ='Calc|Fee Based'!D80 ->  | V82: ='Calc|Fee Based'!F80 ->  | W82: ='Calc|Fee Based'!H80 -> 0 | X82: 0 | Y82: 0 | Z82: 0 | AA82: 0
A83: 72 | L83: 0 | M83: 0 | N83: 0 | O83: 0 | P83: 0 | R83: 72 | S83: ='Calc|Fee Based'!B81 ->  | T83: ='Calc|Fee Based'!C81 ->  | U83: ='Calc|Fee Based'!D81 ->  | V83: ='Calc|Fee Based'!F81 ->  | W83: ='Calc|Fee Based'!H81 -> 0 | X83: 0 | Y83: 0 | Z83: 0 | AA83: 0
A84: 73 | L84: 0 | M84: 0 | N84: 0 | O84: 0 | P84: 0 | R84: 73 | S84: ='Calc|Fee Based'!B82 ->  | T84: ='Calc|Fee Based'!C82 ->  | U84: ='Calc|Fee Based'!D82 ->  | V84: ='Calc|Fee Based'!F82 ->  | W84: ='Calc|Fee Based'!H82 -> 0 | X84: 0 | Y84: 0 | Z84: 0 | AA84: 0
A85: 74 | L85: 0 | M85: 0 | N85: 0 | O85: 0 | P85: 0 | R85: 74 | S85: ='Calc|Fee Based'!B83 ->  | T85: ='Calc|Fee Based'!C83 ->  | U85: ='Calc|Fee Based'!D83 ->  | V85: ='Calc|Fee Based'!F83 ->  | W85: ='Calc|Fee Based'!H83 -> 0 | X85: 0 | Y85: 0 | Z85: 0 | AA85: 0
A86: 75 | L86: 0 | M86: 0 | N86: 0 | O86: 0 | P86: 0 | R86: 75 | S86: ='Calc|Fee Based'!B84 ->  | T86: ='Calc|Fee Based'!C84 ->  | U86: ='Calc|Fee Based'!D84 ->  | V86: ='Calc|Fee Based'!F84 ->  | W86: ='Calc|Fee Based'!H84 -> 0 | X86: 0 | Y86: 0 | Z86: 0 | AA86: 0
A87: 76 | L87: 0 | M87: 0 | N87: 0 | O87: 0 | P87: 0 | R87: 76 | S87: ='Calc|Fee Based'!B85 ->  | T87: ='Calc|Fee Based'!C85 ->  | U87: ='Calc|Fee Based'!D85 ->  | V87: ='Calc|Fee Based'!F85 ->  | W87: ='Calc|Fee Based'!H85 -> 0 | X87: 0 | Y87: 0 | Z87: 0 | AA87: 0
A88: 77 | L88: 0 | M88: 0 | N88: 0 | O88: 0 | P88: 0 | R88: 77 | S88: ='Calc|Fee Based'!B86 ->  | T88: ='Calc|Fee Based'!C86 ->  | U88: ='Calc|Fee Based'!D86 ->  | V88: ='Calc|Fee Based'!F86 ->  | W88: ='Calc|Fee Based'!H86 -> 0 | X88: 0 | Y88: 0 | Z88: 0 | AA88: 0
A89: 78 | L89: 0 | M89: 0 | N89: 0 | O89: 0 | P89: 0 | R89: 78 | S89: ='Calc|Fee Based'!B87 ->  | T89: ='Calc|Fee Based'!C87 ->  | U89: ='Calc|Fee Based'!D87 ->  | V89: ='Calc|Fee Based'!F87 ->  | W89: ='Calc|Fee Based'!H87 -> 0 | X89: 0 | Y89: 0 | Z89: 0 | AA89: 0
A90: 79 | L90: 0 | M90: 0 | N90: 0 | O90: 0 | P90: 0 | R90: 79 | S90: ='Calc|Fee Based'!B88 ->  | T90: ='Calc|Fee Based'!C88 ->  | U90: ='Calc|Fee Based'!D88 ->  | V90: ='Calc|Fee Based'!F88 ->  | W90: ='Calc|Fee Based'!H88 -> 0 | X90: 0 | Y90: 0 | Z90: 0 | AA90: 0
A91: 80 | L91: 0 | M91: 0 | N91: 0 | O91: 0 | P91: 0 | R91: 80 | S91: ='Calc|Fee Based'!B89 ->  | T91: ='Calc|Fee Based'!C89 ->  | U91: ='Calc|Fee Based'!D89 ->  | V91: ='Calc|Fee Based'!F89 ->  | W91: ='Calc|Fee Based'!H89 -> 0 | X91: 0 | Y91: 0 | Z91: 0 | AA91: 0
A92: 81 | L92: 0 | M92: 0 | N92: 0 | O92: 0 | P92: 0 | R92: 81 | S92: ='Calc|Fee Based'!B90 ->  | T92: ='Calc|Fee Based'!C90 ->  | U92: ='Calc|Fee Based'!D90 ->  | V92: ='Calc|Fee Based'!F90 ->  | W92: ='Calc|Fee Based'!H90 -> 0 | X92: =W92*(1+X$5)*(1-X$6) -> 0 | Y92: 0 | Z92: 0 | AA92: 0
A93: 82 | L93: 0 | M93: 0 | N93: 0 | O93: 0 | P93: 0 | R93: 82 | S93: ='Calc|Fee Based'!B91 ->  | T93: ='Calc|Fee Based'!C91 ->  | U93: ='Calc|Fee Based'!D91 ->  | V93: ='Calc|Fee Based'!F91 ->  | W93: ='Calc|Fee Based'!H91 -> 0 | X93: 0 | Y93: 0 | Z93: 0 | AA93: 0
A94: 83 | L94: 0 | M94: 0 | N94: 0 | O94: 0 | P94: 0 | R94: 83 | S94: ='Calc|Fee Based'!B92 ->  | T94: ='Calc|Fee Based'!C92 ->  | U94: ='Calc|Fee Based'!D92 ->  | V94: ='Calc|Fee Based'!F92 ->  | W94: ='Calc|Fee Based'!H92 -> 0 | X94: 0 | Y94: 0 | Z94: 0 | AA94: 0
A95: 84 | L95: 0 | M95: 0 | N95: 0 | O95: 0 | P95: 0 | R95: 84 | S95: ='Calc|Fee Based'!B93 ->  | T95: ='Calc|Fee Based'!C93 ->  | U95: ='Calc|Fee Based'!D93 ->  | V95: ='Calc|Fee Based'!F93 ->  | W95: ='Calc|Fee Based'!H93 -> 0 | X95: 0 | Y95: 0 | Z95: 0 | AA95: 0
A96: 85 | L96: 0 | M96: 0 | N96: 0 | O96: 0 | P96: 0 | R96: 85 | S96: ='Calc|Fee Based'!B94 ->  | T96: ='Calc|Fee Based'!C94 ->  | U96: ='Calc|Fee Based'!D94 ->  | V96: ='Calc|Fee Based'!F94 ->  | W96: ='Calc|Fee Based'!H94 -> 0 | X96: 0 | Y96: 0 | Z96: 0 | AA96: 0
A97: 86 | L97: 0 | M97: 0 | N97: 0 | O97: 0 | P97: 0 | R97: 86 | S97: ='Calc|Fee Based'!B95 ->  | T97: ='Calc|Fee Based'!C95 ->  | U97: ='Calc|Fee Based'!D95 ->  | V97: ='Calc|Fee Based'!F95 ->  | W97: ='Calc|Fee Based'!H95 -> 0 | X97: 0 | Y97: 0 | Z97: 0 | AA97: 0
A98: 87 | L98: 0 | M98: 0 | N98: 0 | O98: 0 | P98: 0 | R98: 87 | S98: ='Calc|Fee Based'!B96 ->  | T98: ='Calc|Fee Based'!C96 ->  | U98: ='Calc|Fee Based'!D96 ->  | V98: ='Calc|Fee Based'!F96 ->  | W98: ='Calc|Fee Based'!H96 -> 0 | X98: 0 | Y98: 0 | Z98: 0 | AA98: 0
A99: 88 | L99: 0 | M99: 0 | N99: 0 | O99: 0 | P99: 0 | R99: 88 | S99: ='Calc|Fee Based'!B97 ->  | T99: ='Calc|Fee Based'!C97 ->  | U99: ='Calc|Fee Based'!D97 ->  | V99: ='Calc|Fee Based'!F97 ->  | W99: ='Calc|Fee Based'!H97 -> 0 | X99: 0 | Y99: 0 | Z99: 0 | AA99: 0
A100: 89 | L100: 0 | M100: 0 | N100: 0 | O100: 0 | P100: 0 | R100: 89 | S100: ='Calc|Fee Based'!B98 ->  | T100: ='Calc|Fee Based'!C98 ->  | U100: ='Calc|Fee Based'!D98 ->  | V100: ='Calc|Fee Based'!F98 ->  | W100: ='Calc|Fee Based'!H98 -> 0 | X100: 0 | Y100: 0 | Z100: 0 | AA100: 0
A101: 90 | L101: 0 | M101: 0 | N101: 0 | O101: 0 | P101: 0 | R101: 90 | S101: ='Calc|Fee Based'!B99 ->  | T101: ='Calc|Fee Based'!C99 ->  | U101: ='Calc|Fee Based'!D99 ->  | V101: ='Calc|Fee Based'!F99 ->  | W101: ='Calc|Fee Based'!H99 -> 0 | X101: 0 | Y101: 0 | Z101: 0 | AA101: 0
A102: 91 | L102: 0 | M102: 0 | N102: 0 | O102: 0 | P102: 0 | R102: 91 | S102: ='Calc|Fee Based'!B100 ->  | T102: ='Calc|Fee Based'!C100 ->  | U102: ='Calc|Fee Based'!D100 ->  | V102: ='Calc|Fee Based'!F100 ->  | W102: ='Calc|Fee Based'!H100 -> 0 | X102: 0 | Y102: 0 | Z102: 0 | AA102: 0
A103: 92 | L103: 0 | M103: 0 | N103: 0 | O103: 0 | P103: 0 | R103: 92 | S103: ='Calc|Fee Based'!B101 ->  | T103: ='Calc|Fee Based'!C101 ->  | U103: ='Calc|Fee Based'!D101 ->  | V103: ='Calc|Fee Based'!F101 ->  | W103: ='Calc|Fee Based'!H101 -> 0 | X103: 0 | Y103: 0 | Z103: 0 | AA103: 0
A104: 93 | L104: 0 | M104: 0 | N104: 0 | O104: 0 | P104: 0 | R104: 93 | S104: ='Calc|Fee Based'!B102 ->  | T104: ='Calc|Fee Based'!C102 ->  | U104: ='Calc|Fee Based'!D102 ->  | V104: ='Calc|Fee Based'!F102 ->  | W104: ='Calc|Fee Based'!H102 -> 0 | X104: 0 | Y104: 0 | Z104: 0 | AA104: 0
A105: 94 | L105: 0 | M105: 0 | N105: 0 | O105: 0 | P105: 0 | R105: 94 | S105: ='Calc|Fee Based'!B103 ->  | T105: ='Calc|Fee Based'!C103 ->  | U105: ='Calc|Fee Based'!D103 ->  | V105: ='Calc|Fee Based'!F103 ->  | W105: ='Calc|Fee Based'!H103 -> 0 | X105: 0 | Y105: 0 | Z105: 0 | AA105: 0
A106: 95 | L106: 0 | M106: 0 | N106: 0 | O106: 0 | P106: 0 | R106: 95 | S106: ='Calc|Fee Based'!B104 ->  | T106: ='Calc|Fee Based'!C104 ->  | U106: ='Calc|Fee Based'!D104 ->  | V106: ='Calc|Fee Based'!F104 ->  | W106: ='Calc|Fee Based'!H104 -> 0 | X106: 0 | Y106: 0 | Z106: 0 | AA106: 0
A107: 96 | L107: 0 | M107: 0 | N107: 0 | O107: 0 | P107: 0 | R107: 96 | S107: ='Calc|Fee Based'!B105 ->  | T107: ='Calc|Fee Based'!C105 ->  | U107: ='Calc|Fee Based'!D105 ->  | V107: ='Calc|Fee Based'!F105 ->  | W107: ='Calc|Fee Based'!H105 -> 0 | X107: 0 | Y107: 0 | Z107: 0 | AA107: 0
A108: 97 | L108: 0 | M108: 0 | N108: 0 | O108: 0 | P108: 0 | R108: 97 | S108: ='Calc|Fee Based'!B106 ->  | T108: ='Calc|Fee Based'!C106 ->  | U108: ='Calc|Fee Based'!D106 ->  | V108: ='Calc|Fee Based'!F106 ->  | W108: ='Calc|Fee Based'!H106 -> 0 | X108: 0 | Y108: 0 | Z108: 0 | AA108: 0
A109: 98 | L109: 0 | M109: 0 | N109: 0 | O109: 0 | P109: 0 | R109: 98 | S109: ='Calc|Fee Based'!B107 ->  | T109: ='Calc|Fee Based'!C107 ->  | U109: ='Calc|Fee Based'!D107 ->  | V109: ='Calc|Fee Based'!F107 ->  | W109: ='Calc|Fee Based'!H107 -> 0 | X109: 0 | Y109: 0 | Z109: 0 | AA109: 0
A110: 99 | L110: 0 | M110: 0 | N110: 0 | O110: 0 | P110: 0 | R110: 99 | S110: ='Calc|Fee Based'!B108 ->  | T110: ='Calc|Fee Based'!C108 ->  | U110: ='Calc|Fee Based'!D108 ->  | V110: ='Calc|Fee Based'!F108 ->  | W110: ='Calc|Fee Based'!H108 -> 0 | X110: 0 | Y110: 0 | Z110: 0 | AA110: 0
A111: 100 | L111: 0 | M111: 0 | N111: 0 | O111: 0 | P111: 0 | R111: 100 | S111: ='Calc|Fee Based'!B109 ->  | T111: ='Calc|Fee Based'!C109 ->  | U111: ='Calc|Fee Based'!D109 ->  | V111: ='Calc|Fee Based'!F109 ->  | W111: ='Calc|Fee Based'!H109 -> 0 | X111: 0 | Y111: 0 | Z111: 0 | AA111: 0
A112: 101 | L112: 0 | M112: 0 | N112: 0 | O112: 0 | P112: 0 | R112: 101 | S112: ='Calc|Fee Based'!B110 ->  | T112: ='Calc|Fee Based'!C110 ->  | U112: ='Calc|Fee Based'!D110 ->  | V112: ='Calc|Fee Based'!F110 ->  | W112: ='Calc|Fee Based'!H110 -> 0 | X112: 0 | Y112: 0 | Z112: 0 | AA112: 0
A113: 102 | L113: 0 | M113: 0 | N113: 0 | O113: 0 | P113: 0 | R113: 102 | S113: ='Calc|Fee Based'!B111 ->  | T113: ='Calc|Fee Based'!C111 ->  | U113: ='Calc|Fee Based'!D111 ->  | V113: ='Calc|Fee Based'!F111 ->  | W113: ='Calc|Fee Based'!H111 -> 0 | X113: =W113*(1+X$5)*(1-X$6) -> 0 | Y113: 0 | Z113: 0 | AA113: 0
A114: 103 | L114: 0 | M114: 0 | N114: 0 | O114: 0 | P114: 0 | R114: 103 | S114: ='Calc|Fee Based'!B112 ->  | T114: ='Calc|Fee Based'!C112 ->  | U114: ='Calc|Fee Based'!D112 ->  | V114: ='Calc|Fee Based'!F112 ->  | W114: ='Calc|Fee Based'!H112 -> 0 | X114: 0 | Y114: 0 | Z114: 0 | AA114: 0
A115: 104 | L115: 0 | M115: 0 | N115: 0 | O115: 0 | P115: 0 | R115: 104 | S115: ='Calc|Fee Based'!B113 ->  | T115: ='Calc|Fee Based'!C113 ->  | U115: ='Calc|Fee Based'!D113 ->  | V115: ='Calc|Fee Based'!F113 ->  | W115: ='Calc|Fee Based'!H113 -> 0 | X115: 0 | Y115: 0 | Z115: 0 | AA115: 0
A116: 105 | L116: 0 | M116: 0 | N116: 0 | O116: 0 | P116: 0 | R116: 105 | S116: ='Calc|Fee Based'!B114 ->  | T116: ='Calc|Fee Based'!C114 ->  | U116: ='Calc|Fee Based'!D114 ->  | V116: ='Calc|Fee Based'!F114 ->  | W116: ='Calc|Fee Based'!H114 -> 0 | X116: 0 | Y116: 0 | Z116: 0 | AA116: 0
A117: 106 | L117: 0 | M117: 0 | N117: 0 | O117: 0 | P117: 0 | R117: 106 | S117: ='Calc|Fee Based'!B115 ->  | T117: ='Calc|Fee Based'!C115 ->  | U117: ='Calc|Fee Based'!D115 ->  | V117: ='Calc|Fee Based'!F115 ->  | W117: ='Calc|Fee Based'!H115 -> 0 | X117: 0 | Y117: 0 | Z117: 0 | AA117: 0
A118: 107 | L118: 0 | M118: 0 | N118: 0 | O118: 0 | P118: 0 | R118: 107 | S118: ='Calc|Fee Based'!B116 ->  | T118: ='Calc|Fee Based'!C116 ->  | U118: ='Calc|Fee Based'!D116 ->  | V118: ='Calc|Fee Based'!F116 ->  | W118: ='Calc|Fee Based'!H116 -> 0 | X118: 0 | Y118: 0 | Z118: 0 | AA118: 0
A119: 108 | L119: 0 | M119: 0 | N119: 0 | O119: 0 | P119: 0 | R119: 108 | S119: ='Calc|Fee Based'!B117 ->  | T119: ='Calc|Fee Based'!C117 ->  | U119: ='Calc|Fee Based'!D117 ->  | V119: ='Calc|Fee Based'!F117 ->  | W119: ='Calc|Fee Based'!H117 -> 0 | X119: 0 | Y119: 0 | Z119: 0 | AA119: 0
A120: 109 | L120: 0 | M120: 0 | N120: 0 | O120: 0 | P120: 0 | R120: 109 | S120: ='Calc|Fee Based'!B118 ->  | T120: ='Calc|Fee Based'!C118 ->  | U120: ='Calc|Fee Based'!D118 ->  | V120: ='Calc|Fee Based'!F118 ->  | W120: ='Calc|Fee Based'!H118 -> 0 | X120: 0 | Y120: 0 | Z120: 0 | AA120: 0
A121: 110 | L121: 0 | M121: 0 | N121: 0 | O121: 0 | P121: 0 | R121: 110 | S121: ='Calc|Fee Based'!B119 ->  | T121: ='Calc|Fee Based'!C119 ->  | U121: ='Calc|Fee Based'!D119 ->  | V121: ='Calc|Fee Based'!F119 ->  | W121: ='Calc|Fee Based'!H119 -> 0 | X121: 0 | Y121: 0 | Z121: 0 | AA121: 0
A122: 111 | L122: 0 | M122: 0 | N122: 0 | O122: 0 | P122: 0 | R122: 111 | S122: ='Calc|Fee Based'!B120 ->  | T122: ='Calc|Fee Based'!C120 ->  | U122: ='Calc|Fee Based'!D120 ->  | V122: ='Calc|Fee Based'!F120 ->  | W122: ='Calc|Fee Based'!H120 -> 0 | X122: 0 | Y122: 0 | Z122: 0 | AA122: 0
A123: 112 | L123: 0 | M123: 0 | N123: 0 | O123: 0 | P123: 0 | R123: 112 | S123: ='Calc|Fee Based'!B121 ->  | T123: ='Calc|Fee Based'!C121 ->  | U123: ='Calc|Fee Based'!D121 ->  | V123: ='Calc|Fee Based'!F121 ->  | W123: ='Calc|Fee Based'!H121 -> 0 | X123: 0 | Y123: 0 | Z123: 0 | AA123: 0
A124: 113 | L124: 0 | M124: 0 | N124: 0 | O124: 0 | P124: 0 | R124: 113 | S124: ='Calc|Fee Based'!B122 ->  | T124: ='Calc|Fee Based'!C122 ->  | U124: ='Calc|Fee Based'!D122 ->  | V124: ='Calc|Fee Based'!F122 ->  | W124: ='Calc|Fee Based'!H122 -> 0 | X124: 0 | Y124: 0 | Z124: 0 | AA124: 0
A125: 114 | L125: 0 | M125: 0 | N125: 0 | O125: 0 | P125: 0 | R125: 114 | S125: ='Calc|Fee Based'!B123 ->  | T125: ='Calc|Fee Based'!C123 ->  | U125: ='Calc|Fee Based'!D123 ->  | V125: ='Calc|Fee Based'!F123 ->  | W125: ='Calc|Fee Based'!H123 -> 0 | X125: 0 | Y125: 0 | Z125: 0 | AA125: 0
A126: 115 | L126: 0 | M126: 0 | N126: 0 | O126: 0 | P126: 0 | R126: 115 | S126: ='Calc|Fee Based'!B124 ->  | T126: ='Calc|Fee Based'!C124 ->  | U126: ='Calc|Fee Based'!D124 ->  | V126: ='Calc|Fee Based'!F124 ->  | W126: ='Calc|Fee Based'!H124 -> 0 | X126: 0 | Y126: 0 | Z126: 0 | AA126: 0
A127: 116 | L127: 0 | M127: 0 | N127: 0 | O127: 0 | P127: 0 | R127: 116 | S127: ='Calc|Fee Based'!B125 ->  | T127: ='Calc|Fee Based'!C125 ->  | U127: ='Calc|Fee Based'!D125 ->  | V127: ='Calc|Fee Based'!F125 ->  | W127: ='Calc|Fee Based'!H125 -> 0 | X127: 0 | Y127: 0 | Z127: 0 | AA127: 0
A128: 117 | L128: 0 | M128: 0 | N128: 0 | O128: 0 | P128: 0 | R128: 117 | S128: ='Calc|Fee Based'!B126 ->  | T128: ='Calc|Fee Based'!C126 ->  | U128: ='Calc|Fee Based'!D126 ->  | V128: ='Calc|Fee Based'!F126 ->  | W128: ='Calc|Fee Based'!H126 -> 0 | X128: 0 | Y128: 0 | Z128: 0 | AA128: 0
A129: 118 | L129: 0 | M129: 0 | N129: 0 | O129: 0 | P129: 0 | R129: 118 | S129: ='Calc|Fee Based'!B127 ->  | T129: ='Calc|Fee Based'!C127 ->  | U129: ='Calc|Fee Based'!D127 ->  | V129: ='Calc|Fee Based'!F127 ->  | W129: ='Calc|Fee Based'!H127 -> 0 | X129: 0 | Y129: 0 | Z129: 0 | AA129: 0
A130: 119 | L130: 0 | M130: 0 | N130: 0 | O130: 0 | P130: 0 | R130: 119 | S130: ='Calc|Fee Based'!B128 ->  | T130: ='Calc|Fee Based'!C128 ->  | U130: ='Calc|Fee Based'!D128 ->  | V130: ='Calc|Fee Based'!F128 ->  | W130: ='Calc|Fee Based'!H128 -> 0 | X130: 0 | Y130: 0 | Z130: 0 | AA130: 0
A131: 120 | L131: 0 | M131: 0 | N131: 0 | O131: 0 | P131: 0 | R131: 120 | S131: ='Calc|Fee Based'!B129 ->  | T131: ='Calc|Fee Based'!C129 ->  | U131: ='Calc|Fee Based'!D129 ->  | V131: ='Calc|Fee Based'!F129 ->  | W131: ='Calc|Fee Based'!H129 -> 0 | X131: 0 | Y131: 0 | Z131: 0 | AA131: 0
A132: 121 | L132: 0 | M132: 0 | N132: 0 | O132: 0 | P132: 0 | R132: 121 | S132: ='Calc|Fee Based'!B130 ->  | T132: ='Calc|Fee Based'!C130 ->  | U132: ='Calc|Fee Based'!D130 ->  | V132: ='Calc|Fee Based'!F130 ->  | W132: ='Calc|Fee Based'!H130 -> 0 | X132: 0 | Y132: 0 | Z132: 0 | AA132: 0
A133: 122 | L133: 0 | M133: 0 | N133: 0 | O133: 0 | P133: 0 | R133: 122 | S133: ='Calc|Fee Based'!B131 ->  | T133: ='Calc|Fee Based'!C131 ->  | U133: ='Calc|Fee Based'!D131 ->  | V133: ='Calc|Fee Based'!F131 ->  | W133: ='Calc|Fee Based'!H131 -> 0 | X133: 0 | Y133: 0 | Z133: 0 | AA133: 0
A134: 123 | L134: 0 | M134: 0 | N134: 0 | O134: 0 | P134: 0 | R134: 123 | S134: ='Calc|Fee Based'!B132 ->  | T134: ='Calc|Fee Based'!C132 ->  | U134: ='Calc|Fee Based'!D132 ->  | V134: ='Calc|Fee Based'!F132 ->  | W134: ='Calc|Fee Based'!H132 -> 0 | X134: 0 | Y134: 0 | Z134: 0 | AA134: 0
A135: 124 | L135: 0 | M135: 0 | N135: 0 | O135: 0 | P135: 0 | R135: 124 | S135: ='Calc|Fee Based'!B133 ->  | T135: ='Calc|Fee Based'!C133 ->  | U135: ='Calc|Fee Based'!D133 ->  | V135: ='Calc|Fee Based'!F133 ->  | W135: ='Calc|Fee Based'!H133 -> 0 | X135: 0 | Y135: 0 | Z135: 0 | AA135: 0
A136: 125 | L136: 0 | M136: 0 | N136: 0 | O136: 0 | P136: 0 | R136: 125 | S136: ='Calc|Fee Based'!B134 ->  | T136: ='Calc|Fee Based'!C134 ->  | U136: ='Calc|Fee Based'!D134 ->  | V136: ='Calc|Fee Based'!F134 ->  | W136: ='Calc|Fee Based'!H134 -> 0 | X136: 0 | Y136: 0 | Z136: 0 | AA136: 0
A137: 126 | L137: 0 | M137: 0 | N137: 0 | O137: 0 | P137: 0 | R137: 126 | S137: ='Calc|Fee Based'!B135 ->  | T137: ='Calc|Fee Based'!C135 ->  | U137: ='Calc|Fee Based'!D135 ->  | V137: ='Calc|Fee Based'!F135 ->  | W137: ='Calc|Fee Based'!H135 -> 0 | X137: 0 | Y137: 0 | Z137: 0 | AA137: 0
A138: 127 | L138: 0 | M138: 0 | N138: 0 | O138: 0 | P138: 0 | R138: 127 | S138: ='Calc|Fee Based'!B136 ->  | T138: ='Calc|Fee Based'!C136 ->  | U138: ='Calc|Fee Based'!D136 ->  | V138: ='Calc|Fee Based'!F136 ->  | W138: ='Calc|Fee Based'!H136 -> 0 | X138: 0 | Y138: 0 | Z138: 0 | AA138: 0
A139: 128 | L139: 0 | M139: 0 | N139: 0 | O139: 0 | P139: 0 | R139: 128 | S139: ='Calc|Fee Based'!B137 ->  | T139: ='Calc|Fee Based'!C137 ->  | U139: ='Calc|Fee Based'!D137 ->  | V139: ='Calc|Fee Based'!F137 ->  | W139: ='Calc|Fee Based'!H137 -> 0 | X139: 0 | Y139: 0 | Z139: 0 | AA139: 0
A140: 129 | L140: =IF(E140<=K140,0,1) -> 0 | M140: =IF(F140<=$K140*(1+M$5)*(1-M$6),0,1) -> 0 | N140: =IF(G140<=$K140*(1+M$5)*(1-M$6)*(1+N$5)*(1-N$6),0,1) -> 0 | O140: =IF(H140<=$K140*(1+M$5)*(1-M$6)*(1+N$5)*(1-N$6)*(1+O$5)*(1-O$6),0,1) -> 0 | P140: =IF(I140<=$K140*(1+M$5)*(1-M$6)*(1+N$5)*(1-N$6)*(1+O$5)*(1-O$6)*(1+P$5)*(1-P$6),0,1) -> 0 | R140: 129 | S140: ='Calc|Fee Based'!B138 ->  | T140: ='Calc|Fee Based'!C138 ->  | U140: ='Calc|Fee Based'!D138 ->  | V140: ='Calc|Fee Based'!F138 ->  | W140: ='Calc|Fee Based'!H138 -> 0 | X140: 0 | Y140: 0 | Z140: 0 | AA140: 0
A141: 130 | L141: 0 | M141: 0 | N141: 0 | O141: 0 | P141: 0 | R141: 130 | S141: ='Calc|Fee Based'!B139 ->  | T141: ='Calc|Fee Based'!C139 ->  | U141: ='Calc|Fee Based'!D139 ->  | V141: ='Calc|Fee Based'!F139 ->  | W141: ='Calc|Fee Based'!H139 -> 0 | X141: 0 | Y141: 0 | Z141: 0 | AA141: 0
A142: 131 | L142: 0 | M142: 0 | N142: 0 | O142: 0 | P142: 0 | R142: 131 | S142: ='Calc|Fee Based'!B140 ->  | T142: ='Calc|Fee Based'!C140 ->  | U142: ='Calc|Fee Based'!D140 ->  | V142: ='Calc|Fee Based'!F140 ->  | W142: ='Calc|Fee Based'!H140 -> 0 | X142: 0 | Y142: 0 | Z142: 0 | AA142: 0
A143: 132 | L143: 0 | M143: 0 | N143: 0 | O143: 0 | P143: 0 | R143: 132 | S143: ='Calc|Fee Based'!B141 ->  | T143: ='Calc|Fee Based'!C141 ->  | U143: ='Calc|Fee Based'!D141 ->  | V143: ='Calc|Fee Based'!F141 ->  | W143: ='Calc|Fee Based'!H141 -> 0 | X143: 0 | Y143: 0 | Z143: 0 | AA143: 0
A144: 133 | L144: 0 | M144: 0 | N144: 0 | O144: 0 | P144: 0 | R144: 133 | S144: ='Calc|Fee Based'!B142 ->  | T144: ='Calc|Fee Based'!C142 ->  | U144: ='Calc|Fee Based'!D142 ->  | V144: ='Calc|Fee Based'!F142 ->  | W144: ='Calc|Fee Based'!H142 -> 0 | X144: 0 | Y144: 0 | Z144: 0 | AA144: 0
A145: 134 | L145: 0 | M145: 0 | N145: 0 | O145: 0 | P145: 0 | R145: 134 | S145: ='Calc|Fee Based'!B143 ->  | T145: ='Calc|Fee Based'!C143 ->  | U145: ='Calc|Fee Based'!D143 ->  | V145: ='Calc|Fee Based'!F143 ->  | W145: ='Calc|Fee Based'!H143 -> 0 | X145: 0 | Y145: 0 | Z145: 0 | AA145: 0
A146: 135 | L146: 0 | M146: 0 | N146: 0 | O146: 0 | P146: 0 | R146: 135 | S146: ='Calc|Fee Based'!B144 ->  | T146: ='Calc|Fee Based'!C144 ->  | U146: ='Calc|Fee Based'!D144 ->  | V146: ='Calc|Fee Based'!F144 ->  | W146: ='Calc|Fee Based'!H144 -> 0 | X146: 0 | Y146: 0 | Z146: 0 | AA146: 0
A147: 136 | L147: 0 | M147: 0 | N147: 0 | O147: 0 | P147: 0 | R147: 136 | S147: ='Calc|Fee Based'!B145 ->  | T147: ='Calc|Fee Based'!C145 ->  | U147: ='Calc|Fee Based'!D145 ->  | V147: ='Calc|Fee Based'!F145 ->  | W147: ='Calc|Fee Based'!H145 -> 0 | X147: 0 | Y147: 0 | Z147: 0 | AA147: 0
A148: 137 | L148: 0 | M148: 0 | N148: 0 | O148: 0 | P148: 0 | R148: 137 | S148: ='Calc|Fee Based'!B146 ->  | T148: ='Calc|Fee Based'!C146 ->  | U148: ='Calc|Fee Based'!D146 ->  | V148: ='Calc|Fee Based'!F146 ->  | W148: ='Calc|Fee Based'!H146 -> 0 | X148: 0 | Y148: 0 | Z148: 0 | AA148: 0
A149: 138 | L149: 0 | M149: 0 | N149: 0 | O149: 0 | P149: 0 | R149: 138 | S149: ='Calc|Fee Based'!B147 ->  | T149: ='Calc|Fee Based'!C147 ->  | U149: ='Calc|Fee Based'!D147 ->  | V149: ='Calc|Fee Based'!F147 ->  | W149: ='Calc|Fee Based'!H147 -> 0 | X149: 0 | Y149: 0 | Z149: 0 | AA149: 0
A150: 139 | L150: 0 | M150: 0 | N150: 0 | O150: 0 | P150: 0 | R150: 139 | S150: ='Calc|Fee Based'!B148 ->  | T150: ='Calc|Fee Based'!C148 ->  | U150: ='Calc|Fee Based'!D148 ->  | V150: ='Calc|Fee Based'!F148 ->  | W150: ='Calc|Fee Based'!H148 -> 0 | X150: 0 | Y150: 0 | Z150: 0 | AA150: 0
A151: 140 | L151: 0 | M151: 0 | N151: 0 | O151: 0 | P151: 0 | R151: 140 | S151: ='Calc|Fee Based'!B149 ->  | T151: ='Calc|Fee Based'!C149 ->  | U151: ='Calc|Fee Based'!D149 ->  | V151: ='Calc|Fee Based'!F149 ->  | W151: ='Calc|Fee Based'!H149 -> 0 | X151: 0 | Y151: 0 | Z151: 0 | AA151: 0
A152: 141 | L152: 0 | M152: 0 | N152: 0 | O152: 0 | P152: 0 | R152: 141 | S152: ='Calc|Fee Based'!B150 ->  | T152: ='Calc|Fee Based'!C150 ->  | U152: ='Calc|Fee Based'!D150 ->  | V152: ='Calc|Fee Based'!F150 ->  | W152: ='Calc|Fee Based'!H150 -> 0 | X152: 0 | Y152: 0 | Z152: 0 | AA152: 0
A153: 142 | L153: 0 | M153: 0 | N153: 0 | O153: 0 | P153: 0 | R153: 142 | S153: ='Calc|Fee Based'!B151 ->  | T153: ='Calc|Fee Based'!C151 ->  | U153: ='Calc|Fee Based'!D151 ->  | V153: ='Calc|Fee Based'!F151 ->  | W153: ='Calc|Fee Based'!H151 -> 0 | X153: 0 | Y153: 0 | Z153: 0 | AA153: 0
A154: 143 | L154: 0 | M154: 0 | N154: 0 | O154: 0 | P154: 0 | R154: 143 | S154: ='Calc|Fee Based'!B152 ->  | T154: ='Calc|Fee Based'!C152 ->  | U154: ='Calc|Fee Based'!D152 ->  | V154: ='Calc|Fee Based'!F152 ->  | W154: ='Calc|Fee Based'!H152 -> 0 | X154: 0 | Y154: 0 | Z154: 0 | AA154: 0
A155: 144 | L155: 0 | M155: 0 | N155: 0 | O155: 0 | P155: 0 | R155: 144 | S155: ='Calc|Fee Based'!B153 ->  | T155: ='Calc|Fee Based'!C153 ->  | U155: ='Calc|Fee Based'!D153 ->  | V155: ='Calc|Fee Based'!F153 ->  | W155: ='Calc|Fee Based'!H153 -> 0 | X155: 0 | Y155: 0 | Z155: 0 | AA155: 0
A156: 145 | L156: 0 | M156: 0 | N156: 0 | O156: 0 | P156: 0 | R156: 145 | S156: ='Calc|Fee Based'!B154 ->  | T156: ='Calc|Fee Based'!C154 ->  | U156: ='Calc|Fee Based'!D154 ->  | V156: ='Calc|Fee Based'!F154 ->  | W156: ='Calc|Fee Based'!H154 -> 0 | X156: 0 | Y156: 0 | Z156: 0 | AA156: 0
A157: 146 | L157: 0 | M157: 0 | N157: 0 | O157: 0 | P157: 0 | R157: 146 | S157: ='Calc|Fee Based'!B155 ->  | T157: ='Calc|Fee Based'!C155 ->  | U157: ='Calc|Fee Based'!D155 ->  | V157: ='Calc|Fee Based'!F155 ->  | W157: ='Calc|Fee Based'!H155 -> 0 | X157: 0 | Y157: 0 | Z157: 0 | AA157: 0
A158: 147 | L158: 0 | M158: 0 | N158: 0 | O158: 0 | P158: 0 | R158: 147 | S158: ='Calc|Fee Based'!B156 ->  | T158: ='Calc|Fee Based'!C156 ->  | U158: ='Calc|Fee Based'!D156 ->  | V158: ='Calc|Fee Based'!F156 ->  | W158: ='Calc|Fee Based'!H156 -> 0 | X158: 0 | Y158: 0 | Z158: 0 | AA158: 0
A159: 148 | L159: 0 | M159: 0 | N159: 0 | O159: 0 | P159: 0 | R159: 148 | S159: ='Calc|Fee Based'!B157 ->  | T159: ='Calc|Fee Based'!C157 ->  | U159: ='Calc|Fee Based'!D157 ->  | V159: ='Calc|Fee Based'!F157 ->  | W159: ='Calc|Fee Based'!H157 -> 0 | X159: 0 | Y159: 0 | Z159: 0 | AA159: 0
A160: 149 | L160: 0 | M160: 0 | N160: 0 | O160: 0 | P160: 0 | R160: 149 | S160: ='Calc|Fee Based'!B158 ->  | T160: ='Calc|Fee Based'!C158 ->  | U160: ='Calc|Fee Based'!D158 ->  | V160: ='Calc|Fee Based'!F158 ->  | W160: ='Calc|Fee Based'!H158 -> 0 | X160: 0 | Y160: 0 | Z160: 0 | AA160: 0
A161: 150 | L161: 0 | M161: 0 | N161: 0 | O161: 0 | P161: 0 | R161: 150 | S161: ='Calc|Fee Based'!B159 ->  | T161: ='Calc|Fee Based'!C159 ->  | U161: ='Calc|Fee Based'!D159 ->  | V161: ='Calc|Fee Based'!F159 ->  | W161: ='Calc|Fee Based'!H159 -> 0 | X161: 0 | Y161: 0 | Z161: 0 | AA161: 0
A162: 151 | L162: 0 | M162: 0 | N162: 0 | O162: 0 | P162: 0 | R162: 151 | S162: ='Calc|Fee Based'!B160 ->  | T162: ='Calc|Fee Based'!C160 ->  | U162: ='Calc|Fee Based'!D160 ->  | V162: ='Calc|Fee Based'!F160 ->  | W162: ='Calc|Fee Based'!H160 -> 0 | X162: 0 | Y162: 0 | Z162: 0 | AA162: 0
A163: 152 | L163: 0 | M163: 0 | N163: 0 | O163: 0 | P163: 0 | R163: 152 | S163: ='Calc|Fee Based'!B161 ->  | T163: ='Calc|Fee Based'!C161 ->  | U163: ='Calc|Fee Based'!D161 ->  | V163: ='Calc|Fee Based'!F161 ->  | W163: ='Calc|Fee Based'!H161 -> 0 | X163: 0 | Y163: 0 | Z163: 0 | AA163: 0
A164: 153 | L164: 0 | M164: 0 | N164: 0 | O164: 0 | P164: 0 | R164: 153 | S164: ='Calc|Fee Based'!B162 ->  | T164: ='Calc|Fee Based'!C162 ->  | U164: ='Calc|Fee Based'!D162 ->  | V164: ='Calc|Fee Based'!F162 ->  | W164: ='Calc|Fee Based'!H162 -> 0 | X164: 0 | Y164: 0 | Z164: 0 | AA164: 0
A165: 154 | L165: 0 | M165: 0 | N165: 0 | O165: 0 | P165: 0 | R165: 154 | S165: ='Calc|Fee Based'!B163 ->  | T165: ='Calc|Fee Based'!C163 ->  | U165: ='Calc|Fee Based'!D163 ->  | V165: ='Calc|Fee Based'!F163 ->  | W165: ='Calc|Fee Based'!H163 -> 0 | X165: 0 | Y165: 0 | Z165: 0 | AA165: 0
A166: 155 | L166: 0 | M166: 0 | N166: 0 | O166: 0 | P166: 0 | R166: 155 | S166: ='Calc|Fee Based'!B164 ->  | T166: ='Calc|Fee Based'!C164 ->  | U166: ='Calc|Fee Based'!D164 ->  | V166: ='Calc|Fee Based'!F164 ->  | W166: ='Calc|Fee Based'!H164 -> 0 | X166: 0 | Y166: 0 | Z166: 0 | AA166: 0
A167: 156 | L167: 0 | M167: 0 | N167: 0 | O167: 0 | P167: 0 | R167: 156 | S167: ='Calc|Fee Based'!B165 ->  | T167: ='Calc|Fee Based'!C165 ->  | U167: ='Calc|Fee Based'!D165 ->  | V167: ='Calc|Fee Based'!F165 ->  | W167: ='Calc|Fee Based'!H165 -> 0 | X167: 0 | Y167: 0 | Z167: 0 | AA167: 0
A168: 157 | L168: 0 | M168: 0 | N168: 0 | O168: 0 | P168: 0 | R168: 157 | S168: ='Calc|Fee Based'!B166 ->  | T168: ='Calc|Fee Based'!C166 ->  | U168: ='Calc|Fee Based'!D166 ->  | V168: ='Calc|Fee Based'!F166 ->  | W168: ='Calc|Fee Based'!H166 -> 0 | X168: 0 | Y168: 0 | Z168: 0 | AA168: 0
A169: 158 | L169: 0 | M169: 0 | N169: 0 | O169: 0 | P169: 0 | R169: 158 | S169: ='Calc|Fee Based'!B167 ->  | T169: ='Calc|Fee Based'!C167 ->  | U169: ='Calc|Fee Based'!D167 ->  | V169: ='Calc|Fee Based'!F167 ->  | W169: ='Calc|Fee Based'!H167 -> 0 | X169: 0 | Y169: 0 | Z169: 0 | AA169: 0
A170: 159 | L170: 0 | M170: 0 | N170: 0 | O170: 0 | P170: 0 | R170: 159 | S170: ='Calc|Fee Based'!B168 ->  | T170: ='Calc|Fee Based'!C168 ->  | U170: ='Calc|Fee Based'!D168 ->  | V170: ='Calc|Fee Based'!F168 ->  | W170: ='Calc|Fee Based'!H168 -> 0 | X170: 0 | Y170: 0 | Z170: 0 | AA170: 0
A171: 160 | L171: 0 | M171: 0 | N171: 0 | O171: 0 | P171: 0 | R171: 160 | S171: ='Calc|Fee Based'!B169 ->  | T171: ='Calc|Fee Based'!C169 ->  | U171: ='Calc|Fee Based'!D169 ->  | V171: ='Calc|Fee Based'!F169 ->  | W171: ='Calc|Fee Based'!H169 -> 0 | X171: 0 | Y171: 0 | Z171: 0 | AA171: 0
A172: 161 | L172: 0 | M172: 0 | N172: 0 | O172: 0 | P172: 0 | R172: 161 | S172: ='Calc|Fee Based'!B170 ->  | T172: ='Calc|Fee Based'!C170 ->  | U172: ='Calc|Fee Based'!D170 ->  | V172: ='Calc|Fee Based'!F170 ->  | W172: ='Calc|Fee Based'!H170 -> 0 | X172: 0 | Y172: 0 | Z172: 0 | AA172: 0
A173: 162 | L173: 0 | M173: 0 | N173: 0 | O173: 0 | P173: 0 | R173: 162 | S173: ='Calc|Fee Based'!B171 ->  | T173: ='Calc|Fee Based'!C171 ->  | U173: ='Calc|Fee Based'!D171 ->  | V173: ='Calc|Fee Based'!F171 ->  | W173: ='Calc|Fee Based'!H171 -> 0 | X173: 0 | Y173: 0 | Z173: 0 | AA173: 0
A174: 163 | L174: 0 | M174: 0 | N174: 0 | O174: 0 | P174: 0 | R174: 163 | S174: ='Calc|Fee Based'!B172 ->  | T174: ='Calc|Fee Based'!C172 ->  | U174: ='Calc|Fee Based'!D172 ->  | V174: ='Calc|Fee Based'!F172 ->  | W174: ='Calc|Fee Based'!H172 -> 0 | X174: 0 | Y174: 0 | Z174: 0 | AA174: 0
A175: 164 | L175: 0 | M175: 0 | N175: 0 | O175: 0 | P175: 0 | R175: 164 | S175: ='Calc|Fee Based'!B173 ->  | T175: ='Calc|Fee Based'!C173 ->  | U175: ='Calc|Fee Based'!D173 ->  | V175: ='Calc|Fee Based'!F173 ->  | W175: ='Calc|Fee Based'!H173 -> 0 | X175: 0 | Y175: 0 | Z175: 0 | AA175: 0
A176: 165 | L176: 0 | M176: 0 | N176: 0 | O176: 0 | P176: 0 | R176: 165 | S176: ='Calc|Fee Based'!B174 ->  | T176: ='Calc|Fee Based'!C174 ->  | U176: ='Calc|Fee Based'!D174 ->  | V176: ='Calc|Fee Based'!F174 ->  | W176: ='Calc|Fee Based'!H174 -> 0 | X176: 0 | Y176: 0 | Z176: 0 | AA176: =Z176*(1+AA$5)*(1-AA$6) -> 0
A177: 166 | L177: 0 | M177: 0 | N177: 0 | O177: 0 | P177: 0 | R177: 166 | S177: ='Calc|Fee Based'!B175 ->  | T177: ='Calc|Fee Based'!C175 ->  | U177: ='Calc|Fee Based'!D175 ->  | V177: ='Calc|Fee Based'!F175 ->  | W177: ='Calc|Fee Based'!H175 -> 0 | X177: =W177*(1+X$5)*(1-X$6) -> 0 | Y177: 0 | Z177: 0 | AA177: 0
A178: 167 | L178: 0 | M178: 0 | N178: 0 | O178: 0 | P178: 0 | R178: 167 | S178: ='Calc|Fee Based'!B176 ->  | T178: ='Calc|Fee Based'!C176 ->  | U178: ='Calc|Fee Based'!D176 ->  | V178: ='Calc|Fee Based'!F176 ->  | W178: ='Calc|Fee Based'!H176 -> 0 | X178: 0 | Y178: 0 | Z178: 0 | AA178: 0
A179: 168 | L179: 0 | M179: 0 | N179: 0 | O179: 0 | P179: 0 | R179: 168 | S179: ='Calc|Fee Based'!B177 ->  | T179: ='Calc|Fee Based'!C177 ->  | U179: ='Calc|Fee Based'!D177 ->  | V179: ='Calc|Fee Based'!F177 ->  | W179: ='Calc|Fee Based'!H177 -> 0 | X179: 0 | Y179: 0 | Z179: 0 | AA179: 0
A180: 169 | L180: 0 | M180: 0 | N180: 0 | O180: 0 | P180: 0 | R180: 169 | S180: ='Calc|Fee Based'!B178 ->  | T180: ='Calc|Fee Based'!C178 ->  | U180: ='Calc|Fee Based'!D178 ->  | V180: ='Calc|Fee Based'!F178 ->  | W180: ='Calc|Fee Based'!H178 -> 0 | X180: 0 | Y180: 0 | Z180: 0 | AA180: 0
A181: 170 | L181: 0 | M181: 0 | N181: 0 | O181: 0 | P181: 0 | R181: 170 | S181: ='Calc|Fee Based'!B179 ->  | T181: ='Calc|Fee Based'!C179 ->  | U181: ='Calc|Fee Based'!D179 ->  | V181: ='Calc|Fee Based'!F179 ->  | W181: ='Calc|Fee Based'!H179 -> 0 | X181: 0 | Y181: 0 | Z181: 0 | AA181: 0
A182: 171 | L182: 0 | M182: 0 | N182: 0 | O182: 0 | P182: 0 | R182: 171 | S182: ='Calc|Fee Based'!B180 ->  | T182: ='Calc|Fee Based'!C180 ->  | U182: ='Calc|Fee Based'!D180 ->  | V182: ='Calc|Fee Based'!F180 ->  | W182: ='Calc|Fee Based'!H180 -> 0 | X182: 0 | Y182: 0 | Z182: 0 | AA182: 0
A183: 172 | L183: 0 | M183: 0 | N183: 0 | O183: 0 | P183: 0 | R183: 172 | S183: ='Calc|Fee Based'!B181 ->  | T183: ='Calc|Fee Based'!C181 ->  | U183: ='Calc|Fee Based'!D181 ->  | V183: ='Calc|Fee Based'!F181 ->  | W183: ='Calc|Fee Based'!H181 -> 0 | X183: 0 | Y183: 0 | Z183: 0 | AA183: 0
A184: 173 | L184: 0 | M184: 0 | N184: 0 | O184: 0 | P184: 0 | R184: 173 | S184: ='Calc|Fee Based'!B182 ->  | T184: ='Calc|Fee Based'!C182 ->  | U184: ='Calc|Fee Based'!D182 ->  | V184: ='Calc|Fee Based'!F182 ->  | W184: ='Calc|Fee Based'!H182 -> 0 | X184: 0 | Y184: 0 | Z184: 0 | AA184: 0
A185: 174 | L185: 0 | M185: 0 | N185: 0 | O185: 0 | P185: 0 | R185: 174 | S185: ='Calc|Fee Based'!B183 ->  | T185: ='Calc|Fee Based'!C183 ->  | U185: ='Calc|Fee Based'!D183 ->  | V185: ='Calc|Fee Based'!F183 ->  | W185: ='Calc|Fee Based'!H183 -> 0 | X185: 0 | Y185: 0 | Z185: 0 | AA185: 0
A186: 175 | L186: 0 | M186: 0 | N186: 0 | O186: 0 | P186: 0 | R186: 175 | S186: ='Calc|Fee Based'!B184 ->  | T186: ='Calc|Fee Based'!C184 ->  | U186: ='Calc|Fee Based'!D184 ->  | V186: ='Calc|Fee Based'!F184 ->  | W186: ='Calc|Fee Based'!H184 -> 0 | X186: 0 | Y186: 0 | Z186: 0 | AA186: 0
A187: 176 | L187: 0 | M187: 0 | N187: 0 | O187: 0 | P187: 0 | R187: 176 | S187: ='Calc|Fee Based'!B185 ->  | T187: ='Calc|Fee Based'!C185 ->  | U187: ='Calc|Fee Based'!D185 ->  | V187: ='Calc|Fee Based'!F185 ->  | W187: ='Calc|Fee Based'!H185 -> 0 | X187: 0 | Y187: 0 | Z187: 0 | AA187: 0
A188: 177 | L188: 0 | M188: 0 | N188: 0 | O188: 0 | P188: 0 | R188: 177 | S188: ='Calc|Fee Based'!B186 ->  | T188: ='Calc|Fee Based'!C186 ->  | U188: ='Calc|Fee Based'!D186 ->  | V188: ='Calc|Fee Based'!F186 ->  | W188: ='Calc|Fee Based'!H186 -> 0 | X188: 0 | Y188: 0 | Z188: 0 | AA188: 0
A189: 178 | L189: 0 | M189: 0 | N189: 0 | O189: 0 | P189: 0 | R189: 178 | S189: ='Calc|Fee Based'!B187 ->  | T189: ='Calc|Fee Based'!C187 ->  | U189: ='Calc|Fee Based'!D187 ->  | V189: ='Calc|Fee Based'!F187 ->  | W189: ='Calc|Fee Based'!H187 -> 0 | X189: 0 | Y189: 0 | Z189: 0 | AA189: 0
A190: 179 | L190: 0 | M190: 0 | N190: 0 | O190: 0 | P190: 0 | R190: 179 | S190: ='Calc|Fee Based'!B188 ->  | T190: ='Calc|Fee Based'!C188 ->  | U190: ='Calc|Fee Based'!D188 ->  | V190: ='Calc|Fee Based'!F188 ->  | W190: ='Calc|Fee Based'!H188 -> 0 | X190: 0 | Y190: 0 | Z190: 0 | AA190: 0
A191: 180 | L191: 0 | M191: 0 | N191: 0 | O191: 0 | P191: 0 | R191: 180 | S191: ='Calc|Fee Based'!B189 ->  | T191: ='Calc|Fee Based'!C189 ->  | U191: ='Calc|Fee Based'!D189 ->  | V191: ='Calc|Fee Based'!F189 ->  | W191: ='Calc|Fee Based'!H189 -> 0 | X191: 0 | Y191: 0 | Z191: 0 | AA191: 0
A192: 181 | L192: 0 | M192: 0 | N192: 0 | O192: 0 | P192: 0 | R192: 181 | S192: ='Calc|Fee Based'!B190 ->  | T192: ='Calc|Fee Based'!C190 ->  | U192: ='Calc|Fee Based'!D190 ->  | V192: ='Calc|Fee Based'!F190 ->  | W192: ='Calc|Fee Based'!H190 -> 0 | X192: 0 | Y192: 0 | Z192: 0 | AA192: 0
A193: 182 | L193: 0 | M193: 0 | N193: 0 | O193: 0 | P193: 0 | R193: 182 | S193: ='Calc|Fee Based'!B191 ->  | T193: ='Calc|Fee Based'!C191 ->  | U193: ='Calc|Fee Based'!D191 ->  | V193: ='Calc|Fee Based'!F191 ->  | W193: ='Calc|Fee Based'!H191 -> 0 | X193: 0 | Y193: 0 | Z193: 0 | AA193: 0
A194: 183 | L194: 0 | M194: 0 | N194: 0 | O194: 0 | P194: 0 | R194: 183 | S194: ='Calc|Fee Based'!B192 ->  | T194: ='Calc|Fee Based'!C192 ->  | U194: ='Calc|Fee Based'!D192 ->  | V194: ='Calc|Fee Based'!F192 ->  | W194: ='Calc|Fee Based'!H192 -> 0 | X194: 0 | Y194: 0 | Z194: 0 | AA194: 0
A195: 184 | L195: 0 | M195: 0 | N195: 0 | O195: 0 | P195: 0 | R195: 184 | S195: ='Calc|Fee Based'!B193 ->  | T195: ='Calc|Fee Based'!C193 ->  | U195: ='Calc|Fee Based'!D193 ->  | V195: ='Calc|Fee Based'!F193 ->  | W195: ='Calc|Fee Based'!H193 -> 0 | X195: 0 | Y195: 0 | Z195: 0 | AA195: 0
A196: 185 | L196: 0 | M196: 0 | N196: 0 | O196: 0 | P196: 0 | R196: 185 | S196: ='Calc|Fee Based'!B194 ->  | T196: ='Calc|Fee Based'!C194 ->  | U196: ='Calc|Fee Based'!D194 ->  | V196: ='Calc|Fee Based'!F194 ->  | W196: ='Calc|Fee Based'!H194 -> 0 | X196: 0 | Y196: 0 | Z196: 0 | AA196: 0
A197: 186 | L197: 0 | M197: 0 | N197: 0 | O197: 0 | P197: 0 | R197: 186 | S197: ='Calc|Fee Based'!B195 ->  | T197: ='Calc|Fee Based'!C195 ->  | U197: ='Calc|Fee Based'!D195 ->  | V197: ='Calc|Fee Based'!F195 ->  | W197: ='Calc|Fee Based'!H195 -> 0 | X197: 0 | Y197: 0 | Z197: 0 | AA197: 0
A198: 187 | L198: 0 | M198: 0 | N198: 0 | O198: 0 | P198: 0 | R198: 187 | S198: ='Calc|Fee Based'!B196 ->  | T198: ='Calc|Fee Based'!C196 ->  | U198: ='Calc|Fee Based'!D196 ->  | V198: ='Calc|Fee Based'!F196 ->  | W198: ='Calc|Fee Based'!H196 -> 0 | X198: 0 | Y198: 0 | Z198: 0 | AA198: 0
A199: 188 | L199: 0 | M199: 0 | N199: 0 | O199: 0 | P199: 0 | R199: 188 | S199: ='Calc|Fee Based'!B197 ->  | T199: ='Calc|Fee Based'!C197 ->  | U199: ='Calc|Fee Based'!D197 ->  | V199: ='Calc|Fee Based'!F197 ->  | W199: ='Calc|Fee Based'!H197 -> 0 | X199: 0 | Y199: 0 | Z199: 0 | AA199: 0
A200: 189 | L200: 0 | M200: 0 | N200: 0 | O200: 0 | P200: 0 | R200: 189 | S200: ='Calc|Fee Based'!B198 ->  | T200: ='Calc|Fee Based'!C198 ->  | U200: ='Calc|Fee Based'!D198 ->  | V200: ='Calc|Fee Based'!F198 ->  | W200: ='Calc|Fee Based'!H198 -> 0 | X200: 0 | Y200: 0 | Z200: 0 | AA200: 0
A201: 190 | L201: 0 | M201: 0 | N201: 0 | O201: 0 | P201: 0 | R201: 190 | S201: ='Calc|Fee Based'!B199 ->  | T201: ='Calc|Fee Based'!C199 ->  | U201: ='Calc|Fee Based'!D199 ->  | V201: ='Calc|Fee Based'!F199 ->  | W201: ='Calc|Fee Based'!H199 -> 0 | X201: 0 | Y201: 0 | Z201: 0 | AA201: 0
A202: 191 | L202: 0 | M202: 0 | N202: 0 | O202: 0 | P202: 0 | R202: 191 | S202: ='Calc|Fee Based'!B200 ->  | T202: ='Calc|Fee Based'!C200 ->  | U202: ='Calc|Fee Based'!D200 ->  | V202: ='Calc|Fee Based'!F200 ->  | W202: ='Calc|Fee Based'!H200 -> 0 | X202: 0 | Y202: 0 | Z202: 0 | AA202: 0
... 309 more rows

Sheet Input|Fee Based
B1: =IFERROR(Index!B1,"") -> AER ANS Forecast Model | D1: Key: | E1: Input | I1: Sheet Validation | J1: ='Model Validation'!C14 -> 0
B2: =IFERROR(MID(CELL("filename",A1),FIND("]",CELL("filename",A1))+1,255),"") -> Input|Fee Based | E2: Formula
B6: 7.1 Fee based services | F6: Mapping categories | I6: =IFERROR("7.2 Service cost build up - DIRECT COSTS, $'s ($"&'Input|Escalations'!$C$9&")","") -> 7.2 Service cost build up - DIRECT COSTS, $'s ($2024-25) | AV6: 7.3 Service cost build - INDIRECT COSTS (per cent) | BD6: 7.4 Notes and sources for "Other costs"
I8: 7.2.1 Non-field based labour | U8: =IF(SUM(U10:U509)=0,0,1) -> 0 | V8: 7.2.2 Field based labour | AP8: =IF(SUM(AP10:AP509)=0,0,1) -> 0 | AQ8: 7.2.3 Direct non-labour | AV8: Indirect Costs
B9: Service code | C9: Service | D9: ='Input|Setup'!$B$24 & " (List)" -> Hours (List) | E9: ='Input|Setup'!$E$30 & " (List)" -> Service category (List) | F9: ='Input|Setup'!$H$30 & " (List)" -> [label] (List) | G9: ='Input|Setup'!$H$40 & " (List)" -> [label] (List) | I9: Labour category 1 (List) | J9: ='Input|Setup'!$B$24 & " (List)" -> Hours (List) | K9: FTE | L9: Time on task (Minutes) | M9: Labour category 2 (List) | N9: ='Input|Setup'!$B$24 & " (List)" -> Hours (List) | O9: FTE | P9: Time on task (Minutes) | Q9: Labour category 3 (List) | R9: ='Input|Setup'!$B$24 & " (List)" -> Hours (List) | S9: FTE | T9: Time on task (Minutes) | V9: Labour category 1 (List) | W9: ='Input|Setup'!$B$24 & " (List)" -> Hours (List) | X9: FTE | Y9: Travel time (Minutes) | Z9: Time on task (Minutes) | AA9: Labour category 2 (List) | AB9: ='Input|Setup'!$B$24 & " (List)" -> Hours (List) | AC9: FTE | AD9: Travel time (Minutes) | AE9: Time on task (Minutes) | AF9: Labour category 3 (List) | AG9: ='Input|Setup'!$B$24 & " (List)" -> Hours (List) | AH9: FTE | AI9: Travel time (Minutes) | AJ9: Time on task (Minutes) | AK9: Labour category 4 (List) | AL9: ='Input|Setup'!$B$24 & " (List)" -> Hours (List) | AM9: FTE | AN9: Travel time (Minutes) | AO9: Time on task (Minutes) | AQ9: ="Materials ($" & 'Input|Setup'!$E$7 & ")" -> Materials ($2024-25) | AR9: ="Contracts ($" & 'Input|Setup'!$E$7 & ")" -> Contracts ($2024-25) | AS9: ="Vehicles ($" & 'Input|Setup'!$E$7 & ")" -> Vehicles ($2024-25) | AT9: ="Other ($" & 'Input|Setup'!$E$7 & ")" -> Other ($2024-25) | AV9: Network Overhead (%) | AW9: Corporate Overhead (%) | AX9: Margin (%) | AY9: Tax recovery (%) | BD9: Notes and sources for "Other costs"
A10: 1 | C10: Temporary disconnection ≤25m3/hr (per meter) | D10: Business hours | E10: Disconnections and reconnections | H10: =IF(AND(ISTEXT(C10),OR(ISBLANK(D10),ISBLANK(E10))),1,0) -> 0 | I10: Non-field 1 | J10: Business hours | K10: 1 | L10: 1 | M10: Non-field 2 | N10: Business hours | O10: 1 | P10: 2 | Q10: Non-field 3 | R10: Business hours | S10: 1 | T10: 1.5 | U10: =IF(OR( AND(ISTEXT(I10),ISBLANK(J10)), AND(ISTEXT(M10),ISBLANK(N10)), AND(ISTEXT(Q10),ISBLANK(R10))),1,0) -> 0 | V10: Standard field labour | W10: Business hours | X10: 1 | Y10: 15 | Z10: 25.53474055 | AP10: =IF(OR( AND(ISTEXT(V10),ISBLANK(W10)), AND(ISTEXT(AA10),ISBLANK(AB10)), AND(ISTEXT(AF10),ISBLANK(AG10)), AND(ISTEXT(AK10),ISBLANK(AL10)),),1,0) -> 0 | AT10: 27.77858959 | AW10: ='Input|Indirect Cost Rates'!$D$25 -> 0.1648936861 | AZ10: =IF(OR(ISBLANK(AV10),_xlfn.ISFORMULA(AV10)),0,1) -> 0 | BA10: =IF(OR(ISBLANK(AW10),_xlfn.ISFORMULA(AW10)),0,1) -> 0 | BB10: =IF(OR(ISBLANK(AX10),_xlfn.ISFORMULA(AX10)),0,1) -> 0 | BC10: =IF(OR(ISBLANK(AY10),_xlfn.ISFORMULA(AY10)),0,1) -> 0 | BD10: Safety control costs for 2026 access arrangement period divided by total volume of forecast temporary disconnections. | BE10: =IF(AND(OR(AT10="",AT10=0),BD10=""),0,IF(AND(AT10<>"",AT10<>0,BD10=""),1,0)) -> 0
A11: =IFERROR(A10+1,"") -> 2 | C11: Temporary disconnection >25m3/hr (per meter) | D11: Business hours | E11: Disconnections and reconnections | H11: 0 | I11: Non-field 1 | J11: Business hours | K11: 1 | L11: 1 | M11: Non-field 2 | N11: Business hours | O11: 1 | P11: 2 | Q11: Non-field 3 | R11: Business hours | S11: 1 | T11: 1.5 | U11: 0 | V11: Standard field labour | W11: Business hours | X11: 1 | Y11: 15 | Z11: 45 | AP11: 0 | AT11: 27.77858959 | AW11: ='Input|Indirect Cost Rates'!$D$25 -> 0.1648936861 | AZ11: 0 | BA11: 0 | BB11: 0 | BC11: 0 | BD11: Safety control costs for 2026 access arrangement period divided by total volume of forecast temporary disconnections. | BE11: 0
A12: =IFERROR(A11+1,"") -> 3 | C12: Reconnection ≤25m3/hr (per meter) | D12: Business hours | E12: Disconnections and reconnections | H12: 0 | I12: Non-field 1 | J12: Business hours | K12: 1 | L12: 1 | M12: Non-field 2 | N12: Business hours | O12: 1 | P12: 8 | Q12: Non-field 3 | R12: Business hours | S12: 2 | T12: 5.26 | U12: 0 | V12: Standard field labour | W12: Business hours | X12: 1 | Y12: 15 | Z12: 30.66842568 | AP12: 0 | AW12: ='Input|Indirect Cost Rates'!$D$25 -> 0.1648936861 | AZ12: 0 | BA12: 0 | BB12: 0 | BC12: 0 | BE12: 0
A13: 4 | C13: Reconnection >25m3/hr (per meter) | D13: Business hours | E13: Disconnections and reconnections | H13: 0 | I13: Non-field 1 | J13: Business hours | K13: 1 | L13: 1 | M13: Non-field 2 | N13: Business hours | O13: 1 | P13: 8 | Q13: Non-field 3 | R13: Business hours | S13: 2 | T13: 5.26 | U13: 0 | V13: Standard field labour | W13: Business hours | X13: 1 | Y13: 15 | Z13: 55 | AP13: 0 | AW13: ='Input|Indirect Cost Rates'!$D$25 -> 0.1648936861 | AZ13: 0 | BA13: 0 | BB13: 0 | BC13: 0 | BE13: 0
A14: 5 | C14: Special meter read | D14: Business hours | E14: Special meter reads | H14: 0 | I14: Non-field 1 | J14: Business hours | K14: 1 | L14: 1 | U14: 0 | AP14: 0 | AW14: ='Input|Indirect Cost Rates'!$D$25 -> 0.1648936861 | AZ14: 0 | BA14: 0 | BB14: 0 | BC14: 0 | BE14: 0
A15: 6 | C15: Basic permanent disconnection | D15: Business hours | E15: Basic permanent disconnection | H15: 0 | I15: Non-field 1 | J15: Business hours | K15: 4 | L15: 7.25 | U15: 0 | V15: Standard field labour | W15: Business hours | X15: 2 | Y15: 15 | Z15: 105 | AA15: Hydrovac | AB15: Business hours | AC15: 1 | AD15: 15 | AE15: 105 | AP15: 0 | AZ15: 0 | BA15: =IF(OR(ISBLANK(AW15),_xlfn.ISFORMULA(AW15)),0,1) -> 0 | BB15: 0 | BC15: 0 | BE15: 0
A16: 7 | C16: Basic (urgent) permanent disconnection | D16: Business hours | E16: Basic permanent disconnection | H16: 0 | I16: Non-field 1 | J16: Business hours | K16: 4 | L16: 7.25 | U16: 0 | V16: Standard field labour | W16: Business hours | X16: 2 | Y16: 60 | Z16: 105 | AA16: Hydrovac | AB16: Business hours | AC16: 1 | AD16: 60 | AE16: 105 | AP16: 0 | AZ16: 0 | BA16: 0 | BB16: 0 | BC16: 0 | BE16: 0
A17: 8 | C17: Non-standard retail-initiated requests and queries (per hour) | D17: Business hours | E17: Hourly charge | H17: 0 | I17: Non-field 4 | J17: Business hours | K17: 1 | L17: 60 | U17: 0 | AP17: 0 | AW17: ='Input|Indirect Cost Rates'!$D$25 -> 0.1648936861 | AZ17: 0 | BA17: 0 | BB17: 0 | BC17: 0 | BE17: 0
A18: 9 | C18: Wasted visit temporary disconnection | D18: Business hours | E18: Disconnections and reconnections | H18: 0 | I18: Non-field 1 | J18: Business hours | K18: 1 | L18: 1 | M18: Non-field 2 | N18: Business hours | O18: 1 | P18: 2 | Q18: Non-field 3 | R18: Business hours | S18: 1 | T18: 1.5 | U18: 0 | V18: Standard field labour | W18: Business hours | X18: 1 | Y18: 15 | Z18: 15 | AP18: 0 | AW18: ='Input|Indirect Cost Rates'!$D$25 -> 0.1648936861 | AZ18: 0 | BA18: 0 | BB18: 0 | BC18: 0 | BE18: 0
A19: 10 | C19: Wasted visit reconnection | D19: Business hours | E19: Disconnections and reconnections | H19: 0 | I19: Non-field 1 | J19: Business hours | K19: 1 | L19: 1 | M19: Non-field 2 | N19: Business hours | O19: 1 | P19: 8 | Q19: Non-field 3 | R19: Business hours | S19: 2 | T19: 5.26 | U19: 0 | V19: Standard field labour | W19: Business hours | X19: 1 | Y19: 15 | Z19: 15 | AP19: 0 | AW19: ='Input|Indirect Cost Rates'!$D$25 -> 0.1648936861 | AZ19: 0 | BA19: 0 | BB19: 0 | BC19: 0 | BE19: 0
A20: 11 | C20: Wasted visit basic permanent disconnection | D20: Business hours | E20: Basic permanent disconnection | H20: 0 | I20: Non-field 1 | J20: Business hours | K20: 4 | L20: 7.25 | U20: 0 | V20: Standard field labour | W20: Business hours | X20: 2 | Y20: 15 | Z20: 15 | AA20: Hydrovac | AB20: Business hours | AC20: 1 | AD20: 15 | AE20: 15 | AP20: 0 | AZ20: 0 | BA20: 0 | BB20: 0 | BC20: 0 | BE20: 0
A21: 12 | C21: Wasted visit urgent basic permanent disconnection | D21: Business hours | E21: Basic permanent disconnection | H21: 0 | I21: Non-field 1 | J21: Business hours | K21: 4 | L21: 7.25 | U21: 0 | V21: Standard field labour | W21: Business hours | X21: 2 | Y21: 60 | Z21: 15 | AA21: Hydrovac | AB21: Business hours | AC21: 1 | AD21: 60 | AE21: 15 | AP21: 0 | AZ21: 0 | BA21: 0 | BB21: 0 | BC21: 0 | BE21: 0
A22: 13 | C22: Wasted visit special meter read | D22: Business hours | E22: Special meter reads | H22: =IF(AND(ISTEXT(C22),OR(ISBLANK(D22),ISBLANK(E22))),1,0) -> 0 | I22: Non-field 1 | J22: Business hours | K22: 1 | L22: 1 | U22: =IF(OR( AND(ISTEXT(I22),ISBLANK(J22)), AND(ISTEXT(M22),ISBLANK(N22)), AND(ISTEXT(Q22),ISBLANK(R22))),1,0) -> 0 | AP22: 0 | AW22: ='Input|Indirect Cost Rates'!$D$25 -> 0.1648936861 | AZ22: 0 | BA22: 0 | BB22: 0 | BC22: 0 | BE22: 0
A23: 14 | H23: 0 | U23: 0 | AP23: 0 | AZ23: 0 | BA23: 0 | BB23: 0 | BC23: 0 | BE23: 0
A24: 15 | H24: 0 | U24: 0 | AP24: 0 | AZ24: 0 | BA24: 0 | BB24: 0 | BC24: 0 | BE24: 0
A25: 16 | H25: 0 | U25: 0 | AP25: 0 | AZ25: 0 | BA25: 0 | BB25: 0 | BC25: 0 | BE25: 0
A26: 17 | H26: 0 | U26: 0 | AP26: 0 | AZ26: 0 | BA26: 0 | BB26: 0 | BC26: 0 | BE26: 0
A27: 18 | H27: 0 | U27: 0 | AP27: 0 | AZ27: 0 | BA27: 0 | BB27: 0 | BC27: 0 | BE27: 0
A28: 19 | H28: 0 | U28: 0 | AP28: 0 | AZ28: 0 | BA28: 0 | BB28: 0 | BC28: 0 | BE28: 0
A29: 20 | H29: 0 | U29: 0 | AP29: 0 | AZ29: 0 | BA29: 0 | BB29: 0 | BC29: 0 | BE29: 0
A30: 21 | H30: 0 | U30: 0 | AP30: 0 | AZ30: 0 | BA30: 0 | BB30: 0 | BC30: 0 | BE30: 0
A31: 22 | H31: 0 | U31: 0 | AP31: 0 | AZ31: 0 | BA31: 0 | BB31: 0 | BC31: 0 | BE31: 0
A32: 23 | H32: 0 | U32: 0 | AP32: 0 | AZ32: 0 | BA32: 0 | BB32: 0 | BC32: 0 | BE32: 0
A33: 24 | H33: 0 | U33: 0 | AP33: 0 | AZ33: 0 | BA33: 0 | BB33: 0 | BC33: 0 | BE33: 0
A34: 25 | H34: 0 | U34: 0 | AP34: 0 | AZ34: 0 | BA34: 0 | BB34: 0 | BC34: 0 | BE34: 0
A35: 26 | H35: 0 | U35: 0 | AP35: 0 | AZ35: 0 | BA35: 0 | BB35: 0 | BC35: 0 | BE35: 0
A36: 27 | H36: 0 | U36: 0 | AP36: 0 | AZ36: 0 | BA36: 0 | BB36: 0 | BC36: 0 | BE36: 0
A37: 28 | H37: 0 | U37: 0 | AP37: 0 | AZ37: 0 | BA37: 0 | BB37: 0 | BC37: 0 | BE37: 0
A38: 29 | H38: 0 | U38: 0 | AP38: 0 | AZ38: 0 | BA38: 0 | BB38: 0 | BC38: 0 | BE38: 0
A39: 30 | H39: 0 | U39: 0 | AP39: 0 | AZ39: 0 | BA39: 0 | BB39: 0 | BC39: 0 | BE39: 0
A40: 31 | H40: 0 | U40: 0 | AP40: 0 | AZ40: 0 | BA40: 0 | BB40: 0 | BC40: 0 | BE40: 0
A41: 32 | H41: 0 | U41: 0 | AP41: 0 | AZ41: 0 | BA41: 0 | BB41: 0 | BC41: 0 | BE41: 0
A42: 33 | H42: 0 | U42: 0 | AP42: 0 | AZ42: 0 | BA42: 0 | BB42: 0 | BC42: 0 | BE42: 0
A43: 34 | H43: 0 | U43: 0 | AP43: 0 | AZ43: 0 | BA43: 0 | BB43: 0 | BC43: 0 | BE43: 0
A44: 35 | H44: 0 | U44: 0 | AP44: 0 | AZ44: 0 | BA44: 0 | BB44: 0 | BC44: 0 | BE44: 0
A45: 36 | H45: 0 | U45: 0 | AP45: 0 | AZ45: 0 | BA45: 0 | BB45: 0 | BC45: 0 | BE45: 0
A46: 37 | H46: 0 | U46: 0 | AP46: 0 | AZ46: 0 | BA46: 0 | BB46: 0 | BC46: 0 | BE46: 0
A47: 38 | H47: 0 | U47: 0 | AP47: 0 | AZ47: 0 | BA47: 0 | BB47: 0 | BC47: 0 | BE47: 0
A48: 39 | H48: 0 | U48: 0 | AP48: 0 | AZ48: 0 | BA48: 0 | BB48: 0 | BC48: 0 | BE48: 0
A49: 40 | H49: 0 | U49: 0 | AP49: 0 | AZ49: 0 | BA49: 0 | BB49: 0 | BC49: 0 | BE49: 0
A50: 41 | H50: 0 | U50: 0 | AP50: 0 | AZ50: 0 | BA50: 0 | BB50: 0 | BC50: 0 | BE50: 0
A51: 42 | H51: 0 | U51: 0 | AP51: 0 | AZ51: 0 | BA51: 0 | BB51: 0 | BC51: 0 | BE51: 0
A52: 43 | H52: 0 | U52: 0 | AP52: 0 | AZ52: 0 | BA52: 0 | BB52: 0 | BC52: 0 | BE52: 0
A53: 44 | H53: 0 | U53: 0 | AP53: 0 | AZ53: 0 | BA53: 0 | BB53: 0 | BC53: 0 | BE53: 0
A54: 45 | H54: 0 | U54: 0 | AP54: 0 | AZ54: 0 | BA54: 0 | BB54: 0 | BC54: 0 | BE54: 0
A55: 46 | H55: 0 | U55: 0 | AP55: 0 | AZ55: 0 | BA55: 0 | BB55: 0 | BC55: 0 | BE55: 0
A56: 47 | H56: 0 | U56: 0 | AP56: 0 | AZ56: 0 | BA56: 0 | BB56: 0 | BC56: 0 | BE56: 0
A57: 48 | H57: 0 | U57: 0 | AP57: 0 | AZ57: 0 | BA57: 0 | BB57: 0 | BC57: 0 | BE57: 0
A58: 49 | H58: 0 | U58: 0 | AP58: 0 | AZ58: 0 | BA58: 0 | BB58: 0 | BC58: 0 | BE58: 0
A59: 50 | H59: 0 | U59: 0 | AP59: 0 | AZ59: 0 | BA59: 0 | BB59: 0 | BC59: 0 | BE59: 0
A60: 51 | H60: 0 | U60: 0 | AP60: 0 | AZ60: 0 | BA60: 0 | BB60: 0 | BC60: 0 | BE60: 0
A61: 52 | H61: 0 | U61: 0 | AP61: 0 | AZ61: 0 | BA61: 0 | BB61: 0 | BC61: 0 | BE61: 0
A62: 53 | H62: 0 | U62: 0 | AP62: 0 | AZ62: 0 | BA62: 0 | BB62: 0 | BC62: 0 | BE62: 0
A63: 54 | H63: 0 | U63: 0 | AP63: 0 | AZ63: 0 | BA63: 0 | BB63: 0 | BC63: 0 | BE63: 0
A64: 55 | H64: 0 | U64: 0 | AP64: 0 | AZ64: 0 | BA64: 0 | BB64: 0 | BC64: 0 | BE64: 0
A65: 56 | H65: 0 | U65: 0 | AP65: 0 | AZ65: 0 | BA65: 0 | BB65: 0 | BC65: 0 | BE65: 0
A66: 57 | H66: 0 | U66: 0 | AP66: 0 | AZ66: 0 | BA66: 0 | BB66: 0 | BC66: 0 | BE66: 0
A67: 58 | H67: 0 | U67: 0 | AP67: 0 | AZ67: 0 | BA67: 0 | BB67: 0 | BC67: 0 | BE67: 0
A68: 59 | H68: 0 | U68: 0 | AP68: 0 | AZ68: 0 | BA68: 0 | BB68: 0 | BC68: 0 | BE68: 0
A69: 60 | H69: 0 | U69: 0 | AP69: 0 | AZ69: 0 | BA69: 0 | BB69: 0 | BC69: 0 | BE69: 0
A70: 61 | H70: 0 | U70: 0 | AP70: 0 | AZ70: 0 | BA70: 0 | BB70: 0 | BC70: 0 | BE70: 0
A71: 62 | H71: 0 | U71: 0 | AP71: 0 | AZ71: 0 | BA71: 0 | BB71: 0 | BC71: 0 | BE71: 0
A72: 63 | H72: 0 | U72: 0 | AP72: 0 | AZ72: 0 | BA72: 0 | BB72: 0 | BC72: 0 | BE72: 0
A73: 64 | H73: 0 | U73: 0 | AP73: 0 | AZ73: 0 | BA73: 0 | BB73: 0 | BC73: 0 | BE73: 0
A74: 65 | H74: =IF(AND(ISTEXT(C74),OR(ISBLANK(D74),ISBLANK(E74))),1,0) -> 0 | U74: =IF(OR( AND(ISTEXT(I74),ISBLANK(J74)), AND(ISTEXT(M74),ISBLANK(N74)), AND(ISTEXT(Q74),ISBLANK(R74))),1,0) -> 0 | AP74: =IF(OR( AND(ISTEXT(V74),ISBLANK(W74)), AND(ISTEXT(AA74),ISBLANK(AB74)), AND(ISTEXT(AF74),ISBLANK(AG74)), AND(ISTEXT(AK74),ISBLANK(AL74)),),1,0) -> 0 | AZ74: =IF(OR(ISBLANK(AV74),_xlfn.ISFORMULA(AV74)),0,1) -> 0 | BA74: =IF(OR(ISBLANK(AW74),_xlfn.ISFORMULA(AW74)),0,1) -> 0 | BB74: =IF(OR(ISBLANK(AX74),_xlfn.ISFORMULA(AX74)),0,1) -> 0 | BC74: =IF(OR(ISBLANK(AY74),_xlfn.ISFORMULA(AY74)),0,1) -> 0 | BE74: =IF(AND(OR(AT74="",AT74=0),BD74=""),0,IF(AND(AT74<>"",AT74<>0,BD74=""),1,0)) -> 0
A75: 66 | H75: 0 | U75: 0 | AP75: 0 | AZ75: 0 | BA75: 0 | BB75: 0 | BC75: 0 | BE75: 0
A76: =IFERROR(A75+1,"") -> 67 | H76: 0 | U76: 0 | AP76: 0 | AZ76: 0 | BA76: 0 | BB76: 0 | BC76: 0 | BE76: 0
A77: 68 | H77: 0 | U77: 0 | AP77: 0 | AZ77: 0 | BA77: 0 | BB77: 0 | BC77: 0 | BE77: 0
A78: 69 | H78: 0 | U78: 0 | AP78: 0 | AZ78: 0 | BA78: 0 | BB78: 0 | BC78: 0 | BE78: 0
A79: 70 | H79: 0 | U79: 0 | AP79: 0 | AZ79: 0 | BA79: 0 | BB79: 0 | BC79: 0 | BE79: 0
A80: 71 | H80: 0 | U80: 0 | AP80: 0 | AZ80: 0 | BA80: 0 | BB80: 0 | BC80: 0 | BE80: 0
A81: 72 | H81: 0 | U81: 0 | AP81: 0 | AZ81: 0 | BA81: 0 | BB81: 0 | BC81: 0 | BE81: 0
A82: 73 | H82: 0 | U82: 0 | AP82: 0 | AZ82: 0 | BA82: 0 | BB82: 0 | BC82: 0 | BE82: 0
A83: 74 | H83: 0 | U83: 0 | AP83: 0 | AZ83: 0 | BA83: 0 | BB83: 0 | BC83: 0 | BE83: 0
A84: 75 | H84: 0 | U84: 0 | AP84: 0 | AZ84: 0 | BA84: 0 | BB84: 0 | BC84: 0 | BE84: 0
A85: 76 | H85: 0 | U85: 0 | AP85: 0 | AZ85: 0 | BA85: 0 | BB85: 0 | BC85: 0 | BE85: 0
A86: 77 | H86: 0 | U86: 0 | AP86: 0 | AZ86: 0 | BA86: 0 | BB86: 0 | BC86: 0 | BE86: 0
A87: 78 | H87: 0 | U87: 0 | AP87: 0 | AZ87: 0 | BA87: 0 | BB87: 0 | BC87: 0 | BE87: 0
A88: 79 | H88: 0 | U88: 0 | AP88: 0 | AZ88: 0 | BA88: 0 | BB88: 0 | BC88: 0 | BE88: 0
A89: 80 | H89: 0 | U89: 0 | AP89: 0 | AZ89: 0 | BA89: 0 | BB89: 0 | BC89: 0 | BE89: 0
A90: 81 | H90: 0 | U90: 0 | AP90: 0 | AZ90: 0 | BA90: 0 | BB90: 0 | BC90: 0 | BE90: 0
A91: 82 | H91: 0 | U91: 0 | AP91: 0 | AZ91: 0 | BA91: 0 | BB91: 0 | BC91: 0 | BE91: 0
A92: 83 | H92: 0 | U92: 0 | AP92: 0 | AZ92: 0 | BA92: 0 | BB92: 0 | BC92: 0 | BE92: 0
A93: 84 | H93: 0 | U93: 0 | AP93: 0 | AZ93: 0 | BA93: 0 | BB93: 0 | BC93: 0 | BE93: 0
A94: 85 | H94: 0 | U94: 0 | AP94: 0 | AZ94: 0 | BA94: 0 | BB94: 0 | BC94: 0 | BE94: 0
A95: 86 | H95: 0 | U95: 0 | AP95: 0 | AZ95: 0 | BA95: 0 | BB95: 0 | BC95: 0 | BE95: 0
A96: 87 | H96: 0 | U96: 0 | AP96: 0 | AZ96: 0 | BA96: 0 | BB96: 0 | BC96: 0 | BE96: 0
A97: 88 | H97: 0 | U97: 0 | AP97: 0 | AZ97: 0 | BA97: 0 | BB97: 0 | BC97: 0 | BE97: 0
A98: 89 | H98: 0 | U98: 0 | AP98: 0 | AZ98: 0 | BA98: 0 | BB98: 0 | BC98: 0 | BE98: 0
A99: 90 | H99: 0 | U99: 0 | AP99: 0 | AZ99: 0 | BA99: 0 | BB99: 0 | BC99: 0 | BE99: 0
A100: 91 | H100: 0 | U100: 0 | AP100: 0 | AZ100: 0 | BA100: 0 | BB100: 0 | BC100: 0 | BE100: 0
A101: 92 | H101: 0 | U101: 0 | AP101: 0 | AZ101: 0 | BA101: 0 | BB101: 0 | BC101: 0 | BE101: 0
A102: 93 | H102: 0 | U102: 0 | AP102: 0 | AZ102: 0 | BA102: 0 | BB102: 0 | BC102: 0 | BE102: 0
A103: 94 | H103: 0 | U103: 0 | AP103: 0 | AZ103: 0 | BA103: 0 | BB103: 0 | BC103: 0 | BE103: 0
A104: 95 | H104: 0 | U104: 0 | AP104: 0 | AZ104: 0 | BA104: 0 | BB104: 0 | BC104: 0 | BE104: 0
A105: 96 | H105: 0 | U105: 0 | AP105: 0 | AZ105: 0 | BA105: 0 | BB105: 0 | BC105: 0 | BE105: 0
A106: 97 | H106: 0 | U106: 0 | AP106: 0 | AZ106: 0 | BA106: 0 | BB106: 0 | BC106: 0 | BE106: 0
A107: 98 | H107: 0 | U107: 0 | AP107: 0 | AZ107: 0 | BA107: 0 | BB107: 0 | BC107: 0 | BE107: 0
A108: 99 | H108: 0 | U108: 0 | AP108: 0 | AZ108: 0 | BA108: 0 | BB108: 0 | BC108: 0 | BE108: 0
A109: 100 | H109: 0 | U109: 0 | AP109: 0 | AZ109: 0 | BA109: 0 | BB109: 0 | BC109: 0 | BE109: 0
A110: 101 | H110: 0 | U110: 0 | AP110: 0 | AZ110: 0 | BA110: 0 | BB110: 0 | BC110: 0 | BE110: 0
A111: 102 | H111: 0 | U111: 0 | AP111: 0 | AZ111: 0 | BA111: 0 | BB111: 0 | BC111: 0 | BE111: 0
A112: 103 | H112: 0 | U112: 0 | AP112: 0 | AZ112: 0 | BA112: 0 | BB112: 0 | BC112: 0 | BE112: 0
A113: 104 | H113: 0 | U113: 0 | AP113: 0 | AZ113: 0 | BA113: 0 | BB113: 0 | BC113: 0 | BE113: 0
A114: 105 | H114: 0 | U114: 0 | AP114: 0 | AZ114: 0 | BA114: 0 | BB114: 0 | BC114: 0 | BE114: 0
A115: 106 | H115: 0 | U115: 0 | AP115: 0 | AZ115: 0 | BA115: 0 | BB115: 0 | BC115: 0 | BE115: 0
A116: 107 | H116: 0 | U116: 0 | AP116: 0 | AZ116: 0 | BA116: 0 | BB116: 0 | BC116: 0 | BE116: 0
A117: 108 | H117: 0 | U117: 0 | AP117: 0 | AZ117: 0 | BA117: 0 | BB117: 0 | BC117: 0 | BE117: 0
A118: 109 | H118: 0 | U118: 0 | AP118: 0 | AZ118: 0 | BA118: 0 | BB118: 0 | BC118: 0 | BE118: 0
A119: 110 | H119: 0 | U119: 0 | AP119: 0 | AZ119: 0 | BA119: 0 | BB119: 0 | BC119: 0 | BE119: 0
A120: 111 | H120: 0 | U120: 0 | AP120: 0 | AZ120: 0 | BA120: 0 | BB120: 0 | BC120: 0 | BE120: 0
A121: 112 | H121: 0 | U121: 0 | AP121: 0 | AZ121: 0 | BA121: 0 | BB121: 0 | BC121: 0 | BE121: 0
A122: 113 | H122: 0 | U122: 0 | AP122: 0 | AZ122: 0 | BA122: 0 | BB122: 0 | BC122: 0 | BE122: 0
A123: 114 | H123: 0 | U123: 0 | AP123: 0 | AZ123: 0 | BA123: 0 | BB123: 0 | BC123: 0 | BE123: 0
A124: 115 | H124: 0 | U124: 0 | AP124: 0 | AZ124: 0 | BA124: 0 | BB124: 0 | BC124: 0 | BE124: 0
A125: 116 | H125: 0 | U125: 0 | AP125: 0 | AZ125: 0 | BA125: 0 | BB125: 0 | BC125: 0 | BE125: 0
A126: 117 | H126: 0 | U126: 0 | AP126: 0 | AZ126: 0 | BA126: 0 | BB126: 0 | BC126: 0 | BE126: 0
A127: 118 | H127: 0 | U127: 0 | AP127: 0 | AZ127: 0 | BA127: 0 | BB127: 0 | BC127: 0 | BE127: 0
A128: 119 | H128: 0 | U128: 0 | AP128: 0 | AZ128: 0 | BA128: 0 | BB128: 0 | BC128: 0 | BE128: 0
A129: 120 | H129: 0 | U129: 0 | AP129: 0 | AZ129: 0 | BA129: 0 | BB129: 0 | BC129: 0 | BE129: 0
A130: 121 | H130: 0 | U130: 0 | AP130: 0 | AZ130: 0 | BA130: 0 | BB130: 0 | BC130: 0 | BE130: 0
A131: 122 | H131: 0 | U131: 0 | AP131: 0 | AZ131: 0 | BA131: 0 | BB131: 0 | BC131: 0 | BE131: 0
A132: 123 | H132: 0 | U132: 0 | AP132: 0 | AZ132: 0 | BA132: 0 | BB132: 0 | BC132: 0 | BE132: 0
A133: 124 | H133: 0 | U133: 0 | AP133: 0 | AZ133: 0 | BA133: 0 | BB133: 0 | BC133: 0 | BE133: 0
A134: 125 | H134: 0 | U134: 0 | AP134: 0 | AZ134: 0 | BA134: 0 | BB134: 0 | BC134: 0 | BE134: 0
A135: 126 | H135: 0 | U135: 0 | AP135: 0 | AZ135: 0 | BA135: 0 | BB135: 0 | BC135: 0 | BE135: 0
A136: 127 | H136: 0 | U136: 0 | AP136: 0 | AZ136: 0 | BA136: 0 | BB136: 0 | BC136: 0 | BE136: 0
A137: 128 | H137: 0 | U137: 0 | AP137: 0 | AZ137: 0 | BA137: 0 | BB137: 0 | BC137: 0 | BE137: 0
A138: 129 | H138: =IF(AND(ISTEXT(C138),OR(ISBLANK(D138),ISBLANK(E138))),1,0) -> 0 | U138: =IF(OR( AND(ISTEXT(I138),ISBLANK(J138)), AND(ISTEXT(M138),ISBLANK(N138)), AND(ISTEXT(Q138),ISBLANK(R138))),1,0) -> 0 | AP138: =IF(OR( AND(ISTEXT(V138),ISBLANK(W138)), AND(ISTEXT(AA138),ISBLANK(AB138)), AND(ISTEXT(AF138),ISBLANK(AG138)), AND(ISTEXT(AK138),ISBLANK(AL138)),),1,0) -> 0 | AZ138: =IF(OR(ISBLANK(AV138),_xlfn.ISFORMULA(AV138)),0,1) -> 0 | BA138: =IF(OR(ISBLANK(AW138),_xlfn.ISFORMULA(AW138)),0,1) -> 0 | BB138: =IF(OR(ISBLANK(AX138),_xlfn.ISFORMULA(AX138)),0,1) -> 0 | BC138: =IF(OR(ISBLANK(AY138),_xlfn.ISFORMULA(AY138)),0,1) -> 0 | BE138: =IF(AND(OR(AT138="",AT138=0),BD138=""),0,IF(AND(AT138<>"",AT138<>0,BD138=""),1,0)) -> 0
A139: 130 | H139: 0 | U139: 0 | AP139: 0 | AZ139: 0 | BA139: 0 | BB139: 0 | BC139: 0 | BE139: 0
A140: =IFERROR(A139+1,"") -> 131 | H140: 0 | U140: 0 | AP140: 0 | AZ140: 0 | BA140: 0 | BB140: 0 | BC140: 0 | BE140: 0
A141: 132 | H141: 0 | U141: 0 | AP141: 0 | AZ141: 0 | BA141: 0 | BB141: 0 | BC141: 0 | BE141: 0
A142: 133 | H142: 0 | U142: 0 | AP142: 0 | AZ142: 0 | BA142: 0 | BB142: 0 | BC142: 0 | BE142: 0
A143: 134 | H143: 0 | U143: 0 | AP143: 0 | AZ143: 0 | BA143: 0 | BB143: 0 | BC143: 0 | BE143: 0
A144: 135 | H144: 0 | U144: 0 | AP144: 0 | AZ144: 0 | BA144: 0 | BB144: 0 | BC144: 0 | BE144: 0
A145: 136 | H145: 0 | U145: 0 | AP145: 0 | AZ145: 0 | BA145: 0 | BB145: 0 | BC145: 0 | BE145: 0
A146: 137 | H146: 0 | U146: 0 | AP146: 0 | AZ146: 0 | BA146: 0 | BB146: 0 | BC146: 0 | BE146: 0
A147: 138 | H147: 0 | U147: 0 | AP147: 0 | AZ147: 0 | BA147: 0 | BB147: 0 | BC147: 0 | BE147: 0
A148: 139 | H148: 0 | U148: 0 | AP148: 0 | AZ148: 0 | BA148: 0 | BB148: 0 | BC148: 0 | BE148: 0
A149: 140 | H149: 0 | U149: 0 | AP149: 0 | AZ149: 0 | BA149: 0 | BB149: 0 | BC149: 0 | BE149: 0
A150: 141 | H150: 0 | U150: 0 | AP150: 0 | AZ150: 0 | BA150: 0 | BB150: 0 | BC150: 0 | BE150: 0
A151: 142 | H151: 0 | U151: 0 | AP151: 0 | AZ151: 0 | BA151: 0 | BB151: 0 | BC151: 0 | BE151: 0
A152: 143 | H152: 0 | U152: 0 | AP152: 0 | AZ152: 0 | BA152: 0 | BB152: 0 | BC152: 0 | BE152: 0
A153: 144 | H153: 0 | U153: 0 | AP153: 0 | AZ153: 0 | BA153: 0 | BB153: 0 | BC153: 0 | BE153: 0
A154: 145 | H154: 0 | U154: 0 | AP154: 0 | AZ154: 0 | BA154: 0 | BB154: 0 | BC154: 0 | BE154: 0
A155: 146 | H155: 0 | U155: 0 | AP155: 0 | AZ155: 0 | BA155: 0 | BB155: 0 | BC155: 0 | BE155: 0
A156: 147 | H156: 0 | U156: 0 | AP156: 0 | AZ156: 0 | BA156: 0 | BB156: 0 | BC156: 0 | BE156: 0
A157: 148 | H157: 0 | U157: 0 | AP157: 0 | AZ157: 0 | BA157: 0 | BB157: 0 | BC157: 0 | BE157: 0
A158: 149 | H158: 0 | U158: 0 | AP158: 0 | AZ158: 0 | BA158: 0 | BB158: 0 | BC158: 0 | BE158: 0
A159: 150 | H159: 0 | U159: 0 | AP159: 0 | AZ159: 0 | BA159: 0 | BB159: 0 | BC159: 0 | BE159: 0
A160: 151 | H160: 0 | U160: 0 | AP160: 0 | AZ160: 0 | BA160: 0 | BB160: 0 | BC160: 0 | BE160: 0
A161: 152 | H161: 0 | U161: 0 | AP161: 0 | AZ161: 0 | BA161: 0 | BB161: 0 | BC161: 0 | BE161: 0
A162: 153 | H162: 0 | U162: 0 | AP162: 0 | AZ162: 0 | BA162: 0 | BB162: 0 | BC162: 0 | BE162: 0
A163: 154 | H163: 0 | U163: 0 | AP163: 0 | AZ163: 0 | BA163: 0 | BB163: 0 | BC163: 0 | BE163: 0
A164: 155 | H164: 0 | U164: 0 | AP164: 0 | AZ164: 0 | BA164: 0 | BB164: 0 | BC164: 0 | BE164: 0
A165: 156 | H165: 0 | U165: 0 | AP165: 0 | AZ165: 0 | BA165: 0 | BB165: 0 | BC165: 0 | BE165: 0
A166: 157 | H166: 0 | U166: 0 | AP166: 0 | AZ166: 0 | BA166: 0 | BB166: 0 | BC166: 0 | BE166: 0
A167: 158 | H167: 0 | U167: 0 | AP167: 0 | AZ167: 0 | BA167: 0 | BB167: 0 | BC167: 0 | BE167: 0
A168: 159 | H168: 0 | U168: 0 | AP168: 0 | AZ168: 0 | BA168: 0 | BB168: 0 | BC168: 0 | BE168: 0
A169: 160 | H169: 0 | U169: 0 | AP169: 0 | AZ169: 0 | BA169: 0 | BB169: 0 | BC169: 0 | BE169: 0
A170: 161 | H170: 0 | U170: 0 | AP170: 0 | AZ170: 0 | BA170: 0 | BB170: 0 | BC170: 0 | BE170: 0
A171: 162 | H171: 0 | U171: 0 | AP171: 0 | AZ171: 0 | BA171: 0 | BB171: 0 | BC171: 0 | BE171: 0
A172: 163 | H172: 0 | U172: 0 | AP172: 0 | AZ172: 0 | BA172: 0 | BB172: 0 | BC172: 0 | BE172: 0
A173: 164 | H173: 0 | U173: 0 | AP173: 0 | AZ173: 0 | BA173: 0 | BB173: 0 | BC173: 0 | BE173: 0
A174: 165 | H174: 0 | U174: 0 | AP174: 0 | AZ174: 0 | BA174: 0 | BB174: 0 | BC174: 0 | BE174: 0
A175: 166 | H175: 0 | U175: 0 | AP175: 0 | AZ175: 0 | BA175: 0 | BB175: 0 | BC175: 0 | BE175: 0
A176: 167 | H176: 0 | U176: 0 | AP176: 0 | AZ176: 0 | BA176: 0 | BB176: 0 | BC176: 0 | BE176: 0
A177: 168 | H177: 0 | U177: 0 | AP177: 0 | AZ177: 0 | BA177: 0 | BB177: 0 | BC177: 0 | BE177: 0
A178: 169 | H178: 0 | U178: 0 | AP178: 0 | AZ178: 0 | BA178: 0 | BB178: 0 | BC178: 0 | BE178: 0
A179: 170 | H179: 0 | U179: 0 | AP179: 0 | AZ179: 0 | BA179: 0 | BB179: 0 | BC179: 0 | BE179: 0
A180: 171 | H180: 0 | U180: 0 | AP180: 0 | AZ180: 0 | BA180: 0 | BB180: 0 | BC180: 0 | BE180: 0
A181: 172 | H181: 0 | U181: 0 | AP181: 0 | AZ181: 0 | BA181: 0 | BB181: 0 | BC181: 0 | BE181: 0
A182: 173 | H182: 0 | U182: 0 | AP182: 0 | AZ182: 0 | BA182: 0 | BB182: 0 | BC182: 0 | BE182: 0
A183: 174 | H183: 0 | U183: 0 | AP183: 0 | AZ183: 0 | BA183: 0 | BB183: 0 | BC183: 0 | BE183: 0
A184: 175 | H184: 0 | U184: 0 | AP184: 0 | AZ184: 0 | BA184: 0 | BB184: 0 | BC184: 0 | BE184: 0
A185: 176 | H185: 0 | U185: 0 | AP185: 0 | AZ185: 0 | BA185: 0 | BB185: 0 | BC185: 0 | BE185: 0
A186: 177 | H186: 0 | U186: 0 | AP186: 0 | AZ186: 0 | BA186: 0 | BB186: 0 | BC186: 0 | BE186: 0
A187: 178 | H187: 0 | U187: 0 | AP187: 0 | AZ187: 0 | BA187: 0 | BB187: 0 | BC187: 0 | BE187: 0
A188: 179 | H188: 0 | U188: 0 | AP188: 0 | AZ188: 0 | BA188: 0 | BB188: 0 | BC188: 0 | BE188: 0
A189: 180 | H189: 0 | U189: 0 | AP189: 0 | AZ189: 0 | BA189: 0 | BB189: 0 | BC189: 0 | BE189: 0
A190: 181 | H190: 0 | U190: 0 | AP190: 0 | AZ190: 0 | BA190: 0 | BB190: 0 | BC190: 0 | BE190: 0
A191: 182 | H191: 0 | U191: 0 | AP191: 0 | AZ191: 0 | BA191: 0 | BB191: 0 | BC191: 0 | BE191: 0
A192: 183 | H192: 0 | U192: 0 | AP192: 0 | AZ192: 0 | BA192: 0 | BB192: 0 | BC192: 0 | BE192: 0
A193: 184 | H193: 0 | U193: 0 | AP193: 0 | AZ193: 0 | BA193: 0 | BB193: 0 | BC193: 0 | BE193: 0
A194: 185 | H194: 0 | U194: 0 | AP194: 0 | AZ194: 0 | BA194: 0 | BB194: 0 | BC194: 0 | BE194: 0
A195: 186 | H195: 0 | U195: 0 | AP195: 0 | AZ195: 0 | BA195: 0 | BB195: 0 | BC195: 0 | BE195: 0
A196: 187 | H196: 0 | U196: 0 | AP196: 0 | AZ196: 0 | BA196: 0 | BB196: 0 | BC196: 0 | BE196: 0
A197: 188 | H197: 0 | U197: 0 | AP197: 0 | AZ197: 0 | BA197: 0 | BB197: 0 | BC197: 0 | BE197: 0
A198: 189 | H198: 0 | U198: 0 | AP198: 0 | AZ198: 0 | BA198: 0 | BB198: 0 | BC198: 0 | BE198: 0
A199: 190 | H199: 0 | U199: 0 | AP199: 0 | AZ199: 0 | BA199: 0 | BB199: 0 | BC199: 0 | BE199: 0
A200: 191 | H200: 0 | U200: 0 | AP200: 0 | AZ200: 0 | BA200: 0 | BB200: 0 | BC200: 0 | BE200: 0
A201: 192 | H201: 0 | U201: 0 | AP201: 0 | AZ201: 0 | BA201: 0 | BB201: 0 | BC201: 0 | BE201: 0
A202: 193 | H202: =IF(AND(ISTEXT(C202),OR(ISBLANK(D202),ISBLANK(E202))),1,0) -> 0 | U202: =IF(OR( AND(ISTEXT(I202),ISBLANK(J202)), AND(ISTEXT(M202),ISBLANK(N202)), AND(ISTEXT(Q202),ISBLANK(R202))),1,0) -> 0 | AP202: =IF(OR( AND(ISTEXT(V202),ISBLANK(W202)), AND(ISTEXT(AA202),ISBLANK(AB202)), AND(ISTEXT(AF202),ISBLANK(AG202)), AND(ISTEXT(AK202),ISBLANK(AL202)),),1,0) -> 0 | AZ202: =IF(OR(ISBLANK(AV202),_xlfn.ISFORMULA(AV202)),0,1) -> 0 | BA202: =IF(OR(ISBLANK(AW202),_xlfn.ISFORMULA(AW202)),0,1) -> 0 | BB202: =IF(OR(ISBLANK(AX202),_xlfn.ISFORMULA(AX202)),0,1) -> 0 | BC202: =IF(OR(ISBLANK(AY202),_xlfn.ISFORMULA(AY202)),0,1) -> 0 | BE202: =IF(AND(OR(AT202="",AT202=0),BD202=""),0,IF(AND(AT202<>"",AT202<>0,BD202=""),1,0)) -> 0
A203: 194 | H203: 0 | U203: 0 | AP203: 0 | AZ203: 0 | BA203: 0 | BB203: 0 | BC203: 0 | BE203: 0
A204: =IFERROR(A203+1,"") -> 195 | H204: 0 | U204: 0 | AP204: 0 | AZ204: 0 | BA204: 0 | BB204: 0 | BC204: 0 | BE204: 0
... 305 more rows

Sheet Calc|Labour Rates
B1: =IFERROR(Index!B1,"") -> AER ANS Forecast Model | D1: Key: | E1: Input
B2: =IFERROR(MID(CELL("filename",A1),FIND("]",CELL("filename",A1))+1,255),"") -> Calc|Labour Rates | E2: Formula
B7: 9.1 Year 1 labour rates | E7: =IFERROR("Year 1 labour rates, $'s ($"&Output_first_year&")","") ->  | G7: =IFERROR("9.2 Year 1 labour rates build up, $'s ($"&'Input|Setup'!$E$8&")","") -> 9.2 Year 1 labour rates build up, $'s ($2026-27)
B9: ='Input|Labour Rates'!B9 -> Labour type (List) | C9: ='Input|Labour Rates'!C9 -> Hours (List) | D9: ='Input|Labour Rates'!D9 -> Used for quoted service? (List) | E9: TOTAL LABOUR RATE | G9: BASE LABOUR RATE | H9: On costs | I9: STANDARD LABOUR RATE (EXCL OVERHEADS) | J9: Overhead | K9: Vehicle and Other costs
A10: 1 | B10: =IF(ISBLANK('Input|Labour Rates'!B10),"",'Input|Labour Rates'!B10) -> Standard field labour | C10: =IF(ISBLANK('Input|Labour Rates'!C10),"",'Input|Labour Rates'!C10) -> Business hours | D10: =IF(ISBLANK('Input|Labour Rates'!D10),"",'Input|Labour Rates'!D10) -> No | J10: =IFERROR(I10*'Input|Labour Rates'!G10,0) -> 0 | K10: ='Input|Labour Rates'!H10*CPI_Escalator_to_Y1*RealVehicles_Escalator_to_Y1 + 'Input|Labour Rates'!I10*CPI_Escalator_to_Y1*RealOther_Escalator_to_Y1 -> 0
A11: =A10+1 -> 2 | B11: =IF(ISBLANK('Input|Labour Rates'!B11),"",'Input|Labour Rates'!B11) -> Non-field 1 | C11: =IF(ISBLANK('Input|Labour Rates'!C11),"",'Input|Labour Rates'!C11) -> Business hours | D11: =IF(ISBLANK('Input|Labour Rates'!D11),"",'Input|Labour Rates'!D11) -> No | H11: =IFERROR(G11*'Input|Labour Rates'!F11,0) -> 0 | J11: =IFERROR(I11*'Input|Labour Rates'!G11,0) -> 0 | K11: ='Input|Labour Rates'!H11*CPI_Escalator_to_Y1*RealVehicles_Escalator_to_Y1 + 'Input|Labour Rates'!I11*CPI_Escalator_to_Y1*RealOther_Escalator_to_Y1 -> 0
A12: 3 | B12: =IF(ISBLANK('Input|Labour Rates'!B12),"",'Input|Labour Rates'!B12) -> Non-field 2 | C12: =IF(ISBLANK('Input|Labour Rates'!C12),"",'Input|Labour Rates'!C12) -> Business hours | D12: =IF(ISBLANK('Input|Labour Rates'!D12),"",'Input|Labour Rates'!D12) -> No | H12: =IFERROR(G12*'Input|Labour Rates'!F12,0) -> 0 | J12: =IFERROR(I12*'Input|Labour Rates'!G12,0) -> 0 | K12: ='Input|Labour Rates'!H12*CPI_Escalator_to_Y1*RealVehicles_Escalator_to_Y1 + 'Input|Labour Rates'!I12*CPI_Escalator_to_Y1*RealOther_Escalator_to_Y1 -> 0
A13: 4 | B13: =IF(ISBLANK('Input|Labour Rates'!B13),"",'Input|Labour Rates'!B13) -> Non-field 3 | C13: =IF(ISBLANK('Input|Labour Rates'!C13),"",'Input|Labour Rates'!C13) -> Business hours | D13: =IF(ISBLANK('Input|Labour Rates'!D13),"",'Input|Labour Rates'!D13) -> No | H13: =IFERROR(G13*'Input|Labour Rates'!F13,0) -> 0 | J13: =IFERROR(I13*'Input|Labour Rates'!G13,0) -> 0 | K13: ='Input|Labour Rates'!H13*CPI_Escalator_to_Y1*RealVehicles_Escalator_to_Y1 + 'Input|Labour Rates'!I13*CPI_Escalator_to_Y1*RealOther_Escalator_to_Y1 -> 0
A14: 5 | B14: =IF(ISBLANK('Input|Labour Rates'!B14),"",'Input|Labour Rates'!B14) -> Hydrovac | C14: =IF(ISBLANK('Input|Labour Rates'!C14),"",'Input|Labour Rates'!C14) -> Business hours | D14: =IF(ISBLANK('Input|Labour Rates'!D14),"",'Input|Labour Rates'!D14) -> No | J14: =IFERROR(I14*'Input|Labour Rates'!G14,0) -> 0 | K14: ='Input|Labour Rates'!H14*CPI_Escalator_to_Y1*RealVehicles_Escalator_to_Y1 + 'Input|Labour Rates'!I14*CPI_Escalator_to_Y1*RealOther_Escalator_to_Y1 -> 0
A15: 6 | B15: =IF(ISBLANK('Input|Labour Rates'!B15),"",'Input|Labour Rates'!B15) -> Non-field 4 | C15: =IF(ISBLANK('Input|Labour Rates'!C15),"",'Input|Labour Rates'!C15) -> Business hours | D15: =IF(ISBLANK('Input|Labour Rates'!D15),"",'Input|Labour Rates'!D15) -> No | H15: =IFERROR(G15*'Input|Labour Rates'!F15,0) -> 0 | J15: =IFERROR(I15*'Input|Labour Rates'!G15,0) -> 0 | K15: ='Input|Labour Rates'!H15*CPI_Escalator_to_Y1*RealVehicles_Escalator_to_Y1 + 'Input|Labour Rates'!I15*CPI_Escalator_to_Y1*RealOther_Escalator_to_Y1 -> 0
A16: 7 | B16: =IF(ISBLANK('Input|Labour Rates'!B16),"",'Input|Labour Rates'!B16) ->  | C16: =IF(ISBLANK('Input|Labour Rates'!C16),"",'Input|Labour Rates'!C16) ->  | D16: =IF(ISBLANK('Input|Labour Rates'!D16),"",'Input|Labour Rates'!D16) ->  | E16: =$I16+$J16+$K16 -> 0 | G16: ='Input|Labour Rates'!$E16*CPI_Escalator_to_Y1*RealLabour_Escalator_to_Y1 -> 0 | H16: =IFERROR(G16*'Input|Labour Rates'!F16,0) -> 0 | I16: =G16+H16 -> 0 | J16: =IFERROR(I16*'Input|Labour Rates'!G16,0) -> 0 | K16: ='Input|Labour Rates'!H16*CPI_Escalator_to_Y1*RealVehicles_Escalator_to_Y1 + 'Input|Labour Rates'!I16*CPI_Escalator_to_Y1*RealOther_Escalator_to_Y1 -> 0
A17: 8 | B17: =IF(ISBLANK('Input|Labour Rates'!B17),"",'Input|Labour Rates'!B17) ->  | C17: =IF(ISBLANK('Input|Labour Rates'!C17),"",'Input|Labour Rates'!C17) ->  | D17: =IF(ISBLANK('Input|Labour Rates'!D17),"",'Input|Labour Rates'!D17) ->  | E17: 0 | G17: ='Input|Labour Rates'!$E17*CPI_Escalator_to_Y1*RealLabour_Escalator_to_Y1 -> 0 | H17: =IFERROR(G17*'Input|Labour Rates'!F17,0) -> 0 | I17: 0 | J17: =IFERROR(I17*'Input|Labour Rates'!G17,0) -> 0 | K17: ='Input|Labour Rates'!H17*CPI_Escalator_to_Y1*RealVehicles_Escalator_to_Y1 + 'Input|Labour Rates'!I17*CPI_Escalator_to_Y1*RealOther_Escalator_to_Y1 -> 0
A18: 9 | B18: =IF(ISBLANK('Input|Labour Rates'!B18),"",'Input|Labour Rates'!B18) ->  | C18: =IF(ISBLANK('Input|Labour Rates'!C18),"",'Input|Labour Rates'!C18) ->  | D18: =IF(ISBLANK('Input|Labour Rates'!D18),"",'Input|Labour Rates'!D18) ->  | E18: 0 | G18: ='Input|Labour Rates'!$E18*CPI_Escalator_to_Y1*RealLabour_Escalator_to_Y1 -> 0 | H18: =IFERROR(G18*'Input|Labour Rates'!F18,0) -> 0 | I18: 0 | J18: =IFERROR(I18*'Input|Labour Rates'!G18,0) -> 0 | K18: ='Input|Labour Rates'!H18*CPI_Escalator_to_Y1*RealVehicles_Escalator_to_Y1 + 'Input|Labour Rates'!I18*CPI_Escalator_to_Y1*RealOther_Escalator_to_Y1 -> 0
A19: 10 | B19: =IF(ISBLANK('Input|Labour Rates'!B19),"",'Input|Labour Rates'!B19) ->  | C19: =IF(ISBLANK('Input|Labour Rates'!C19),"",'Input|Labour Rates'!C19) ->  | D19: =IF(ISBLANK('Input|Labour Rates'!D19),"",'Input|Labour Rates'!D19) ->  | E19: 0 | G19: ='Input|Labour Rates'!$E19*CPI_Escalator_to_Y1*RealLabour_Escalator_to_Y1 -> 0 | H19: =IFERROR(G19*'Input|Labour Rates'!F19,0) -> 0 | I19: 0 | J19: =IFERROR(I19*'Input|Labour Rates'!G19,0) -> 0 | K19: ='Input|Labour Rates'!H19*CPI_Escalator_to_Y1*RealVehicles_Escalator_to_Y1 + 'Input|Labour Rates'!I19*CPI_Escalator_to_Y1*RealOther_Escalator_to_Y1 -> 0
A20: 11 | B20: =IF(ISBLANK('Input|Labour Rates'!B20),"",'Input|Labour Rates'!B20) ->  | C20: =IF(ISBLANK('Input|Labour Rates'!C20),"",'Input|Labour Rates'!C20) ->  | D20: =IF(ISBLANK('Input|Labour Rates'!D20),"",'Input|Labour Rates'!D20) ->  | E20: 0 | G20: ='Input|Labour Rates'!$E20*CPI_Escalator_to_Y1*RealLabour_Escalator_to_Y1 -> 0 | H20: =IFERROR(G20*'Input|Labour Rates'!F20,0) -> 0 | I20: 0 | J20: =IFERROR(I20*'Input|Labour Rates'!G20,0) -> 0 | K20: ='Input|Labour Rates'!H20*CPI_Escalator_to_Y1*RealVehicles_Escalator_to_Y1 + 'Input|Labour Rates'!I20*CPI_Escalator_to_Y1*RealOther_Escalator_to_Y1 -> 0
A21: 12 | B21: =IF(ISBLANK('Input|Labour Rates'!B21),"",'Input|Labour Rates'!B21) ->  | C21: =IF(ISBLANK('Input|Labour Rates'!C21),"",'Input|Labour Rates'!C21) ->  | D21: =IF(ISBLANK('Input|Labour Rates'!D21),"",'Input|Labour Rates'!D21) ->  | E21: 0 | G21: ='Input|Labour Rates'!$E21*CPI_Escalator_to_Y1*RealLabour_Escalator_to_Y1 -> 0 | H21: =IFERROR(G21*'Input|Labour Rates'!F21,0) -> 0 | I21: 0 | J21: =IFERROR(I21*'Input|Labour Rates'!G21,0) -> 0 | K21: ='Input|Labour Rates'!H21*CPI_Escalator_to_Y1*RealVehicles_Escalator_to_Y1 + 'Input|Labour Rates'!I21*CPI_Escalator_to_Y1*RealOther_Escalator_to_Y1 -> 0
A22: 13 | B22: =IF(ISBLANK('Input|Labour Rates'!B22),"",'Input|Labour Rates'!B22) ->  | C22: =IF(ISBLANK('Input|Labour Rates'!C22),"",'Input|Labour Rates'!C22) ->  | D22: =IF(ISBLANK('Input|Labour Rates'!D22),"",'Input|Labour Rates'!D22) ->  | E22: 0 | G22: ='Input|Labour Rates'!$E22*CPI_Escalator_to_Y1*RealLabour_Escalator_to_Y1 -> 0 | H22: =IFERROR(G22*'Input|Labour Rates'!F22,0) -> 0 | I22: 0 | J22: =IFERROR(I22*'Input|Labour Rates'!G22,0) -> 0 | K22: ='Input|Labour Rates'!H22*CPI_Escalator_to_Y1*RealVehicles_Escalator_to_Y1 + 'Input|Labour Rates'!I22*CPI_Escalator_to_Y1*RealOther_Escalator_to_Y1 -> 0
A23: 14 | B23: =IF(ISBLANK('Input|Labour Rates'!B23),"",'Input|Labour Rates'!B23) ->  | C23: =IF(ISBLANK('Input|Labour Rates'!C23),"",'Input|Labour Rates'!C23) ->  | D23: =IF(ISBLANK('Input|Labour Rates'!D23),"",'Input|Labour Rates'!D23) ->  | E23: 0 | G23: ='Input|Labour Rates'!$E23*CPI_Escalator_to_Y1*RealLabour_Escalator_to_Y1 -> 0 | H23: =IFERROR(G23*'Input|Labour Rates'!F23,0) -> 0 | I23: 0 | J23: =IFERROR(I23*'Input|Labour Rates'!G23,0) -> 0 | K23: ='Input|Labour Rates'!H23*CPI_Escalator_to_Y1*RealVehicles_Escalator_to_Y1 + 'Input|Labour Rates'!I23*CPI_Escalator_to_Y1*RealOther_Escalator_to_Y1 -> 0
A24: 15 | B24: =IF(ISBLANK('Input|Labour Rates'!B24),"",'Input|Labour Rates'!B24) ->  | C24: =IF(ISBLANK('Input|Labour Rates'!C24),"",'Input|Labour Rates'!C24) ->  | D24: =IF(ISBLANK('Input|Labour Rates'!D24),"",'Input|Labour Rates'!D24) ->  | E24: 0 | G24: ='Input|Labour Rates'!$E24*CPI_Escalator_to_Y1*RealLabour_Escalator_to_Y1 -> 0 | H24: =IFERROR(G24*'Input|Labour Rates'!F24,0) -> 0 | I24: 0 | J24: =IFERROR(I24*'Input|Labour Rates'!G24,0) -> 0 | K24: ='Input|Labour Rates'!H24*CPI_Escalator_to_Y1*RealVehicles_Escalator_to_Y1 + 'Input|Labour Rates'!I24*CPI_Escalator_to_Y1*RealOther_Escalator_to_Y1 -> 0
A25: 16 | B25: =IF(ISBLANK('Input|Labour Rates'!B25),"",'Input|Labour Rates'!B25) ->  | C25: =IF(ISBLANK('Input|Labour Rates'!C25),"",'Input|Labour Rates'!C25) ->  | D25: =IF(ISBLANK('Input|Labour Rates'!D25),"",'Input|Labour Rates'!D25) ->  | E25: 0 | G25: ='Input|Labour Rates'!$E25*CPI_Escalator_to_Y1*RealLabour_Escalator_to_Y1 -> 0 | H25: =IFERROR(G25*'Input|Labour Rates'!F25,0) -> 0 | I25: 0 | J25: =IFERROR(I25*'Input|Labour Rates'!G25,0) -> 0 | K25: ='Input|Labour Rates'!H25*CPI_Escalator_to_Y1*RealVehicles_Escalator_to_Y1 + 'Input|Labour Rates'!I25*CPI_Escalator_to_Y1*RealOther_Escalator_to_Y1 -> 0
A26: 17 | B26: =IF(ISBLANK('Input|Labour Rates'!B26),"",'Input|Labour Rates'!B26) ->  | C26: =IF(ISBLANK('Input|Labour Rates'!C26),"",'Input|Labour Rates'!C26) ->  | D26: =IF(ISBLANK('Input|Labour Rates'!D26),"",'Input|Labour Rates'!D26) ->  | E26: 0 | G26: ='Input|Labour Rates'!$E26*CPI_Escalator_to_Y1*RealLabour_Escalator_to_Y1 -> 0 | H26: =IFERROR(G26*'Input|Labour Rates'!F26,0) -> 0 | I26: 0 | J26: =IFERROR(I26*'Input|Labour Rates'!G26,0) -> 0 | K26: ='Input|Labour Rates'!H26*CPI_Escalator_to_Y1*RealVehicles_Escalator_to_Y1 + 'Input|Labour Rates'!I26*CPI_Escalator_to_Y1*RealOther_Escalator_to_Y1 -> 0
A27: 18 | B27: =IF(ISBLANK('Input|Labour Rates'!B27),"",'Input|Labour Rates'!B27) ->  | C27: =IF(ISBLANK('Input|Labour Rates'!C27),"",'Input|Labour Rates'!C27) ->  | D27: =IF(ISBLANK('Input|Labour Rates'!D27),"",'Input|Labour Rates'!D27) ->  | E27: 0 | G27: ='Input|Labour Rates'!$E27*CPI_Escalator_to_Y1*RealLabour_Escalator_to_Y1 -> 0 | H27: =IFERROR(G27*'Input|Labour Rates'!F27,0) -> 0 | I27: 0 | J27: =IFERROR(I27*'Input|Labour Rates'!G27,0) -> 0 | K27: ='Input|Labour Rates'!H27*CPI_Escalator_to_Y1*RealVehicles_Escalator_to_Y1 + 'Input|Labour Rates'!I27*CPI_Escalator_to_Y1*RealOther_Escalator_to_Y1 -> 0
A28: 19 | B28: =IF(ISBLANK('Input|Labour Rates'!B28),"",'Input|Labour Rates'!B28) ->  | C28: =IF(ISBLANK('Input|Labour Rates'!C28),"",'Input|Labour Rates'!C28) ->  | D28: =IF(ISBLANK('Input|Labour Rates'!D28),"",'Input|Labour Rates'!D28) ->  | E28: 0 | G28: ='Input|Labour Rates'!$E28*CPI_Escalator_to_Y1*RealLabour_Escalator_to_Y1 -> 0 | H28: =IFERROR(G28*'Input|Labour Rates'!F28,0) -> 0 | I28: 0 | J28: =IFERROR(I28*'Input|Labour Rates'!G28,0) -> 0 | K28: ='Input|Labour Rates'!H28*CPI_Escalator_to_Y1*RealVehicles_Escalator_to_Y1 + 'Input|Labour Rates'!I28*CPI_Escalator_to_Y1*RealOther_Escalator_to_Y1 -> 0
A29: 20 | B29: =IF(ISBLANK('Input|Labour Rates'!B29),"",'Input|Labour Rates'!B29) ->  | C29: =IF(ISBLANK('Input|Labour Rates'!C29),"",'Input|Labour Rates'!C29) ->  | D29: =IF(ISBLANK('Input|Labour Rates'!D29),"",'Input|Labour Rates'!D29) ->  | E29: 0 | G29: ='Input|Labour Rates'!$E29*CPI_Escalator_to_Y1*RealLabour_Escalator_to_Y1 -> 0 | H29: =IFERROR(G29*'Input|Labour Rates'!F29,0) -> 0 | I29: 0 | J29: =IFERROR(I29*'Input|Labour Rates'!G29,0) -> 0 | K29: ='Input|Labour Rates'!H29*CPI_Escalator_to_Y1*RealVehicles_Escalator_to_Y1 + 'Input|Labour Rates'!I29*CPI_Escalator_to_Y1*RealOther_Escalator_to_Y1 -> 0
A30: 21 | B30: =IF(ISBLANK('Input|Labour Rates'!B30),"",'Input|Labour Rates'!B30) ->  | C30: =IF(ISBLANK('Input|Labour Rates'!C30),"",'Input|Labour Rates'!C30) ->  | D30: =IF(ISBLANK('Input|Labour Rates'!D30),"",'Input|Labour Rates'!D30) ->  | E30: 0 | G30: ='Input|Labour Rates'!$E30*CPI_Escalator_to_Y1*RealLabour_Escalator_to_Y1 -> 0 | H30: =IFERROR(G30*'Input|Labour Rates'!F30,0) -> 0 | I30: 0 | J30: =IFERROR(I30*'Input|Labour Rates'!G30,0) -> 0 | K30: ='Input|Labour Rates'!H30*CPI_Escalator_to_Y1*RealVehicles_Escalator_to_Y1 + 'Input|Labour Rates'!I30*CPI_Escalator_to_Y1*RealOther_Escalator_to_Y1 -> 0
A31: 22 | B31: =IF(ISBLANK('Input|Labour Rates'!B31),"",'Input|Labour Rates'!B31) ->  | C31: =IF(ISBLANK('Input|Labour Rates'!C31),"",'Input|Labour Rates'!C31) ->  | D31: =IF(ISBLANK('Input|Labour Rates'!D31),"",'Input|Labour Rates'!D31) ->  | E31: 0 | G31: ='Input|Labour Rates'!$E31*CPI_Escalator_to_Y1*RealLabour_Escalator_to_Y1 -> 0 | H31: =IFERROR(G31*'Input|Labour Rates'!F31,0) -> 0 | I31: 0 | J31: =IFERROR(I31*'Input|Labour Rates'!G31,0) -> 0 | K31: ='Input|Labour Rates'!H31*CPI_Escalator_to_Y1*RealVehicles_Escalator_to_Y1 + 'Input|Labour Rates'!I31*CPI_Escalator_to_Y1*RealOther_Escalator_to_Y1 -> 0
A32: 23 | B32: =IF(ISBLANK('Input|Labour Rates'!B32),"",'Input|Labour Rates'!B32) ->  | C32: =IF(ISBLANK('Input|Labour Rates'!C32),"",'Input|Labour Rates'!C32) ->  | D32: =IF(ISBLANK('Input|Labour Rates'!D32),"",'Input|Labour Rates'!D32) ->  | E32: 0 | G32: ='Input|Labour Rates'!$E32*CPI_Escalator_to_Y1*RealLabour_Escalator_to_Y1 -> 0 | H32: =IFERROR(G32*'Input|Labour Rates'!F32,0) -> 0 | I32: 0 | J32: =IFERROR(I32*'Input|Labour Rates'!G32,0) -> 0 | K32: ='Input|Labour Rates'!H32*CPI_Escalator_to_Y1*RealVehicles_Escalator_to_Y1 + 'Input|Labour Rates'!I32*CPI_Escalator_to_Y1*RealOther_Escalator_to_Y1 -> 0
A33: 24 | B33: =IF(ISBLANK('Input|Labour Rates'!B33),"",'Input|Labour Rates'!B33) ->  | C33: =IF(ISBLANK('Input|Labour Rates'!C33),"",'Input|Labour Rates'!C33) ->  | D33: =IF(ISBLANK('Input|Labour Rates'!D33),"",'Input|Labour Rates'!D33) ->  | E33: 0 | G33: ='Input|Labour Rates'!$E33*CPI_Escalator_to_Y1*RealLabour_Escalator_to_Y1 -> 0 | H33: =IFERROR(G33*'Input|Labour Rates'!F33,0) -> 0 | I33: 0 | J33: =IFERROR(I33*'Input|Labour Rates'!G33,0) -> 0 | K33: ='Input|Labour Rates'!H33*CPI_Escalator_to_Y1*RealVehicles_Escalator_to_Y1 + 'Input|Labour Rates'!I33*CPI_Escalator_to_Y1*RealOther_Escalator_to_Y1 -> 0
A34: 25 | B34: =IF(ISBLANK('Input|Labour Rates'!B34),"",'Input|Labour Rates'!B34) ->  | C34: =IF(ISBLANK('Input|Labour Rates'!C34),"",'Input|Labour Rates'!C34) ->  | D34: =IF(ISBLANK('Input|Labour Rates'!D34),"",'Input|Labour Rates'!D34) ->  | E34: 0 | G34: ='Input|Labour Rates'!$E34*CPI_Escalator_to_Y1*RealLabour_Escalator_to_Y1 -> 0 | H34: =IFERROR(G34*'Input|Labour Rates'!F34,0) -> 0 | I34: 0 | J34: =IFERROR(I34*'Input|Labour Rates'!G34,0) -> 0 | K34: ='Input|Labour Rates'!H34*CPI_Escalator_to_Y1*RealVehicles_Escalator_to_Y1 + 'Input|Labour Rates'!I34*CPI_Escalator_to_Y1*RealOther_Escalator_to_Y1 -> 0
A35: 26 | B35: =IF(ISBLANK('Input|Labour Rates'!B35),"",'Input|Labour Rates'!B35) ->  | C35: =IF(ISBLANK('Input|Labour Rates'!C35),"",'Input|Labour Rates'!C35) ->  | D35: =IF(ISBLANK('Input|Labour Rates'!D35),"",'Input|Labour Rates'!D35) ->  | E35: 0 | G35: ='Input|Labour Rates'!$E35*CPI_Escalator_to_Y1*RealLabour_Escalator_to_Y1 -> 0 | H35: =IFERROR(G35*'Input|Labour Rates'!F35,0) -> 0 | I35: 0 | J35: =IFERROR(I35*'Input|Labour Rates'!G35,0) -> 0 | K35: ='Input|Labour Rates'!H35*CPI_Escalator_to_Y1*RealVehicles_Escalator_to_Y1 + 'Input|Labour Rates'!I35*CPI_Escalator_to_Y1*RealOther_Escalator_to_Y1 -> 0
A36: 27 | B36: =IF(ISBLANK('Input|Labour Rates'!B36),"",'Input|Labour Rates'!B36) ->  | C36: =IF(ISBLANK('Input|Labour Rates'!C36),"",'Input|Labour Rates'!C36) ->  | D36: =IF(ISBLANK('Input|Labour Rates'!D36),"",'Input|Labour Rates'!D36) ->  | E36: 0 | G36: ='Input|Labour Rates'!$E36*CPI_Escalator_to_Y1*RealLabour_Escalator_to_Y1 -> 0 | H36: =IFERROR(G36*'Input|Labour Rates'!F36,0) -> 0 | I36: 0 | J36: =IFERROR(I36*'Input|Labour Rates'!G36,0) -> 0 | K36: ='Input|Labour Rates'!H36*CPI_Escalator_to_Y1*RealVehicles_Escalator_to_Y1 + 'Input|Labour Rates'!I36*CPI_Escalator_to_Y1*RealOther_Escalator_to_Y1 -> 0
A37: 28 | B37: =IF(ISBLANK('Input|Labour Rates'!B37),"",'Input|Labour Rates'!B37) ->  | C37: =IF(ISBLANK('Input|Labour Rates'!C37),"",'Input|Labour Rates'!C37) ->  | D37: =IF(ISBLANK('Input|Labour Rates'!D37),"",'Input|Labour Rates'!D37) ->  | E37: 0 | G37: ='Input|Labour Rates'!$E37*CPI_Escalator_to_Y1*RealLabour_Escalator_to_Y1 -> 0 | H37: =IFERROR(G37*'Input|Labour Rates'!F37,0) -> 0 | I37: 0 | J37: =IFERROR(I37*'Input|Labour Rates'!G37,0) -> 0 | K37: ='Input|Labour Rates'!H37*CPI_Escalator_to_Y1*RealVehicles_Escalator_to_Y1 + 'Input|Labour Rates'!I37*CPI_Escalator_to_Y1*RealOther_Escalator_to_Y1 -> 0
A38: 29 | B38: =IF(ISBLANK('Input|Labour Rates'!B38),"",'Input|Labour Rates'!B38) ->  | C38: =IF(ISBLANK('Input|Labour Rates'!C38),"",'Input|Labour Rates'!C38) ->  | D38: =IF(ISBLANK('Input|Labour Rates'!D38),"",'Input|Labour Rates'!D38) ->  | E38: 0 | G38: ='Input|Labour Rates'!$E38*CPI_Escalator_to_Y1*RealLabour_Escalator_to_Y1 -> 0 | H38: =IFERROR(G38*'Input|Labour Rates'!F38,0) -> 0 | I38: 0 | J38: =IFERROR(I38*'Input|Labour Rates'!G38,0) -> 0 | K38: ='Input|Labour Rates'!H38*CPI_Escalator_to_Y1*RealVehicles_Escalator_to_Y1 + 'Input|Labour Rates'!I38*CPI_Escalator_to_Y1*RealOther_Escalator_to_Y1 -> 0
A39: 30 | B39: =IF(ISBLANK('Input|Labour Rates'!B39),"",'Input|Labour Rates'!B39) ->  | C39: =IF(ISBLANK('Input|Labour Rates'!C39),"",'Input|Labour Rates'!C39) ->  | D39: =IF(ISBLANK('Input|Labour Rates'!D39),"",'Input|Labour Rates'!D39) ->  | E39: 0 | G39: ='Input|Labour Rates'!$E39*CPI_Escalator_to_Y1*RealLabour_Escalator_to_Y1 -> 0 | H39: =IFERROR(G39*'Input|Labour Rates'!F39,0) -> 0 | I39: 0 | J39: =IFERROR(I39*'Input|Labour Rates'!G39,0) -> 0 | K39: ='Input|Labour Rates'!H39*CPI_Escalator_to_Y1*RealVehicles_Escalator_to_Y1 + 'Input|Labour Rates'!I39*CPI_Escalator_to_Y1*RealOther_Escalator_to_Y1 -> 0

Sheet Calc|Fee Based
B1: =IFERROR(Index!B1,"") -> AER ANS Forecast Model | D1: Key: | E1: Input | G1: Sheet Validation | H1: ='Model Validation'!C17 -> 0
B2: =IFERROR(MID(CELL("filename",A1),FIND("]",CELL("filename",A1))+1,255),"") -> Calc|Fee Based | E2: Formula
B6: 10.1 Fee based services | H6: =IFERROR("Year 1 PRICE, $'s ($"&'Input|Setup'!$E$8&")","") -> Year 1 PRICE, $'s ($2026-27) | J6: =IFERROR("10.2 Year 1 service cost build up - DIRECT COSTS, $'s ($"&'Input|Setup'!$E$8&")","") -> 10.2 Year 1 service cost build up - DIRECT COSTS, $'s ($2026-27) | AX6: =IFERROR("10.3 Year 1 Service cost build up - INDIRECT COSTS, $'s ($"&'Input|Setup'!$E$8&")","") -> 10.3 Year 1 Service cost build up - INDIRECT COSTS, $'s ($2026-27)
J8: Non-field based labour | T8: =IF(SUM(T10:T509)=0,0,1) -> 0 | U8: Field based labour | AP8: =IF(SUM(AP10:AP509)=0,0,1) -> 0 | AQ8: Materials | AR8: Contracts | AS8: Vehicles | AT8: Other | AV8: Total Direct Cost | AX8: Indirect Costs
B9: ='Input|Fee Based'!B9 -> Service code | C9: ='Input|Fee Based'!C9 -> Service | D9: ='Input|Fee Based'!D9 -> Hours (List) | E9: ='Input|Fee Based'!E9 -> Service category (List) | F9: ='Input|Fee Based'!F9 -> [label] (List) | G9: ='Input|Fee Based'!G9 -> [label] (List) | H9: Total | J9: Labour category 1 | K9: Applied Labour Rate | L9: =J$9 & " Total cost" -> Labour category 1 Total cost | M9: Labour category 2 | N9: Applied Labour Rate | O9: =M$9 & " Total cost" -> Labour category 2 Total cost | P9: Labour category 3 | Q9: Applied Labour Rate | R9: =P$9 & " Total cost" -> Labour category 3 Total cost | S9: TOTAL NON-FIELD LABOUR | U9: Labour category 1 | V9: Applied Labour Rate | W9: Travel cost | X9: Task cost | Y9: =U9 & " Total cost" -> Labour category 1 Total cost | Z9: Labour category 2 | AA9: Applied Labour Rate | AB9: Travel cost | AC9: Task cost | AD9: =Z9 & " Total cost" -> Labour category 2 Total cost | AE9: Labour category 3 | AF9: Applied Labour Rate | AG9: Travel cost | AH9: Task cost | AI9: =AE9 & " Total cost" -> Labour category 3 Total cost | AJ9: Labour category 4 | AK9: Applied Labour Rate | AL9: Travel cost | AM9: Task cost | AN9: =AJ9 & " Total cost" -> Labour category 4 Total cost | AO9: TOTAL FIELD LABOUR | AQ9: Total | AR9: Total | AS9: Total | AT9: Total | AV9: Total | AX9: Network Overhead | AY9: Corporate Overhead | AZ9: Margin | BA9: Tax recovery
A10: 1 | B10: =IF(ISBLANK('Input|Fee Based'!B10),"",'Input|Fee Based'!B10) ->  | C10: =IF(ISBLANK('Input|Fee Based'!C10),"",'Input|Fee Based'!C10) -> Temporary disconnection ≤25m3/hr (per meter) | D10: =IF(ISBLANK('Input|Fee Based'!D10),"",'Input|Fee Based'!D10) -> Business hours | E10: =IF(ISBLANK('Input|Fee Based'!E10),"",'Input|Fee Based'!E10) -> Disconnections and reconnections | F10: =IF(ISBLANK('Input|Fee Based'!F10),"",'Input|Fee Based'!F10) ->  | G10: =IF(ISBLANK('Input|Fee Based'!G10),"",'Input|Fee Based'!G10) ->  | H10: 133.9167763 | J10: =IF(ISBLANK('Input|Fee Based'!I10),"",'Input|Fee Based'!I10) -> Non-field 1 | M10: =IF(ISBLANK('Input|Fee Based'!M10),"",'Input|Fee Based'!M10) -> Non-field 2 | P10: =IF(ISBLANK('Input|Fee Based'!Q10),"",'Input|Fee Based'!Q10) -> Non-field 3 | S10: =L10+O10+R10 -> 0 | T10: =IF(OR( AND(K10<>0,L10=0), AND(N10<>0,O10=0), AND(Q10<>0,R10=0)),1,0) -> 0 | U10: =IF(ISBLANK('Input|Fee Based'!$V10),"",'Input|Fee Based'!$V10) -> Standard field labour | Z10: =IF(ISBLANK('Input|Fee Based'!$AA10),"",'Input|Fee Based'!$AA10) ->  | AA10: =_xlfn.IFNA(LOOKUP(2,1/('Calc|Labour Rates'!$B$10:$B$39='Calc|Fee Based'!Z10)/('Calc|Labour Rates'!$C$10:$C$39='Input|Fee Based'!AB10),'Calc|Labour Rates'!$I$10:$I$39),"-") -> 0 | AB10: =IFERROR(AA10*'Input|Fee Based'!AC10*'Input|Fee Based'!AD10/'Input|Setup'!$E$19,0) -> 0 | AC10: =IFERROR(AA10*'Input|Fee Based'!AC10*'Input|Fee Based'!AE10/'Input|Setup'!$E$19,0) -> 0 | AD10: =AB10+AC10 -> 0 | AE10: =IF(ISBLANK('Input|Fee Based'!$AF10),"",'Input|Fee Based'!$AF10) ->  | AF10: =_xlfn.IFNA(LOOKUP(2,1/('Calc|Labour Rates'!$B$10:$B$39='Calc|Fee Based'!AE10)/('Calc|Labour Rates'!$C$10:$C$39='Input|Fee Based'!AG10),'Calc|Labour Rates'!$I$10:$I$39),"-") -> 0 | AG10: =IFERROR(AF10*'Input|Fee Based'!AH10*'Input|Fee Based'!AI10/'Input|Setup'!$E$19,0) -> 0 | AH10: =IFERROR(AF10*'Input|Fee Based'!AH10*'Input|Fee Based'!AJ10/'Input|Setup'!$E$19,0) -> 0 | AI10: =AG10+AH10 -> 0 | AJ10: =IF(ISBLANK('Input|Fee Based'!$AK10),"",'Input|Fee Based'!$AK10) ->  | AK10: =_xlfn.IFNA(LOOKUP(2,1/('Calc|Labour Rates'!$B$10:$B$39='Calc|Fee Based'!AJ10)/('Calc|Labour Rates'!$C$10:$C$39='Input|Fee Based'!AL10),'Calc|Labour Rates'!$I$10:$I$39),"-") -> 0 | AL10: =IFERROR(AK10*'Input|Fee Based'!AM10*'Input|Fee Based'!AN10/'Input|Setup'!$E$19,0) -> 0 | AM10: =IFERROR(AK10*'Input|Fee Based'!AM10*'Input|Fee Based'!AO10/'Input|Setup'!$E$19,0) -> 0 | AN10: =AL10+AM10 -> 0 | AP10: =IF(OR( AND(V10<>0,Y10=0), AND(AA10<>0,AD10=0), AND(AF10<>0,AI10=0), AND(AK10<>0,AN10=0)),1,0) -> 0 | AR10: ='Input|Fee Based'!AR10*CPI_Escalator_to_Y1*RealContracts_Escalator_to_Y1 -> 0 | AS10: ='Input|Fee Based'!AS10*CPI_Escalator_to_Y1*RealVehicles_Escalator_to_Y1 -> 0 | AT10: ='Input|Fee Based'!AT10*CPI_Escalator_to_Y1*RealOther_Escalator_to_Y1 -> 29.50486259 | AV10: 114.9605135 | AX10: =$AV10*'Input|Fee Based'!AV10 -> 0 | AY10: =$AV10*'Input|Fee Based'!AW10 -> 18.95626283 | AZ10: =$AV10*'Input|Fee Based'!AX10 -> 0 | BA10: =SUM($AV10,$AX10:$AZ10)*'Input|Fee Based'!$AY10 -> 0
A11: =IFERROR(A10+1,"") -> 2 | B11: =IF(ISBLANK('Input|Fee Based'!B11),"",'Input|Fee Based'!B11) ->  | C11: =IF(ISBLANK('Input|Fee Based'!C11),"",'Input|Fee Based'!C11) -> Temporary disconnection >25m3/hr (per meter) | D11: =IF(ISBLANK('Input|Fee Based'!D11),"",'Input|Fee Based'!D11) -> Business hours | E11: =IF(ISBLANK('Input|Fee Based'!E11),"",'Input|Fee Based'!E11) -> Disconnections and reconnections | F11: =IF(ISBLANK('Input|Fee Based'!F11),"",'Input|Fee Based'!F11) ->  | G11: =IF(ISBLANK('Input|Fee Based'!G11),"",'Input|Fee Based'!G11) ->  | H11: 221.6602112 | J11: =IF(ISBLANK('Input|Fee Based'!I11),"",'Input|Fee Based'!I11) -> Non-field 1 | M11: =IF(ISBLANK('Input|Fee Based'!M11),"",'Input|Fee Based'!M11) -> Non-field 2 | P11: =IF(ISBLANK('Input|Fee Based'!Q11),"",'Input|Fee Based'!Q11) -> Non-field 3 | S11: 0 | T11: 0 | U11: =IF(ISBLANK('Input|Fee Based'!$V11),"",'Input|Fee Based'!$V11) -> Standard field labour | Z11: =IF(ISBLANK('Input|Fee Based'!$AA11),"",'Input|Fee Based'!$AA11) ->  | AA11: =_xlfn.IFNA(LOOKUP(2,1/('Calc|Labour Rates'!$B$10:$B$39='Calc|Fee Based'!Z11)/('Calc|Labour Rates'!$C$10:$C$39='Input|Fee Based'!AB11),'Calc|Labour Rates'!$I$10:$I$39),"-") -> 0 | AB11: =IFERROR(AA11*'Input|Fee Based'!AC11*'Input|Fee Based'!AD11/'Input|Setup'!$E$19,0) -> 0 | AC11: =IFERROR(AA11*'Input|Fee Based'!AC11*'Input|Fee Based'!AE11/'Input|Setup'!$E$19,0) -> 0 | AD11: 0 | AE11: =IF(ISBLANK('Input|Fee Based'!$AF11),"",'Input|Fee Based'!$AF11) ->  | AF11: =_xlfn.IFNA(LOOKUP(2,1/('Calc|Labour Rates'!$B$10:$B$39='Calc|Fee Based'!AE11)/('Calc|Labour Rates'!$C$10:$C$39='Input|Fee Based'!AG11),'Calc|Labour Rates'!$I$10:$I$39),"-") -> 0 | AG11: =IFERROR(AF11*'Input|Fee Based'!AH11*'Input|Fee Based'!AI11/'Input|Setup'!$E$19,0) -> 0 | AH11: =IFERROR(AF11*'Input|Fee Based'!AH11*'Input|Fee Based'!AJ11/'Input|Setup'!$E$19,0) -> 0 | AI11: 0 | AJ11: =IF(ISBLANK('Input|Fee Based'!$AK11),"",'Input|Fee Based'!$AK11) ->  | AK11: =_xlfn.IFNA(LOOKUP(2,1/('Calc|Labour Rates'!$B$10:$B$39='Calc|Fee Based'!AJ11)/('Calc|Labour Rates'!$C$10:$C$39='Input|Fee Based'!AL11),'Calc|Labour Rates'!$I$10:$I$39),"-") -> 0 | AL11: =IFERROR(AK11*'Input|Fee Based'!AM11*'Input|Fee Based'!AN11/'Input|Setup'!$E$19,0) -> 0 | AM11: =IFERROR(AK11*'Input|Fee Based'!AM11*'Input|Fee Based'!AO11/'Input|Setup'!$E$19,0) -> 0 | AN11: 0 | AP11: 0 | AR11: ='Input|Fee Based'!AR11*CPI_Escalator_to_Y1*RealContracts_Escalator_to_Y1 -> 0 | AS11: ='Input|Fee Based'!AS11*CPI_Escalator_to_Y1*RealVehicles_Escalator_to_Y1 -> 0 | AT11: ='Input|Fee Based'!AT11*CPI_Escalator_to_Y1*RealOther_Escalator_to_Y1 -> 29.50486259 | AV11: 190.2836403 | AX11: =$AV11*'Input|Fee Based'!AV11 -> 0 | AY11: =$AV11*'Input|Fee Based'!AW11 -> 31.37657085 | AZ11: =$AV11*'Input|Fee Based'!AX11 -> 0 | BA11: =SUM($AV11,$AX11:$AZ11)*'Input|Fee Based'!$AY11 -> 0
A12: =IFERROR(A11+1,"") -> 3 | B12: =IF(ISBLANK('Input|Fee Based'!B12),"",'Input|Fee Based'!B12) ->  | C12: =IF(ISBLANK('Input|Fee Based'!C12),"",'Input|Fee Based'!C12) -> Reconnection ≤25m3/hr (per meter) | D12: =IF(ISBLANK('Input|Fee Based'!D12),"",'Input|Fee Based'!D12) -> Business hours | E12: =IF(ISBLANK('Input|Fee Based'!E12),"",'Input|Fee Based'!E12) -> Disconnections and reconnections | F12: =IF(ISBLANK('Input|Fee Based'!F12),"",'Input|Fee Based'!F12) ->  | G12: =IF(ISBLANK('Input|Fee Based'!G12),"",'Input|Fee Based'!G12) ->  | H12: 127.6177996 | J12: =IF(ISBLANK('Input|Fee Based'!I12),"",'Input|Fee Based'!I12) -> Non-field 1 | M12: =IF(ISBLANK('Input|Fee Based'!M12),"",'Input|Fee Based'!M12) -> Non-field 2 | P12: =IF(ISBLANK('Input|Fee Based'!Q12),"",'Input|Fee Based'!Q12) -> Non-field 3 | S12: 0 | T12: 0 | U12: =IF(ISBLANK('Input|Fee Based'!$V12),"",'Input|Fee Based'!$V12) -> Standard field labour | Z12: =IF(ISBLANK('Input|Fee Based'!$AA12),"",'Input|Fee Based'!$AA12) ->  | AA12: =_xlfn.IFNA(LOOKUP(2,1/('Calc|Labour Rates'!$B$10:$B$39='Calc|Fee Based'!Z12)/('Calc|Labour Rates'!$C$10:$C$39='Input|Fee Based'!AB12),'Calc|Labour Rates'!$I$10:$I$39),"-") -> 0 | AB12: =IFERROR(AA12*'Input|Fee Based'!AC12*'Input|Fee Based'!AD12/'Input|Setup'!$E$19,0) -> 0 | AC12: =IFERROR(AA12*'Input|Fee Based'!AC12*'Input|Fee Based'!AE12/'Input|Setup'!$E$19,0) -> 0 | AD12: 0 | AE12: =IF(ISBLANK('Input|Fee Based'!$AF12),"",'Input|Fee Based'!$AF12) ->  | AF12: =_xlfn.IFNA(LOOKUP(2,1/('Calc|Labour Rates'!$B$10:$B$39='Calc|Fee Based'!AE12)/('Calc|Labour Rates'!$C$10:$C$39='Input|Fee Based'!AG12),'Calc|Labour Rates'!$I$10:$I$39),"-") -> 0 | AG12: =IFERROR(AF12*'Input|Fee Based'!AH12*'Input|Fee Based'!AI12/'Input|Setup'!$E$19,0) -> 0 | AH12: =IFERROR(AF12*'Input|Fee Based'!AH12*'Input|Fee Based'!AJ12/'Input|Setup'!$E$19,0) -> 0 | AI12: 0 | AJ12: =IF(ISBLANK('Input|Fee Based'!$AK12),"",'Input|Fee Based'!$AK12) ->  | AK12: =_xlfn.IFNA(LOOKUP(2,1/('Calc|Labour Rates'!$B$10:$B$39='Calc|Fee Based'!AJ12)/('Calc|Labour Rates'!$C$10:$C$39='Input|Fee Based'!AL12),'Calc|Labour Rates'!$I$10:$I$39),"-") -> 0 | AL12: =IFERROR(AK12*'Input|Fee Based'!AM12*'Input|Fee Based'!AN12/'Input|Setup'!$E$19,0) -> 0 | AM12: =IFERROR(AK12*'Input|Fee Based'!AM12*'Input|Fee Based'!AO12/'Input|Setup'!$E$19,0) -> 0 | AN12: 0 | AP12: 0 | AQ12: ='Input|Fee Based'!AQ12*CPI_Escalator_to_Y1*RealMaterials_Escalator_to_Y1 -> 0 | AR12: ='Input|Fee Based'!AR12*CPI_Escalator_to_Y1*RealContracts_Escalator_to_Y1 -> 0 | AS12: ='Input|Fee Based'!AS12*CPI_Escalator_to_Y1*RealVehicles_Escalator_to_Y1 -> 0 | AT12: ='Input|Fee Based'!AT12*CPI_Escalator_to_Y1*RealOther_Escalator_to_Y1 -> 0 | AV12: 109.5531731 | AX12: =$AV12*'Input|Fee Based'!AV12 -> 0 | AY12: =$AV12*'Input|Fee Based'!AW12 -> 18.06462653 | AZ12: =$AV12*'Input|Fee Based'!AX12 -> 0 | BA12: =SUM($AV12,$AX12:$AZ12)*'Input|Fee Based'!$AY12 -> 0
A13: 4 | B13: =IF(ISBLANK('Input|Fee Based'!B13),"",'Input|Fee Based'!B13) ->  | C13: =IF(ISBLANK('Input|Fee Based'!C13),"",'Input|Fee Based'!C13) -> Reconnection >25m3/hr (per meter) | D13: =IF(ISBLANK('Input|Fee Based'!D13),"",'Input|Fee Based'!D13) -> Business hours | E13: =IF(ISBLANK('Input|Fee Based'!E13),"",'Input|Fee Based'!E13) -> Disconnections and reconnections | F13: =IF(ISBLANK('Input|Fee Based'!F13),"",'Input|Fee Based'!F13) ->  | G13: =IF(ISBLANK('Input|Fee Based'!G13),"",'Input|Fee Based'!G13) ->  | H13: 180.9990726 | J13: =IF(ISBLANK('Input|Fee Based'!I13),"",'Input|Fee Based'!I13) -> Non-field 1 | M13: =IF(ISBLANK('Input|Fee Based'!M13),"",'Input|Fee Based'!M13) -> Non-field 2 | P13: =IF(ISBLANK('Input|Fee Based'!Q13),"",'Input|Fee Based'!Q13) -> Non-field 3 | S13: 0 | T13: 0 | U13: =IF(ISBLANK('Input|Fee Based'!$V13),"",'Input|Fee Based'!$V13) -> Standard field labour | Z13: =IF(ISBLANK('Input|Fee Based'!$AA13),"",'Input|Fee Based'!$AA13) ->  | AA13: =_xlfn.IFNA(LOOKUP(2,1/('Calc|Labour Rates'!$B$10:$B$39='Calc|Fee Based'!Z13)/('Calc|Labour Rates'!$C$10:$C$39='Input|Fee Based'!AB13),'Calc|Labour Rates'!$I$10:$I$39),"-") -> 0 | AB13: =IFERROR(AA13*'Input|Fee Based'!AC13*'Input|Fee Based'!AD13/'Input|Setup'!$E$19,0) -> 0 | AC13: =IFERROR(AA13*'Input|Fee Based'!AC13*'Input|Fee Based'!AE13/'Input|Setup'!$E$19,0) -> 0 | AD13: 0 | AE13: =IF(ISBLANK('Input|Fee Based'!$AF13),"",'Input|Fee Based'!$AF13) ->  | AF13: =_xlfn.IFNA(LOOKUP(2,1/('Calc|Labour Rates'!$B$10:$B$39='Calc|Fee Based'!AE13)/('Calc|Labour Rates'!$C$10:$C$39='Input|Fee Based'!AG13),'Calc|Labour Rates'!$I$10:$I$39),"-") -> 0 | AG13: =IFERROR(AF13*'Input|Fee Based'!AH13*'Input|Fee Based'!AI13/'Input|Setup'!$E$19,0) -> 0 | AH13: =IFERROR(AF13*'Input|Fee Based'!AH13*'Input|Fee Based'!AJ13/'Input|Setup'!$E$19,0) -> 0 | AI13: 0 | AJ13: =IF(ISBLANK('Input|Fee Based'!$AK13),"",'Input|Fee Based'!$AK13) ->  | AK13: =_xlfn.IFNA(LOOKUP(2,1/('Calc|Labour Rates'!$B$10:$B$39='Calc|Fee Based'!AJ13)/('Calc|Labour Rates'!$C$10:$C$39='Input|Fee Based'!AL13),'Calc|Labour Rates'!$I$10:$I$39),"-") -> 0 | AL13: =IFERROR(AK13*'Input|Fee Based'!AM13*'Input|Fee Based'!AN13/'Input|Setup'!$E$19,0) -> 0 | AM13: =IFERROR(AK13*'Input|Fee Based'!AM13*'Input|Fee Based'!AO13/'Input|Setup'!$E$19,0) -> 0 | AN13: 0 | AP13: 0 | AQ13: ='Input|Fee Based'!AQ13*CPI_Escalator_to_Y1*RealMaterials_Escalator_to_Y1 -> 0 | AR13: ='Input|Fee Based'!AR13*CPI_Escalator_to_Y1*RealContracts_Escalator_to_Y1 -> 0 | AS13: ='Input|Fee Based'!AS13*CPI_Escalator_to_Y1*RealVehicles_Escalator_to_Y1 -> 0 | AT13: ='Input|Fee Based'!AT13*CPI_Escalator_to_Y1*RealOther_Escalator_to_Y1 -> 0 | AV13: 155.3781901 | AX13: =$AV13*'Input|Fee Based'!AV13 -> 0 | AY13: =$AV13*'Input|Fee Based'!AW13 -> 25.62088251 | AZ13: =$AV13*'Input|Fee Based'!AX13 -> 0 | BA13: =SUM($AV13,$AX13:$AZ13)*'Input|Fee Based'!$AY13 -> 0
A14: 5 | B14: =IF(ISBLANK('Input|Fee Based'!B14),"",'Input|Fee Based'!B14) ->  | C14: =IF(ISBLANK('Input|Fee Based'!C14),"",'Input|Fee Based'!C14) -> Special meter read | D14: =IF(ISBLANK('Input|Fee Based'!D14),"",'Input|Fee Based'!D14) -> Business hours | E14: =IF(ISBLANK('Input|Fee Based'!E14),"",'Input|Fee Based'!E14) -> Special meter reads | F14: =IF(ISBLANK('Input|Fee Based'!F14),"",'Input|Fee Based'!F14) ->  | G14: =IF(ISBLANK('Input|Fee Based'!G14),"",'Input|Fee Based'!G14) ->  | H14: 14.03967574 | J14: =IF(ISBLANK('Input|Fee Based'!I14),"",'Input|Fee Based'!I14) -> Non-field 1 | M14: =IF(ISBLANK('Input|Fee Based'!M14),"",'Input|Fee Based'!M14) ->  | N14: =_xlfn.IFNA(LOOKUP(2,1/('Calc|Labour Rates'!$B$10:$B$39='Calc|Fee Based'!M14)/('Calc|Labour Rates'!$C$10:$C$39='Input|Fee Based'!N14),'Calc|Labour Rates'!$I$10:$I$39),"-") -> 0 | O14: =IFERROR(N14*'Input|Fee Based'!O14*'Input|Fee Based'!P14/'Input|Setup'!$E$19,0) -> 0 | P14: =IF(ISBLANK('Input|Fee Based'!Q14),"",'Input|Fee Based'!Q14) ->  | Q14: =_xlfn.IFNA(LOOKUP(2,1/('Calc|Labour Rates'!$B$10:$B$39='Calc|Fee Based'!P14)/('Calc|Labour Rates'!$C$10:$C$39='Input|Fee Based'!R14),'Calc|Labour Rates'!$I$10:$I$39),"-") -> 0 | R14: =IFERROR(Q14*'Input|Fee Based'!S14*'Input|Fee Based'!T14/'Input|Setup'!$E$19,0) -> 0 | S14: 0 | T14: 0 | U14: =IF(ISBLANK('Input|Fee Based'!$V14),"",'Input|Fee Based'!$V14) ->  | V14: =_xlfn.IFNA(LOOKUP(2,1/('Calc|Labour Rates'!$B$10:$B$39='Calc|Fee Based'!U14)/('Calc|Labour Rates'!$C$10:$C$39='Input|Fee Based'!W14),'Calc|Labour Rates'!$I$10:$I$39),"-") -> 0 | W14: =IFERROR(V14*'Input|Fee Based'!X14*'Input|Fee Based'!Y14/'Input|Setup'!$E$19,0) -> 0 | X14: =IFERROR(V14*'Input|Fee Based'!X14*'Input|Fee Based'!Z14/'Input|Setup'!$E$19,0) -> 0 | Y14: =W14+X14 -> 0 | Z14: =IF(ISBLANK('Input|Fee Based'!$AA14),"",'Input|Fee Based'!$AA14) ->  | AA14: =_xlfn.IFNA(LOOKUP(2,1/('Calc|Labour Rates'!$B$10:$B$39='Calc|Fee Based'!Z14)/('Calc|Labour Rates'!$C$10:$C$39='Input|Fee Based'!AB14),'Calc|Labour Rates'!$I$10:$I$39),"-") -> 0 | AB14: =IFERROR(AA14*'Input|Fee Based'!AC14*'Input|Fee Based'!AD14/'Input|Setup'!$E$19,0) -> 0 | AC14: =IFERROR(AA14*'Input|Fee Based'!AC14*'Input|Fee Based'!AE14/'Input|Setup'!$E$19,0) -> 0 | AD14: 0 | AE14: =IF(ISBLANK('Input|Fee Based'!$AF14),"",'Input|Fee Based'!$AF14) ->  | AF14: =_xlfn.IFNA(LOOKUP(2,1/('Calc|Labour Rates'!$B$10:$B$39='Calc|Fee Based'!AE14)/('Calc|Labour Rates'!$C$10:$C$39='Input|Fee Based'!AG14),'Calc|Labour Rates'!$I$10:$I$39),"-") -> 0 | AG14: =IFERROR(AF14*'Input|Fee Based'!AH14*'Input|Fee Based'!AI14/'Input|Setup'!$E$19,0) -> 0 | AH14: =IFERROR(AF14*'Input|Fee Based'!AH14*'Input|Fee Based'!AJ14/'Input|Setup'!$E$19,0) -> 0 | AI14: 0 | AJ14: =IF(ISBLANK('Input|Fee Based'!$AK14),"",'Input|Fee Based'!$AK14) ->  | AK14: =_xlfn.IFNA(LOOKUP(2,1/('Calc|Labour Rates'!$B$10:$B$39='Calc|Fee Based'!AJ14)/('Calc|Labour Rates'!$C$10:$C$39='Input|Fee Based'!AL14),'Calc|Labour Rates'!$I$10:$I$39),"-") -> 0 | AL14: =IFERROR(AK14*'Input|Fee Based'!AM14*'Input|Fee Based'!AN14/'Input|Setup'!$E$19,0) -> 0 | AM14: =IFERROR(AK14*'Input|Fee Based'!AM14*'Input|Fee Based'!AO14/'Input|Setup'!$E$19,0) -> 0 | AN14: 0 | AO14: =Y14+AD14+AI14+AN14 -> 0 | AP14: 0 | AQ14: ='Input|Fee Based'!AQ14*CPI_Escalator_to_Y1*RealMaterials_Escalator_to_Y1 -> 0 | AS14: ='Input|Fee Based'!AS14*CPI_Escalator_to_Y1*RealVehicles_Escalator_to_Y1 -> 0 | AT14: ='Input|Fee Based'!AT14*CPI_Escalator_to_Y1*RealOther_Escalator_to_Y1 -> 0 | AX14: =$AV14*'Input|Fee Based'!AV14 -> 0 | AZ14: =$AV14*'Input|Fee Based'!AX14 -> 0 | BA14: =SUM($AV14,$AX14:$AZ14)*'Input|Fee Based'!$AY14 -> 0
A15: 6 | B15: =IF(ISBLANK('Input|Fee Based'!B15),"",'Input|Fee Based'!B15) ->  | C15: =IF(ISBLANK('Input|Fee Based'!C15),"",'Input|Fee Based'!C15) -> Basic permanent disconnection | D15: =IF(ISBLANK('Input|Fee Based'!D15),"",'Input|Fee Based'!D15) -> Business hours | E15: =IF(ISBLANK('Input|Fee Based'!E15),"",'Input|Fee Based'!E15) -> Basic permanent disconnection | F15: =IF(ISBLANK('Input|Fee Based'!F15),"",'Input|Fee Based'!F15) ->  | G15: =IF(ISBLANK('Input|Fee Based'!G15),"",'Input|Fee Based'!G15) ->  | H15: 746.8660787 | J15: =IF(ISBLANK('Input|Fee Based'!I15),"",'Input|Fee Based'!I15) -> Non-field 1 | M15: =IF(ISBLANK('Input|Fee Based'!M15),"",'Input|Fee Based'!M15) ->  | N15: =_xlfn.IFNA(LOOKUP(2,1/('Calc|Labour Rates'!$B$10:$B$39='Calc|Fee Based'!M15)/('Calc|Labour Rates'!$C$10:$C$39='Input|Fee Based'!N15),'Calc|Labour Rates'!$I$10:$I$39),"-") -> 0 | O15: =IFERROR(N15*'Input|Fee Based'!O15*'Input|Fee Based'!P15/'Input|Setup'!$E$19,0) -> 0 | P15: =IF(ISBLANK('Input|Fee Based'!Q15),"",'Input|Fee Based'!Q15) ->  | Q15: =_xlfn.IFNA(LOOKUP(2,1/('Calc|Labour Rates'!$B$10:$B$39='Calc|Fee Based'!P15)/('Calc|Labour Rates'!$C$10:$C$39='Input|Fee Based'!R15),'Calc|Labour Rates'!$I$10:$I$39),"-") -> 0 | R15: =IFERROR(Q15*'Input|Fee Based'!S15*'Input|Fee Based'!T15/'Input|Setup'!$E$19,0) -> 0 | S15: 0 | T15: 0 | U15: =IF(ISBLANK('Input|Fee Based'!$V15),"",'Input|Fee Based'!$V15) -> Standard field labour | Z15: =IF(ISBLANK('Input|Fee Based'!$AA15),"",'Input|Fee Based'!$AA15) -> Hydrovac | AE15: =IF(ISBLANK('Input|Fee Based'!$AF15),"",'Input|Fee Based'!$AF15) ->  | AF15: =_xlfn.IFNA(LOOKUP(2,1/('Calc|Labour Rates'!$B$10:$B$39='Calc|Fee Based'!AE15)/('Calc|Labour Rates'!$C$10:$C$39='Input|Fee Based'!AG15),'Calc|Labour Rates'!$I$10:$I$39),"-") -> 0 | AG15: =IFERROR(AF15*'Input|Fee Based'!AH15*'Input|Fee Based'!AI15/'Input|Setup'!$E$19,0) -> 0 | AH15: =IFERROR(AF15*'Input|Fee Based'!AH15*'Input|Fee Based'!AJ15/'Input|Setup'!$E$19,0) -> 0 | AI15: 0 | AJ15: =IF(ISBLANK('Input|Fee Based'!$AK15),"",'Input|Fee Based'!$AK15) ->  | AK15: =_xlfn.IFNA(LOOKUP(2,1/('Calc|Labour Rates'!$B$10:$B$39='Calc|Fee Based'!AJ15)/('Calc|Labour Rates'!$C$10:$C$39='Input|Fee Based'!AL15),'Calc|Labour Rates'!$I$10:$I$39),"-") -> 0 | AL15: =IFERROR(AK15*'Input|Fee Based'!AM15*'Input|Fee Based'!AN15/'Input|Setup'!$E$19,0) -> 0 | AM15: =IFERROR(AK15*'Input|Fee Based'!AM15*'Input|Fee Based'!AO15/'Input|Setup'!$E$19,0) -> 0 | AN15: 0 | AP15: 0 | AS15: ='Input|Fee Based'!AS15*CPI_Escalator_to_Y1*RealVehicles_Escalator_to_Y1 -> 0 | AT15: ='Input|Fee Based'!AT15*CPI_Escalator_to_Y1*RealOther_Escalator_to_Y1 -> 0 | AV15: 746.8660787 | AX15: =$AV15*'Input|Fee Based'!AV15 -> 0 | AY15: =$AV15*'Input|Fee Based'!AW15 -> 0 | AZ15: =$AV15*'Input|Fee Based'!AX15 -> 0 | BA15: =SUM($AV15,$AX15:$AZ15)*'Input|Fee Based'!$AY15 -> 0
A16: 7 | B16: =IF(ISBLANK('Input|Fee Based'!B16),"",'Input|Fee Based'!B16) ->  | C16: =IF(ISBLANK('Input|Fee Based'!C16),"",'Input|Fee Based'!C16) -> Basic (urgent) permanent disconnection | D16: =IF(ISBLANK('Input|Fee Based'!D16),"",'Input|Fee Based'!D16) -> Business hours | E16: =IF(ISBLANK('Input|Fee Based'!E16),"",'Input|Fee Based'!E16) -> Basic permanent disconnection | F16: =IF(ISBLANK('Input|Fee Based'!F16),"",'Input|Fee Based'!F16) ->  | G16: =IF(ISBLANK('Input|Fee Based'!G16),"",'Input|Fee Based'!G16) ->  | H16: 981.2235814 | J16: =IF(ISBLANK('Input|Fee Based'!I16),"",'Input|Fee Based'!I16) -> Non-field 1 | M16: =IF(ISBLANK('Input|Fee Based'!M16),"",'Input|Fee Based'!M16) ->  | N16: =_xlfn.IFNA(LOOKUP(2,1/('Calc|Labour Rates'!$B$10:$B$39='Calc|Fee Based'!M16)/('Calc|Labour Rates'!$C$10:$C$39='Input|Fee Based'!N16),'Calc|Labour Rates'!$I$10:$I$39),"-") -> 0 | O16: =IFERROR(N16*'Input|Fee Based'!O16*'Input|Fee Based'!P16/'Input|Setup'!$E$19,0) -> 0 | P16: =IF(ISBLANK('Input|Fee Based'!Q16),"",'Input|Fee Based'!Q16) ->  | Q16: =_xlfn.IFNA(LOOKUP(2,1/('Calc|Labour Rates'!$B$10:$B$39='Calc|Fee Based'!P16)/('Calc|Labour Rates'!$C$10:$C$39='Input|Fee Based'!R16),'Calc|Labour Rates'!$I$10:$I$39),"-") -> 0 | R16: =IFERROR(Q16*'Input|Fee Based'!S16*'Input|Fee Based'!T16/'Input|Setup'!$E$19,0) -> 0 | S16: 0 | T16: 0 | U16: =IF(ISBLANK('Input|Fee Based'!$V16),"",'Input|Fee Based'!$V16) -> Standard field labour | Z16: =IF(ISBLANK('Input|Fee Based'!$AA16),"",'Input|Fee Based'!$AA16) -> Hydrovac | AE16: =IF(ISBLANK('Input|Fee Based'!$AF16),"",'Input|Fee Based'!$AF16) ->  | AF16: =_xlfn.IFNA(LOOKUP(2,1/('Calc|Labour Rates'!$B$10:$B$39='Calc|Fee Based'!AE16)/('Calc|Labour Rates'!$C$10:$C$39='Input|Fee Based'!AG16),'Calc|Labour Rates'!$I$10:$I$39),"-") -> 0 | AG16: =IFERROR(AF16*'Input|Fee Based'!AH16*'Input|Fee Based'!AI16/'Input|Setup'!$E$19,0) -> 0 | AH16: =IFERROR(AF16*'Input|Fee Based'!AH16*'Input|Fee Based'!AJ16/'Input|Setup'!$E$19,0) -> 0 | AI16: 0 | AJ16: =IF(ISBLANK('Input|Fee Based'!$AK16),"",'Input|Fee Based'!$AK16) ->  | AK16: =_xlfn.IFNA(LOOKUP(2,1/('Calc|Labour Rates'!$B$10:$B$39='Calc|Fee Based'!AJ16)/('Calc|Labour Rates'!$C$10:$C$39='Input|Fee Based'!AL16),'Calc|Labour Rates'!$I$10:$I$39),"-") -> 0 | AL16: =IFERROR(AK16*'Input|Fee Based'!AM16*'Input|Fee Based'!AN16/'Input|Setup'!$E$19,0) -> 0 | AM16: =IFERROR(AK16*'Input|Fee Based'!AM16*'Input|Fee Based'!AO16/'Input|Setup'!$E$19,0) -> 0 | AN16: 0 | AP16: 0 | AS16: ='Input|Fee Based'!AS16*CPI_Escalator_to_Y1*RealVehicles_Escalator_to_Y1 -> 0 | AT16: ='Input|Fee Based'!AT16*CPI_Escalator_to_Y1*RealOther_Escalator_to_Y1 -> 0 | AV16: 981.2235814 | AX16: =$AV16*'Input|Fee Based'!AV16 -> 0 | AY16: =$AV16*'Input|Fee Based'!AW16 -> 0 | AZ16: =$AV16*'Input|Fee Based'!AX16 -> 0 | BA16: =SUM($AV16,$AX16:$AZ16)*'Input|Fee Based'!$AY16 -> 0
A17: 8 | B17: =IF(ISBLANK('Input|Fee Based'!B17),"",'Input|Fee Based'!B17) ->  | C17: =IF(ISBLANK('Input|Fee Based'!C17),"",'Input|Fee Based'!C17) -> Non-standard retail-initiated requests and queries (per hour) | D17: =IF(ISBLANK('Input|Fee Based'!D17),"",'Input|Fee Based'!D17) -> Business hours | E17: =IF(ISBLANK('Input|Fee Based'!E17),"",'Input|Fee Based'!E17) -> Hourly charge | F17: =IF(ISBLANK('Input|Fee Based'!F17),"",'Input|Fee Based'!F17) ->  | G17: =IF(ISBLANK('Input|Fee Based'!G17),"",'Input|Fee Based'!G17) ->  | H17: 158.2892125 | J17: =IF(ISBLANK('Input|Fee Based'!I17),"",'Input|Fee Based'!I17) -> Non-field 4 | M17: =IF(ISBLANK('Input|Fee Based'!M17),"",'Input|Fee Based'!M17) ->  | N17: =_xlfn.IFNA(LOOKUP(2,1/('Calc|Labour Rates'!$B$10:$B$39='Calc|Fee Based'!M17)/('Calc|Labour Rates'!$C$10:$C$39='Input|Fee Based'!N17),'Calc|Labour Rates'!$I$10:$I$39),"-") -> 0 | O17: =IFERROR(N17*'Input|Fee Based'!O17*'Input|Fee Based'!P17/'Input|Setup'!$E$19,0) -> 0 | P17: =IF(ISBLANK('Input|Fee Based'!Q17),"",'Input|Fee Based'!Q17) ->  | Q17: =_xlfn.IFNA(LOOKUP(2,1/('Calc|Labour Rates'!$B$10:$B$39='Calc|Fee Based'!P17)/('Calc|Labour Rates'!$C$10:$C$39='Input|Fee Based'!R17),'Calc|Labour Rates'!$I$10:$I$39),"-") -> 0 | R17: =IFERROR(Q17*'Input|Fee Based'!S17*'Input|Fee Based'!T17/'Input|Setup'!$E$19,0) -> 0 | S17: 0 | T17: 0 | U17: =IF(ISBLANK('Input|Fee Based'!$V17),"",'Input|Fee Based'!$V17) ->  | V17: =_xlfn.IFNA(LOOKUP(2,1/('Calc|Labour Rates'!$B$10:$B$39='Calc|Fee Based'!U17)/('Calc|Labour Rates'!$C$10:$C$39='Input|Fee Based'!W17),'Calc|Labour Rates'!$I$10:$I$39),"-") -> 0 | W17: =IFERROR(V17*'Input|Fee Based'!X17*'Input|Fee Based'!Y17/'Input|Setup'!$E$19,0) -> 0 | X17: =IFERROR(V17*'Input|Fee Based'!X17*'Input|Fee Based'!Z17/'Input|Setup'!$E$19,0) -> 0 | Y17: 0 | Z17: =IF(ISBLANK('Input|Fee Based'!$AA17),"",'Input|Fee Based'!$AA17) ->  | AA17: =_xlfn.IFNA(LOOKUP(2,1/('Calc|Labour Rates'!$B$10:$B$39='Calc|Fee Based'!Z17)/('Calc|Labour Rates'!$C$10:$C$39='Input|Fee Based'!AB17),'Calc|Labour Rates'!$I$10:$I$39),"-") -> 0 | AB17: =IFERROR(AA17*'Input|Fee Based'!AC17*'Input|Fee Based'!AD17/'Input|Setup'!$E$19,0) -> 0 | AC17: =IFERROR(AA17*'Input|Fee Based'!AC17*'Input|Fee Based'!AE17/'Input|Setup'!$E$19,0) -> 0 | AD17: 0 | AE17: =IF(ISBLANK('Input|Fee Based'!$AF17),"",'Input|Fee Based'!$AF17) ->  | AF17: =_xlfn.IFNA(LOOKUP(2,1/('Calc|Labour Rates'!$B$10:$B$39='Calc|Fee Based'!AE17)/('Calc|Labour Rates'!$C$10:$C$39='Input|Fee Based'!AG17),'Calc|Labour Rates'!$I$10:$I$39),"-") -> 0 | AG17: =IFERROR(AF17*'Input|Fee Based'!AH17*'Input|Fee Based'!AI17/'Input|Setup'!$E$19,0) -> 0 | AH17: =IFERROR(AF17*'Input|Fee Based'!AH17*'Input|Fee Based'!AJ17/'Input|Setup'!$E$19,0) -> 0 | AI17: 0 | AJ17: =IF(ISBLANK('Input|Fee Based'!$AK17),"",'Input|Fee Based'!$AK17) ->  | AK17: =_xlfn.IFNA(LOOKUP(2,1/('Calc|Labour Rates'!$B$10:$B$39='Calc|Fee Based'!AJ17)/('Calc|Labour Rates'!$C$10:$C$39='Input|Fee Based'!AL17),'Calc|Labour Rates'!$I$10:$I$39),"-") -> 0 | AL17: =IFERROR(AK17*'Input|Fee Based'!AM17*'Input|Fee Based'!AN17/'Input|Setup'!$E$19,0) -> 0 | AM17: =IFERROR(AK17*'Input|Fee Based'!AM17*'Input|Fee Based'!AO17/'Input|Setup'!$E$19,0) -> 0 | AN17: 0 | AO17: 0 | AP17: 0 | AQ17: ='Input|Fee Based'!AQ17*CPI_Escalator_to_Y1*RealMaterials_Escalator_to_Y1 -> 0 | AR17: ='Input|Fee Based'!AR17*CPI_Escalator_to_Y1*RealContracts_Escalator_to_Y1 -> 0 | AS17: ='Input|Fee Based'!AS17*CPI_Escalator_to_Y1*RealVehicles_Escalator_to_Y1 -> 0 | AT17: ='Input|Fee Based'!AT17*CPI_Escalator_to_Y1*RealOther_Escalator_to_Y1 -> 0 | AV17: 135.8829689 | AX17: =$AV17*'Input|Fee Based'!AV17 -> 0 | AY17: =$AV17*'Input|Fee Based'!AW17 -> 22.40624361 | AZ17: =$AV17*'Input|Fee Based'!AX17 -> 0 | BA17: =SUM($AV17,$AX17:$AZ17)*'Input|Fee Based'!$AY17 -> 0
A18: 9 | B18: =IF(ISBLANK('Input|Fee Based'!B18),"",'Input|Fee Based'!B18) ->  | C18: =IF(ISBLANK('Input|Fee Based'!C18),"",'Input|Fee Based'!C18) -> Wasted visit temporary disconnection | D18: =IF(ISBLANK('Input|Fee Based'!D18),"",'Input|Fee Based'!D18) -> Business hours | E18: =IF(ISBLANK('Input|Fee Based'!E18),"",'Input|Fee Based'!E18) -> Disconnections and reconnections | F18: =IF(ISBLANK('Input|Fee Based'!F18),"",'Input|Fee Based'!F18) ->  | G18: =IF(ISBLANK('Input|Fee Based'!G18),"",'Input|Fee Based'!G18) ->  | H18: 72.68984823 | J18: =IF(ISBLANK('Input|Fee Based'!I18),"",'Input|Fee Based'!I18) -> Non-field 1 | M18: =IF(ISBLANK('Input|Fee Based'!M18),"",'Input|Fee Based'!M18) -> Non-field 2 | P18: =IF(ISBLANK('Input|Fee Based'!Q18),"",'Input|Fee Based'!Q18) -> Non-field 3 | S18: 0 | T18: 0 | U18: =IF(ISBLANK('Input|Fee Based'!$V18),"",'Input|Fee Based'!$V18) -> Standard field labour | Z18: =IF(ISBLANK('Input|Fee Based'!$AA18),"",'Input|Fee Based'!$AA18) ->  | AA18: =_xlfn.IFNA(LOOKUP(2,1/('Calc|Labour Rates'!$B$10:$B$39='Calc|Fee Based'!Z18)/('Calc|Labour Rates'!$C$10:$C$39='Input|Fee Based'!AB18),'Calc|Labour Rates'!$I$10:$I$39),"-") -> 0 | AB18: =IFERROR(AA18*'Input|Fee Based'!AC18*'Input|Fee Based'!AD18/'Input|Setup'!$E$19,0) -> 0 | AC18: =IFERROR(AA18*'Input|Fee Based'!AC18*'Input|Fee Based'!AE18/'Input|Setup'!$E$19,0) -> 0 | AD18: 0 | AE18: =IF(ISBLANK('Input|Fee Based'!$AF18),"",'Input|Fee Based'!$AF18) ->  | AF18: =_xlfn.IFNA(LOOKUP(2,1/('Calc|Labour Rates'!$B$10:$B$39='Calc|Fee Based'!AE18)/('Calc|Labour Rates'!$C$10:$C$39='Input|Fee Based'!AG18),'Calc|Labour Rates'!$I$10:$I$39),"-") -> 0 | AG18: =IFERROR(AF18*'Input|Fee Based'!AH18*'Input|Fee Based'!AI18/'Input|Setup'!$E$19,0) -> 0 | AH18: =IFERROR(AF18*'Input|Fee Based'!AH18*'Input|Fee Based'!AJ18/'Input|Setup'!$E$19,0) -> 0 | AI18: 0 | AJ18: =IF(ISBLANK('Input|Fee Based'!$AK18),"",'Input|Fee Based'!$AK18) ->  | AK18: =_xlfn.IFNA(LOOKUP(2,1/('Calc|Labour Rates'!$B$10:$B$39='Calc|Fee Based'!AJ18)/('Calc|Labour Rates'!$C$10:$C$39='Input|Fee Based'!AL18),'Calc|Labour Rates'!$I$10:$I$39),"-") -> 0 | AL18: =IFERROR(AK18*'Input|Fee Based'!AM18*'Input|Fee Based'!AN18/'Input|Setup'!$E$19,0) -> 0 | AM18: =IFERROR(AK18*'Input|Fee Based'!AM18*'Input|Fee Based'!AO18/'Input|Setup'!$E$19,0) -> 0 | AN18: 0 | AP18: =IF(OR( AND(V18<>0,Y18=0), AND(AA18<>0,AD18=0), AND(AF18<>0,AI18=0), AND(AK18<>0,AN18=0)),1,0) -> 0 | AQ18: ='Input|Fee Based'!AQ18*CPI_Escalator_to_Y1*RealMaterials_Escalator_to_Y1 -> 0 | AR18: ='Input|Fee Based'!AR18*CPI_Escalator_to_Y1*RealContracts_Escalator_to_Y1 -> 0 | AS18: ='Input|Fee Based'!AS18*CPI_Escalator_to_Y1*RealVehicles_Escalator_to_Y1 -> 0 | AT18: ='Input|Fee Based'!AT18*CPI_Escalator_to_Y1*RealOther_Escalator_to_Y1 -> 0 | AV18: 62.40041396 | AX18: =$AV18*'Input|Fee Based'!AV18 -> 0 | AY18: =$AV18*'Input|Fee Based'!AW18 -> 10.28943427 | AZ18: =$AV18*'Input|Fee Based'!AX18 -> 0 | BA18: =SUM($AV18,$AX18:$AZ18)*'Input|Fee Based'!$AY18 -> 0
A19: 10 | B19: =IF(ISBLANK('Input|Fee Based'!B19),"",'Input|Fee Based'!B19) ->  | C19: =IF(ISBLANK('Input|Fee Based'!C19),"",'Input|Fee Based'!C19) -> Wasted visit reconnection | D19: =IF(ISBLANK('Input|Fee Based'!D19),"",'Input|Fee Based'!D19) -> Business hours | E19: =IF(ISBLANK('Input|Fee Based'!E19),"",'Input|Fee Based'!E19) -> Disconnections and reconnections | F19: =IF(ISBLANK('Input|Fee Based'!F19),"",'Input|Fee Based'!F19) ->  | G19: =IF(ISBLANK('Input|Fee Based'!G19),"",'Input|Fee Based'!G19) ->  | H19: 93.24269097 | J19: =IF(ISBLANK('Input|Fee Based'!I19),"",'Input|Fee Based'!I19) -> Non-field 1 | M19: =IF(ISBLANK('Input|Fee Based'!M19),"",'Input|Fee Based'!M19) -> Non-field 2 | P19: =IF(ISBLANK('Input|Fee Based'!Q19),"",'Input|Fee Based'!Q19) -> Non-field 3 | S19: 0 | T19: 0 | U19: =IF(ISBLANK('Input|Fee Based'!$V19),"",'Input|Fee Based'!$V19) -> Standard field labour | Z19: =IF(ISBLANK('Input|Fee Based'!$AA19),"",'Input|Fee Based'!$AA19) ->  | AA19: =_xlfn.IFNA(LOOKUP(2,1/('Calc|Labour Rates'!$B$10:$B$39='Calc|Fee Based'!Z19)/('Calc|Labour Rates'!$C$10:$C$39='Input|Fee Based'!AB19),'Calc|Labour Rates'!$I$10:$I$39),"-") -> 0 | AB19: =IFERROR(AA19*'Input|Fee Based'!AC19*'Input|Fee Based'!AD19/'Input|Setup'!$E$19,0) -> 0 | AC19: =IFERROR(AA19*'Input|Fee Based'!AC19*'Input|Fee Based'!AE19/'Input|Setup'!$E$19,0) -> 0 | AD19: 0 | AE19: =IF(ISBLANK('Input|Fee Based'!$AF19),"",'Input|Fee Based'!$AF19) ->  | AF19: =_xlfn.IFNA(LOOKUP(2,1/('Calc|Labour Rates'!$B$10:$B$39='Calc|Fee Based'!AE19)/('Calc|Labour Rates'!$C$10:$C$39='Input|Fee Based'!AG19),'Calc|Labour Rates'!$I$10:$I$39),"-") -> 0 | AG19: =IFERROR(AF19*'Input|Fee Based'!AH19*'Input|Fee Based'!AI19/'Input|Setup'!$E$19,0) -> 0 | AH19: =IFERROR(AF19*'Input|Fee Based'!AH19*'Input|Fee Based'!AJ19/'Input|Setup'!$E$19,0) -> 0 | AI19: 0 | AJ19: =IF(ISBLANK('Input|Fee Based'!$AK19),"",'Input|Fee Based'!$AK19) ->  | AK19: =_xlfn.IFNA(LOOKUP(2,1/('Calc|Labour Rates'!$B$10:$B$39='Calc|Fee Based'!AJ19)/('Calc|Labour Rates'!$C$10:$C$39='Input|Fee Based'!AL19),'Calc|Labour Rates'!$I$10:$I$39),"-") -> 0 | AL19: =IFERROR(AK19*'Input|Fee Based'!AM19*'Input|Fee Based'!AN19/'Input|Setup'!$E$19,0) -> 0 | AM19: =IFERROR(AK19*'Input|Fee Based'!AM19*'Input|Fee Based'!AO19/'Input|Setup'!$E$19,0) -> 0 | AN19: 0 | AP19: 0 | AQ19: ='Input|Fee Based'!AQ19*CPI_Escalator_to_Y1*RealMaterials_Escalator_to_Y1 -> 0 | AR19: ='Input|Fee Based'!AR19*CPI_Escalator_to_Y1*RealContracts_Escalator_to_Y1 -> 0 | AS19: ='Input|Fee Based'!AS19*CPI_Escalator_to_Y1*RealVehicles_Escalator_to_Y1 -> 0 | AT19: ='Input|Fee Based'!AT19*CPI_Escalator_to_Y1*RealOther_Escalator_to_Y1 -> 0 | AV19: 80.04394914 | AX19: =$AV19*'Input|Fee Based'!AV19 -> 0 | AY19: =$AV19*'Input|Fee Based'!AW19 -> 13.19874182 | AZ19: =$AV19*'Input|Fee Based'!AX19 -> 0 | BA19: =SUM($AV19,$AX19:$AZ19)*'Input|Fee Based'!$AY19 -> 0
A20: 11 | B20: =IF(ISBLANK('Input|Fee Based'!B20),"",'Input|Fee Based'!B20) ->  | C20: =IF(ISBLANK('Input|Fee Based'!C20),"",'Input|Fee Based'!C20) -> Wasted visit basic permanent disconnection | D20: =IF(ISBLANK('Input|Fee Based'!D20),"",'Input|Fee Based'!D20) -> Business hours | E20: =IF(ISBLANK('Input|Fee Based'!E20),"",'Input|Fee Based'!E20) -> Basic permanent disconnection | F20: =IF(ISBLANK('Input|Fee Based'!F20),"",'Input|Fee Based'!F20) ->  | G20: =IF(ISBLANK('Input|Fee Based'!G20),"",'Input|Fee Based'!G20) ->  | H20: 210.8811429 | J20: =IF(ISBLANK('Input|Fee Based'!I20),"",'Input|Fee Based'!I20) -> Non-field 1 | M20: =IF(ISBLANK('Input|Fee Based'!M20),"",'Input|Fee Based'!M20) ->  | N20: =_xlfn.IFNA(LOOKUP(2,1/('Calc|Labour Rates'!$B$10:$B$39='Calc|Fee Based'!M20)/('Calc|Labour Rates'!$C$10:$C$39='Input|Fee Based'!N20),'Calc|Labour Rates'!$I$10:$I$39),"-") -> 0 | O20: =IFERROR(N20*'Input|Fee Based'!O20*'Input|Fee Based'!P20/'Input|Setup'!$E$19,0) -> 0 | P20: =IF(ISBLANK('Input|Fee Based'!Q20),"",'Input|Fee Based'!Q20) ->  | Q20: =_xlfn.IFNA(LOOKUP(2,1/('Calc|Labour Rates'!$B$10:$B$39='Calc|Fee Based'!P20)/('Calc|Labour Rates'!$C$10:$C$39='Input|Fee Based'!R20),'Calc|Labour Rates'!$I$10:$I$39),"-") -> 0 | R20: =IFERROR(Q20*'Input|Fee Based'!S20*'Input|Fee Based'!T20/'Input|Setup'!$E$19,0) -> 0 | S20: 0 | T20: 0 | U20: =IF(ISBLANK('Input|Fee Based'!$V20),"",'Input|Fee Based'!$V20) -> Standard field labour | Z20: =IF(ISBLANK('Input|Fee Based'!$AA20),"",'Input|Fee Based'!$AA20) -> Hydrovac | AE20: =IF(ISBLANK('Input|Fee Based'!$AF20),"",'Input|Fee Based'!$AF20) ->  | AF20: =_xlfn.IFNA(LOOKUP(2,1/('Calc|Labour Rates'!$B$10:$B$39='Calc|Fee Based'!AE20)/('Calc|Labour Rates'!$C$10:$C$39='Input|Fee Based'!AG20),'Calc|Labour Rates'!$I$10:$I$39),"-") -> 0 | AG20: =IFERROR(AF20*'Input|Fee Based'!AH20*'Input|Fee Based'!AI20/'Input|Setup'!$E$19,0) -> 0 | AH20: =IFERROR(AF20*'Input|Fee Based'!AH20*'Input|Fee Based'!AJ20/'Input|Setup'!$E$19,0) -> 0 | AI20: 0 | AJ20: =IF(ISBLANK('Input|Fee Based'!$AK20),"",'Input|Fee Based'!$AK20) ->  | AK20: =_xlfn.IFNA(LOOKUP(2,1/('Calc|Labour Rates'!$B$10:$B$39='Calc|Fee Based'!AJ20)/('Calc|Labour Rates'!$C$10:$C$39='Input|Fee Based'!AL20),'Calc|Labour Rates'!$I$10:$I$39),"-") -> 0 | AL20: =IFERROR(AK20*'Input|Fee Based'!AM20*'Input|Fee Based'!AN20/'Input|Setup'!$E$19,0) -> 0 | AM20: =IFERROR(AK20*'Input|Fee Based'!AM20*'Input|Fee Based'!AO20/'Input|Setup'!$E$19,0) -> 0 | AN20: 0 | AP20: 0 | AQ20: ='Input|Fee Based'!AQ20*CPI_Escalator_to_Y1*RealMaterials_Escalator_to_Y1 -> 0 | AR20: ='Input|Fee Based'!AR20*CPI_Escalator_to_Y1*RealContracts_Escalator_to_Y1 -> 0 | AS20: ='Input|Fee Based'!AS20*CPI_Escalator_to_Y1*RealVehicles_Escalator_to_Y1 -> 0 | AT20: ='Input|Fee Based'!AT20*CPI_Escalator_to_Y1*RealOther_Escalator_to_Y1 -> 0 | AV20: 210.8811429 | AX20: =$AV20*'Input|Fee Based'!AV20 -> 0 | AY20: =$AV20*'Input|Fee Based'!AW20 -> 0 | AZ20: =$AV20*'Input|Fee Based'!AX20 -> 0 | BA20: =SUM($AV20,$AX20:$AZ20)*'Input|Fee Based'!$AY20 -> 0
